Workbook

Sheet Question paper 40 marks
A1: ='Entry sheet-1-hin'!C2 -> सरकारी पदवि पूर्व कॉलेंज (प्रौ.शा.वि) गुरुगुंटा, ता : लिंगसुगूर
B2: प्रश्‍न पत्रिका - | C2: ='Entry sheet-1-hin'!C3 -> संकलनात्मक परीक्षा - १ २०१५-१६
A3: ='Entry sheet-1-hin'!C4 -> 9वीं | B3: ='Entry sheet-1-hin'!C5 -> हिंदी | D3: ='Entry sheet-1-hin'!A6 -> अंक | E3: ='Entry sheet-1-hin'!C6 -> 40
A4: खण्ड “ क ”
A5: [ गद्य, पद्य और पूरक वाचन ]
A6: I. निम्नलिखित प्रश्नों के उत्तर एक-एक वाक्य में लिखिए :- 4 x 1 = 4
A7: =IF(B7="","",1) -> 1 | B7: =IF('Entry sheet-3-hin'!G14="","",'Entry sheet-3-hin'!G14) -> विवेकानंद कब अमरिका गये ?
A8: =IF(B8="","",A7+1) -> 2 | B8: =IF('Entry sheet-3-hin'!G15="","",'Entry sheet-3-hin'!G15) -> बहन ने भाई के माथे पर क्या लगाया ?
A9: =IF(B9="","",A8+1) -> 3 | B9: =IF('Entry sheet-3-hin'!G16="","",'Entry sheet-3-hin'!G16) -> मौसी का दुपट्टा कैसे था ?
A10: 4 | B10: =IF('Entry sheet-3-hin'!G17="","",'Entry sheet-3-hin'!G17) -> भारत माता का हृदय कैसा है ?
A11: II. 5. स्तम्भ ‘क’ के वाक्यांशों के साथ स्तम्भ ‘ख’ के सही वाक्यंशों को जोडकर लिखिए :- 2 X 1 = 2
B12: स्तम्भ ‘क’ | C12: स्तम्भ ‘ख’
A13: अ | B13: =IF('Entry sheet-3-hin'!G22="","",'Entry sheet-3-hin'!G22) -> कुमारी नोबल | C13: =IF('Entry sheet-3-hin'!P22="","",'Entry sheet-3-hin'!P22) -> असहयोग चल रहा था ।
A14: आ | B14: =IF('Entry sheet-3-hin'!G23="","",'Entry sheet-3-hin'!G23) -> हर हिस्सा दूसरे से | C14: =IF('Entry sheet-3-hin'!P23="","",'Entry sheet-3-hin'!P23) -> धर्म परायण नारी
C15: =IF('Entry sheet-3-hin'!P24="","",'Entry sheet-3-hin'!P24) -> सिस्टर निवेदिता
C16: =IF('Entry sheet-3-hin'!P25="","",'Entry sheet-3-hin'!P25) -> असहयोग कर रहा था ।
A17: III. प्रथम दो पदों से सूचित संबंधों के अनुरूप तीसरे पद से संबंधित पद लिखिए :- 2 x 1 = 2
A18: =IF(B18="","",A10+2) -> 6 | B18: =IF('Entry sheet-3-hin'!G28="","",'Entry sheet-3-hin'!G28) -> बाहुबली : डॉ. हिरण्मय :: बस की यात्रा :------
A19: =IF(B19="","",A18+1) -> 7 | B19: =IF('Entry sheet-3-hin'!G29="","",'Entry sheet-3-hin'!G29) -> योगराज अपने घर से : एक कटोरा दूध लाया :: गोपाल अपने घर से :--
A20: IV. निम्नलिखित प्रश्नों के उत्तर दो या तीन वाक्यों में लिखिए :- 5 x 2 = 10
A21: =IF(B21="","",A19+1) -> 8 | B21: =IF('Entry sheet-3-hin'!G32="","",'Entry sheet-3-hin'!G32) -> विवेकानंद ने भारत वासियों को क्या उपदेश दिये ?
A22: =IF(B22="","",A21+1) -> 9 | B22: =IF('Entry sheet-3-hin'!G33="","",'Entry sheet-3-hin'!G33) -> बहन ने भाई को कैसे विधा की ?
A23: 10 | B23: =IF('Entry sheet-3-hin'!G34="","",'Entry sheet-3-hin'!G34) -> बस के बारे में डाक्टर मित्र ने लेखक से क्या कहा ?
A24: 11 | B24: =IF('Entry sheet-3-hin'!G35="","",'Entry sheet-3-hin'!G35) -> हिमालय के बारे में कवि की भावना क्या है ?
A25: =IF(B25="","",A24+1) -> 12 | B25: =IF('Entry sheet-3-hin'!G36="","",'Entry sheet-3-hin'!G36) -> कजाकी के साथ लेखक के क्षन कैसे बीतते थे ?
B26: अथवा
B27: =IF('Entry sheet-3-hin'!G37="","",'Entry sheet-3-hin'!G37) -> एक दिन कजाकी डाकखाने देर से पसूँचा । क्यों ?
A28: V. निम्नलिखित प्रश्नों के उत्तर तीन - चार वाक्यों में लिखिए :- 2 x 3 = 6
A29: =IF(B29="","",A25+1) -> 13 | B29: =IF('Entry sheet-3-hin'!G46="","",'Entry sheet-3-hin'!G46) -> किसने किससे कहा ? किस पाठ से लिया गाया है - यह मेरा बेटा, यह मेरी बेटी ।
A30: =IF(B30="","",A29+1) -> 14 | B30: =IF('Entry sheet-3-hin'!G47="","",'Entry sheet-3-hin'!G47) -> निम्नलिखित कवितांश का भावार्थ भावार्थ लिखिए । फुलों - सा महकूँ मैं विहगों - सा चहकूँ मैं गुंजरित कर वन-उपवन कोयल - सा कुहुकूँ मैं मेरी अभीलाषा है ।
A31: VI. निम्नलिखित प्रश्न का उत्तर चार - पाँच वाक्यों में लिखिए :- 1 x 4 = 4
A32: =IF(B32="","",A30+1) -> 15 | B32: =IF('Entry sheet-3-hin'!G51="","",'Entry sheet-3-hin'!G51) -> शिकागो नगर के सर्वधर्म सम्मेलन के बारे में लिखिए ।
B33: अथवा
B34: =IF('Entry sheet-3-hin'!G52="","",'Entry sheet-3-hin'!G52) -> इस पद्य भाग की पूर्ति कीजिए - पहले पतंग -------------------------------------- --------------------------------------------------- ----------------------------------------------------- ----------------------------------निभाना सीखा ॥
A35: खण्ड “ ख ”
A36: [ व्याकरण ]
A37: VII.निम्नलिखित प्रश्नो के लिए चार-चार विकल्प दिए गए हैं, सही उत्तर चुनकर लिखिए :- 4x 1 = 4
A38: =IF(B38="","",A32+1) -> 16 | B38: =IF('Entry sheet-3-hin'!G55="","",'Entry sheet-3-hin'!G55) -> ‘बात’ का अन्यवचन रूप है - अ) बात आ) बातों इ) बातें ई) बाताएँ
A39: =IF(B39="","",A38+1) -> 17 | B39: =IF('Entry sheet-3-hin'!G56="","",'Entry sheet-3-hin'!G56) -> ‘ठहरना’ का द्वितीय प्रेरणार्थक क्रिया रूप है - अ) ठहरना आ) ठहराना इ) ठहर ई) ठहरवाना
A40: =IF(B40="","",A39+1) -> 18 | B40: =IF('Entry sheet-3-hin'!G57="","",'Entry sheet-3-hin'!G57) -> राम ने दरवाजा खोला । इस वाक्य में प्रयुक्त कारक नाम है - अ) कर्म आ) कर्ता इ) करण ई) संबंध
A41: 19 | B41: =IF('Entry sheet-3-hin'!G58="","",'Entry sheet-3-hin'!G58) -> ‘धर्म’ का विलोम रूप है - अ) अधर्म आ) नधर्म इ) धर्महीन ई) पाप
A42: खण्ड “ ग ”
A43: [ रचना - अपठित गद्यांश, अनुवाद, पत्रलेखन और निबंध ]
A44: VIII. 20. गद्यांश पढकर निम्नलिखित प्रश्नों के उत्तर लिखिए :- 2 x 1 = 2
B45: =IF('Entry sheet-3-hin'!G64="","",'Entry sheet-3-hin'!G64) -> यह सही है कि इन दोनों कुछ ऐसा माहौल बना है कि ईमानदारी से मेहनत करके जीविका चलाने वाले निरीह और भोले-भोले श्रमजीवी पिस रहे हैं और झूठ तथा फरेब का रोजगार करने वाले फल फूल रहे हैं । ईमानदारी को मूर्खता का पर्याय समझा जाने लगा है, सच्चाई केवल भीरु और बेबस लोगों के हिस्से पड़ी है । ऐसे स्थिति में जीवन के मूल्यों के बारे में लोगों की आस्था ही हिलने लगी है । सदा मनुष्य-बुद्धि नई परिस्थितियों का सामने करने के लिए नए सामाजिक विधि निषेधों को बनाती है, उनके ठीक न साबित होने पर उन्हें बदलती हैं ।
B46: =IF('Entry sheet-3-hin'!G65="","",'Entry sheet-3-hin'!G65) -> 1. आजकल किनका बोल बाला है ?
B47: =IF('Entry sheet-3-hin'!G66="","",'Entry sheet-3-hin'!G66) -> 2. सच्चाई किनके हिस्से का पर्याय मानी जाने लगी है ?
A48: IX. निम्नलिखित वाक्यों का अनुवाद कन्नड या अंग्रेजी में कीजिए :- 2x 1 = 2
A49: =IF(B49="","",A41+2) -> 21 | B49: =IF('Entry sheet-3-hin'!G69="","",'Entry sheet-3-hin'!G69) -> उनके बचपन का नाम नरेंद्र देव था ।
A50: =IF(B50="","",A49+1) -> 22 | B50: =IF('Entry sheet-3-hin'!G70="","",'Entry sheet-3-hin'!G70) -> शहर में क्यों आतंक छा गया था ?
A51: X. 23. | B51: =IF('Entry sheet-3-hin'!G73="","",'Entry sheet-3-hin'!G73) -> अपनी पढ़ाई के बारे में बताते हुए अपने पिताजी को एक पत्र लिखिए । | E51: 4
B52: अथवा
B53: किसी एक विषय पर निबंध लिखिए ।
A54: =IF(B54="","",1) -> 1 | B54: =IF('Entry sheet-3-hin'!G75="","",'Entry sheet-3-hin'!G75) -> इंटर्नेट क्रांति (अर्थ, लाभ, हानी, उपसंहार)
A55: =IF(B55="","",A54+1) -> 2 | B55: =IF('Entry sheet-3-hin'!G76="","",'Entry sheet-3-hin'!G76) -> त्योहारों का महत्व
B56: ***************************************

Sheet instruction 40 marks
B2: 40 CAPÀUÀ¼À ಪ್ರಶ್ನೆ ಪತ್ರಿಕೆಯನ್ನು ತಯಾರಿಸಲು ನೀಲ ನಕ್ಷೆಯನ್ನು ಸಿದ್ಧಪಡಿಸುವುದು.
B3: * | C3: ¥Àæ±Éß ¥ÀwæPÉ ¹zÀÞ¥Àr¸À®Ä ¥ÁoÀUÀ¼À ¸ÀASÉå ªÀÄvÀÄÛ ¥Àæ±ÉßUÀ¼À C£ÀÄPÀæªÀÄ ¥ÀÆªÀð ¤zsÁðjvÀ. ¥ÁoÀUÀ½UÉ ¤UÀ¢üUÉÆ½¹gÀÄªÀ ¸ÀASÉåAiÀÄ£ÀÄß §¼À¹PÉÆAqÀÄ ¥Àæ±ÉßUÀ¼À£ÀÄß DAiÀÄÄÝPÉÆ¼Àî¨ÉÃPÀÄ. ¥ÀÆªÀð ¤zsÁðjvÀ ಪಾಠಗಳ ಸಂಖ್ಯೆಯನ್ನು ಮುಖ್ಯ ಪುಟ 1 ರಲ್ಲಿ ನಮೂಧಿಸಲಾಗಿದೆ.
B4: * | C4: B9 £À°è ¥ÀÆªÀð ¤zsÁðjvÀ ¥ÁoÀzÀ ¸ÀASÉåAiÀÄ£ÀÄß vÀÄA©PÉÆAqÀÄ C9 jAzÀ G9 gÀªÀgÉUÉ ¥Àæ±ÉßUÀ¼À ««zsÀ ¥ÀæPÁgÀUÀ¼À£ÀÄß DAiÉÄÌ ªÀiÁrPÉÆ½î. ¤ÃªÀÅ DAiÉÄÌ ªÀiÁrPÉÆAqÀ ¥ÁoÀzÀ ¸ÀASÉå ºÁUÀÆ ¥Àæ±ÉßUÀ¼À ««zsÀ ¥ÀæPÁgÀUÀ¼ÀÄ प्रश्‍न चुनना ಪುಟದಲ್ಲಿ PÁtÄªÀzÀjAzÀ ¥Àæ±ÉßUÀ¼À ««zsÀ ¥ÀæPÁgÀUÀ½UÉ C£ÀÄ¸ÁgÀªÁV ¥Àæ±ÉßAiÀÄ£ÀÄß DAiÀÄÄÝPÉÆ¼Àî®Ä ¸ÀºÁAiÀÄAiÀiÁUÀÄvÀÛzÉ. प्रश्‍न चुनना ಪುಟದಲ್ಲಿ "ಜಿ:ಎಕ್ಸ14" ನಲ್ಲಿ ಕೇವಲ ನಿಮಗೆ ಬೇಕಾದ ಪ್ರಶ್ನೆಗಳನ್ನು ಮಾತ್ರ ಆಯ್ದುಕೊಳ್ಳುವುದು..
B5: 40 CAPÀUÀ¼À ¤Ã® £ÀPÉëAiÀÄ°è ¥ÀÀæ±ÉßUÀ¼À£ÀÄß DAiÀÄÄÝPÉÆ¼ÀÄîªÀ C£ÀÄPÀæªÀÄtÂPÉ ( मुख्य पृष्ठ-2 £À°è B9 jAzÀ B71 gÀªÀgÉV£À PÁ®AUÀ¼À°è ¥ÁoÀzÀ ¸ÀASÉåAiÀÄ£ÀÄß £ÀªÀÄÆ¢ü¸ÀÄªÀÅzÀgÀ ªÀÄÆ®PÀ )
B6: ನೀಲ ನಕ್ಷೆಯ ಸಹಿತ ಪ್ರಶ್ನೆ ಪತ್ರಿಕೆಯು ಕೇವಲ 10 ನೇ ತರಗತಿಗೆ ಮಾತ್ರ. ನೀವು ಕೇವಲ ನೀಲ ನಕ್ಷೆಗಾಗಿ ಈ ತಂತ್ರಾಂಶವನ್ನು ಬಳಸುವುದಾದರೆ ಯಾವ ತರಗತಿಗೆ ಬೇಕಾದರು ಬಳಸಿಕೊಳ್ಳಬಹುದು.(ಹಿಂದಿ ವಿಷಯಕ್ಕೆ ಮಾತ್ರ)
C7: ಮುಖ್ಯಪುಟ2 | D7: ಮುಖ್ಯ ಪುಟ 2 ನಲ್ಲಿ ಈ ಕೆಳಗಿನ ಸೂಚನೆಯಂತೆ ನೀಲ ನಕ್ಷೆಯನ್ನು ಸಿದ್ಧಪಡಿಸಿ. | T7: प्रश्‍न चुनना
B8: 1 | C8: B9 - B12 | E8: MAzÀÄ CAPÀzÀ 4 ¥Àæ±ÉßUÀ¼À£ÀÄß DAiÀÄÄÝPÉÆ½î. ( 1 CAPÀzÀ ¥Àæ±ÉßUÀ½UÉ AiÀiÁªÀ ¥ÁoÀ¢AzÀ ¥Àæ±ÉßUÀ¼À£ÀÄß PÉÆqÀ°aÑ¸ÀÄ«gÉÆ, D ¥ÁoÀzÀ ¸ÀASÉåAiÀÄ£ÀÄß `©9' ನಲ್ಲಿ ತುಂಬಿ "ಸಿ9" ನಲ್ಲಿ ಪ್ರಶ್ನೆಯ ಉದ್ದೇಶ, "ಡಿ9" ನಲ್ಲಿ ಪ್ರಶ್ನೆಯ ಸ್ತರ, "ಇ9" ನಲ್ಲಿ ಪ್ರಶ್ನೆಯ ಪ್ರಕಾರ, "ಎಫ್9" ನಲ್ಲಿ ವಿಷಯ ವಸ್ತು, ಹಾಗೂ "ಜಿ9" ನಲ್ಲಿ ಆಯ್ಕೆ ಪ್ರಶ್ನೆಯಾದರೆ "ಸಿ" ಎಂದು ಆಯ್ದುಕೊಳ್ಳಿ ಇಲ್ಲವಾದರೆ ಖಾಲಿ ಬಿಡಿ. EzÉÃ ¤AiÀÄªÀÄªÀ£ÀÄß J¯Áè ¥Àæ±ÉßUÀ¼À DAiÉÄÌUÀÆ C£ÀÄ¸Àj¹.) | T8: G:X14 - G:X17
B9: 2 | C9: B17 - B20 | E9: ºÉÆA¢¹ §gÉAiÀÄÄªÀ 4 ¥Àæ±ÉßUÀ¼À£ÀÄß DAiÀÄÄÝPÉÆ½î. B19 ªÀÄvÀÄÛ B20 gÀ ªÀÄÄA¢£À G PÁ®A£À°è wæ¨sÀÄeÁPÁgÀzÀ ªÉÄÃ¯É ªÀiË¸ï QèPï ªÀiÁqÀÄªÀÅzÀgÀ ªÀÄÆ®PÀ C JAzÀÄ DAiÉÄÌ ªÀiÁrPÉÆ½î. »ÃUÉ ªÀiÁqÀÄªÀÅzÀjAzÀ ¤Ã® £ÀPÉëAiÀÄ°è CªÀÅUÀ¼À CAPÀUÀ¼À£ÀÄß vÉÆÃj¸ÀÄªÀÅ¢®è ºÁUÀÆ ºÉÆA¢¹ §gÉAiÀÄÄªÀ 2 ¥Àæ±ÉßUÀ¼À£ÀÄß ªÀiÁvÀæ £ÁªÀÅ DAiÀÄÄÝPÉÆAqÀAvÁUÀÄvÀÛzÉ. ¥Àæ±Éß ¥ÀwæPÉAiÀÄ ¥ÀÄlzÀ°è ºÉÆA¢¹ §gÉAiÀÄÄªÀ ¥Àæ±ÉßUÀ¼À£ÀÄß DAiÀÄÄÝPÉÆ¼ÀÄîªÁUÀ G ¤AzÀ O ªÀgÉUÉ `PÀ' ¥ÀnÖAiÀÄ ¥Àæ±ÉßUÀ¼À£ÀÄß ºÁUÀÆ P ¤AzÀ X ªÀgÉUÉ `RÀ' ¥ÀnÖAiÀÄ ¥Àæ±ÉßUÀ¼À£ÀÄß DAiÀÄÄÝPÉÆ¼Àî®Ä CªÀPÁ±À PÀ°à¸À¯ÁVzÉ. B19 ªÀÄvÀÄÛ B20 gÀ ªÀÄÄA¢£À PÉÃªÀ® `R' ¥ÀnÖAiÀÄ ¥Àæ±ÉßUÀ¼À£ÀÄß DAiÀÄÄÝPÉÆ½î. | T9: G:O22 - G:O23 - "ಕ" ಪಟ್ಟಿ P:X22 - P:X25 "ಖ" ಪಟ್ಟಿ
B10: 3 | C10: B23 - B24 | E10: ಅನುರೂಪದ 2 ¥Àæ±ÉßUÀ¼À£ÀÄß DAiÀÄÄÝPÉÆ½î. | T10: G:X28 - G:X29
B11: 4 | C11: B27 - B32 | E11: 2 CAPÀUÀ¼À 6 ¥Àæ±ÉßUÀ¼À£ÀÄß DAiÀÄÄÝPÉÆ½î. ಅಪಠಿತ ಗದ್ಯದಿಂದ ಪ್ರಶ್ನೆ ಕೊಡುವುದಾದರೆ 5 ನೇ ಪ್ರಶ್ನೆಯನ್ನು ಅಂದರೆ B31 ಮತ್ತು B32 ರಲ್ಲಿ ಅಪಠಿತ ಗದ್ಯದಿಂದ ಆಯ್ದಕೊಳ್ಳಿ. B32 gÀ ªÀÄÄA¢£À G PÁ®A£À°è C JAzÀÄ DAiÉÄÌ ªÀiÁrPÉÆ½î. | T11: G:X32- G:X37
B12: 5 | C12: B41 - B42 | E12: 3 CAPÀUÀ¼À 2 ¥Àæ±ÉßUÀ¼À£ÀÄß DAiÀÄÄÝPÉÆ½î. ಪದ್ಯದಿಂದ ಭಾವಾಥÀðವನ್ನು ಕೊಡುವುದಾದರೆ 2 ನೇ ಪ್ರಶ್ನೆಯನ್ನು ಆಯ್ದುಕೊಳ್ಳಿ. | T12: G:X46 - G:X47
B13: 6 | C13: B46 - B47 | E13: 4 CAPÀUÀ¼À 2 ¥Àæ±ÉßUÀ¼À£ÀÄß DAiÀÄÄÝPÉÆ½î. ಪದ್ಯವನ್ನು ಕೊಡುವುದಾದರೆ 2 ನೇ ಪ್ರಶ್ನೆಯನ್ನು ಆಯ್ದುಕೊಳ್ಳಿ. ಯಾವುದಾದರು ಒಂದರ ಮುಂದಿನ "ಜಿ" ಕಾಲಂನಲ್ಲಿ "ಸಿ" ಎಂದು ಆಯ್ದುಕೊಳ್ಳಿ. | T13: G:X51 - G:X52
B14: 7 | C14: B50 - B53 | E14: ªÁåPÀgÀt¢AzÀ §ºÀÄDAiÉÄÌAiÀÄ 4 ¥Àæ±ÉßUÀ¼À£ÀÄß DAiÀÄÄÝPÉÆ½î. | T14: G:X55 - G:X58
B15: 8 | C15: B59 - B61 | E15: "ಬಿ59" ನಲ್ಲಿ ಅಪಠಿತ ಗದ್ಯವನ್ನು ಆಯ್ದುಕೊಂಡು ಅದರ ಮುಂದಿನ "ಜಿ" ಕಾಲಂನಲ್ಲಿ "ಸಿ" ಎಂದು ಆಯ್ದುಕೊಳ್ಳಿ ಹಾಗೂ "ಬಿ60" ಮತ್ತು "ಬಿ61" ರಲ್ಲಿ ಅಪಠಿತ ಗದ್ಯದ 2 ಪ್ರಶ್ನೆಗಳನ್ನು ಆಯ್ದುಕೊಳ್ಳಿ. | T15: G:X64 - G:X66
B16: 9 | C16: B64 - B65 | E16: ಅನುವಾದದ 2 ಪ್ರಶ್ನೆಗಳನ್ನು ಆಯ್ದುಕೊಳ್ಳಿ. | T16: G:X69- G:X70
B17: 10 | C17: B68 | E17: 4 CAPÀUÀ¼À ¥ÀvÀæ¯ÉÃR£ÀzÀ 1 ¥Àæ±Éßಯ£ÀÄß DAiÀÄÄÝPÉÆ½î. | T17: G:X73
B18: 11 | C18: B70 - B71 | E18: 4 ಅಂಕಗಳ 2 ನಿಬಂಧವನ್ನು ಆಯ್ದುಕೊಳ್ಳಿ ಹಾಗೂ ಎರಡೂ ಪ್ರಶ್ನೆಗಳ ಮುಂದಿನ "ಜಿ" ಕಾಲಂನಲ್ಲಿ "ಸಿ" ಎಂದು ಆಯ್ದುಕೊಳ್ಳಿ. | T18: G:X75 - G:X76
B20: 90, 40 ಮತ್ತು 20 ಅಂಕಗಳಿಗೆ ಪ್ರಶ್ನೆ ಪತ್ರಿಕೆಗಳನ್ನು ಸಿದ್ಧಪಡಿಸುವಾಗ ಬೇರೆಡೆ ಕಾಪಿ ಮಾಡಿಕೊಂಡು ಸಿದ್ಧಪಡಿಸುವುದು. ಸೂಕ್ತ. ಏಕೆಂದರೆ ಬೇರೆ ಬೇರೆ ಅಂಕಗಳಿಗೆ ನೀಲ ನಕ್ಷೆ ತಯಾರಿಸುವಾಗ ಮೊದಲ ನೀಲ ನಕ್ಷೆಯನ್ನ ಕಳೆದುಕೊಳ್ಳುವಿರಿ. | E20: ¥Àæ±ÉßUÀ¼À DAiÉÄÌAiÀÄ¯ÁèUÀ° ºÁUÀÆ ¥Àæ±Éß ¥ÀwæPÉAiÀÄ¯ÉèÃ DUÀ° §zÀ¯ÁªÀuÉ ªÀiÁqÀ®Ä CªÀPÁ±À«®è. ¥Àæ±ÉßUÀ¼À DAiÉÄÌAiÀÄ°è K£ÁzÀgÀÄ ªÀåvÁå¸À PÀAqÀÄ§AzÀ°è CzÀPÉÌ ¤Ã® £ÀPÉëAiÀÄ¯ÉèÃ ªÁåvÁå¸ÀªÁVgÀÄvÀÛzÉ. ¤Ã® £ÀPÉëAiÀÄ°è£À ªÀåvÁå¸ÀªÀ£ÀÄß ¸Àj¥Àr¸ÀÄªÀ ªÀÄÆ®PÀ ¥Àæ±ÉßUÀ¼À DAiÉÄÌAiÀÄ°è£À ºÁUÀÆ ¥Àæ±Éß ¥ÀwæPÉAiÀÄ°è£À ªÀåvÁå¸ÀªÀ£ÀÄß ¸Àj¥Àr¹PÉÆ½î. (¤Ã® £ÀPÉëAiÀÄ°è ¥ÁoÀzÀ ¸ÀASÉå, UÀzÀå,¥ÀzÀå, ªÁåPÀgÀt ( §ºÀÄ«PÀ°àÃAiÀÄ), ºÉÆA¢¹ §gÉAiÀÄÄªÀÅzÀÄ, EvÁå¢UÀ¼À ¥ÁoÀ ¸ÀASÉå ºÁUÀÆ ¥Àæ±ÉßUÀ¼À C£ÀÄPÀæªÀÄUÀ¼À°è ªÀåvÁå¸À«gÀÄvÀÛzÉ.)
H22: Prepared By :
H23: NAGALINGAIAH. Govt.P.U.COLLEGE (H.S)Gurugunta, TQ: Lingasugur
H24: District : Raichur
H25: E Mail- nagalingaiah.h@gmail.com
H26: Mob: 9035172763, 7760399489

Sheet Entry sheet-2-hin
B1: F PÉ¼ÀV£À ªÀiÁ»wUÀ¼À£ÀÄß vÀ¥ÀàzÉÃ ಭwðªÀiÁr. | J1: नील नक्षा | N1: वास्तव भरे हुए प्रश्‍नों की संख्या | T1: =MAX(A9:A77) -> 25 | V1: चुननेवाला प्रश्‍न
A2: ='Entry sheet-1-hin'!E9 -> उद्देश्य | B2: ='Entry sheet-1-hin'!E10 -> स्मरण रखना | D2: ='Entry sheet-1-hin'!E11 -> समझना | F2: ='Entry sheet-1-hin'!E12 -> अभिव्यक्ति | I2: ='Entry sheet-1-hin'!E13 -> रसग्रहण | K2: स्तर | L2: ='Entry sheet-1-hin'!L10 -> सरल | N2: ='Entry sheet-1-hin'!L11 -> सामान्य | T2: ='Entry sheet-1-hin'!L12 -> कठिन | V2: अंक | X2: पू.नि | Z2: वास्तव | BD2: स्म | BE2: सरल | BF2: बवि | BG2: ग | BJ2: C
B3: पू.नि. | C3: वास्तव | D3: पू.नि. | E3: वास्तव | F3: पू.नि. | G3: वास्तव | I3: पू.नि. | J3: वास्तव | L3: पू.नि. | M3: वास्तव | N3: पू.नि. | Q3: वास्तव | T3: पू.नि. | U3: वास्तव | V3: =IF('Entry sheet-1-hin'!H21="","",'Entry sheet-1-hin'!H21) -> वस्तुनिष्ठ | X3: =IF('Entry sheet-1-hin'!I21="","",'Entry sheet-1-hin'!I21) -> 2 | Z3: =COUNTIF($AK$9:$AK$77,"वनिC") -> 2 | BD3: सम | BE3: सामान्य | BF3: वनि | BG3: प
B4: =IF('Entry sheet-1-hin'!G10="","",'Entry sheet-1-hin'!G10) -> 20 | C4: =IF('Entry sheet-1-hin'!$C$6="","",(COUNTIF($AH$9:$AH$77,"स्मसरलबवि")*1+COUNTIF(AH9:AH77,"स्मसरलवनि")*1+COUNTIF($AH$9:$AH$77,"स्मसरलअलउ")*1+COUNTIF($AH$9:AH$77,"स्मसरललउ२")*2+COUNTIF($AH$9:$AH$77,"स्मसरललउ३")*3+COUNTIF($AH$9:$AH$77,"स्मसरलदीउ४")*4+COUNTIF($AH$9:$AH$77,"स्मसरलदीउ५")*5+COUNTIF($AH$9:$AH$77,"स्मसामान्यबवि")*1+COUNTIF(AH9:AH77,"स्मसामान्यवनि")*1+COUNTIF($AH$9:$AH$77,"स्मसामान्यअलउ")*1+COUNTIF($AH$9:AH$77,"स्मसामान्यलउ२")*2+COUNTIF($AH$9:$AH$77,"स्मसामान्यलउ३")*3+COUNTIF($AH$9:$AH$77,"स्मसामान्यदीउ४")*4+COUNTIF($AH$9:$AH$77,"स्मसामान्यदीउ५")*5+COUNTIF($AH$9:$AH$77,"स्मकठिनबवि")*1+COUNTIF(AH9:AH77,"स्मकठिनवनि")*1+COUNTIF($AH$9:$AH$77,"स्मकठिनअलउ")*1+COUNTIF($AH$9:AH$77,"स्मकठिनलउ२")*2+COUNTIF($AH$9:$AH$77,"स्मकठिनलउ३")*3+COUNTIF($AH$9:$AH$77,"स्मकठिनदीउ४")*4+COUNTIF($AH$9:$AH$77,"स्मकठिनदीउ५")*5)/'Entry sheet-1-hin'!$C$6*100) -> 10 | D4: =IF('Entry sheet-1-hin'!G11="","",'Entry sheet-1-hin'!G11) -> 37.5 | E4: =IF('Entry sheet-1-hin'!$C$6="","",COUNTIF($AH$9:$AH$77,"समसरलबवि")*1+COUNTIF($AH$9:$AH$77,"समसरलवनि")*1+COUNTIF($AH$9:$AH$77,"समसरलअलउ")*1+COUNTIF($AH$9:$AH$77,"समसरललउ२")*2+COUNTIF($AH$9:$AH$77,"समसरललउ३")*3+COUNTIF($AH$9:$AH$77,"समसरलदीउ४")*4+COUNTIF($AH$9:$AH$77,"समसरलदीउ५")*5+COUNTIF($AH$9:$AH$77,"समसामान्यबवि")*1+COUNTIF($AH$9:$AH$77,"समसामान्यवनि")*1+COUNTIF($AH$9:$AH$77,"समसामान्यअलउ")*1+COUNTIF($AH$9:$AH$77,"समसामान्यलउ२")*2+COUNTIF($AH$9:$AH$77,"समसामान्यलउ३")*3+COUNTIF($AH$9:$AH$77,"समसामान्यदीउ४")*4+COUNTIF($AH$9:$AH$77,"समसामान्यदीउ५")*5+COUNTIF($AH$9:$AH$77,"समकठिनबवि")*1+COUNTIF(AF9:AF77,"समकठिनवनि")*1+COUNTIF($AH$9:$AH$77,"समकठिनअलउ")*1+COUNTIF($AH$9:$AH$77,"समकठिनलउ२")*2+COUNTIF($AH$9:$AH$77,"समकठिनलउ३")*3+COUNTIF($AH$9:$AH$77,"समकठिनदीउ४")*4+COUNTIF($AH$9:$AH$77,"समकठिनदीउ५")*5)/'Entry sheet-1-hin'!$C$6*100 -> 47.5 | F4: =IF('Entry sheet-1-hin'!G12="","",'Entry sheet-1-hin'!G12) -> 35 | G4: =IF('Entry sheet-1-hin'!$C$6="","",COUNTIF($AH$9:$AH$77,"असरलबवि")*1+COUNTIF($AH$9:$AH$77,"असरलवनि")*1+COUNTIF($AH$9:$AH$77,"असरलअलउ")*1+COUNTIF($AH$9:$AH$77,"असरललउ२")*2+COUNTIF($AH$9:$AH$77,"असरललउ३")*3+COUNTIF($AH$9:$AH$77,"असरलदीउ४")*4+COUNTIF($AH$9:$AH$77,"असरलदीउ५")*5+COUNTIF($AH$9:$AH$77,"असामान्यबवि")*1+COUNTIF(AH9:AH77,"असामान्यवनि")*1+COUNTIF($AH$9:$AH$77,"असामान्यअलउ")*1+COUNTIF($AH$9:$AH$77,"असामान्यलउ२")*2+COUNTIF($AH$9:$AH$77,"असामान्यलउ३")*3+COUNTIF($AH$9:$AH$77,"असामान्यदीउ४")*4+COUNTIF($AH$9:$AH$77,"असामान्यदीउ५")*5+COUNTIF($AH$9:$AH$77,"अकठिनबवि")*1+COUNTIF(AH9:AH77,"अकठिनवनि")*1+COUNTIF($AH$9:$AH$77,"अकठिनअलउ")*1+COUNTIF($AH$9:$AH$77,"अकठिनलउ२")*2+COUNTIF($AH$9:$AH$77,"अकठिनलउ३")*3+COUNTIF($AH$9:$AH$77,"अकठिनदीउ४")*4+COUNTIF($AH$9:$AH$77,"अकठिनदीउ५")*5)/'Entry sheet-1-hin'!$C$6*100 -> 35 | I4: =IF('Entry sheet-1-hin'!G13="","",'Entry sheet-1-hin'!G13) -> 7.5 | J4: =IF('Entry sheet-1-hin'!$C$6="","",(COUNTIF($AH$9:$AH$77,"रससरलबवि")*1+COUNTIF(AH9:AH77,"रससरलवनि")*1+COUNTIF($AH$9:$AH$77,"रससरलअलउ")*1+COUNTIF($AH$9:$AH$77,"रससरललउ२")*2+COUNTIF($AH$9:$AH$77,"रससरललउ३")*3+COUNTIF($AH$9:$AH$77,"रससरलदीउ४")*4+COUNTIF($AH$9:$AH$77,"रससरलदीउ५")*5+COUNTIF($AH$9:$AH$77,"रससामान्यबवि")*1+COUNTIF(AH9:AH77,"रससामान्यवनि")*1+COUNTIF($AH$9:$AH$77,"रससामान्यअलउ")*1+COUNTIF($AH$9:$AH$77,"रससामान्यलउ२")*2+COUNTIF($AH$9:$AH$77,"रससामान्यलउ३")*3+COUNTIF($AH$9:$AH$77,"रससामान्यदीउ४")*4+COUNTIF($AH$9:$AH$77,"रससामान्यदीउ५")*5+COUNTIF($AH$9:$AH$77,"रसकठिनबवि")*1+COUNTIF(AH9:AH77,"रसकठिनवनि")*1+COUNTIF($AH$9:$AH$77,"रसकठिनअलउ")*1+COUNTIF($AH$9:$AH$77,"रसकठिनलउ२")*2+COUNTIF($AH$9:$AH$77,"रसकठिनलउ३")*3+COUNTIF($AH$9:$AH$77,"रसकठिनदीउ४")*4+COUNTIF($AH$9:$AH$77,"रसकठिनदीउ५")*5)/'Entry sheet-1-hin'!$C$6*100) -> 7.5 | L4: =IF('Entry sheet-1-hin'!N10="","",'Entry sheet-1-hin'!N10) -> 30 | M4: =IF('Entry sheet-1-hin'!$C$6="","",(COUNTIF($AH$9:$AH$77,"स्मसरलबवि")*1+COUNTIF(AH9:AH77,"स्मसरलवनि")*1+COUNTIF($AH$9:$AH$77,"स्मसरलअलउ")*1+COUNTIF($AH$9:AH$77,"स्मसरललउ२")*2+COUNTIF($AH$9:$AH$77,"स्मसरललउ३")*3+COUNTIF($AH$9:$AH$77,"स्मसरलदीउ४")*4+COUNTIF($AH$9:$AH$77,"स्मसरलदीउ५")*5+COUNTIF($AH$9:$AH$77,"समसरलबवि")*1+COUNTIF(AH9:AH77,"समसरलवनि")*1+COUNTIF($AH$9:$AH$77,"समसरलअलउ")*1+COUNTIF($AH$9:$AH$77,"समसरललउ२")*2+COUNTIF($AH$9:$AH$77,"समसरललउ३")*3+COUNTIF($AH$9:$AH$77,"समसरलदीउ४")*4+COUNTIF($AH$9:$AH$77,"समसरलदीउ५")*5+COUNTIF($AH$9:$AH$77,"असरलबवि")*1+COUNTIF(AH9:AH77,"असरलवनि")*1+COUNTIF($AH$9:$AH$77,"असरलअलउ")*1+COUNTIF($AH$9:$AH$77,"असरललउ२")*2+COUNTIF($AH$9:$AH$77,"असरललउ३")*3+COUNTIF($AH$9:$AH$77,"असरलदीउ४")*4+COUNTIF($AH$9:$AH$77,"असरलदीउ५")*5+COUNTIF($AH$9:$AH$77,"रससरलबवि")*1+COUNTIF(AH9:AH77,"रससरलवनि")*1+COUNTIF($AH$9:$AH$77,"रससरलअलउ")*1+COUNTIF($AH$9:$AH$77,"रससरललउ२")*2+COUNTIF($AH$9:$AH$77,"रससरललउ३")*3+COUNTIF($AH$9:$AH$77,"रससरलदीउ४")*4+COUNTIF($AH$9:$AH$77,"रससरलदीउ५")*5)/'Entry sheet-1-hin'!$C$6*100) -> 30 | N4: =IF('Entry sheet-1-hin'!N11="","",'Entry sheet-1-hin'!N11) -> 50 | Q4: =IF('Entry sheet-1-hin'!$C$6="","",(COUNTIF($AH$9:$AH$77,"स्मसामान्यबवि")*1+COUNTIF(AH9:AH77,"स्मसामान्यवनि")*1+COUNTIF($AH$9:$AH$77,"स्मसामान्यअलउ")*1+COUNTIF($AH$9:AH$77,"स्मसामान्यलउ२")*2+COUNTIF($AH$9:$AH$77,"स्मसामान्यलउ३")*3+COUNTIF($AH$9:$AH$77,"स्मसामान्यदीउ४")*4+COUNTIF($AH$9:$AH$77,"स्मसामान्यदीउ५")*5+COUNTIF($AH$9:$AH$77,"समसामान्यबवि")*1+COUNTIF(AH9:AH77,"समसामान्यवनि")*1+COUNTIF($AH$9:$AH$77,"समसामान्यअलउ")*1+COUNTIF($AH$9:$AH$77,"समसामान्यलउ२")*2+COUNTIF($AH$9:$AH$77,"समसामान्यलउ३")*3+COUNTIF($AH$9:$AH$77,"समसामान्यदीउ४")*4+COUNTIF($AH$9:$AH$77,"समसामान्यदीउ५")*5+COUNTIF($AH$9:$AH$77,"असामान्यबवि")*1+COUNTIF(AH9:AH77,"असामान्यवनि")*1+COUNTIF($AH$9:$AH$77,"असामान्यअलउ")*1+COUNTIF($AH$9:$AH$77,"असामान्यलउ२")*2+COUNTIF($AH$9:$AH$77,"असामान्यलउ३")*3+COUNTIF($AH$9:$AH$77,"असामान्यदीउ४")*4+COUNTIF($AH$9:$AH$77,"असामान्यदीउ५")*5+COUNTIF($AH$9:$AH$77,"रससामान्यबवि")*1+COUNTIF(AH9:AH77,"रससामान्यवनि")*1+COUNTIF($AH$9:$AH$77,"रससामान्यअलउ")*1+COUNTIF($AH$9:$AH$77,"रससामान्यलउ२")*2+COUNTIF($AH$9:$AH$77,"रससामान्यलउ३")*3+COUNTIF($AH$9:$AH$77,"रससामान्यदीउ४")*4+COUNTIF($AH$9:$AH$77,"रससामान्यदीउ५")*5)/'Entry sheet-1-hin'!$C$6*100) -> 50 | T4: =IF('Entry sheet-1-hin'!N12="","",'Entry sheet-1-hin'!N12) -> 20 | U4: =IF('Entry sheet-1-hin'!$C$6="","",(COUNTIF($AH$9:$AH$77,"स्मकठिनबवि")*1+COUNTIF(AH9:AH77,"स्मकठिनवनि")*1+COUNTIF($AH$9:$AH$77,"स्मकठिनअलउ")*1+COUNTIF($AH$9:AH$77,"स्मकठिनलउ२")*2+COUNTIF($AH$9:$AH$77,"स्मकठिनलउ३")*3+COUNTIF($AH$9:$AH$77,"स्मकठिनदीउ४")*4+COUNTIF($AH$9:$AH$77,"स्मकठिनदीउ५")*5+COUNTIF($AH$9:$AH$77,"समकठिनबवि")*1+COUNTIF(AH9:AH77,"समकठिनवनि")*1+COUNTIF($AH$9:$AH$77,"समकठिनअलउ")*1+COUNTIF($AH$9:$AH$77,"समकठिनलउ२")*2+COUNTIF($AH$9:$AH$77,"समकठिनलउ३")*3+COUNTIF($AH$9:$AH$77,"समकठिनदीउ४")*4+COUNTIF($AH$9:$AH$77,"समकठिनदीउ५")*5+COUNTIF($AH$9:$AH$77,"अकठिनबवि")*1+COUNTIF(AH9:AH77,"अकठिनवनि")*1+COUNTIF($AH$9:$AH$77,"अकठिनअलउ")*1+COUNTIF($AH$9:$AH$77,"अकठिनलउ२")*2+COUNTIF($AH$9:$AH$77,"अकठिनलउ३")*3+COUNTIF($AH$9:$AH$77,"अकठिनदीउ४")*4+COUNTIF($AH$9:$AH$77,"अकठिनदीउ५")*5+COUNTIF($AH$9:$AH$77,"रसकठिनबवि")*1+COUNTIF(AH9:AH77,"रसकठिनवनि")*1+COUNTIF($AH$9:$AH$77,"रसकठिनअलउ")*1+COUNTIF($AH$9:$AH$77,"रसकठिनलउ२")*2+COUNTIF($AH$9:$AH$77,"रसकठिनलउ३")*3+COUNTIF($AH$9:$AH$77,"रसकठिनदीउ४")*4+COUNTIF($AH$9:$AH$77,"रसकठिनदीउ५")*5)/'Entry sheet-1-hin'!$C$6*100) -> 20 | V4: =IF('Entry sheet-1-hin'!H22="","",'Entry sheet-1-hin'!H22) -> 2 अंक | X4: =IF('Entry sheet-1-hin'!I22="","",'Entry sheet-1-hin'!I22) -> 1 | Z4: =COUNTIF($AK$9:$AK$77,"लउ२C") -> 1 | BD4: अ | BE4: कठिन | BF4: अलउ | BG4: व्या
A5: ='Entry sheet-1-hin'!H9 -> प्रश्‍न-प्रकार | B5: ='Entry sheet-1-hin'!H10 -> बहुविकल्पीय | D5: ='Entry sheet-1-hin'!H12 -> वस्तुनिष्ठ | F5: ='Entry sheet-1-hin'!H14 -> अति लघूत्तर | I5: ='Entry sheet-1-hin'!I15 -> २ अंकवाले | K5: ='Entry sheet-1-hin'!I16 -> ३ अंकवाले | M5: ='Entry sheet-1-hin'!I17 -> ४ अंकवाले | O5: ='Entry sheet-1-hin'!I18 -> ५ अंकवाले | Q5: ='Entry sheet-1-hin'!E20 -> गद्य | R5: ='Entry sheet-1-hin'!E21 -> पद्य | S5: ='Entry sheet-1-hin'!E22 -> व्याकरण | T5: ='Entry sheet-1-hin'!E23 -> रचना | U5: ='Entry sheet-1-hin'!E24 -> पूरक वाचन | V5: =IF('Entry sheet-1-hin'!H23="","",'Entry sheet-1-hin'!H23) -> 3अंक | X5: =IF('Entry sheet-1-hin'!I23="","",'Entry sheet-1-hin'!I23) ->  | Z5: =COUNTIF($AK$9:$AK$77,"लउ३C") -> 0 | BD5: रस | BF5: लउ२ | BG5: र
B6: पू.नि. | C6: वास्तव | D6: पू.नि. | E6: वास्तव | F6: पू.नि. | G6: वास्तव | I6: पू.नि. | J6: वास्तव | K6: पू.नि. | L6: वास्तव | M6: पू.नि. | N6: वास्तव | O6: पू.नि. | P6: वास्तव | Q6: ='Entry sheet-1-hin'!G20 -> 16 | R6: ='Entry sheet-1-hin'!G21 -> 10 | S6: ='Entry sheet-1-hin'!G22 -> 4 | T6: ='Entry sheet-1-hin'!G23 -> 8 | U6: ='Entry sheet-1-hin'!G24 -> 2 | V6: =IF('Entry sheet-1-hin'!H24="","",'Entry sheet-1-hin'!H24) -> 4 अंक | X6: =IF('Entry sheet-1-hin'!I24="","",'Entry sheet-1-hin'!I24) -> 2 | Z6: =COUNTIF($AK$9:$AK$77,"दीउ४C") -> 3 | BF6: लउ३ | BG6: पूवा
B7: ='Entry sheet-1-hin'!K10+'Entry sheet-1-hin'!J11 -> 4 | C7: =COUNTIF($AG$9:$AG$77,"बवि") -> 4 | D7: ='Entry sheet-1-hin'!K12+'Entry sheet-1-hin'!K13 -> 4 | E7: =COUNTIF($AG$9:$AG$77,"वनि") -> 4 | F7: ='Entry sheet-1-hin'!J14 -> 8 | G7: =COUNTIF($AG$9:$AG$77,"अलउ") -> 8 | I7: ='Entry sheet-1-hin'!J15 -> 5 | J7: =COUNTIF($AG$9:$AG$77,"लउ२") -> 5 | K7: ='Entry sheet-1-hin'!J16 -> 2 | L7: =COUNTIF($AG$9:$AG$77,"लउ३") -> 2 | M7: ='Entry sheet-1-hin'!J17 -> 2 | N7: =COUNTIF($AG$9:$AG$77,"दीउ४") -> 2 | O7: ='Entry sheet-1-hin'!J18 -> 0 | P7: =COUNTIF($AG$9:$AG$77,"दीउ५") -> 0 | Q7: =COUNTIF($AI$9:$AI$77,"बविग")*1+COUNTIF($AI$9:$AI$77,"वनिग")*1+COUNTIF($AI$9:$AI$77,"अलउग")*1+COUNTIF($AI$9:$AI$77,"लउ२ग")*2+COUNTIF($AI$9:$AI$77,"लउ३ग")*3+COUNTIF($AI$9:$AI$77,"दीउ४ग")*4+COUNTIF($AI$9:$AI$77,"दीउ५ग")*5 -> 20 | R7: =COUNTIF($AI$9:$AI$77,"बविप")*1+COUNTIF($AI$9:$AI$77,"वनिप")*1+COUNTIF($AI$9:$AI$77,"अलउप")*1+COUNTIF($AI$9:$AI$77,"लउ२प")*2+COUNTIF($AI$9:$AI$77,"लउ३प")*3+COUNTIF($AI$9:$AI$77,"दीउ४प")*4+COUNTIF($AI$9:$AI$77,"दीउ५प")*5 -> 6 | S7: =COUNTIF($AI$9:$AI$77,"बविव्या")*1+COUNTIF($AI$9:$AI$77,"वनिव्या")*1+COUNTIF($AI$9:$AI$77,"अलउव्या")*1+COUNTIF($AI$9:$AI$77,"लउ२व्या")*2+COUNTIF($AI$9:$AI$77,"लउ३व्या")*3+COUNTIF($AI$9:$AI$77,"दीउ४व्या")*4+COUNTIF($AI$9:$AI$77,"दीउ५व्या")*5 -> 4 | T7: =COUNTIF($AI$9:$AI$77,"बविर")*1+COUNTIF($AI$9:$AI$77,"वनिर")*1+COUNTIF($AI$9:$AI$77,"अलउर")*1+COUNTIF($AI$9:$AI$77,"लउ२र")*2+COUNTIF($AI$9:$AI$77,"लउ३र")*3+COUNTIF($AI$9:$AI$77,"दीउ४र")*4+COUNTIF($AI$9:$AI$77,"दीउ५र")*5 -> 8 | U7: =COUNTIF($AI$9:$AI$77,"बविपूवा")*1+COUNTIF($AI$9:$AI$77,"वनिपूवा")*1+COUNTIF($AI$9:$AI$77,"अलउपूवा")*1+COUNTIF($AI$9:$AI$77,"लउ२पूवा")*2+COUNTIF($AI$9:$AI$77,"लउ३पूवा")*3+COUNTIF($AI$9:$AI$77,"दीउ४पूवा")*4+COUNTIF($AI$9:$AI$77,"दीउ५पूवा")*5 -> 2 | V7: =IF('Entry sheet-1-hin'!H25="","",'Entry sheet-1-hin'!H25) -> 5 अंक | X7: =IF('Entry sheet-1-hin'!I25="","",'Entry sheet-1-hin'!I25) ->  | Z7: =COUNTIF($AK$9:$AK$77,"दीउ५C") -> 0 | BF7: दीउ४
A8: प्रश्‍नों की संख्या | B8: पाठ की संख्या | C8: उद्देश्य | D8: स्तर | E8: प्रश्‍न प्रकार | F8: विषय वस्तु | G8: चुननेवाला प्रश्‍न | I8: पाठ की संख्या | K8: पाठ का नाम | T8: निर्धारित अंक | U8: वास्तव | V8: ब.वि | W8: व.वि | X8: अ.ल.उ | Y8: ल.उ2 | Z8: ल.उ3 | AA8: दी.उ 4 | AB8: दी.उ 5 | AD8: PART+C | AE8: DIFF+C | AF8: OBJ+C | AG8: NO. OF QUESTIONS IN DIFF. TYPES | AH8: OBJECTIVES, DIFFICULTY LEVEL | AI8: PART OF THE SUBJECT | AJ8: CHAPTER WISE MARKS CAL. | AK8: CHOICE | AL8: CHAPTER+OBJECTIVES | AM8: CHAPTER+QUESTIONS | AN8: CHAPTER+DIFFI | AO8: FINAL BLUE PRINT | BF8: दीउ५
A9: =IF(B9="","",IF(G9="c","C",1)) -> 1 | B9: 1 | C9: स्म | D9: सरल | E9: अलउ | F9: ग | H9: 1अंक | I9: =IF('Entry sheet-1-hin'!A10="","",'Entry sheet-1-hin'!A10) -> 1 | K9: =IF('Entry sheet-1-hin'!B10="","",'Entry sheet-1-hin'!B10) -> स्वामी विवेकानंद | T9: =IF('Entry sheet-1-hin'!C10="","",'Entry sheet-1-hin'!C10) -> 4 | U9: =IF(K9="","",COUNTIF($AJ$9:$AJ$77,"1बवि")*1+COUNTIF($AJ$9:$AJ$77,"1वनि")*1+COUNTIF($AJ$9:$AJ$77,"1अलउ")*1+COUNTIF($AJ$9:$AJ$77,"1लउ२")*2+COUNTIF($AJ$9:$AJ$77,"1लउ३")*3+COUNTIF($AJ$9:$AJ$77,"1दीउ४")*4+COUNTIF($AJ$9:$AJ$77,"1दीउ५")*5) -> 4 | V9: =IF(chapterwise!G7=0,"",chapterwise!G7) ->  | W9: =IF(chapterwise!H7=0,"",chapterwise!H7) -> 1 | X9: =IF(chapterwise!I7=0,"",chapterwise!I7) -> 1 | Y9: =IF(chapterwise!J7=0,"",chapterwise!J7) -> 1 | Z9: =IF(chapterwise!K7=0,"",chapterwise!K7) ->  | AA9: =IF(chapterwise!L7=0,"",chapterwise!L7) ->  | AB9: =IF(chapterwise!M7=0,"",chapterwise!M7) ->  | AD9: =CONCATENATE(F9,G9) -> ग | AE9: =CONCATENATE(D9,G9) -> सरल | AF9: =CONCATENATE(C9,G9) -> स्म | AG9: =CONCATENATE(E9,G9) -> अलउ | AH9: =CONCATENATE(C9,D9,E9,G9) -> स्मसरलअलउ | AI9: =CONCATENATE(E9,F9,G9) -> अलउग | AJ9: =CONCATENATE(B9,E9,G9) -> 1अलउ | AK9: =CONCATENATE(E9,G9) -> अलउ | AL9: =CONCATENATE(B9,C9,G9) -> 1स्म | AM9: =CONCATENATE(B9,E9,G9) -> 1अलउ | AN9: =CONCATENATE(B9,D9,G9) -> 1सरल | AO9: =CONCATENATE(B9,C9,E9,G9) -> 1स्मअलउ
A10: =IF(B10="","",IF(G10="c","C",MAX(A9:A9)+1)) -> 2 | B10: 2 | C10: स्म | D10: सरल | E10: अलउ | F10: ग | I10: =IF('Entry sheet-1-hin'!A11="","",'Entry sheet-1-hin'!A11) -> 2 | K10: =IF('Entry sheet-1-hin'!B11="","",'Entry sheet-1-hin'!B11) -> गुलाब सिंह | T10: =IF('Entry sheet-1-hin'!C11="","",'Entry sheet-1-hin'!C11) -> 3 | U10: =IF(K10="","",COUNTIF($AJ$9:$AJ$77,"2बवि")*1+COUNTIF($AJ$9:$AJ$77,"2वनि")*1+COUNTIF($AJ$9:$AJ$77,"2अलउ")*1+COUNTIF($AJ$9:$AJ$77,"2लउ२")*2+COUNTIF($AJ$9:$AJ$77,"2लउ३")*3+COUNTIF($AJ$9:$AJ$77,"2दीउ४")*4+COUNTIF($AJ$9:$AJ$77,"2दीउ५")*5) -> 3 | V10: =IF(chapterwise!G8=0,"",chapterwise!G8) ->  | W10: =IF(chapterwise!H8=0,"",chapterwise!H8) ->  | X10: =IF(chapterwise!I8=0,"",chapterwise!I8) -> 1 | Y10: =IF(chapterwise!J8=0,"",chapterwise!J8) -> 1 | Z10: =IF(chapterwise!K8=0,"",chapterwise!K8) ->  | AA10: =IF(chapterwise!L8=0,"",chapterwise!L8) ->  | AB10: =IF(chapterwise!M8=0,"",chapterwise!M8) ->  | AD10: =CONCATENATE(F10,G10) -> ग | AE10: =CONCATENATE(D10,G10) -> सरल | AF10: =CONCATENATE(C10,G10) -> स्म | AG10: =CONCATENATE(E10,G10) -> अलउ | AH10: =CONCATENATE(C10,D10,E10,G10) -> स्मसरलअलउ | AI10: =CONCATENATE(E10,F10,G10) -> अलउग | AJ10: =CONCATENATE(B10,E10,G10) -> 2अलउ | AK10: =CONCATENATE(E10,G10) -> अलउ | AL10: =CONCATENATE(B10,C10,G10) -> 2स्म | AM10: =CONCATENATE(B10,E10,G10) -> 2अलउ | AN10: =CONCATENATE(B10,D10,G10) -> 2सरल | AO10: =CONCATENATE(B10,C10,E10,G10) -> 2स्मअलउ
A11: =IF(B11="","",IF(G11="c","C",MAX($A$9:A10)+1)) -> 3 | B11: 4 | C11: सम | D11: सरल | E11: अलउ | F11: ग | I11: =IF('Entry sheet-1-hin'!A12="","",'Entry sheet-1-hin'!A12) -> 3 | K11: =IF('Entry sheet-1-hin'!B12="","",'Entry sheet-1-hin'!B12) -> बस की यात्रा | T11: =IF('Entry sheet-1-hin'!C12="","",'Entry sheet-1-hin'!C12) -> 4 | U11: =IF(K11="","",COUNTIF($AJ$9:$AJ$77,"3बवि")*1+COUNTIF($AJ$9:$AJ$77,"3वनि")*1+COUNTIF($AJ$9:$AJ$77,"3अलउ")*1+COUNTIF($AJ$9:$AJ$77,"3लउ२")*2+COUNTIF($AJ$9:$AJ$77,"3लउ३")*3+COUNTIF($AJ$9:$AJ$77,"3दीउ४")*4+COUNTIF($AJ$9:$AJ$77,"3दीउ५")*5) -> 4 | V11: =IF(chapterwise!G9=0,"",chapterwise!G9) ->  | W11: =IF(chapterwise!H9=0,"",chapterwise!H9) -> 2 | X11: =IF(chapterwise!I9=0,"",chapterwise!I9) ->  | Y11: =IF(chapterwise!J9=0,"",chapterwise!J9) -> 1 | Z11: =IF(chapterwise!K9=0,"",chapterwise!K9) ->  | AA11: =IF(chapterwise!L9=0,"",chapterwise!L9) ->  | AB11: =IF(chapterwise!M9=0,"",chapterwise!M9) ->  | AD11: =CONCATENATE(F11,G11) -> ग | AE11: =CONCATENATE(D11,G11) -> सरल | AF11: =CONCATENATE(C11,G11) -> सम | AG11: =CONCATENATE(E11,G11) -> अलउ | AH11: =CONCATENATE(C11,D11,E11,G11) -> समसरलअलउ | AI11: =CONCATENATE(E11,F11,G11) -> अलउग | AJ11: =CONCATENATE(B11,E11,G11) -> 4अलउ | AK11: =CONCATENATE(E11,G11) -> अलउ | AL11: =CONCATENATE(B11,C11,G11) -> 4सम | AM11: =CONCATENATE(B11,E11,G11) -> 4अलउ | AN11: =CONCATENATE(B11,D11,G11) -> 4सरल | AO11: =CONCATENATE(B11,C11,E11,G11) -> 4समअलउ
A12: =IF(B12="","",IF(G12="c","C",MAX($A$9:A11)+1)) -> 4 | B12: 11 | C12: सम | D12: सामान्य | E12: अलउ | F12: प | I12: =IF('Entry sheet-1-hin'!A13="","",'Entry sheet-1-hin'!A13) -> 4 | K12: =IF('Entry sheet-1-hin'!B13="","",'Entry sheet-1-hin'!B13) -> मौसी | T12: =IF('Entry sheet-1-hin'!C13="","",'Entry sheet-1-hin'!C13) -> 5 | U12: =IF(K12="","",COUNTIF($AJ$9:$AJ$77,"4बवि")*1+COUNTIF($AJ$9:$AJ$77,"4वनि")*1+COUNTIF($AJ$9:$AJ$77,"4अलउ")*1+COUNTIF($AJ$9:$AJ$77,"4लउ२")*2+COUNTIF($AJ$9:$AJ$77,"4लउ३")*3+COUNTIF($AJ$9:$AJ$77,"4दीउ४")*4+COUNTIF($AJ$9:$AJ$77,"4दीउ५")*5) -> 5 | V12: =IF(chapterwise!G10=0,"",chapterwise!G10) ->  | W12: =IF(chapterwise!H10=0,"",chapterwise!H10) -> 1 | X12: =IF(chapterwise!I10=0,"",chapterwise!I10) -> 1 | Y12: =IF(chapterwise!J10=0,"",chapterwise!J10) ->  | Z12: =IF(chapterwise!K10=0,"",chapterwise!K10) -> 1 | AA12: =IF(chapterwise!L10=0,"",chapterwise!L10) ->  | AB12: =IF(chapterwise!M10=0,"",chapterwise!M10) ->  | AD12: =CONCATENATE(F12,G12) -> प | AE12: =CONCATENATE(D12,G12) -> सामान्य | AF12: =CONCATENATE(C12,G12) -> सम | AG12: =CONCATENATE(E12,G12) -> अलउ | AH12: =CONCATENATE(C12,D12,E12,G12) -> समसामान्यअलउ | AI12: =CONCATENATE(E12,F12,G12) -> अलउप | AJ12: =CONCATENATE(B12,E12,G12) -> 11अलउ | AK12: =CONCATENATE(E12,G12) -> अलउ | AL12: =CONCATENATE(B12,C12,G12) -> 11सम | AM12: =CONCATENATE(B12,E12,G12) -> 11अलउ | AN12: =CONCATENATE(B12,D12,G12) -> 11सामान्य | AO12: =CONCATENATE(B12,C12,E12,G12) -> 11समअलउ
A13: =IF(B13="","",IF(G13="c","C",MAX($A$9:A12)+1)) ->  | I13: =IF('Entry sheet-1-hin'!A14="","",'Entry sheet-1-hin'!A14) -> 5 | K13: =IF('Entry sheet-1-hin'!B14="","",'Entry sheet-1-hin'!B14) -> मेरा बचपन | T13: =IF('Entry sheet-1-hin'!C14="","",'Entry sheet-1-hin'!C14) ->  | U13: =IF(K13="","",COUNTIF($AJ$9:$AJ$77,"5बवि")*1+COUNTIF($AJ$9:$AJ$77,"5वनि")*1+COUNTIF($AJ$9:$AJ$77,"5अलउ")*1+COUNTIF($AJ$9:$AJ$77,"5लउ२")*2+COUNTIF($AJ$9:$AJ$77,"5लउ३")*3+COUNTIF($AJ$9:$AJ$77,"5दीउ४")*4+COUNTIF($AJ$9:$AJ$77,"5दीउ५")*5) -> 0 | V13: =IF(chapterwise!G11=0,"",chapterwise!G11) ->  | W13: =IF(chapterwise!H11=0,"",chapterwise!H11) ->  | X13: =IF(chapterwise!I11=0,"",chapterwise!I11) ->  | Y13: =IF(chapterwise!J11=0,"",chapterwise!J11) ->  | Z13: =IF(chapterwise!K11=0,"",chapterwise!K11) ->  | AA13: =IF(chapterwise!L11=0,"",chapterwise!L11) ->  | AB13: =IF(chapterwise!M11=0,"",chapterwise!M11) ->  | AD13: =CONCATENATE(F13,G13) ->  | AE13: =CONCATENATE(D13,G13) ->  | AF13: =CONCATENATE(C13,G13) ->  | AG13: =CONCATENATE(E13,G13) ->  | AH13: =CONCATENATE(C13,D13,E13,G13) ->  | AI13: =CONCATENATE(E13,F13,G13) ->  | AJ13: =CONCATENATE(B13,E13,G13) ->  | AK13: =CONCATENATE(E13,G13) ->  | AL13: =CONCATENATE(B13,C13,G13) ->  | AM13: =CONCATENATE(B13,E13,G13) ->  | AN13: =CONCATENATE(B13,D13,G13) ->  | AO13: =CONCATENATE(B13,C13,E13,G13) -> 
A14: =IF(B14="","",IF(G14="c","C",MAX($A$9:A13)+1)) ->  | I14: =IF('Entry sheet-1-hin'!A15="","",'Entry sheet-1-hin'!A15) -> 6 | K14: =IF('Entry sheet-1-hin'!B15="","",'Entry sheet-1-hin'!B15) -> भीम और राक्षस | T14: =IF('Entry sheet-1-hin'!C15="","",'Entry sheet-1-hin'!C15) ->  | U14: =IF(K14="","",COUNTIF($AJ$9:$AJ$77,"6बवि")*1+COUNTIF($AJ$9:$AJ$77,"6वनि")*1+COUNTIF($AJ$9:$AJ$77,"6अलउ")*1+COUNTIF($AJ$9:$AJ$77,"6लउ२")*2+COUNTIF($AJ$9:$AJ$77,"6लउ३")*3+COUNTIF($AJ$9:$AJ$77,"6दीउ४")*4+COUNTIF($AJ$9:$AJ$77,"6दीउ५")*5) -> 0 | V14: =IF(chapterwise!G12=0,"",chapterwise!G12) ->  | W14: =IF(chapterwise!H12=0,"",chapterwise!H12) ->  | X14: =IF(chapterwise!I12=0,"",chapterwise!I12) ->  | Y14: =IF(chapterwise!J12=0,"",chapterwise!J12) ->  | Z14: =IF(chapterwise!K12=0,"",chapterwise!K12) ->  | AA14: =IF(chapterwise!L12=0,"",chapterwise!L12) ->  | AB14: =IF(chapterwise!M12=0,"",chapterwise!M12) -> 
A15: =IF(B15="","",IF(G15="c","C",MAX($A$9:A14)+1)) ->  | I15: =IF('Entry sheet-1-hin'!A16="","",'Entry sheet-1-hin'!A16) -> 7 | K15: =IF('Entry sheet-1-hin'!B16="","",'Entry sheet-1-hin'!B16) -> बाहुबली | T15: =IF('Entry sheet-1-hin'!C16="","",'Entry sheet-1-hin'!C16) ->  | U15: =IF(K15="","",COUNTIF($AJ$9:$AJ$77,"7बवि")*1+COUNTIF($AJ$9:$AJ$77,"7वनि")*1+COUNTIF($AJ$9:$AJ$77,"7अलउ")*1+COUNTIF($AJ$9:$AJ$77,"7लउ२")*2+COUNTIF($AJ$9:$AJ$77,"7लउ३")*3+COUNTIF($AJ$9:$AJ$77,"7दीउ४")*4+COUNTIF($AJ$9:$AJ$77,"7दीउ५")*5) -> 0 | V15: =IF(chapterwise!G13=0,"",chapterwise!G13) ->  | W15: =IF(chapterwise!H13=0,"",chapterwise!H13) ->  | X15: =IF(chapterwise!I13=0,"",chapterwise!I13) ->  | Y15: =IF(chapterwise!J13=0,"",chapterwise!J13) ->  | Z15: =IF(chapterwise!K13=0,"",chapterwise!K13) ->  | AA15: =IF(chapterwise!L13=0,"",chapterwise!L13) ->  | AB15: =IF(chapterwise!M13=0,"",chapterwise!M13) -> 
A16: =IF(B16="","",IF(G16="c","C",MAX($A$9:A15)+1)) ->  | I16: =IF('Entry sheet-1-hin'!A17="","",'Entry sheet-1-hin'!A17) -> 8 | K16: =IF('Entry sheet-1-hin'!B17="","",'Entry sheet-1-hin'!B17) -> हामिद खाँ | T16: =IF('Entry sheet-1-hin'!C17="","",'Entry sheet-1-hin'!C17) ->  | U16: =IF(K16="","",COUNTIF($AJ$9:$AJ$77,"8बवि")*1+COUNTIF($AJ$9:$AJ$77,"8वनि")*1+COUNTIF($AJ$9:$AJ$77,"8अलउ")*1+COUNTIF($AJ$9:$AJ$77,"8लउ२")*2+COUNTIF($AJ$9:$AJ$77,"8लउ३")*3+COUNTIF($AJ$9:$AJ$77,"8दीउ४")*4+COUNTIF($AJ$9:$AJ$77,"8दीउ५")*5) -> 0 | V16: =IF(chapterwise!G14=0,"",chapterwise!G14) ->  | W16: =IF(chapterwise!H14=0,"",chapterwise!H14) ->  | X16: =IF(chapterwise!I14=0,"",chapterwise!I14) ->  | Y16: =IF(chapterwise!J14=0,"",chapterwise!J14) ->  | Z16: =IF(chapterwise!K14=0,"",chapterwise!K14) ->  | AA16: =IF(chapterwise!L14=0,"",chapterwise!L14) ->  | AB16: =IF(chapterwise!M14=0,"",chapterwise!M14) -> 
A17: =IF(B17="","",IF(G17="c","C",MAX($A$9:A16)+1)) -> 5 | B17: 1 | C17: सम | D17: सरल | E17: वनि | F17: ग | H17: जोड़कर लिखना | I17: =IF('Entry sheet-1-hin'!A18="","",'Entry sheet-1-hin'!A18) -> 9 | K17: =IF('Entry sheet-1-hin'!B18="","",'Entry sheet-1-hin'!B18) -> खेलो- कूदो-स्वस्थ रहो | T17: =IF('Entry sheet-1-hin'!C18="","",'Entry sheet-1-hin'!C18) ->  | U17: =IF(K17="","",COUNTIF($AJ$9:$AJ$77,"9बवि")*1+COUNTIF($AJ$9:$AJ$77,"9वनि")*1+COUNTIF($AJ$9:$AJ$77,"9अलउ")*1+COUNTIF($AJ$9:$AJ$77,"9लउ२")*2+COUNTIF($AJ$9:$AJ$77,"9लउ३")*3+COUNTIF($AJ$9:$AJ$77,"9दीउ४")*4+COUNTIF($AJ$9:$AJ$77,"9दीउ५")*5) -> 0 | V17: =IF(chapterwise!G15=0,"",chapterwise!G15) ->  | W17: =IF(chapterwise!H15=0,"",chapterwise!H15) ->  | X17: =IF(chapterwise!I15=0,"",chapterwise!I15) ->  | Y17: =IF(chapterwise!J15=0,"",chapterwise!J15) ->  | Z17: =IF(chapterwise!K15=0,"",chapterwise!K15) ->  | AA17: =IF(chapterwise!L15=0,"",chapterwise!L15) ->  | AB17: =IF(chapterwise!M15=0,"",chapterwise!M15) ->  | AD17: ग | AE17: सरल | AF17: सम | AG17: वनि | AH17: समसरलवनि | AI17: वनिग | AJ17: 1वनि | AK17: वनि | AL17: 1सम | AM17: 1वनि | AN17: 1सरल | AO17: 1समवनि
A18: =IF(B18="","",IF(G18="c","C",MAX($A$9:A17)+1)) -> 6 | B18: 3 | C18: सम | D18: सरल | E18: वनि | F18: ग | I18: =IF('Entry sheet-1-hin'!A19="","",'Entry sheet-1-hin'!A19) -> 10 | K18: =IF('Entry sheet-1-hin'!B19="","",'Entry sheet-1-hin'!B19) -> हिमालय की बेटियाँ | T18: =IF('Entry sheet-1-hin'!C19="","",'Entry sheet-1-hin'!C19) ->  | U18: =IF(K18="","",COUNTIF($AJ$9:$AJ$77,"10बवि")*1+COUNTIF($AJ$9:$AJ$77,"10वनि")*1+COUNTIF($AJ$9:$AJ$77,"10अलउ")*1+COUNTIF($AJ$9:$AJ$77,"10लउ२")*2+COUNTIF($AJ$9:$AJ$77,"10लउ३")*3+COUNTIF($AJ$9:$AJ$77,"10दीउ४")*4+COUNTIF($AJ$9:$AJ$77,"10दीउ५")*5) -> 0 | V18: =IF(chapterwise!G16=0,"",chapterwise!G16) ->  | W18: =IF(chapterwise!H16=0,"",chapterwise!H16) ->  | X18: =IF(chapterwise!I16=0,"",chapterwise!I16) ->  | Y18: =IF(chapterwise!J16=0,"",chapterwise!J16) ->  | Z18: =IF(chapterwise!K16=0,"",chapterwise!K16) ->  | AA18: =IF(chapterwise!L16=0,"",chapterwise!L16) ->  | AB18: =IF(chapterwise!M16=0,"",chapterwise!M16) ->  | AD18: ग | AE18: सरल | AF18: सम | AG18: वनि | AH18: समसरलवनि | AI18: वनिग | AJ18: 3वनि | AK18: वनि | AL18: 3सम | AM18: 3वनि | AN18: 3सरल | AO18: 3समवनि
A19: =IF(B19="","",IF(G19="c","C",MAX($A$9:A18)+1)) -> C | B19: 1 | C19: सम | D19: सरल | E19: वनि | F19: ग | G19: C | I19: =IF('Entry sheet-1-hin'!A20="","",'Entry sheet-1-hin'!A20) -> 11 | K19: =IF('Entry sheet-1-hin'!B20="","",'Entry sheet-1-hin'!B20) -> जय-जय भारत माता | T19: =IF('Entry sheet-1-hin'!C20="","",'Entry sheet-1-hin'!C20) -> 3 | U19: =IF(K19="","",COUNTIF($AJ$9:$AJ$77,"11बवि")*1+COUNTIF($AJ$9:$AJ$77,"11वनि")*1+COUNTIF($AJ$9:$AJ$77,"11अलउ")*1+COUNTIF($AJ$9:$AJ$77,"11लउ२")*2+COUNTIF($AJ$9:$AJ$77,"11लउ३")*3+COUNTIF($AJ$9:$AJ$77,"11दीउ४")*4+COUNTIF($AJ$9:$AJ$77,"11दीउ५")*5) -> 3 | V19: =IF(chapterwise!G17=0,"",chapterwise!G17) ->  | W19: =IF(chapterwise!H17=0,"",chapterwise!H17) ->  | X19: =IF(chapterwise!I17=0,"",chapterwise!I17) -> 1 | Y19: =IF(chapterwise!J17=0,"",chapterwise!J17) -> 1 | Z19: =IF(chapterwise!K17=0,"",chapterwise!K17) ->  | AA19: =IF(chapterwise!L17=0,"",chapterwise!L17) ->  | AB19: =IF(chapterwise!M17=0,"",chapterwise!M17) ->  | AD19: गC | AE19: सरलC | AF19: समC | AG19: वनिC | AH19: समसरलवनिC | AI19: वनिगC | AJ19: 1वनिC | AK19: वनिC | AL19: 1समC | AM19: 1वनिC | AN19: 1सरलC | AO19: 1समवनिC
A20: =IF(B20="","",IF(G20="c","C",MAX($A$9:A19)+1)) -> C | B20: 3 | C20: सम | D20: सरल | E20: वनि | F20: ग | G20: C | I20: =IF('Entry sheet-1-hin'!A21="","",'Entry sheet-1-hin'!A21) -> 12 | K20: =IF('Entry sheet-1-hin'!B21="","",'Entry sheet-1-hin'!B21) -> शिक्षा | T20: =IF('Entry sheet-1-hin'!C21="","",'Entry sheet-1-hin'!C21) -> 4 | U20: =IF(K20="","",COUNTIF($AJ$9:$AJ$77,"12बवि")*1+COUNTIF($AJ$9:$AJ$77,"12वनि")*1+COUNTIF($AJ$9:$AJ$77,"12अलउ")*1+COUNTIF($AJ$9:$AJ$77,"12लउ२")*2+COUNTIF($AJ$9:$AJ$77,"12लउ३")*3+COUNTIF($AJ$9:$AJ$77,"12दीउ४")*4+COUNTIF($AJ$9:$AJ$77,"12दीउ५")*5) -> 4 | V20: =IF(chapterwise!G18=0,"",chapterwise!G18) ->  | W20: =IF(chapterwise!H18=0,"",chapterwise!H18) ->  | X20: =IF(chapterwise!I18=0,"",chapterwise!I18) ->  | Y20: =IF(chapterwise!J18=0,"",chapterwise!J18) ->  | Z20: =IF(chapterwise!K18=0,"",chapterwise!K18) ->  | AA20: =IF(chapterwise!L18=0,"",chapterwise!L18) -> 1 | AB20: =IF(chapterwise!M18=0,"",chapterwise!M18) ->  | AD20: गC | AE20: सरलC | AF20: समC | AG20: वनिC | AH20: समसरलवनिC | AI20: वनिगC | AJ20: 3वनिC | AK20: वनिC | AL20: 3समC | AM20: 3वनिC | AN20: 3सरलC | AO20: 3समवनिC
A21: =IF(B21="","",IF(G21="c","C",MAX($A$9:A20)+1)) ->  | H21: चुननेवाला | I21: =IF('Entry sheet-1-hin'!A22="","",'Entry sheet-1-hin'!A22) -> 13 | K21: =IF('Entry sheet-1-hin'!B22="","",'Entry sheet-1-hin'!B22) -> मेरी अभिलाषा है | T21: =IF('Entry sheet-1-hin'!C22="","",'Entry sheet-1-hin'!C22) -> 3 | U21: =IF(K21="","",COUNTIF($AJ$9:$AJ$77,"13बवि")*1+COUNTIF($AJ$9:$AJ$77,"13वनि")*1+COUNTIF($AJ$9:$AJ$77,"13अलउ")*1+COUNTIF($AJ$9:$AJ$77,"13लउ२")*2+COUNTIF($AJ$9:$AJ$77,"13लउ३")*3+COUNTIF($AJ$9:$AJ$77,"13दीउ४")*4+COUNTIF($AJ$9:$AJ$77,"13दीउ५")*5) -> 3 | V21: =IF(chapterwise!G19=0,"",chapterwise!G19) ->  | W21: =IF(chapterwise!H19=0,"",chapterwise!H19) ->  | X21: =IF(chapterwise!I19=0,"",chapterwise!I19) ->  | Y21: =IF(chapterwise!J19=0,"",chapterwise!J19) ->  | Z21: =IF(chapterwise!K19=0,"",chapterwise!K19) -> 1 | AA21: =IF(chapterwise!L19=0,"",chapterwise!L19) ->  | AB21: =IF(chapterwise!M19=0,"",chapterwise!M19) -> 
A22: =IF(B22="","",IF(G22="c","C",MAX($A$9:A21)+1)) ->  | I22: =IF('Entry sheet-1-hin'!A23="","",'Entry sheet-1-hin'!A23) -> 14 | K22: =IF('Entry sheet-1-hin'!B23="","",'Entry sheet-1-hin'!B23) -> विनती | T22: =IF('Entry sheet-1-hin'!C23="","",'Entry sheet-1-hin'!C23) ->  | U22: =IF(K22="","",COUNTIF($AJ$9:$AJ$77,"14बवि")*1+COUNTIF($AJ$9:$AJ$77,"14वनि")*1+COUNTIF($AJ$9:$AJ$77,"14अलउ")*1+COUNTIF($AJ$9:$AJ$77,"14लउ२")*2+COUNTIF($AJ$9:$AJ$77,"14लउ३")*3+COUNTIF($AJ$9:$AJ$77,"14दीउ४")*4+COUNTIF($AJ$9:$AJ$77,"14दीउ५")*5) -> 0 | V22: =IF(chapterwise!G20=0,"",chapterwise!G20) ->  | W22: =IF(chapterwise!H20=0,"",chapterwise!H20) ->  | X22: =IF(chapterwise!I20=0,"",chapterwise!I20) ->  | Y22: =IF(chapterwise!J20=0,"",chapterwise!J20) ->  | Z22: =IF(chapterwise!K20=0,"",chapterwise!K20) ->  | AA22: =IF(chapterwise!L20=0,"",chapterwise!L20) ->  | AB22: =IF(chapterwise!M20=0,"",chapterwise!M20) -> 
A23: =IF(B23="","",IF(G23="c","C",MAX($A$9:A22)+1)) -> 7 | B23: 3 | C23: सम | D23: सामान्य | E23: वनि | F23: ग | H23: अनुरूपता | I23: =IF('Entry sheet-1-hin'!A24="","",'Entry sheet-1-hin'!A24) -> 15 | K23: =IF('Entry sheet-1-hin'!B24="","",'Entry sheet-1-hin'!B24) -> कोई नहीं पराया | T23: =IF('Entry sheet-1-hin'!C24="","",'Entry sheet-1-hin'!C24) ->  | U23: =IF(K23="","",COUNTIF($AJ$9:$AJ$77,"15बवि")*1+COUNTIF($AJ$9:$AJ$77,"15वनि")*1+COUNTIF($AJ$9:$AJ$77,"15अलउ")*1+COUNTIF($AJ$9:$AJ$77,"15लउ२")*2+COUNTIF($AJ$9:$AJ$77,"15लउ३")*3+COUNTIF($AJ$9:$AJ$77,"15दीउ४")*4+COUNTIF($AJ$9:$AJ$77,"15दीउ५")*5) -> 0 | V23: =IF(chapterwise!G21=0,"",chapterwise!G21) ->  | W23: =IF(chapterwise!H21=0,"",chapterwise!H21) ->  | X23: =IF(chapterwise!I21=0,"",chapterwise!I21) ->  | Y23: =IF(chapterwise!J21=0,"",chapterwise!J21) ->  | Z23: =IF(chapterwise!K21=0,"",chapterwise!K21) ->  | AA23: =IF(chapterwise!L21=0,"",chapterwise!L21) ->  | AB23: =IF(chapterwise!M21=0,"",chapterwise!M21) ->  | AD23: ग | AE23: सामान्य | AF23: सम | AG23: वनि | AH23: समसामान्यवनि | AI23: वनिग | AJ23: 3वनि | AK23: वनि | AL23: 3सम | AM23: 3वनि | AN23: 3सामान्य | AO23: 3समवनि
A24: =IF(B24="","",IF(G24="c","C",MAX($A$9:A23)+1)) -> 8 | B24: 4 | C24: सम | D24: सामान्य | E24: वनि | F24: ग | I24: =IF('Entry sheet-1-hin'!A25="","",'Entry sheet-1-hin'!A25) -> 16 | K24: =IF('Entry sheet-1-hin'!B25="","",'Entry sheet-1-hin'!B25) -> कबीर के दोहे | T24: =IF('Entry sheet-1-hin'!C25="","",'Entry sheet-1-hin'!C25) ->  | U24: =IF(K24="","",COUNTIF($AJ$9:$AJ$77,"16बवि")*1+COUNTIF($AJ$9:$AJ$77,"16वनि")*1+COUNTIF($AJ$9:$AJ$77,"16अलउ")*1+COUNTIF($AJ$9:$AJ$77,"16लउ२")*2+COUNTIF($AJ$9:$AJ$77,"16लउ३")*3+COUNTIF($AJ$9:$AJ$77,"16दीउ४")*4+COUNTIF($AJ$9:$AJ$77,"16दीउ५")*5) -> 0 | V24: =IF(chapterwise!G22=0,"",chapterwise!G22) ->  | W24: =IF(chapterwise!H22=0,"",chapterwise!H22) ->  | X24: =IF(chapterwise!I22=0,"",chapterwise!I22) ->  | Y24: =IF(chapterwise!J22=0,"",chapterwise!J22) ->  | Z24: =IF(chapterwise!K22=0,"",chapterwise!K22) ->  | AA24: =IF(chapterwise!L22=0,"",chapterwise!L22) ->  | AB24: =IF(chapterwise!M22=0,"",chapterwise!M22) ->  | AD24: ग | AE24: सामान्य | AF24: सम | AG24: वनि | AH24: समसामान्यवनि | AI24: वनिग | AJ24: 4वनि | AK24: वनि | AL24: 4सम | AM24: 4वनि | AN24: 4सामान्य | AO24: 4समवनि
A25: =IF(B25="","",IF(G25="c","C",MAX($A$9:A24)+1)) ->  | I25: =IF('Entry sheet-1-hin'!A26="","",'Entry sheet-1-hin'!A26) -> 17 | K25: =IF('Entry sheet-1-hin'!B26="","",'Entry sheet-1-hin'!B26) -> कजाकी | T25: =IF('Entry sheet-1-hin'!C26="","",'Entry sheet-1-hin'!C26) -> 2 | U25: =IF(K25="","",COUNTIF($AJ$9:$AJ$77,"17बवि")*1+COUNTIF($AJ$9:$AJ$77,"17वनि")*1+COUNTIF($AJ$9:$AJ$77,"17अलउ")*1+COUNTIF($AJ$9:$AJ$77,"17लउ२")*2+COUNTIF($AJ$9:$AJ$77,"17लउ३")*3+COUNTIF($AJ$9:$AJ$77,"17दीउ४")*4+COUNTIF($AJ$9:$AJ$77,"17दीउ५")*5) -> 2 | V25: =IF(chapterwise!G23=0,"",chapterwise!G23) ->  | W25: =IF(chapterwise!H23=0,"",chapterwise!H23) ->  | X25: =IF(chapterwise!I23=0,"",chapterwise!I23) ->  | Y25: =IF(chapterwise!J23=0,"",chapterwise!J23) -> 1 | Z25: =IF(chapterwise!K23=0,"",chapterwise!K23) ->  | AA25: =IF(chapterwise!L23=0,"",chapterwise!L23) ->  | AB25: =IF(chapterwise!M23=0,"",chapterwise!M23) -> 
A26: =IF(B26="","",IF(G26="c","C",MAX($A$9:A25)+1)) ->  | I26: =IF('Entry sheet-1-hin'!A27="","",'Entry sheet-1-hin'!A27) -> 18 | K26: =IF('Entry sheet-1-hin'!B27="","",'Entry sheet-1-hin'!B27) -> वीर मालव जी | T26: =IF('Entry sheet-1-hin'!C27="","",'Entry sheet-1-hin'!C27) ->  | U26: =IF(K26="","",COUNTIF($AJ$9:$AJ$77,"18बवि")*1+COUNTIF($AJ$9:$AJ$77,"18वनि")*1+COUNTIF($AJ$9:$AJ$77,"18अलउ")*1+COUNTIF($AJ$9:$AJ$77,"18लउ२")*2+COUNTIF($AJ$9:$AJ$77,"18लउ३")*3+COUNTIF($AJ$9:$AJ$77,"18दीउ४")*4+COUNTIF($AJ$9:$AJ$77,"18दीउ५")*5) -> 0 | V26: =IF(chapterwise!G24=0,"",chapterwise!G24) ->  | W26: =IF(chapterwise!H24=0,"",chapterwise!H24) ->  | X26: =IF(chapterwise!I24=0,"",chapterwise!I24) ->  | Y26: =IF(chapterwise!J24=0,"",chapterwise!J24) ->  | Z26: =IF(chapterwise!K24=0,"",chapterwise!K24) ->  | AA26: =IF(chapterwise!L24=0,"",chapterwise!L24) ->  | AB26: =IF(chapterwise!M24=0,"",chapterwise!M24) -> 
A27: =IF(B27="","",IF(G27="c","C",MAX($A$9:A26)+1)) -> 9 | B27: 1 | C27: अ | D27: सरल | E27: लउ२ | F27: ग | H27: 2अंकवाले | I27: =IF('Entry sheet-1-hin'!A28="","",'Entry sheet-1-hin'!A28) -> 19 | K27: =IF('Entry sheet-1-hin'!B28="","",'Entry sheet-1-hin'!B28) -> वृक्ष हमारे जीवन-साथी | T27: =IF('Entry sheet-1-hin'!C28="","",'Entry sheet-1-hin'!C28) ->  | U27: =IF(K27="","",COUNTIF($AJ$9:$AJ$77,"19बवि")*1+COUNTIF($AJ$9:$AJ$77,"19वनि")*1+COUNTIF($AJ$9:$AJ$77,"19अलउ")*1+COUNTIF($AJ$9:$AJ$77,"19लउ२")*2+COUNTIF($AJ$9:$AJ$77,"19लउ३")*3+COUNTIF($AJ$9:$AJ$77,"19दीउ४")*4+COUNTIF($AJ$9:$AJ$77,"19दीउ५")*5) -> 0 | V27: =IF(chapterwise!G25=0,"",chapterwise!G25) ->  | W27: =IF(chapterwise!H25=0,"",chapterwise!H25) ->  | X27: =IF(chapterwise!I25=0,"",chapterwise!I25) ->  | Y27: =IF(chapterwise!J25=0,"",chapterwise!J25) ->  | Z27: =IF(chapterwise!K25=0,"",chapterwise!K25) ->  | AA27: =IF(chapterwise!L25=0,"",chapterwise!L25) ->  | AB27: =IF(chapterwise!M25=0,"",chapterwise!M25) ->  | AD27: ग | AE27: सरल | AF27: अ | AG27: लउ२ | AH27: असरललउ२ | AI27: लउ२ग | AJ27: 1लउ२ | AK27: लउ२ | AL27: 1अ | AM27: 1लउ२ | AN27: 1सरल | AO27: 1अलउ२
A28: =IF(B28="","",IF(G28="c","C",MAX($A$9:A27)+1)) -> 10 | B28: 2 | C28: अ | D28: सामान्य | E28: लउ२ | F28: ग | I28: =IF('Entry sheet-1-hin'!A29="","",'Entry sheet-1-hin'!A29) -> 20 | K28: =IF('Entry sheet-1-hin'!B29="","",'Entry sheet-1-hin'!B29) -> अपठित गद्यांश | T28: =IF('Entry sheet-1-hin'!C29="","",'Entry sheet-1-hin'!C29) -> 2 | U28: =IF(K28="","",COUNTIF($AJ$9:$AJ$77,"20बवि")*1+COUNTIF($AJ$9:$AJ$77,"20वनि")*1+COUNTIF($AJ$9:$AJ$77,"20अलउ")*1+COUNTIF($AJ$9:$AJ$77,"20लउ२")*2+COUNTIF($AJ$9:$AJ$77,"20लउ३")*3+COUNTIF($AJ$9:$AJ$77,"20दीउ४")*4+COUNTIF($AJ$9:$AJ$77,"20दीउ५")*5) -> 2 | V28: =IF(chapterwise!G26=0,"",chapterwise!G26) ->  | W28: =IF(chapterwise!H26=0,"",chapterwise!H26) ->  | X28: =IF(chapterwise!I26=0,"",chapterwise!I26) -> 2 | Y28: =IF(chapterwise!J26=0,"",chapterwise!J26) ->  | Z28: =IF(chapterwise!K26=0,"",chapterwise!K26) ->  | AA28: =IF(chapterwise!L26=0,"",chapterwise!L26) ->  | AB28: =IF(chapterwise!M26=0,"",chapterwise!M26) ->  | AD28: ग | AE28: सामान्य | AF28: अ | AG28: लउ२ | AH28: असामान्यलउ२ | AI28: लउ२ग | AJ28: 2लउ२ | AK28: लउ२ | AL28: 2अ | AM28: 2लउ२ | AN28: 2सामान्य | AO28: 2अलउ२
A29: =IF(B29="","",IF(G29="c","C",MAX($A$9:A28)+1)) -> 11 | B29: 3 | C29: अ | D29: सामान्य | E29: लउ२ | F29: ग | I29: =IF('Entry sheet-1-hin'!A30="","",'Entry sheet-1-hin'!A30) -> 21 | K29: =IF('Entry sheet-1-hin'!B30="","",'Entry sheet-1-hin'!B30) -> अनुवाद | T29: =IF('Entry sheet-1-hin'!C30="","",'Entry sheet-1-hin'!C30) -> 2 | U29: =IF(K29="","",COUNTIF($AJ$9:$AJ$77,"21बवि")*1+COUNTIF($AJ$9:$AJ$77,"21वनि")*1+COUNTIF($AJ$9:$AJ$77,"21अलउ")*1+COUNTIF($AJ$9:$AJ$77,"21लउ२")*2+COUNTIF($AJ$9:$AJ$77,"21लउ३")*3+COUNTIF($AJ$9:$AJ$77,"21दीउ४")*4+COUNTIF($AJ$9:$AJ$77,"21दीउ५")*5) -> 2 | V29: =IF(chapterwise!G27=0,"",chapterwise!G27) ->  | W29: =IF(chapterwise!H27=0,"",chapterwise!H27) ->  | X29: =IF(chapterwise!I27=0,"",chapterwise!I27) -> 2 | Y29: =IF(chapterwise!J27=0,"",chapterwise!J27) ->  | Z29: =IF(chapterwise!K27=0,"",chapterwise!K27) ->  | AA29: =IF(chapterwise!L27=0,"",chapterwise!L27) ->  | AB29: =IF(chapterwise!M27=0,"",chapterwise!M27) ->  | AD29: ग | AE29: सामान्य | AF29: अ | AG29: लउ२ | AH29: असामान्यलउ२ | AI29: लउ२ग | AJ29: 3लउ२ | AK29: लउ२ | AL29: 3अ | AM29: 3लउ२ | AN29: 3सामान्य | AO29: 3अलउ२
A30: =IF(B30="","",IF(G30="c","C",MAX($A$9:A29)+1)) -> 12 | B30: 11 | C30: अ | D30: सामान्य | E30: लउ२ | F30: प | I30: =IF('Entry sheet-1-hin'!A31="","",'Entry sheet-1-hin'!A31) -> 22 | K30: =IF('Entry sheet-1-hin'!B31="","",'Entry sheet-1-hin'!B31) -> पत्र लेखन | T30: =IF('Entry sheet-1-hin'!C31="","",'Entry sheet-1-hin'!C31) -> 4 | U30: =IF(K30="","",COUNTIF($AJ$9:$AJ$77,"22बवि")*1+COUNTIF($AJ$9:$AJ$77,"22वनि")*1+COUNTIF($AJ$9:$AJ$77,"22अलउ")*1+COUNTIF($AJ$9:$AJ$77,"22लउ२")*2+COUNTIF($AJ$9:$AJ$77,"22लउ३")*3+COUNTIF($AJ$9:$AJ$77,"22दीउ४")*4+COUNTIF($AJ$9:$AJ$77,"22दीउ५")*5) -> 4 | V30: =IF(chapterwise!G28=0,"",chapterwise!G28) ->  | W30: =IF(chapterwise!H28=0,"",chapterwise!H28) ->  | X30: =IF(chapterwise!I28=0,"",chapterwise!I28) ->  | Y30: =IF(chapterwise!J28=0,"",chapterwise!J28) ->  | Z30: =IF(chapterwise!K28=0,"",chapterwise!K28) ->  | AA30: =IF(chapterwise!L28=0,"",chapterwise!L28) -> 1 | AB30: =IF(chapterwise!M28=0,"",chapterwise!M28) ->  | AD30: प | AE30: सामान्य | AF30: अ | AG30: लउ२ | AH30: असामान्यलउ२ | AI30: लउ२प | AJ30: 11लउ२ | AK30: लउ२ | AL30: 11अ | AM30: 11लउ२ | AN30: 11सामान्य | AO30: 11अलउ२
A31: =IF(B31="","",IF(G31="c","C",MAX($A$9:A30)+1)) -> 13 | B31: 17 | C31: स्म | D31: सामान्य | E31: लउ२ | F31: पूवा | I31: =IF('Entry sheet-1-hin'!A32="","",'Entry sheet-1-hin'!A32) -> 23 | K31: =IF('Entry sheet-1-hin'!B32="","",'Entry sheet-1-hin'!B32) -> निबंध रचना | T31: =IF('Entry sheet-1-hin'!C32="","",'Entry sheet-1-hin'!C32) ->  | U31: =IF(K31="","",COUNTIF($AJ$9:$AJ$77,"23बवि")*1+COUNTIF($AJ$9:$AJ$77,"23वनि")*1+COUNTIF($AJ$9:$AJ$77,"23अलउ")*1+COUNTIF($AJ$9:$AJ$77,"23लउ२")*2+COUNTIF($AJ$9:$AJ$77,"23लउ३")*3+COUNTIF($AJ$9:$AJ$77,"23दीउ४")*4+COUNTIF($AJ$9:$AJ$77,"22दीउ५")*5) -> 0 | V31: =IF(chapterwise!G29=0,"",chapterwise!G29) ->  | W31: =IF(chapterwise!H29=0,"",chapterwise!H29) ->  | X31: =IF(chapterwise!I29=0,"",chapterwise!I29) ->  | Y31: =IF(chapterwise!J29=0,"",chapterwise!J29) ->  | Z31: =IF(chapterwise!K29=0,"",chapterwise!K29) ->  | AA31: =IF(chapterwise!L29=0,"",chapterwise!L29) ->  | AB31: =IF(chapterwise!M29=0,"",chapterwise!M29) ->  | AD31: पूवा | AE31: सामान्य | AF31: स्म | AG31: लउ२ | AH31: स्मसामान्यलउ२ | AI31: लउ२पूवा | AJ31: 17लउ२ | AK31: लउ२ | AL31: 17स्म | AM31: 17लउ२ | AN31: 17सामान्य | AO31: 17स्मलउ२
A32: =IF(B32="","",IF(G32="c","C",MAX($A$9:A31)+1)) -> C | B32: 17 | C32: स्म | D32: सामान्य | E32: लउ२ | F32: पूवा | G32: C | I32: =IF('Entry sheet-1-hin'!A33="","",'Entry sheet-1-hin'!A33) -> 24 | K32: =IF('Entry sheet-1-hin'!B33="","",'Entry sheet-1-hin'!B33) -> व्याकरण | T32: =IF('Entry sheet-1-hin'!C33="","",'Entry sheet-1-hin'!C33) -> 4 | U32: =IF(K32="","",COUNTIF($AJ$9:$AJ$77,"24बवि")*1+COUNTIF($AJ$9:$AJ$77,"24वनि")*1+COUNTIF($AJ$9:$AJ$77,"24अलउ")*1+COUNTIF($AJ$9:$AJ$77,"24लउ२")*2+COUNTIF($AJ$9:$AJ$77,"24लउ३")*3+COUNTIF($AJ$9:$AJ$77,"24दीउ४")*4+COUNTIF($AJ$9:$AJ$77,"24दीउ५")*5) -> 4 | V32: =IF(chapterwise!G30=0,"",chapterwise!G30) -> 4 | W32: =IF(chapterwise!H30=0,"",chapterwise!H30) ->  | X32: =IF(chapterwise!I30=0,"",chapterwise!I30) ->  | Y32: =IF(chapterwise!J30=0,"",chapterwise!J30) ->  | Z32: =IF(chapterwise!K30=0,"",chapterwise!K30) ->  | AA32: =IF(chapterwise!L30=0,"",chapterwise!L30) ->  | AB32: =IF(chapterwise!M30=0,"",chapterwise!M30) ->  | AD32: पूवाC | AE32: सामान्यC | AF32: स्मC | AG32: लउ२C | AH32: स्मसामान्यलउ२C | AI32: लउ२पूवाC | AJ32: 17लउ२C | AK32: लउ२C | AL32: 17स्मC | AM32: 17लउ२C | AN32: 17सामान्यC | AO32: 17स्मलउ२C
A33: =IF(B33="","",IF(G33="c","C",MAX($A$9:A32)+1)) ->  | I33: =IF('Entry sheet-1-hin'!A34="","",'Entry sheet-1-hin'!A34) ->  | K33: =IF('Entry sheet-1-hin'!B34="","",'Entry sheet-1-hin'!B34) ->  | T33: =IF('Entry sheet-1-hin'!C34="","",'Entry sheet-1-hin'!C34) ->  | U33: =IF(K33="","",COUNTIF($AJ$9:$AJ$77,"25बवि")*1+COUNTIF($AJ$9:$AJ$77,"25वनि")*1+COUNTIF($AJ$9:$AJ$77,"25अलउ")*1+COUNTIF($AJ$9:$AJ$77,"25लउ२")*2+COUNTIF($AJ$9:$AJ$77,"25लउ३")*3+COUNTIF($AJ$9:$AJ$77,"25दीउ४")*4+COUNTIF($AJ$9:$AJ$77,"25दीउ५")*5) ->  | V33: =IF(chapterwise!G31=0,"",chapterwise!G31) ->  | W33: =IF(chapterwise!H31=0,"",chapterwise!H31) ->  | X33: =IF(chapterwise!I31=0,"",chapterwise!I31) ->  | Y33: =IF(chapterwise!J31=0,"",chapterwise!J31) ->  | Z33: =IF(chapterwise!K31=0,"",chapterwise!K31) ->  | AA33: =IF(chapterwise!L31=0,"",chapterwise!L31) ->  | AB33: =IF(chapterwise!M31=0,"",chapterwise!M31) -> 
A34: =IF(B34="","",IF(G34="c","C",MAX($A$9:A33)+1)) ->  | I34: =IF('Entry sheet-1-hin'!A35="","",'Entry sheet-1-hin'!A35) ->  | K34: =IF('Entry sheet-1-hin'!B35="","",'Entry sheet-1-hin'!B35) ->  | T34: =IF('Entry sheet-1-hin'!C35="","",'Entry sheet-1-hin'!C35) ->  | U34: =IF(K34="","",COUNTIF($AJ$9:$AJ$77,"26बवि")*1+COUNTIF($AJ$9:$AJ$77,"26वनि")*1+COUNTIF($AJ$9:$AJ$77,"26अलउ")*1+COUNTIF($AJ$9:$AJ$77,"26लउ२")*2+COUNTIF($AJ$9:$AJ$77,"26लउ३")*3+COUNTIF($AJ$9:$AJ$77,"26दीउ४")*4+COUNTIF($AJ$9:$AJ$77,"26दीउ५")*5) ->  | V34: =IF(chapterwise!G32=0,"",chapterwise!G32) ->  | W34: =IF(chapterwise!H32=0,"",chapterwise!H32) ->  | X34: =IF(chapterwise!I32=0,"",chapterwise!I32) ->  | Y34: =IF(chapterwise!J32=0,"",chapterwise!J32) ->  | Z34: =IF(chapterwise!K32=0,"",chapterwise!K32) ->  | AA34: =IF(chapterwise!L32=0,"",chapterwise!L32) ->  | AB34: =IF(chapterwise!M32=0,"",chapterwise!M32) -> 
A35: =IF(B35="","",IF(G35="c","C",MAX($A$9:A34)+1)) ->  | I35: =IF('Entry sheet-1-hin'!A36="","",'Entry sheet-1-hin'!A36) ->  | K35: =IF('Entry sheet-1-hin'!B36="","",'Entry sheet-1-hin'!B36) ->  | T35: =IF('Entry sheet-1-hin'!C36="","",'Entry sheet-1-hin'!C36) ->  | U35: =IF(K35="","",COUNTIF($AJ$9:$AJ$77,"27बवि")*1+COUNTIF($AJ$9:$AJ$77,"27वनि")*1+COUNTIF($AJ$9:$AJ$77,"27अलउ")*1+COUNTIF($AJ$9:$AJ$77,"27लउ२")*2+COUNTIF($AJ$9:$AJ$77,"27लउ३")*3+COUNTIF($AJ$9:$AJ$77,"27दीउ४")*4+COUNTIF($AJ$9:$AJ$77,"27दीउ५")*5) ->  | V35: =IF(chapterwise!G33=0,"",chapterwise!G33) ->  | W35: =IF(chapterwise!H33=0,"",chapterwise!H33) ->  | X35: =IF(chapterwise!I33=0,"",chapterwise!I33) ->  | Y35: =IF(chapterwise!J33=0,"",chapterwise!J33) ->  | Z35: =IF(chapterwise!K33=0,"",chapterwise!K33) ->  | AA35: =IF(chapterwise!L33=0,"",chapterwise!L33) ->  | AB35: =IF(chapterwise!M33=0,"",chapterwise!M33) -> 
A36: =IF(B36="","",IF(G36="c","C",MAX($A$9:A35)+1)) ->  | I36: =IF('Entry sheet-1-hin'!A37="","",'Entry sheet-1-hin'!A37) ->  | K36: =IF('Entry sheet-1-hin'!B37="","",'Entry sheet-1-hin'!B37) ->  | T36: =IF('Entry sheet-1-hin'!C37="","",'Entry sheet-1-hin'!C37) ->  | U36: =IF(K36="","",COUNTIF($AJ$9:$AJ$77,"28बवि")*1+COUNTIF($AJ$9:$AJ$77,"28वनि")*1+COUNTIF($AJ$9:$AJ$77,"28अलउ")*1+COUNTIF($AJ$9:$AJ$77,"28लउ२")*2+COUNTIF($AJ$9:$AJ$77,"28लउ३")*3+COUNTIF($AJ$9:$AJ$77,"28दीउ४")*4+COUNTIF($AJ$9:$AJ$77,"28दीउ५")*5) ->  | V36: =IF(chapterwise!G34=0,"",chapterwise!G34) ->  | W36: =IF(chapterwise!H34=0,"",chapterwise!H34) ->  | X36: =IF(chapterwise!I34=0,"",chapterwise!I34) ->  | Y36: =IF(chapterwise!J34=0,"",chapterwise!J34) ->  | Z36: =IF(chapterwise!K34=0,"",chapterwise!K34) ->  | AA36: =IF(chapterwise!L34=0,"",chapterwise!L34) ->  | AB36: =IF(chapterwise!M34=0,"",chapterwise!M34) -> 
A37: =IF(B37="","",IF(G37="c","C",MAX($A$9:A36)+1)) ->  | H37: पूरकवाचन | I37: =IF('Entry sheet-1-hin'!A38="","",'Entry sheet-1-hin'!A38) ->  | K37: =IF('Entry sheet-1-hin'!B38="","",'Entry sheet-1-hin'!B38) ->  | T37: =IF('Entry sheet-1-hin'!C38="","",'Entry sheet-1-hin'!C38) ->  | U37: =IF(K37="","",COUNTIF($AJ$9:$AJ$77,"29बवि")*1+COUNTIF($AJ$9:$AJ$77,"29वनि")*1+COUNTIF($AJ$9:$AJ$77,"29अलउ")*1+COUNTIF($AJ$9:$AJ$77,"29लउ२")*2+COUNTIF($AJ$9:$AJ$77,"29लउ३")*3+COUNTIF($AJ$9:$AJ$77,"29दीउ४")*4+COUNTIF($AJ$9:$AJ$77,"29दीउ५")*5) ->  | V37: =IF(chapterwise!G35=0,"",chapterwise!G35) ->  | W37: =IF(chapterwise!H35=0,"",chapterwise!H35) ->  | X37: =IF(chapterwise!I35=0,"",chapterwise!I35) ->  | Y37: =IF(chapterwise!J35=0,"",chapterwise!J35) ->  | Z37: =IF(chapterwise!K35=0,"",chapterwise!K35) ->  | AA37: =IF(chapterwise!L35=0,"",chapterwise!L35) ->  | AB37: =IF(chapterwise!M35=0,"",chapterwise!M35) -> 
A38: =IF(B38="","",IF(G38="c","C",MAX($A$9:A37)+1)) ->  | H38: चुननेवाला | I38: =IF('Entry sheet-1-hin'!A39="","",'Entry sheet-1-hin'!A39) ->  | K38: =IF('Entry sheet-1-hin'!B39="","",'Entry sheet-1-hin'!B39) ->  | T38: =IF('Entry sheet-1-hin'!C39="","",'Entry sheet-1-hin'!C39) ->  | U38: =IF(K38="","",COUNTIF($AJ$9:$AJ$77,"30बवि")*1+COUNTIF($AJ$9:$AJ$77,"30वनि")*1+COUNTIF($AJ$9:$AJ$77,"30अलउ")*1+COUNTIF($AJ$9:$AJ$77,"30लउ२")*2+COUNTIF($AJ$9:$AJ$77,"30लउ३")*3+COUNTIF($AJ$9:$AJ$77,"30दीउ४")*4+COUNTIF($AJ$9:$AJ$77,"30दीउ५")*5) ->  | V38: =IF(chapterwise!G36=0,"",chapterwise!G36) ->  | W38: =IF(chapterwise!H36=0,"",chapterwise!H36) ->  | X38: =IF(chapterwise!I36=0,"",chapterwise!I36) ->  | Y38: =IF(chapterwise!J36=0,"",chapterwise!J36) ->  | Z38: =IF(chapterwise!K36=0,"",chapterwise!K36) ->  | AA38: =IF(chapterwise!L36=0,"",chapterwise!L36) ->  | AB38: =IF(chapterwise!M36=0,"",chapterwise!M36) -> 
A39: =IF(B39="","",IF(G39="c","C",MAX($A$9:A38)+1)) ->  | H39: पूरकवाचन | I39: =IF('Entry sheet-1-hin'!A40="","",'Entry sheet-1-hin'!A40) ->  | K39: =IF('Entry sheet-1-hin'!B40="","",'Entry sheet-1-hin'!B40) ->  | T39: =IF('Entry sheet-1-hin'!C40="","",'Entry sheet-1-hin'!C40) ->  | U39: =IF(K39="","",COUNTIF($AJ$9:$AJ$77,"31बवि")*1+COUNTIF($AJ$9:$AJ$77,"31वनि")*1+COUNTIF($AJ$9:$AJ$77,"31अलउ")*1+COUNTIF($AJ$9:$AJ$77,"31लउ२")*2+COUNTIF($AJ$9:$AJ$77,"31लउ३")*3+COUNTIF($AJ$9:$AJ$77,"31दीउ४")*4+COUNTIF($AJ$9:$AJ$77,"31दीउ५")*5) ->  | V39: =IF(chapterwise!G37=0,"",chapterwise!G37) ->  | W39: =IF(chapterwise!H37=0,"",chapterwise!H37) ->  | X39: =IF(chapterwise!I37=0,"",chapterwise!I37) ->  | Y39: =IF(chapterwise!J37=0,"",chapterwise!J37) ->  | Z39: =IF(chapterwise!K37=0,"",chapterwise!K37) ->  | AA39: =IF(chapterwise!L37=0,"",chapterwise!L37) ->  | AB39: =IF(chapterwise!M37=0,"",chapterwise!M37) -> 
A40: =IF(B40="","",IF(G40="c","C",MAX($A$9:A39)+1)) ->  | H40: चुननेवाला | I40: =IF('Entry sheet-1-hin'!A41="","",'Entry sheet-1-hin'!A41) ->  | K40: =IF('Entry sheet-1-hin'!B41="","",'Entry sheet-1-hin'!B41) ->  | T40: =IF('Entry sheet-1-hin'!C41="","",'Entry sheet-1-hin'!C41) ->  | U40: =IF(K40="","",COUNTIF($AJ$9:$AJ$77,"32बवि")*1+COUNTIF($AJ$9:$AJ$77,"32वनि")*1+COUNTIF($AJ$9:$AJ$77,"32अलउ")*1+COUNTIF($AJ$9:$AJ$77,"32लउ२")*2+COUNTIF($AJ$9:$AJ$77,"32लउ३")*3+COUNTIF($AJ$9:$AJ$77,"32दीउ४")*4+COUNTIF($AJ$9:$AJ$77,"32दीउ५")*5) ->  | V40: =IF(chapterwise!G38=0,"",chapterwise!G38) ->  | W40: =IF(chapterwise!H38=0,"",chapterwise!H38) ->  | X40: =IF(chapterwise!I38=0,"",chapterwise!I38) ->  | Y40: =IF(chapterwise!J38=0,"",chapterwise!J38) ->  | Z40: =IF(chapterwise!K38=0,"",chapterwise!K38) ->  | AA40: =IF(chapterwise!L38=0,"",chapterwise!L38) ->  | AB40: =IF(chapterwise!M38=0,"",chapterwise!M38) -> 
A41: =IF(B41="","",IF(G41="c","C",MAX($A$9:A40)+1)) -> 14 | B41: 4 | C41: सम | D41: सामान्य | E41: लउ३ | F41: ग | H41: 3 अंकवाले | I41: =IF('Entry sheet-1-hin'!A42="","",'Entry sheet-1-hin'!A42) ->  | K41: =IF('Entry sheet-1-hin'!B42="","",'Entry sheet-1-hin'!B42) ->  | T41: =IF('Entry sheet-1-hin'!C42="","",'Entry sheet-1-hin'!C42) ->  | U41: =IF(K41="","",COUNTIF($AJ$9:$AJ$77,"33बवि")*1+COUNTIF($AJ$9:$AJ$77,"33वनि")*1+COUNTIF($AJ$9:$AJ$77,"33अलउ")*1+COUNTIF($AJ$9:$AJ$77,"33लउ२")*2+COUNTIF($AJ$9:$AJ$77,"33लउ३")*3+COUNTIF($AJ$9:$AJ$77,"33दीउ४")*4+COUNTIF($AJ$9:$AJ$77,"33दीउ५")*5) ->  | V41: =IF(chapterwise!G39=0,"",chapterwise!G39) ->  | W41: =IF(chapterwise!H39=0,"",chapterwise!H39) ->  | X41: =IF(chapterwise!I39=0,"",chapterwise!I39) ->  | Y41: =IF(chapterwise!J39=0,"",chapterwise!J39) ->  | Z41: =IF(chapterwise!K39=0,"",chapterwise!K39) ->  | AA41: =IF(chapterwise!L39=0,"",chapterwise!L39) ->  | AB41: =IF(chapterwise!M39=0,"",chapterwise!M39) ->  | AD41: ग | AE41: सामान्य | AF41: सम | AG41: लउ३ | AH41: समसामान्यलउ३ | AI41: लउ३ग | AJ41: 4लउ३ | AK41: लउ३ | AL41: 4सम | AM41: 4लउ३ | AN41: 4सामान्य | AO41: 4समलउ३
A42: =IF(B42="","",IF(G42="c","C",MAX($A$9:A41)+1)) -> 15 | B42: 13 | C42: रस | D42: कठिन | E42: लउ३ | F42: प | I42: =IF('Entry sheet-1-hin'!A43="","",'Entry sheet-1-hin'!A43) ->  | K42: =IF('Entry sheet-1-hin'!B43="","",'Entry sheet-1-hin'!B43) ->  | T42: =IF('Entry sheet-1-hin'!C43="","",'Entry sheet-1-hin'!C43) ->  | U42: =IF(K42="","",COUNTIF($AJ$9:$AJ$77,"34बवि")*1+COUNTIF($AJ$9:$AJ$77,"34वनि")*1+COUNTIF($AJ$9:$AJ$77,"34अलउ")*1+COUNTIF($AJ$9:$AJ$77,"34लउ२")*2+COUNTIF($AJ$9:$AJ$77,"34लउ३")*3+COUNTIF($AJ$9:$AJ$77,"34दीउ४")*4+COUNTIF($AJ$9:$AJ$77,"34दीउ५")*5) ->  | V42: =IF(chapterwise!G40=0,"",chapterwise!G40) ->  | W42: =IF(chapterwise!H40=0,"",chapterwise!H40) ->  | X42: =IF(chapterwise!I40=0,"",chapterwise!I40) ->  | Y42: =IF(chapterwise!J40=0,"",chapterwise!J40) ->  | Z42: =IF(chapterwise!K40=0,"",chapterwise!K40) ->  | AA42: =IF(chapterwise!L40=0,"",chapterwise!L40) ->  | AB42: =IF(chapterwise!M40=0,"",chapterwise!M40) ->  | AD42: प | AE42: कठिन | AF42: रस | AG42: लउ३ | AH42: रसकठिनलउ३ | AI42: लउ३प | AJ42: 13लउ३ | AK42: लउ३ | AL42: 13रस | AM42: 13लउ३ | AN42: 13कठिन | AO42: 13रसलउ३
A43: =IF(B43="","",IF(G43="c","C",MAX($A$9:A42)+1)) ->  | I43: =IF('Entry sheet-1-hin'!A44="","",'Entry sheet-1-hin'!A44) ->  | K43: =IF('Entry sheet-1-hin'!B44="","",'Entry sheet-1-hin'!B44) ->  | T43: =IF('Entry sheet-1-hin'!C44="","",'Entry sheet-1-hin'!C44) ->  | U43: =IF(K43="","",COUNTIF($AJ$9:$AJ$77,"35बवि")*1+COUNTIF($AJ$9:$AJ$77,"35वनि")*1+COUNTIF($AJ$9:$AJ$77,"35अलउ")*1+COUNTIF($AJ$9:$AJ$77,"35लउ२")*2+COUNTIF($AJ$9:$AJ$77,"35लउ३")*3+COUNTIF($AJ$9:$AJ$77,"35दीउ४")*4+COUNTIF($AJ$9:$AJ$77,"35दीउ५")*5) ->  | V43: =IF(chapterwise!G41=0,"",chapterwise!G41) ->  | W43: =IF(chapterwise!H41=0,"",chapterwise!H41) ->  | X43: =IF(chapterwise!I41=0,"",chapterwise!I41) ->  | Y43: =IF(chapterwise!J41=0,"",chapterwise!J41) ->  | Z43: =IF(chapterwise!K41=0,"",chapterwise!K41) ->  | AA43: =IF(chapterwise!L41=0,"",chapterwise!L41) ->  | AB43: =IF(chapterwise!M41=0,"",chapterwise!M41) -> 
A44: =IF(B44="","",IF(G44="c","C",MAX($A$9:A43)+1)) ->  | I44: =IF('Entry sheet-1-hin'!A45="","",'Entry sheet-1-hin'!A45) ->  | K44: =IF('Entry sheet-1-hin'!B45="","",'Entry sheet-1-hin'!B45) ->  | T44: =IF('Entry sheet-1-hin'!C45="","",'Entry sheet-1-hin'!C45) ->  | U44: =IF(K44="","",COUNTIF($AJ$9:$AJ$77,"36बवि")*1+COUNTIF($AJ$9:$AJ$77,"36वनि")*1+COUNTIF($AJ$9:$AJ$77,"36अलउ")*1+COUNTIF($AJ$9:$AJ$77,"36लउ२")*2+COUNTIF($AJ$9:$AJ$77,"36लउ३")*3+COUNTIF($AJ$9:$AJ$77,"36दीउ४")*4+COUNTIF($AJ$9:$AJ$77,"36दीउ५")*5) ->  | V44: =IF(chapterwise!G42=0,"",chapterwise!G42) ->  | W44: =IF(chapterwise!H42=0,"",chapterwise!H42) ->  | X44: =IF(chapterwise!I42=0,"",chapterwise!I42) ->  | Y44: =IF(chapterwise!J42=0,"",chapterwise!J42) ->  | Z44: =IF(chapterwise!K42=0,"",chapterwise!K42) ->  | AA44: =IF(chapterwise!L42=0,"",chapterwise!L42) ->  | AB44: =IF(chapterwise!M42=0,"",chapterwise!M42) -> 
A45: =IF(B45="","",IF(G45="c","C",MAX($A$9:A44)+1)) ->  | I45: =IF('Entry sheet-1-hin'!A46="","",'Entry sheet-1-hin'!A46) ->  | K45: =IF('Entry sheet-1-hin'!B46="","",'Entry sheet-1-hin'!B46) ->  | T45: =IF('Entry sheet-1-hin'!C46="","",'Entry sheet-1-hin'!C46) ->  | U45: =IF(K45="","",COUNTIF($AJ$9:$AJ$77,"37बवि")*1+COUNTIF($AJ$9:$AJ$77,"37वनि")*1+COUNTIF($AJ$9:$AJ$77,"37अलउ")*1+COUNTIF($AJ$9:$AJ$77,"37लउ२")*2+COUNTIF($AJ$9:$AJ$77,"37लउ३")*3+COUNTIF($AJ$9:$AJ$77,"37दीउ४")*4+COUNTIF($AJ$9:$AJ$77,"37दीउ५")*5) ->  | V45: =IF(chapterwise!G43=0,"",chapterwise!G43) ->  | W45: =IF(chapterwise!H43=0,"",chapterwise!H43) ->  | X45: =IF(chapterwise!I43=0,"",chapterwise!I43) ->  | Y45: =IF(chapterwise!J43=0,"",chapterwise!J43) ->  | Z45: =IF(chapterwise!K43=0,"",chapterwise!K43) ->  | AA45: =IF(chapterwise!L43=0,"",chapterwise!L43) ->  | AB45: =IF(chapterwise!M43=0,"",chapterwise!M43) -> 
A46: =IF(B46="","",IF(G46="c","C",MAX($A$9:A45)+1)) -> C | B46: 1 | C46: स्म | D46: सामान्य | E46: दीउ४ | F46: प | G46: C | H46: 4 अंक | I46: =IF('Entry sheet-1-hin'!A47="","",'Entry sheet-1-hin'!A47) ->  | K46: =IF('Entry sheet-1-hin'!B47="","",'Entry sheet-1-hin'!B47) ->  | T46: =IF('Entry sheet-1-hin'!C47="","",'Entry sheet-1-hin'!C47) ->  | U46: =IF(K46="","",COUNTIF($AJ$9:$AJ$77,"38बवि")*1+COUNTIF($AJ$9:$AJ$77,"38वनि")*1+COUNTIF($AJ$9:$AJ$77,"38अलउ")*1+COUNTIF($AJ$9:$AJ$77,"38लउ२")*2+COUNTIF($AJ$9:$AJ$77,"38लउ३")*3+COUNTIF($AJ$9:$AJ$77,"38दीउ४")*4+COUNTIF($AJ$9:$AJ$77,"38दीउ५")*5) ->  | V46: =IF(chapterwise!G44=0,"",chapterwise!G44) ->  | W46: =IF(chapterwise!H44=0,"",chapterwise!H44) ->  | X46: =IF(chapterwise!I44=0,"",chapterwise!I44) ->  | Y46: =IF(chapterwise!J44=0,"",chapterwise!J44) ->  | Z46: =IF(chapterwise!K44=0,"",chapterwise!K44) ->  | AA46: =IF(chapterwise!L44=0,"",chapterwise!L44) ->  | AB46: =IF(chapterwise!M44=0,"",chapterwise!M44) ->  | AD46: पC | AE46: सामान्यC | AF46: स्मC | AG46: दीउ४C | AH46: स्मसामान्यदीउ४C | AI46: दीउ४पC | AJ46: 1दीउ४C | AK46: दीउ४C | AL46: 1स्मC | AM46: 1दीउ४C | AN46: 1सामान्यC | AO46: 1स्मदीउ४C
A47: =IF(B47="","",IF(G47="c","C",MAX($A$9:A46)+1)) -> 16 | B47: 12 | C47: सम | D47: सामान्य | E47: दीउ४ | F47: ग | H47: चुननेवाला | I47: =IF('Entry sheet-1-hin'!A48="","",'Entry sheet-1-hin'!A48) ->  | K47: =IF('Entry sheet-1-hin'!B48="","",'Entry sheet-1-hin'!B48) ->  | T47: =IF('Entry sheet-1-hin'!C48="","",'Entry sheet-1-hin'!C48) ->  | U47: =IF(K47="","",COUNTIF($AJ$9:$AJ$77,"39बवि")*1+COUNTIF($AJ$9:$AJ$77,"39वनि")*1+COUNTIF($AJ$9:$AJ$77,"39अलउ")*1+COUNTIF($AJ$9:$AJ$77,"39लउ२")*2+COUNTIF($AJ$9:$AJ$77,"39लउ३")*3+COUNTIF($AJ$9:$AJ$77,"39दीउ४")*4+COUNTIF($AJ$9:$AJ$77,"39दीउ५")*5) ->  | V47: =IF(chapterwise!G45=0,"",chapterwise!G45) ->  | W47: =IF(chapterwise!H45=0,"",chapterwise!H45) ->  | X47: =IF(chapterwise!I45=0,"",chapterwise!I45) ->  | Y47: =IF(chapterwise!J45=0,"",chapterwise!J45) ->  | Z47: =IF(chapterwise!K45=0,"",chapterwise!K45) ->  | AA47: =IF(chapterwise!L45=0,"",chapterwise!L45) ->  | AB47: =IF(chapterwise!M45=0,"",chapterwise!M45) ->  | AD47: ग | AE47: सामान्य | AF47: सम | AG47: दीउ४ | AH47: समसामान्यदीउ४ | AI47: दीउ४ग | AJ47: 12दीउ४ | AK47: दीउ४ | AL47: 12सम | AM47: 12दीउ४ | AN47: 12सामान्य | AO47: 12समदीउ४
A48: =IF(B48="","",IF(G48="c","C",MAX($A$9:A47)+1)) ->  | H48: 4 अंक | I48: =IF('Entry sheet-1-hin'!A49="","",'Entry sheet-1-hin'!A49) ->  | K48: =IF('Entry sheet-1-hin'!B49="","",'Entry sheet-1-hin'!B49) ->  | T48: =IF('Entry sheet-1-hin'!C49="","",'Entry sheet-1-hin'!C49) ->  | U48: =IF(K48="","",COUNTIF($AJ$9:$AJ$77,"40बवि")*1+COUNTIF($AJ$9:$AJ$77,"40वनि")*1+COUNTIF($AJ$9:$AJ$77,"40अलउ")*1+COUNTIF($AJ$9:$AJ$77,"40लउ२")*2+COUNTIF($AJ$9:$AJ$77,"40लउ३")*3+COUNTIF($AJ$9:$AJ$77,"40दीउ४")*4+COUNTIF($AJ$9:$AJ$77,"40दीउ५")*5) ->  | V48: =IF(chapterwise!G46=0,"",chapterwise!G46) ->  | W48: =IF(chapterwise!H46=0,"",chapterwise!H46) ->  | X48: =IF(chapterwise!I46=0,"",chapterwise!I46) ->  | Y48: =IF(chapterwise!J46=0,"",chapterwise!J46) ->  | Z48: =IF(chapterwise!K46=0,"",chapterwise!K46) ->  | AA48: =IF(chapterwise!L46=0,"",chapterwise!L46) ->  | AB48: =IF(chapterwise!M46=0,"",chapterwise!M46) -> 
A49: =IF(B49="","",IF(G49="c","C",MAX($A$9:A48)+1)) ->  | H49: चुननेवाला | I49: =IF('Entry sheet-1-hin'!A50="","",'Entry sheet-1-hin'!A50) ->  | K49: =IF('Entry sheet-1-hin'!B50="","",'Entry sheet-1-hin'!B50) ->  | T49: =IF('Entry sheet-1-hin'!C50="","",'Entry sheet-1-hin'!C50) ->  | U49: =IF(K49="","",COUNTIF($AJ$9:$AJ$77,"41बवि")*1+COUNTIF($AJ$9:$AJ$77,"41वनि")*1+COUNTIF($AJ$9:$AJ$77,"41अलउ")*1+COUNTIF($AJ$9:$AJ$77,"41लउ२")*2+COUNTIF($AJ$9:$AJ$77,"41लउ३")*3+COUNTIF($AJ$9:$AJ$77,"41दीउ४")*4+COUNTIF($AJ$9:$AJ$77,"41दीउ५")*5) ->  | V49: =IF(chapterwise!G47=0,"",chapterwise!G47) ->  | W49: =IF(chapterwise!H47=0,"",chapterwise!H47) ->  | X49: =IF(chapterwise!I47=0,"",chapterwise!I47) ->  | Y49: =IF(chapterwise!J47=0,"",chapterwise!J47) ->  | Z49: =IF(chapterwise!K47=0,"",chapterwise!K47) ->  | AA49: =IF(chapterwise!L47=0,"",chapterwise!L47) ->  | AB49: =IF(chapterwise!M47=0,"",chapterwise!M47) -> 
A50: =IF(B50="","",IF(G50="c","C",MAX($A$9:A49)+1)) -> 17 | B50: 24 | C50: सम | D50: सामान्य | E50: बवि | F50: व्या | H50: बहुविकल्पीय ( व्याकरण) | I50: =IF('Entry sheet-1-hin'!A51="","",'Entry sheet-1-hin'!A51) ->  | K50: =IF('Entry sheet-1-hin'!B51="","",'Entry sheet-1-hin'!B51) ->  | T50: =IF('Entry sheet-1-hin'!C51="","",'Entry sheet-1-hin'!C51) ->  | U50: =IF(K50="","",COUNTIF($AJ$9:$AJ$77,"42बवि")*1+COUNTIF($AJ$9:$AJ$77,"42वनि")*1+COUNTIF($AJ$9:$AJ$77,"42अलउ")*1+COUNTIF($AJ$9:$AJ$77,"42लउ२")*2+COUNTIF($AJ$9:$AJ$77,"42लउ३")*3+COUNTIF($AJ$9:$AJ$77,"42दीउ४")*4+COUNTIF($AJ$9:$AJ$77,"42दीउ५")*5) ->  | V50: =IF(chapterwise!G48=0,"",chapterwise!G48) ->  | W50: =IF(chapterwise!H48=0,"",chapterwise!H48) ->  | X50: =IF(chapterwise!I48=0,"",chapterwise!I48) ->  | Y50: =IF(chapterwise!J48=0,"",chapterwise!J48) ->  | Z50: =IF(chapterwise!K48=0,"",chapterwise!K48) ->  | AA50: =IF(chapterwise!L48=0,"",chapterwise!L48) ->  | AB50: =IF(chapterwise!M48=0,"",chapterwise!M48) ->  | AD50: व्या | AE50: सामान्य | AF50: सम | AG50: बवि | AH50: समसामान्यबवि | AI50: बविव्या | AJ50: 24बवि | AK50: बवि | AL50: 24सम | AM50: 24बवि | AN50: 24सामान्य | AO50: 24समबवि
A51: =IF(B51="","",IF(G51="c","C",MAX($A$9:A50)+1)) -> 18 | B51: 24 | C51: सम | D51: कठिन | E51: बवि | F51: व्या | I51: =IF('Entry sheet-1-hin'!A52="","",'Entry sheet-1-hin'!A52) ->  | K51: =IF('Entry sheet-1-hin'!B52="","",'Entry sheet-1-hin'!B52) ->  | T51: =IF('Entry sheet-1-hin'!C52="","",'Entry sheet-1-hin'!C52) ->  | U51: =IF(K51="","",COUNTIF($AJ$9:$AJ$77,"43बवि")*1+COUNTIF($AJ$9:$AJ$77,"43वनि")*1+COUNTIF($AJ$9:$AJ$77,"43अलउ")*1+COUNTIF($AJ$9:$AJ$77,"43लउ२")*2+COUNTIF($AJ$9:$AJ$77,"43लउ३")*3+COUNTIF($AJ$9:$AJ$77,"43दीउ४")*4+COUNTIF($AJ$9:$AJ$77,"43दीउ५")*5) ->  | V51: =IF(chapterwise!G49=0,"",chapterwise!G49) ->  | W51: =IF(chapterwise!H49=0,"",chapterwise!H49) ->  | X51: =IF(chapterwise!I49=0,"",chapterwise!I49) ->  | Y51: =IF(chapterwise!J49=0,"",chapterwise!J49) ->  | Z51: =IF(chapterwise!K49=0,"",chapterwise!K49) ->  | AA51: =IF(chapterwise!L49=0,"",chapterwise!L49) ->  | AB51: =IF(chapterwise!M49=0,"",chapterwise!M49) ->  | AD51: व्या | AE51: कठिन | AF51: सम | AG51: बवि | AH51: समकठिनबवि | AI51: बविव्या | AJ51: 24बवि | AK51: बवि | AL51: 24सम | AM51: 24बवि | AN51: 24कठिन | AO51: 24समबवि
A52: =IF(B52="","",IF(G52="c","C",MAX($A$9:A51)+1)) -> 19 | B52: 24 | C52: सम | D52: सामान्य | E52: बवि | F52: व्या | I52: =IF('Entry sheet-1-hin'!A53="","",'Entry sheet-1-hin'!A53) ->  | K52: =IF('Entry sheet-1-hin'!B53="","",'Entry sheet-1-hin'!B53) ->  | T52: =IF('Entry sheet-1-hin'!C53="","",'Entry sheet-1-hin'!C53) ->  | U52: =IF(K52="","",COUNTIF($AJ$9:$AJ$77,"44बवि")*1+COUNTIF($AJ$9:$AJ$77,"44वनि")*1+COUNTIF($AJ$9:$AJ$77,"44अलउ")*1+COUNTIF($AJ$9:$AJ$77,"44लउ२")*2+COUNTIF($AJ$9:$AJ$77,"44लउ३")*3+COUNTIF($AJ$9:$AJ$77,"44दीउ४")*4+COUNTIF($AJ$9:$AJ$77,"44दीउ५")*5) ->  | V52: =IF(chapterwise!G50=0,"",chapterwise!G50) ->  | W52: =IF(chapterwise!H50=0,"",chapterwise!H50) ->  | X52: =IF(chapterwise!I50=0,"",chapterwise!I50) ->  | Y52: =IF(chapterwise!J50=0,"",chapterwise!J50) ->  | Z52: =IF(chapterwise!K50=0,"",chapterwise!K50) ->  | AA52: =IF(chapterwise!L50=0,"",chapterwise!L50) ->  | AB52: =IF(chapterwise!M50=0,"",chapterwise!M50) ->  | AD52: व्या | AE52: सामान्य | AF52: सम | AG52: बवि | AH52: समसामान्यबवि | AI52: बविव्या | AJ52: 24बवि | AK52: बवि | AL52: 24सम | AM52: 24बवि | AN52: 24सामान्य | AO52: 24समबवि
A53: =IF(B53="","",IF(G53="c","C",MAX($A$9:A52)+1)) -> 20 | B53: 24 | C53: सम | D53: सरल | E53: बवि | F53: व्या | I53: =IF('Entry sheet-1-hin'!A54="","",'Entry sheet-1-hin'!A54) ->  | K53: =IF('Entry sheet-1-hin'!B54="","",'Entry sheet-1-hin'!B54) ->  | T53: =IF('Entry sheet-1-hin'!C54="","",'Entry sheet-1-hin'!C54) ->  | U53: =IF(K53="","",COUNTIF($AJ$9:$AJ$77,"45बवि")*1+COUNTIF($AJ$9:$AJ$77,"45वनि")*1+COUNTIF($AJ$9:$AJ$77,"45अलउ")*1+COUNTIF($AJ$9:$AJ$77,"45लउ२")*2+COUNTIF($AJ$9:$AJ$77,"45लउ३")*3+COUNTIF($AJ$9:$AJ$77,"45दीउ४")*4+COUNTIF($AJ$9:$AJ$77,"45दीउ५")*5) ->  | V53: =IF(chapterwise!G51=0,"",chapterwise!G51) ->  | W53: =IF(chapterwise!H51=0,"",chapterwise!H51) ->  | X53: =IF(chapterwise!I51=0,"",chapterwise!I51) ->  | Y53: =IF(chapterwise!J51=0,"",chapterwise!J51) ->  | Z53: =IF(chapterwise!K51=0,"",chapterwise!K51) ->  | AA53: =IF(chapterwise!L51=0,"",chapterwise!L51) ->  | AB53: =IF(chapterwise!M51=0,"",chapterwise!M51) ->  | AD53: व्या | AE53: सरल | AF53: सम | AG53: बवि | AH53: समसरलबवि | AI53: बविव्या | AJ53: 24बवि | AK53: बवि | AL53: 24सम | AM53: 24बवि | AN53: 24सरल | AO53: 24समबवि
A54: =IF(B54="","",IF(G54="c","C",MAX($A$9:A53)+1)) ->  | I54: =IF('Entry sheet-1-hin'!A55="","",'Entry sheet-1-hin'!A55) ->  | K54: =IF('Entry sheet-1-hin'!B55="","",'Entry sheet-1-hin'!B55) ->  | T54: =IF('Entry sheet-1-hin'!C55="","",'Entry sheet-1-hin'!C55) ->  | U54: =IF(K54="","",COUNTIF($AJ$9:$AJ$77,"46बवि")*1+COUNTIF($AJ$9:$AJ$77,"46वनि")*1+COUNTIF($AJ$9:$AJ$77,"46अलउ")*1+COUNTIF($AJ$9:$AJ$77,"46लउ२")*2+COUNTIF($AJ$9:$AJ$77,"46लउ३")*3+COUNTIF($AJ$9:$AJ$77,"46दीउ४")*4+COUNTIF($AJ$9:$AJ$77,"46दीउ५")*5) ->  | V54: =IF(chapterwise!G52=0,"",chapterwise!G52) ->  | W54: =IF(chapterwise!H52=0,"",chapterwise!H52) ->  | X54: =IF(chapterwise!I52=0,"",chapterwise!I52) ->  | Y54: =IF(chapterwise!J52=0,"",chapterwise!J52) ->  | Z54: =IF(chapterwise!K52=0,"",chapterwise!K52) ->  | AA54: =IF(chapterwise!L52=0,"",chapterwise!L52) ->  | AB54: =IF(chapterwise!M52=0,"",chapterwise!M52) -> 
A55: =IF(B55="","",IF(G55="c","C",MAX($A$9:A54)+1)) ->  | I55: =IF('Entry sheet-1-hin'!A56="","",'Entry sheet-1-hin'!A56) ->  | K55: =IF('Entry sheet-1-hin'!B56="","",'Entry sheet-1-hin'!B56) ->  | T55: =IF('Entry sheet-1-hin'!C56="","",'Entry sheet-1-hin'!C56) ->  | U55: =IF(K55="","",COUNTIF($AJ$9:$AJ$77,"47बवि")*1+COUNTIF($AJ$9:$AJ$77,"47वनि")*1+COUNTIF($AJ$9:$AJ$77,"47अलउ")*1+COUNTIF($AJ$9:$AJ$77,"47लउ२")*2+COUNTIF($AJ$9:$AJ$77,"47लउ३")*3+COUNTIF($AJ$9:$AJ$77,"47दीउ४")*4+COUNTIF($AJ$9:$AJ$77,"47दीउ५")*5) ->  | V55: =IF(chapterwise!G53=0,"",chapterwise!G53) ->  | W55: =IF(chapterwise!H53=0,"",chapterwise!H53) ->  | X55: =IF(chapterwise!I53=0,"",chapterwise!I53) ->  | Y55: =IF(chapterwise!J53=0,"",chapterwise!J53) ->  | Z55: =IF(chapterwise!K53=0,"",chapterwise!K53) ->  | AA55: =IF(chapterwise!L53=0,"",chapterwise!L53) ->  | AB55: =IF(chapterwise!M53=0,"",chapterwise!M53) -> 
A56: =IF(B56="","",IF(G56="c","C",MAX($A$9:A55)+1)) ->  | I56: =IF('Entry sheet-1-hin'!A57="","",'Entry sheet-1-hin'!A57) ->  | K56: =IF('Entry sheet-1-hin'!B57="","",'Entry sheet-1-hin'!B57) ->  | T56: =IF('Entry sheet-1-hin'!C57="","",'Entry sheet-1-hin'!C57) ->  | U56: =IF(K56="","",COUNTIF($AJ$9:$AJ$77,"48बवि")*1+COUNTIF($AJ$9:$AJ$77,"48वनि")*1+COUNTIF($AJ$9:$AJ$77,"48अलउ")*1+COUNTIF($AJ$9:$AJ$77,"48लउ२")*2+COUNTIF($AJ$9:$AJ$77,"48लउ३")*3+COUNTIF($AJ$9:$AJ$77,"48दीउ४")*4+COUNTIF($AJ$9:$AJ$77,"48दीउ५")*5) ->  | V56: =IF(chapterwise!G54=0,"",chapterwise!G54) ->  | W56: =IF(chapterwise!H54=0,"",chapterwise!H54) ->  | X56: =IF(chapterwise!I54=0,"",chapterwise!I54) ->  | Y56: =IF(chapterwise!J54=0,"",chapterwise!J54) ->  | Z56: =IF(chapterwise!K54=0,"",chapterwise!K54) ->  | AA56: =IF(chapterwise!L54=0,"",chapterwise!L54) ->  | AB56: =IF(chapterwise!M54=0,"",chapterwise!M54) -> 
A57: =IF(B57="","",IF(G57="c","C",MAX($A$9:A56)+1)) ->  | I57: =IF('Entry sheet-1-hin'!A58="","",'Entry sheet-1-hin'!A58) ->  | K57: =IF('Entry sheet-1-hin'!B58="","",'Entry sheet-1-hin'!B58) ->  | T57: =IF('Entry sheet-1-hin'!C58="","",'Entry sheet-1-hin'!C58) ->  | U57: =IF(K57="","",COUNTIF($AJ$9:$AJ$77,"49बवि")*1+COUNTIF($AJ$9:$AJ$77,"49वनि")*1+COUNTIF($AJ$9:$AJ$77,"49अलउ")*1+COUNTIF($AJ$9:$AJ$77,"49लउ२")*2+COUNTIF($AJ$9:$AJ$77,"49लउ३")*3+COUNTIF($AJ$9:$AJ$77,"49दीउ४")*4+COUNTIF($AJ$9:$AJ$77,"49दीउ५")*5) ->  | V57: =IF(chapterwise!G55=0,"",chapterwise!G55) ->  | W57: =IF(chapterwise!H55=0,"",chapterwise!H55) ->  | X57: =IF(chapterwise!I55=0,"",chapterwise!I55) ->  | Y57: =IF(chapterwise!J55=0,"",chapterwise!J55) ->  | Z57: =IF(chapterwise!K55=0,"",chapterwise!K55) ->  | AA57: =IF(chapterwise!L55=0,"",chapterwise!L55) ->  | AB57: =IF(chapterwise!M55=0,"",chapterwise!M55) -> 
A58: =IF(B58="","",IF(G58="c","C",MAX($A$9:A57)+1)) ->  | I58: =IF('Entry sheet-1-hin'!A59="","",'Entry sheet-1-hin'!A59) ->  | K58: =IF('Entry sheet-1-hin'!B59="","",'Entry sheet-1-hin'!B59) ->  | T58: =IF('Entry sheet-1-hin'!C59="","",'Entry sheet-1-hin'!C59) ->  | U58: =IF(K58="","",COUNTIF($AJ$9:$AJ$77,"50बवि")*1+COUNTIF($AJ$9:$AJ$77,"50वनि")*1+COUNTIF($AJ$9:$AJ$77,"50अलउ")*1+COUNTIF($AJ$9:$AJ$77,"50लउ२")*2+COUNTIF($AJ$9:$AJ$77,"50लउ३")*3+COUNTIF($AJ$9:$AJ$77,"50दीउ४")*4+COUNTIF($AJ$9:$AJ$77,"50दीउ५")*5) ->  | V58: =IF(chapterwise!G56=0,"",chapterwise!G56) ->  | W58: =IF(chapterwise!H56=0,"",chapterwise!H56) ->  | X58: =IF(chapterwise!I56=0,"",chapterwise!I56) ->  | Y58: =IF(chapterwise!J56=0,"",chapterwise!J56) ->  | Z58: =IF(chapterwise!K56=0,"",chapterwise!K56) ->  | AA58: =IF(chapterwise!L56=0,"",chapterwise!L56) ->  | AB58: =IF(chapterwise!M56=0,"",chapterwise!M56) -> 
A59: =IF(B59="","",IF(G59="c","C",MAX($A$9:A58)+1)) -> C | B59: 20 | C59: सम | D59: सरल | E59: अलउ | F59: र | G59: C | H59: अपठित | I59: =IF('Entry sheet-1-hin'!A60="","",'Entry sheet-1-hin'!A60) ->  | K59: =IF('Entry sheet-1-hin'!B60="","",'Entry sheet-1-hin'!B60) ->  | T59: =IF('Entry sheet-1-hin'!C60="","",'Entry sheet-1-hin'!C60) ->  | U59: =IF(K69="","",COUNTIF($AJ$9:$AJ$77,"51बवि")*1+COUNTIF($AJ$9:$AJ$77,"51वनि")*1+COUNTIF($AJ$9:$AJ$77,"51अलउ")*1+COUNTIF($AJ$9:$AJ$77,"51लउ२")*2+COUNTIF($AJ$9:$AJ$77,"51लउ३")*3+COUNTIF($AJ$9:$AJ$77,"51दीउ४")*4+COUNTIF($AJ$9:$AJ$77,"51दीउ५")*5) ->  | AD59: रC | AE59: सरलC | AF59: समC | AG59: अलउC | AH59: समसरलअलउC | AI59: अलउरC | AJ59: 20अलउC | AK59: अलउC | AL59: 20समC | AM59: 20अलउC | AN59: 20सरलC | AO59: 20समअलउC
A60: =IF(B60="","",IF(G60="c","C",MAX($A$9:A59)+1)) -> 21 | B60: 20 | C60: सम | D60: सरल | E60: अलउ | F60: र | I60: =IF('Entry sheet-1-hin'!A61="","",'Entry sheet-1-hin'!A61) ->  | K60: =IF('Entry sheet-1-hin'!B61="","",'Entry sheet-1-hin'!B61) ->  | T60: =IF('Entry sheet-1-hin'!C61="","",'Entry sheet-1-hin'!C61) ->  | U60: =IF(K60="","",COUNTIF($AJ$9:$AJ$77,"52बवि")*1+COUNTIF($AJ$9:$AJ$77,"52वनि")*1+COUNTIF($AJ$9:$AJ$77,"52अलउ")*1+COUNTIF($AJ$9:$AJ$77,"52लउ२")*2+COUNTIF($AJ$9:$AJ$77,"52लउ३")*3+COUNTIF($AJ$9:$AJ$77,"52दीउ४")*4+COUNTIF($AJ$9:$AJ$77,"52दीउ५")*5) ->  | AD60: र | AE60: सरल | AF60: सम | AG60: अलउ | AH60: समसरलअलउ | AI60: अलउर | AJ60: 20अलउ | AK60: अलउ | AL60: 20सम | AM60: 20अलउ | AN60: 20सरल | AO60: 20समअलउ
A61: =IF(B61="","",IF(G61="c","C",MAX($A$9:A60)+1)) -> 22 | B61: 20 | C61: सम | D61: सरल | E61: अलउ | F61: र | I61: =IF('Entry sheet-1-hin'!A62="","",'Entry sheet-1-hin'!A62) ->  | K61: =IF('Entry sheet-1-hin'!B62="","",'Entry sheet-1-hin'!B62) ->  | T61: =IF('Entry sheet-1-hin'!C62="","",'Entry sheet-1-hin'!C62) ->  | U61: =IF(K61="","",COUNTIF($AJ$9:$AJ$77,"53बवि")*1+COUNTIF($AJ$9:$AJ$77,"53वनि")*1+COUNTIF($AJ$9:$AJ$77,"53अलउ")*1+COUNTIF($AJ$9:$AJ$77,"53लउ२")*2+COUNTIF($AJ$9:$AJ$77,"53लउ३")*3+COUNTIF($AJ$9:$AJ$77,"53दीउ४")*4+COUNTIF($AJ$9:$AJ$77,"53दीउ५")*5) ->  | AD61: र | AE61: सरल | AF61: सम | AG61: अलउ | AH61: समसरलअलउ | AI61: अलउर | AJ61: 20अलउ | AK61: अलउ | AL61: 20सम | AM61: 20अलउ | AN61: 20सरल | AO61: 20समअलउ
A62: =IF(B62="","",IF(G62="c","C",MAX($A$9:A61)+1)) ->  | I62: =IF('Entry sheet-1-hin'!A63="","",'Entry sheet-1-hin'!A63) ->  | K62: =IF('Entry sheet-1-hin'!B63="","",'Entry sheet-1-hin'!B63) ->  | T62: =IF('Entry sheet-1-hin'!C63="","",'Entry sheet-1-hin'!C63) ->  | U62: =IF(K62="","",COUNTIF($AJ$9:$AJ$77,"54बवि")*1+COUNTIF($AJ$9:$AJ$77,"54वनि")*1+COUNTIF($AJ$9:$AJ$77,"54अलउ")*1+COUNTIF($AJ$9:$AJ$77,"54लउ२")*2+COUNTIF($AJ$9:$AJ$77,"54लउ३")*3+COUNTIF($AJ$9:$AJ$77,"54दीउ४")*4+COUNTIF($AJ$9:$AJ$77,"54दीउ५")*5) -> 
A63: =IF(B63="","",IF(G63="c","C",MAX($A$9:A62)+1)) ->  | I63: =IF('Entry sheet-1-hin'!A64="","",'Entry sheet-1-hin'!A64) ->  | K63: =IF('Entry sheet-1-hin'!B64="","",'Entry sheet-1-hin'!B64) ->  | T63: =IF('Entry sheet-1-hin'!C64="","",'Entry sheet-1-hin'!C64) ->  | U63: =IF(K63="","",COUNTIF($AJ$9:$AJ$77,"55बवि")*1+COUNTIF($AJ$9:$AJ$77,"55वनि")*1+COUNTIF($AJ$9:$AJ$77,"55अलउ")*1+COUNTIF($AJ$9:$AJ$77,"55लउ२")*2+COUNTIF($AJ$9:$AJ$77,"55लउ३")*3+COUNTIF($AJ$9:$AJ$77,"55दीउ४")*4+COUNTIF($AJ$9:$AJ$77,"55दीउ५")*5) -> 
A64: =IF(B64="","",IF(G64="c","C",MAX($A$9:A63)+1)) -> 23 | B64: 21 | C64: अ | D64: सरल | E64: अलउ | F64: र | H64: अनुवाद | I64: =IF('Entry sheet-1-hin'!A65="","",'Entry sheet-1-hin'!A65) ->  | K64: =IF('Entry sheet-1-hin'!B65="","",'Entry sheet-1-hin'!B65) ->  | T64: =IF('Entry sheet-1-hin'!C65="","",'Entry sheet-1-hin'!C65) ->  | U64: =IF(K64="","",COUNTIF($AJ$9:$AJ$77,"56बवि")*1+COUNTIF($AJ$9:$AJ$77,"56वनि")*1+COUNTIF($AJ$9:$AJ$77,"56अलउ")*1+COUNTIF($AJ$9:$AJ$77,"56लउ२")*2+COUNTIF($AJ$9:$AJ$77,"56लउ३")*3+COUNTIF($AJ$9:$AJ$77,"56दीउ४")*4+COUNTIF($AJ$9:$AJ$77,"56दीउ५")*5) ->  | AD64: र | AE64: सरल | AF64: अ | AG64: अलउ | AH64: असरलअलउ | AI64: अलउर | AJ64: 21अलउ | AK64: अलउ | AL64: 21अ | AM64: 21अलउ | AN64: 21सरल | AO64: 21अअलउ
A65: =IF(B65="","",IF(G65="c","C",MAX($A$9:A64)+1)) -> 24 | B65: 21 | C65: अ | D65: सरल | E65: अलउ | F65: र | I65: =IF('Entry sheet-1-hin'!A66="","",'Entry sheet-1-hin'!A66) ->  | K65: =IF('Entry sheet-1-hin'!B66="","",'Entry sheet-1-hin'!B66) ->  | T65: =IF('Entry sheet-1-hin'!C66="","",'Entry sheet-1-hin'!C66) ->  | U65: =IF(K65="","",COUNTIF($AJ$9:$AJ$77,"57बवि")*1+COUNTIF($AJ$9:$AJ$77,"57वनि")*1+COUNTIF($AJ$9:$AJ$77,"57अलउ")*1+COUNTIF($AJ$9:$AJ$77,"57लउ२")*2+COUNTIF($AJ$9:$AJ$77,"57लउ३")*3+COUNTIF($AJ$9:$AJ$77,"57दीउ४")*4+COUNTIF($AJ$9:$AJ$77,"57दीउ५")*5) ->  | AD65: र | AE65: सरल | AF65: अ | AG65: अलउ | AH65: असरलअलउ | AI65: अलउर | AJ65: 21अलउ | AK65: अलउ | AL65: 21अ | AM65: 21अलउ | AN65: 21सरल | AO65: 21अअलउ
A66: =IF(B66="","",IF(G66="c","C",MAX($A$9:A65)+1)) ->  | I66: =IF('Entry sheet-1-hin'!A67="","",'Entry sheet-1-hin'!A67) ->  | K66: =IF('Entry sheet-1-hin'!B67="","",'Entry sheet-1-hin'!B67) ->  | T66: =IF('Entry sheet-1-hin'!C67="","",'Entry sheet-1-hin'!C67) ->  | U66: =IF(K66="","",COUNTIF($AJ$9:$AJ$77,"58बवि")*1+COUNTIF($AJ$9:$AJ$77,"58वनि")*1+COUNTIF($AJ$9:$AJ$77,"58अलउ")*1+COUNTIF($AJ$9:$AJ$77,"58लउ२")*2+COUNTIF($AJ$9:$AJ$77,"58लउ३")*3+COUNTIF($AJ$9:$AJ$77,"58दीउ४")*4+COUNTIF($AJ$9:$AJ$77,"58दीउ५")*5) -> 
A67: =IF(B67="","",IF(G67="c","C",MAX($A$9:A66)+1)) ->  | I67: =IF('Entry sheet-1-hin'!A77="","",'Entry sheet-1-hin'!A77) ->  | K67: =IF('Entry sheet-1-hin'!B77="","",'Entry sheet-1-hin'!B77) ->  | T67: =IF('Entry sheet-1-hin'!C77="","",'Entry sheet-1-hin'!C77) ->  | U67: =IF(K67="","",COUNTIF($AJ$9:$AJ$77,"58बवि")*1+COUNTIF($AJ$9:$AJ$77,"58वनि")*1+COUNTIF($AJ$9:$AJ$77,"58अलउ")*1+COUNTIF($AJ$9:$AJ$77,"58लउ२")*2+COUNTIF($AJ$9:$AJ$77,"58लउ३")*3+COUNTIF($AJ$9:$AJ$77,"58दीउ४")*4+COUNTIF($AJ$9:$AJ$77,"58दीउ५")*5) -> 
A68: =IF(B68="","",IF(G68="c","C",MAX($A$9:A67)+1)) -> 25 | B68: 22 | C68: अ | D68: कठिन | E68: दीउ४ | F68: र | H68: पत्र | I68: =IF('Entry sheet-1-hin'!A69="","",'Entry sheet-1-hin'!A69) ->  | K68: =IF('Entry sheet-1-hin'!B69="","",'Entry sheet-1-hin'!B69) ->  | T68: =IF('Entry sheet-1-hin'!C69="","",'Entry sheet-1-hin'!C69) ->  | U68: =IF(K77="","",COUNTIF($AJ$9:$AJ$77,"58बवि")*1+COUNTIF($AJ$9:$AJ$77,"58वनि")*1+COUNTIF($AJ$9:$AJ$77,"58अलउ")*1+COUNTIF($AJ$9:$AJ$77,"58लउ२")*2+COUNTIF($AJ$9:$AJ$77,"58लउ३")*3+COUNTIF($AJ$9:$AJ$77,"58दीउ४")*4+COUNTIF($AJ$9:$AJ$77,"58दीउ५")*5) ->  | AD68: =CONCATENATE(F68,G68) -> र | AE68: =CONCATENATE(D68,G68) -> कठिन | AF68: =CONCATENATE(C68,G68) -> अ | AG68: =CONCATENATE(E68,G68) -> दीउ४ | AH68: =CONCATENATE(C68,D68,E68,G68) -> अकठिनदीउ४ | AI68: =CONCATENATE(E68,F68,G68) -> दीउ४र | AJ68: =CONCATENATE(B68,E68,G68) -> 22दीउ४ | AK68: =CONCATENATE(E68,G68) -> दीउ४ | AL68: =CONCATENATE(B68,C68,G68) -> 22अ | AM68: =CONCATENATE(B68,E68,G68) -> 22दीउ४ | AN68: =CONCATENATE(B68,D68,G68) -> 22कठिन | AO68: =CONCATENATE(B68,C68,E68,G68) -> 22अदीउ४
A69: =IF(B69="","",IF(G69="c","C",MAX($A$9:A68)+1)) ->  | H69: चुननेवाला | I69: =IF('Entry sheet-1-hin'!A70="","",'Entry sheet-1-hin'!A70) ->  | K69: =IF('Entry sheet-1-hin'!B79="","",'Entry sheet-1-hin'!B79) ->  | T69: =IF('Entry sheet-1-hin'!C70="","",'Entry sheet-1-hin'!C70) ->  | U69: =IF(K69="","",COUNTIF($AJ$9:$AJ$77,"58बवि")*1+COUNTIF($AJ$9:$AJ$77,"58वनि")*1+COUNTIF($AJ$9:$AJ$77,"58अलउ")*1+COUNTIF($AJ$9:$AJ$77,"58लउ२")*2+COUNTIF($AJ$9:$AJ$77,"58लउ३")*3+COUNTIF($AJ$9:$AJ$77,"58दीउ४")*4+COUNTIF($AJ$9:$AJ$77,"58दीउ५")*5) ->  | AD69: =CONCATENATE(F69,G69) ->  | AE69: =CONCATENATE(D69,G69) ->  | AF69: =CONCATENATE(C69,G69) ->  | AG69: =CONCATENATE(E69,G69) ->  | AH69: =CONCATENATE(C69,D69,E69,G69) ->  | AI69: =CONCATENATE(E69,F69,G69) ->  | AJ69: =CONCATENATE(B69,E69,G69) ->  | AK69: =CONCATENATE(E69,G69) ->  | AL69: =CONCATENATE(B69,C69,G69) ->  | AM69: =CONCATENATE(B69,E69,G69) ->  | AN69: =CONCATENATE(B69,D69,G69) ->  | AO69: =CONCATENATE(B69,C69,E69,G69) -> 
A70: =IF(B70="","",IF(G70="c","C",MAX($A$9:A69)+1)) -> C | B70: 23 | C70: अ | D70: कठिन | E70: दीउ४ | F70: र | G70: C | H70: निबंध | I70: =IF('Entry sheet-1-hin'!A71="","",'Entry sheet-1-hin'!A71) ->  | K70: =IF('Entry sheet-1-hin'!B71="","",'Entry sheet-1-hin'!B71) ->  | T70: =IF('Entry sheet-1-hin'!C71="","",'Entry sheet-1-hin'!C71) ->  | AD70: रC | AE70: कठिनC | AF70: अC | AG70: दीउ४C | AH70: अकठिनदीउ४C | AI70: दीउ४रC | AJ70: 23दीउ४C | AK70: दीउ४C | AL70: 23अC | AM70: 23दीउ४C | AN70: 23कठिनC | AO70: 23अदीउ४C
A71: =IF(B71="","",IF(G71="c","C",MAX($A$9:A70)+1)) -> C | B71: 23 | C71: अ | D71: कठिन | E71: दीउ४ | F71: र | G71: C | H71: चुननेवाला | I71: =IF('Entry sheet-1-hin'!A72="","",'Entry sheet-1-hin'!A72) ->  | K71: =IF('Entry sheet-1-hin'!B72="","",'Entry sheet-1-hin'!B72) ->  | T71: =IF('Entry sheet-1-hin'!C72="","",'Entry sheet-1-hin'!C72) ->  | AD71: रC | AE71: कठिनC | AF71: अC | AG71: दीउ४C | AH71: अकठिनदीउ४C | AI71: दीउ४रC | AJ71: 23दीउ४C | AK71: दीउ४C | AL71: 23अC | AM71: 23दीउ४C | AN71: 23कठिनC | AO71: 23अदीउ४C
A72: =IF(B72="","",IF(G72="c","C",MAX($A$9:A71)+1)) ->  | I72: =IF('Entry sheet-1-hin'!A73="","",'Entry sheet-1-hin'!A73) ->  | K72: =IF('Entry sheet-1-hin'!B73="","",'Entry sheet-1-hin'!B73) ->  | T72: =IF('Entry sheet-1-hin'!C73="","",'Entry sheet-1-hin'!C73) -> 
A73: =IF(B73="","",IF(G73="c","C",MAX($A$9:A72)+1)) ->  | I73: =IF('Entry sheet-1-hin'!A74="","",'Entry sheet-1-hin'!A74) ->  | K73: =IF('Entry sheet-1-hin'!B74="","",'Entry sheet-1-hin'!B74) ->  | T73: =IF('Entry sheet-1-hin'!C74="","",'Entry sheet-1-hin'!C74) -> 
A74: =IF(B74="","",IF(G74="c","C",MAX($A$9:A73)+1)) ->  | I74: =IF('Entry sheet-1-hin'!A75="","",'Entry sheet-1-hin'!A75) ->  | K74: =IF('Entry sheet-1-hin'!B75="","",'Entry sheet-1-hin'!B75) ->  | T74: =IF('Entry sheet-1-hin'!C75="","",'Entry sheet-1-hin'!C75) -> 
A75: =IF(B75="","",IF(G75="c","C",MAX($A$9:A74)+1)) ->  | I75: =IF('Entry sheet-1-hin'!A76="","",'Entry sheet-1-hin'!A76) ->  | K75: =IF('Entry sheet-1-hin'!B76="","",'Entry sheet-1-hin'!B76) ->  | T75: =IF('Entry sheet-1-hin'!C76="","",'Entry sheet-1-hin'!C76) -> 
A76: =IF(B76="","",IF(G76="c","C",MAX($A$9:A75)+1)) ->  | I76: =IF('Entry sheet-1-hin'!A77="","",'Entry sheet-1-hin'!A77) ->  | K76: =IF('Entry sheet-1-hin'!B77="","",'Entry sheet-1-hin'!B77) ->  | T76: =IF('Entry sheet-1-hin'!C77="","",'Entry sheet-1-hin'!C77) -> 
A77: =IF(B77="","",IF(G77="c","C",MAX($A$9:A76)+1)) ->  | I77: =IF('Entry sheet-1-hin'!A78="","",'Entry sheet-1-hin'!A78) ->  | K77: =IF('Entry sheet-1-hin'!B78="","",'Entry sheet-1-hin'!B78) ->  | T77: =IF('Entry sheet-1-hin'!C78="","",'Entry sheet-1-hin'!C78) -> 
I78: ='Entry sheet-1-hin'!A79 -> कुल | T78: =IF('Entry sheet-1-hin'!C79="","",'Entry sheet-1-hin'!C79) -> 40 | U78: =IF(U9="","",SUM(U9:U77)) -> 40

Sheet Question paper 40 marks (2)
A1: ='Entry sheet-1-hin'!C2 -> सरकारी पदवि पूर्व कॉलेंज (प्रौ.शा.वि) गुरुगुंटा, ता : लिंगसुगूर
B2: प्रश्‍न पत्रिका - | C2: ='Entry sheet-1-hin'!C3 -> संकलनात्मक परीक्षा - १ २०१५-१६
A3: ='Entry sheet-1-hin'!C4 -> 9वीं | B3: ='Entry sheet-1-hin'!C5 -> हिंदी | E3: ='Entry sheet-1-hin'!A6 -> अंक | F3: ='Entry sheet-1-hin'!C6 -> 40
A4: खण्ड “ क ”
A5: [ गद्य, पद्य और पूरक वाचन ]
A6: I. निम्नलिखित प्रश्नों के उत्तर एक-एक वाक्य में लिखिए :- 4 x 1 = 4 | F6: 4X1=4
A7: =IF(B7="","",1) -> 1 | B7: =IF('Entry sheet-3-hin'!G14="","",'Entry sheet-3-hin'!G14) -> विवेकानंद कब अमरिका गये ?
A8: उत्तर | B8: -----------------------------------------------------------------------------------------------------------------------------------------------------------------------
A9: =IF(B9="","",A7+1) -> 2 | B9: =IF('Entry sheet-3-hin'!G15="","",'Entry sheet-3-hin'!G15) -> बहन ने भाई के माथे पर क्या लगाया ?
A10: उत्तर | B10: --------------------------------------------------------------------------------------------------------------------------------------------
A11: =IF(B11="","",A9+1) -> 3 | B11: =IF('Entry sheet-3-hin'!G16="","",'Entry sheet-3-hin'!G16) -> मौसी का दुपट्टा कैसे था ?
A12: उत्तर | B12: -----------------------------------------------------------------------------------------------------------------------------------------------------------------------
A13: =IF(B13="","",A11+1) -> 4 | B13: =IF('Entry sheet-3-hin'!G17="","",'Entry sheet-3-hin'!G17) -> भारत माता का हृदय कैसा है ?
A14: उत्तर | B14: -----------------------------------------------------------------------------------------------------------------------------------------------------------------------
A15: II. 5. स्तम्भ ‘क’ के वाक्यांशों के साथ स्तम्भ ‘ख’ के सही वाक्यंशों को जोडकर लिखिए :- | E15: उत्तर | F15: 2X1=2
B16: स्तम्भ ‘क’ | C16: स्तम्भ ‘ख’
A17: अ | B17: =IF('Entry sheet-3-hin'!G22="","",'Entry sheet-3-hin'!G22) -> कुमारी नोबल | C17: =IF('Entry sheet-3-hin'!P22="","",'Entry sheet-3-hin'!P22) -> असहयोग चल रहा था ।
A18: आ | B18: =IF('Entry sheet-3-hin'!G23="","",'Entry sheet-3-hin'!G23) -> हर हिस्सा दूसरे से | C18: =IF('Entry sheet-3-hin'!P23="","",'Entry sheet-3-hin'!P23) -> धर्म परायण नारी
C19: =IF('Entry sheet-3-hin'!P24="","",'Entry sheet-3-hin'!P24) -> सिस्टर निवेदिता
C20: =IF('Entry sheet-3-hin'!P25="","",'Entry sheet-3-hin'!P25) -> असहयोग कर रहा था ।
A21: III. प्रथम दो पदों से सूचित संबंधों के अनुरूप तीसरे पद से संबंधित पद लिखिए :- | E21: उत्तर | F21: 2X1=2
A22: =IF(B22="","",A13+2) -> 6 | B22: =IF('Entry sheet-3-hin'!G28="","",'Entry sheet-3-hin'!G28) -> बाहुबली : डॉ. हिरण्मय :: बस की यात्रा :------
A23: =IF(B23="","",A22+1) -> 7 | B23: =IF('Entry sheet-3-hin'!G29="","",'Entry sheet-3-hin'!G29) -> योगराज अपने घर से : एक कटोरा दूध लाया :: गोपाल अपने घर से :--
A24: IV. निम्नलिखित प्रश्नों के उत्तर दो या तीन वाक्यों में लिखिए :- | F24: 5X2=10
A25: =IF(B25="","",A23+1) -> 8 | B25: =IF('Entry sheet-3-hin'!G32="","",'Entry sheet-3-hin'!G32) -> विवेकानंद ने भारत वासियों को क्या उपदेश दिये ?
A26: उत्तर
A30: =IF(B30="","",A25+1) -> 9 | B30: =IF('Entry sheet-3-hin'!G33="","",'Entry sheet-3-hin'!G33) -> बहन ने भाई को कैसे विधा की ?
A31: उत्तर
A35: =IF(B35="","",A30+1) -> 10 | B35: =IF('Entry sheet-3-hin'!G34="","",'Entry sheet-3-hin'!G34) -> बस के बारे में डाक्टर मित्र ने लेखक से क्या कहा ?
A36: उत्तर
A40: =IF(B40="","",A35+1) -> 11 | B40: =IF('Entry sheet-3-hin'!G35="","",'Entry sheet-3-hin'!G35) -> हिमालय के बारे में कवि की भावना क्या है ?
A41: उत्तर
A45: =IF(B45="","",A40+1) -> 12 | B45: =IF('Entry sheet-3-hin'!G36="","",'Entry sheet-3-hin'!G36) -> कजाकी के साथ लेखक के क्षन कैसे बीतते थे ?
B46: अथवा
B47: =IF('Entry sheet-3-hin'!G37="","",'Entry sheet-3-hin'!G37) -> एक दिन कजाकी डाकखाने देर से पसूँचा । क्यों ?
A48: उत्तर
A52: V. निम्नलिखित प्रश्नों के उत्तर तीन - चार वाक्यों में लिखिए :- | F52: 2X3=6
A53: =IF(B53="","",A45+1) -> 13 | B53: =IF('Entry sheet-3-hin'!G46="","",'Entry sheet-3-hin'!G46) -> किसने किससे कहा ? किस पाठ से लिया गाया है - यह मेरा बेटा, यह मेरी बेटी ।
A54: उत्तर
A60: =IF(B60="","",A53+1) -> 14 | B60: =IF('Entry sheet-3-hin'!G47="","",'Entry sheet-3-hin'!G47) -> निम्नलिखित कवितांश का भावार्थ भावार्थ लिखिए । फुलों - सा महकूँ मैं विहगों - सा चहकूँ मैं गुंजरित कर वन-उपवन कोयल - सा कुहुकूँ मैं मेरी अभीलाषा है ।
A61: उत्तर
A67: VI. निम्नलिखित प्रश्न का उत्तर चार - पाँच वाक्यों में लिखिए :- 1 x 4 = 4 | F67: 1X4=4
A68: =IF(B68="","",A60+1) -> 15 | B68: =IF('Entry sheet-3-hin'!G51="","",'Entry sheet-3-hin'!G51) -> शिकागो नगर के सर्वधर्म सम्मेलन के बारे में लिखिए ।
B69: अथवा
B70: =IF('Entry sheet-3-hin'!G52="","",'Entry sheet-3-hin'!G52) -> इस पद्य भाग की पूर्ति कीजिए - पहले पतंग -------------------------------------- --------------------------------------------------- ----------------------------------------------------- ----------------------------------निभाना सीखा ॥
A71: उत्तर
A81: खण्ड “ ख ” | F81: 4X1=4
A82: [ व्याकरण ]
A83: VII. निम्नलिखित प्रश्नो के लिए चार-चार विकल्प दिए गए हैं, जिनमें एकमात्र सही उत्तर है । सही उत्तर चुनकर लिखिए :- 4x 1 = 4
A84: =IF(B84="","",A68+1) -> 16 | B84: =IF('Entry sheet-3-hin'!G55="","",'Entry sheet-3-hin'!G55) -> ‘बात’ का अन्यवचन रूप है - अ) बात आ) बातों इ) बातें ई) बाताएँ | E84: उत्तर
A85: =IF(B85="","",A84+1) -> 17 | B85: =IF('Entry sheet-3-hin'!G56="","",'Entry sheet-3-hin'!G56) -> ‘ठहरना’ का द्वितीय प्रेरणार्थक क्रिया रूप है - अ) ठहरना आ) ठहराना इ) ठहर ई) ठहरवाना | E85: उत्तर
A86: =IF(B86="","",A85+1) -> 18 | B86: =IF('Entry sheet-3-hin'!G57="","",'Entry sheet-3-hin'!G57) -> राम ने दरवाजा खोला । इस वाक्य में प्रयुक्त कारक नाम है - अ) कर्म आ) कर्ता इ) करण ई) संबंध | E86: उत्तर
A87: 19 | B87: =IF('Entry sheet-3-hin'!G58="","",'Entry sheet-3-hin'!G58) -> ‘धर्म’ का विलोम रूप है - अ) अधर्म आ) नधर्म इ) धर्महीन ई) पाप | E87: उत्तर
A88: खण्ड “ ग ”
A89: [ रचना - अपठित गद्यांश, अनुवाद, पत्रलेखन और निबंध ]
A90: VIII. 20. गद्यांश पढकर निम्नलिखित प्रश्नों के उत्तर लिखिए :- 2 x 1 = 2 | F90: 2X1=2
B91: =IF('Entry sheet-3-hin'!G64="","",'Entry sheet-3-hin'!G64) -> यह सही है कि इन दोनों कुछ ऐसा माहौल बना है कि ईमानदारी से मेहनत करके जीविका चलाने वाले निरीह और भोले-भोले श्रमजीवी पिस रहे हैं और झूठ तथा फरेब का रोजगार करने वाले फल फूल रहे हैं । ईमानदारी को मूर्खता का पर्याय समझा जाने लगा है, सच्चाई केवल भीरु और बेबस लोगों के हिस्से पड़ी है । ऐसे स्थिति में जीवन के मूल्यों के बारे में लोगों की आस्था ही हिलने लगी है । सदा मनुष्य-बुद्धि नई परिस्थितियों का सामने करने के लिए नए सामाजिक विधि निषेधों को बनाती है, उनके ठीक न साबित होने पर उन्हें बदलती हैं ।
B92: =IF('Entry sheet-3-hin'!G65="","",'Entry sheet-3-hin'!G65) -> 1. आजकल किनका बोल बाला है ?
A93: उत्तर | B93: -------------------------------------------------------------------------------------------------------------------------------------------
B94: =IF('Entry sheet-3-hin'!G66="","",'Entry sheet-3-hin'!G66) -> 2. सच्चाई किनके हिस्से का पर्याय मानी जाने लगी है ?
A95: उत्तर | B95: -------------------------------------------------------------------------------------------------------------------------------------------
A96: IX. निम्नलिखित वाक्यों का अनुवाद कन्नड या अंग्रेजी में कीजिए :- 2x 1 = 2 | F96: 2X1=2
A97: =IF(B97="","",A87+2) -> 21 | B97: =IF('Entry sheet-3-hin'!G69="","",'Entry sheet-3-hin'!G69) -> उनके बचपन का नाम नरेंद्र देव था ।
A98: उत्तर | B98: -----------------------------------------------------------------------------------------------------------------------------------------------------------------------
A99: =IF(B99="","",A97+1) -> 22 | B99: =IF('Entry sheet-3-hin'!G70="","",'Entry sheet-3-hin'!G70) -> शहर में क्यों आतंक छा गया था ?
A100: उत्तर | B100: -----------------------------------------------------------------------------------------------------------------------------------------------------------------------
A101: X. 23. | B101: =IF('Entry sheet-3-hin'!G73="","",'Entry sheet-3-hin'!G73) -> अपनी पढ़ाई के बारे में बताते हुए अपने पिताजी को एक पत्र लिखिए । | F101: 4
B102: अथवा
B103: किसी एक विषय पर निबंध लिखिए ।
A104: =IF(B104="","",1) -> 1 | B104: =IF('Entry sheet-3-hin'!G75="","",'Entry sheet-3-hin'!G75) -> इंटर्नेट क्रांति (अर्थ, लाभ, हानी, उपसंहार)
A105: =IF(B105="","",A104+1) -> 2 | B105: =IF('Entry sheet-3-hin'!G76="","",'Entry sheet-3-hin'!G76) -> त्योहारों का महत्व
A107: उत्तर

Sheet Question paper 90 marks (2)
A1: ='Entry sheet-1-hin'!C2 -> सरकारी पदवि पूर्व कॉलेंज (प्रौ.शा.वि) गुरुगुंटा, ता : लिंगसुगूर
B2: प्रश्‍न पत्रिका - | C2: ='Entry sheet-1-hin'!C3 -> संकलनात्मक परीक्षा - १ २०१५-१६
A3: ='Entry sheet-1-hin'!C4 -> 9वीं | B3: ='Entry sheet-1-hin'!C5 -> हिंदी | E3: ='Entry sheet-1-hin'!A6 -> अंक | F3: ='Entry sheet-1-hin'!C6 -> 40
A4: खण्ड “ क ”
A5: [ गद्य, पद्य और पूरक वाचन ]
A6: I. निम्नलिखित प्रश्नों के उत्तर एक-एक वाक्य में लिखिए :- | F6: 8X1=8
A7: =IF(B7="","",1) -> 1 | B7: =IF('Entry sheet-3-hin'!G14="","",'Entry sheet-3-hin'!G14) -> विवेकानंद कब अमरिका गये ?
A8: उत्तर | B8: -----------------------------------------------------------------------------------------------------------------------------------
A9: =IF(B9="","",A7+1) -> 2 | B9: =IF('Entry sheet-3-hin'!G15="","",'Entry sheet-3-hin'!G15) -> बहन ने भाई के माथे पर क्या लगाया ?
A10: उत्तर | B10: -----------------------------------------------------------------------------------------------------------------------------------
A11: =IF(B11="","",A9+1) -> 3 | B11: =IF('Entry sheet-3-hin'!G16="","",'Entry sheet-3-hin'!G16) -> मौसी का दुपट्टा कैसे था ?
A12: उत्तर | B12: -----------------------------------------------------------------------------------------------------------------------------------
A13: =IF(B13="","",A11+1) -> 4 | B13: =IF('Entry sheet-3-hin'!G17="","",'Entry sheet-3-hin'!G17) -> भारत माता का हृदय कैसा है ?
A14: उत्तर | B14: -----------------------------------------------------------------------------------------------------------------------------------
A15: =IF(B15="","",A13+1) ->  | B15: =IF('Entry sheet-3-hin'!G18="","",'Entry sheet-3-hin'!G18) -> 
A16: उत्तर | B16: -----------------------------------------------------------------------------------------------------------------------------------
A17: =IF(B17="","",A15+1) ->  | B17: =IF('Entry sheet-3-hin'!G19="","",'Entry sheet-3-hin'!G19) -> 
A18: उत्तर | B18: -----------------------------------------------------------------------------------------------------------------------------------
A19: =IF(B19="","",A17+1) ->  | B19: =IF('Entry sheet-3-hin'!G20="","",'Entry sheet-3-hin'!G20) -> 
A20: उत्तर | B20: -----------------------------------------------------------------------------------------------------------------------------------
A21: =IF(B21="","",A19+1) ->  | B21: =IF('Entry sheet-3-hin'!G21="","",'Entry sheet-3-hin'!G21) -> 
A22: उत्तर | B22: -----------------------------------------------------------------------------------------------------------------------------------
A23: II. 9. स्तम्भ ‘क’ के वाक्यांशों के साथ स्तम्भ ‘ख’ के सही वाक्यंशों को जोडकर लिखिए :- | F23: 4X1=4
B24: स्तम्भ ‘क’ | C24: स्तम्भ ‘ख’ | E24: उत्तर
A25: अ | B25: =IF('Entry sheet-3-hin'!G22="","",'Entry sheet-3-hin'!G22) -> कुमारी नोबल | C25: =IF('Entry sheet-3-hin'!P22="","",'Entry sheet-3-hin'!P22) -> असहयोग चल रहा था ।
A26: आ | B26: =IF('Entry sheet-3-hin'!G23="","",'Entry sheet-3-hin'!G23) -> हर हिस्सा दूसरे से | C26: =IF('Entry sheet-3-hin'!P23="","",'Entry sheet-3-hin'!P23) -> धर्म परायण नारी
A27: इ | B27: =IF('Entry sheet-3-hin'!G24="","",'Entry sheet-3-hin'!G24) ->  | C27: =IF('Entry sheet-3-hin'!P24="","",'Entry sheet-3-hin'!P24) -> सिस्टर निवेदिता
A28: ई | B28: =IF('Entry sheet-3-hin'!G25="","",'Entry sheet-3-hin'!G25) ->  | C28: =IF('Entry sheet-3-hin'!P25="","",'Entry sheet-3-hin'!P25) -> असहयोग कर रहा था ।
C29: =IF('Entry sheet-3-hin'!P26="","",'Entry sheet-3-hin'!P26) -> 
C30: =IF('Entry sheet-3-hin'!P27="","",'Entry sheet-3-hin'!P27) -> 
A31: III. प्रथम दो पदों से सूचित संबंधों के अनुरूप तीसरे पद से संबंधित पद लिखिए :- | E31: उत्तर | F31: 4X1=4
A32: =IF(B32="","",A21+2) ->  | B32: =IF('Entry sheet-3-hin'!G28="","",'Entry sheet-3-hin'!G28) -> बाहुबली : डॉ. हिरण्मय :: बस की यात्रा :------
A33: =IF(B33="","",A32+1) ->  | B33: =IF('Entry sheet-3-hin'!G29="","",'Entry sheet-3-hin'!G29) -> योगराज अपने घर से : एक कटोरा दूध लाया :: गोपाल अपने घर से :--
A34: =IF(B34="","",A33+1) ->  | B34: =IF('Entry sheet-3-hin'!G30="","",'Entry sheet-3-hin'!G30) -> 
B35: =IF('Entry sheet-3-hin'!G31="","",'Entry sheet-3-hin'!G31) -> 
A36: IV. निम्नलिखित प्रश्नों के उत्तर दो या तीन वाक्यों में लिखिए :- | F36: 11X2=22
A37: =IF(B37="","",A35+1) ->  | B37: =IF('Entry sheet-3-hin'!G32="","",'Entry sheet-3-hin'!G32) -> विवेकानंद ने भारत वासियों को क्या उपदेश दिये ?
A38: उत्तर
A42: =IF(B42="","",A37+1) ->  | B42: =IF('Entry sheet-3-hin'!G33="","",'Entry sheet-3-hin'!G33) -> बहन ने भाई को कैसे विधा की ?
A43: उत्तर
A47: =IF(B47="","",A42+1) ->  | B47: =IF('Entry sheet-3-hin'!G34="","",'Entry sheet-3-hin'!G34) -> बस के बारे में डाक्टर मित्र ने लेखक से क्या कहा ?
A48: उत्तर
A52: =IF(B52="","",A47+1) ->  | B52: =IF('Entry sheet-3-hin'!G35="","",'Entry sheet-3-hin'!G35) -> हिमालय के बारे में कवि की भावना क्या है ?
A53: उत्तर
A57: =IF(B57="","",A52+1) ->  | B57: =IF('Entry sheet-3-hin'!G36="","",'Entry sheet-3-hin'!G36) -> कजाकी के साथ लेखक के क्षन कैसे बीतते थे ?
A58: उत्तर
A62: =IF(B62="","",A57+1) ->  | B62: =IF('Entry sheet-3-hin'!G37="","",'Entry sheet-3-hin'!G37) -> एक दिन कजाकी डाकखाने देर से पसूँचा । क्यों ?
A63: उत्तर
A66: =IF(B66="","",A62+1) ->  | B66: =IF('Entry sheet-3-hin'!G38="","",'Entry sheet-3-hin'!G38) -> 
A67: उत्तर
A70: =IF(B70="","",A66+1) ->  | B70: =IF('Entry sheet-3-hin'!G39="","",'Entry sheet-3-hin'!G39) -> 
A71: उत्तर
A75: =IF(B75="","",A70+1) ->  | B75: =IF('Entry sheet-3-hin'!G40="","",'Entry sheet-3-hin'!G40) -> 
A76: उत्तर
A80: =IF(B80="","",A75+1) ->  | B80: =IF('Entry sheet-3-hin'!G41="","",'Entry sheet-3-hin'!G41) -> 
A81: उत्तर
A85: =IF(B85="","",A80+1) ->  | B85: =IF('Entry sheet-3-hin'!G42="","",'Entry sheet-3-hin'!G42) -> 
B86: अथवा
B87: =IF('Entry sheet-3-hin'!G43="","",'Entry sheet-3-hin'!G43) -> 
A88: उत्तर
A92: =IF(B92="","",A85+1) ->  | B92: =IF('Entry sheet-3-hin'!G44="","",'Entry sheet-3-hin'!G44) -> 
B93: अथवा
B94: =IF('Entry sheet-3-hin'!G45="","",'Entry sheet-3-hin'!G45) -> 
A95: उत्तर
A99: V. निम्नलिखित प्रश्नों के उत्तर तीन - चार वाक्यों में लिखिए :- | F99: 5X3=15
A100: =IF(B100="","",A92+1) ->  | B100: =IF('Entry sheet-3-hin'!G46="","",'Entry sheet-3-hin'!G46) -> किसने किससे कहा ? किस पाठ से लिया गाया है - यह मेरा बेटा, यह मेरी बेटी ।
A101: उत्तर
A107: =IF(B107="","",A100+1) ->  | B107: =IF('Entry sheet-3-hin'!G47="","",'Entry sheet-3-hin'!G47) -> निम्नलिखित कवितांश का भावार्थ भावार्थ लिखिए । फुलों - सा महकूँ मैं विहगों - सा चहकूँ मैं गुंजरित कर वन-उपवन कोयल - सा कुहुकूँ मैं मेरी अभीलाषा है ।
A108: उत्तर
A114: =IF(B114="","",A107+1) ->  | B114: =IF('Entry sheet-3-hin'!G48="","",'Entry sheet-3-hin'!G48) -> 
A115: उत्तर
A121: =IF(B121="","",A114+1) ->  | B121: =IF('Entry sheet-3-hin'!G49="","",'Entry sheet-3-hin'!G49) -> 
A122: उत्तर
A128: =IF(B128="","",A121+1) ->  | B128: =IF('Entry sheet-3-hin'!G50="","",'Entry sheet-3-hin'!G50) -> 
A129: उत्तर
A135: VI. निम्नलिखित प्रश्न का उत्तर चार - पाँच वाक्यों में लिखिए :- | F135: 2X4=8
A136: =IF(B136="","",A128+1) ->  | B136: =IF('Entry sheet-3-hin'!G51="","",'Entry sheet-3-hin'!G51) -> शिकागो नगर के सर्वधर्म सम्मेलन के बारे में लिखिए ।
B137: अथवा
B138: =IF('Entry sheet-3-hin'!G52="","",'Entry sheet-3-hin'!G52) -> इस पद्य भाग की पूर्ति कीजिए - पहले पतंग -------------------------------------- --------------------------------------------------- ----------------------------------------------------- ----------------------------------निभाना सीखा ॥
A139: उत्तर
A148: =IF(B148="","",A136+1) ->  | B148: =IF('Entry sheet-3-hin'!G53="","",'Entry sheet-3-hin'!G53) ->  | C148: अथवा | D148: =IF('Entry sheet-3-hin'!G54="","",'Entry sheet-3-hin'!G54) -> 
A149: उत्तर
A156: खण्ड “ ख ”
A157: [ व्याकरण ]
A158: VII. निम्नलिखित प्रश्नो के लिए चार-चार विकल्प दिए गए हैं, जिनमें एकमात्र सही उत्तर है । सही उत्तर चुनकर लिखिए :- | F158: 9X1=9
A159: =IF(B159="","",A148+1) ->  | B159: =IF('Entry sheet-3-hin'!G55="","",'Entry sheet-3-hin'!G55) -> ‘बात’ का अन्यवचन रूप है - अ) बात आ) बातों इ) बातें ई) बाताएँ | F159: उत्तर
A160: =IF(B160="","",A159+1) ->  | B160: =IF('Entry sheet-3-hin'!G56="","",'Entry sheet-3-hin'!G56) -> ‘ठहरना’ का द्वितीय प्रेरणार्थक क्रिया रूप है - अ) ठहरना आ) ठहराना इ) ठहर ई) ठहरवाना | F160: उत्तर
A161: =IF(B161="","",A160+1) ->  | B161: =IF('Entry sheet-3-hin'!G57="","",'Entry sheet-3-hin'!G57) -> राम ने दरवाजा खोला । इस वाक्य में प्रयुक्त कारक नाम है - अ) कर्म आ) कर्ता इ) करण ई) संबंध | F161: उत्तर
A162: =IF(B162="","",A161+1) ->  | B162: =IF('Entry sheet-3-hin'!G58="","",'Entry sheet-3-hin'!G58) -> ‘धर्म’ का विलोम रूप है - अ) अधर्म आ) नधर्म इ) धर्महीन ई) पाप | F162: उत्तर
B163: =IF('Entry sheet-3-hin'!G59="","",'Entry sheet-3-hin'!G59) ->  | F163: उत्तर
B164: =IF('Entry sheet-3-hin'!G60="","",'Entry sheet-3-hin'!G60) ->  | F164: उत्तर
B165: =IF('Entry sheet-3-hin'!G61="","",'Entry sheet-3-hin'!G61) ->  | F165: उत्तर
B166: =IF('Entry sheet-3-hin'!G62="","",'Entry sheet-3-hin'!G62) ->  | F166: उत्तर
B167: =IF('Entry sheet-3-hin'!G63="","",'Entry sheet-3-hin'!G63) ->  | F167: उत्तर
A168: खण्ड “ ग ”
A169: [ रचना - अपठित गद्यांश, अनुवाद, पत्रलेखन और निबंध ]
A170: VIII. 42. गद्यांश पढकर निम्नलिखित प्रश्नों के उत्तर लिखिए :- | F170: 4X1=4
B171: =IF('Entry sheet-3-hin'!G64="","",'Entry sheet-3-hin'!G64) -> यह सही है कि इन दोनों कुछ ऐसा माहौल बना है कि ईमानदारी से मेहनत करके जीविका चलाने वाले निरीह और भोले-भोले श्रमजीवी पिस रहे हैं और झूठ तथा फरेब का रोजगार करने वाले फल फूल रहे हैं । ईमानदारी को मूर्खता का पर्याय समझा जाने लगा है, सच्चाई केवल भीरु और बेबस लोगों के हिस्से पड़ी है । ऐसे स्थिति में जीवन के मूल्यों के बारे में लोगों की आस्था ही हिलने लगी है । सदा मनुष्य-बुद्धि नई परिस्थितियों का सामने करने के लिए नए सामाजिक विधि निषेधों को बनाती है, उनके ठीक न साबित होने पर उन्हें बदलती हैं ।
B172: =IF('Entry sheet-3-hin'!G65="","",'Entry sheet-3-hin'!G65) -> 1. आजकल किनका बोल बाला है ?
B173: =IF('Entry sheet-3-hin'!G66="","",'Entry sheet-3-hin'!G66) -> 2. सच्चाई किनके हिस्से का पर्याय मानी जाने लगी है ?
B174: =IF('Entry sheet-3-hin'!G67="","",'Entry sheet-3-hin'!G67) -> 
B175: =IF('Entry sheet-3-hin'!G68="","",'Entry sheet-3-hin'!G68) -> 
A176: 1 | B176: उत्तर :-----------------------------------------------------------------------------------------------------------------------------------
A177: 2 | B177: उत्तर :-----------------------------------------------------------------------------------------------------------------------------------
A178: 3 | B178: उत्तर :-----------------------------------------------------------------------------------------------------------------------------------
A179: 4 | B179: उत्तर :-----------------------------------------------------------------------------------------------------------------------------------
A180: IX. निम्नलिखित वाक्यों का अनुवाद कन्नड या अंग्रेजी में कीजिए :- | F180: 4X1=4
A181: =IF(B181="","",A167+2) ->  | B181: =IF('Entry sheet-3-hin'!G69="","",'Entry sheet-3-hin'!G69) -> उनके बचपन का नाम नरेंद्र देव था ।
A182: उत्तर | B182: --------------------------------------------------------------------------------------------------------------------------------------------------------------
A183: =IF(B183="","",A181+1) ->  | B183: =IF('Entry sheet-3-hin'!G70="","",'Entry sheet-3-hin'!G70) -> शहर में क्यों आतंक छा गया था ?
A184: उत्तर | B184: --------------------------------------------------------------------------------------------------------------------------------------------------------------
A185: =IF(B185="","",A183+1) ->  | B185: =IF('Entry sheet-3-hin'!G71="","",'Entry sheet-3-hin'!G71) -> 
A186: उत्तर | B186: --------------------------------------------------------------------------------------------------------------------------------------------------------------
A187: =IF(B187="","",A185+1) ->  | B187: =IF('Entry sheet-3-hin'!G72="","",'Entry sheet-3-hin'!G72) -> 
A188: उत्तर | B188: --------------------------------------------------------------------------------------------------------------------------------------------------------------
A189: X.47. | B189: =IF('Entry sheet-3-hin'!G73="","",'Entry sheet-3-hin'!G73) -> अपनी पढ़ाई के बारे में बताते हुए अपने पिताजी को एक पत्र लिखिए । | F189: 4
B190: अथवा
B191: =IF('Entry sheet-3-hin'!G74="","",'Entry sheet-3-hin'!G74) -> 
A192: उत्तर
A224: XI.48. | B224: किसी एक विषय पर निबंध लिखिए । 1x4=4 | F224: 4
A225: =IF(B225="","",1) -> 1 | B225: =IF('Entry sheet-3-hin'!G75="","",'Entry sheet-3-hin'!G75) -> इंटर्नेट क्रांति (अर्थ, लाभ, हानी, उपसंहार)
A226: =IF(B226="","",A225+1) -> 2 | B226: =IF('Entry sheet-3-hin'!G76="","",'Entry sheet-3-hin'!G76) -> त्योहारों का महत्व
B227: =IF('Entry sheet-3-hin'!G77="","",'Entry sheet-3-hin'!G77) -> 
A228: उत्तर

Sheet instruction 20 marks
B2: 20 CAPÀUÀ¼À ಪ್ರಶ್ನೆ ಪತ್ರಿಕೆಯನ್ನು ತಯಾರಿಸಲು ನೀಲ ನಕ್ಷೆಯನ್ನು ಸಿದ್ಧಪಡಿಸುವುದು.
B3: * | C3: ¥Àæ±Éß ¥ÀwæPÉ ¹zÀÞ¥Àr¸À®Ä ¥ÁoÀUÀ¼À ¸ÀASÉå ªÀÄvÀÄÛ ¥Àæ±ÉßUÀ¼À C£ÀÄPÀæªÀÄ ¥ÀÆªÀð ¤zsÁðjvÀ. ¥ÁoÀUÀ½UÉ ¤UÀ¢üUÉÆ½¹gÀÄªÀ ¸ÀASÉåAiÀÄ£ÀÄß §¼À¹PÉÆAqÀÄ ¥Àæ±ÉßUÀ¼À£ÀÄß DAiÀÄÄÝPÉÆ¼Àî¨ÉÃPÀÄ. ¥ÀÆªÀð ¤zsÁðjvÀ ಪಾಠಗಳ ಸಂಖ್ಯೆಯನ್ನು ಮುಖ್ಯ ಪುಟ 1 ರಲ್ಲಿ ನಮೂಧಿಸಲಾಗಿದೆ.
B4: * | C4: B9 £À°è ¥ÀÆªÀð ¤zsÁðjvÀ ¥ÁoÀzÀ ¸ÀASÉåAiÀÄ£ÀÄß vÀÄA©PÉÆAqÀÄ C9 jAzÀ G9 gÀªÀgÉUÉ ¥Àæ±ÉßUÀ¼À ««zsÀ ¥ÀæPÁgÀUÀ¼À£ÀÄß DAiÉÄÌ ªÀiÁrPÉÆ½î. ¤ÃªÀÅ DAiÉÄÌ ªÀiÁrPÉÆAqÀ ¥ÁoÀzÀ ¸ÀASÉå ºÁUÀÆ ¥Àæ±ÉßUÀ¼À ««zsÀ ¥ÀæPÁgÀUÀ¼ÀÄ प्रश्‍न चुनना ಪುಟದಲ್ಲಿ PÁtÄªÀzÀjAzÀ ¥Àæ±ÉßUÀ¼À ««zsÀ ¥ÀæPÁgÀUÀ½UÉ C£ÀÄ¸ÁgÀªÁV ¥Àæ±ÉßAiÀÄ£ÀÄß DAiÀÄÄÝPÉÆ¼Àî®Ä ¸ÀºÁAiÀÄAiÀiÁUÀÄvÀÛzÉ. प्रश्‍न चुनना ಪುಟದಲ್ಲಿ "ಜಿ:ಎಕ್ಸ14" ನಲ್ಲಿ ಕೇವಲ ನಿಮಗೆ ಬೇಕಾದ ಪ್ರಶ್ನೆಗಳನ್ನು ಮಾತ್ರ ಆಯ್ದುಕೊಳ್ಳುವುದು..
B5: 20 CAPÀUÀ¼À ¤Ã® £ÀPÉëAiÀÄ°è ¥ÀÀæ±ÉßUÀ¼À£ÀÄß DAiÀÄÄÝPÉÆ¼ÀÄîªÀ C£ÀÄPÀæªÀÄtÂPÉ ( मुख्य पृष्ठ-2 £À°è B9 jAzÀ B71 gÀªÀgÉV£À PÁ®AUÀ¼À°è ¥ÁoÀzÀ ¸ÀASÉåAiÀÄ£ÀÄß £ÀªÀÄÆ¢ü¸ÀÄªÀÅzÀgÀ ªÀÄÆ®PÀ )
B6: ನೀಲ ನಕ್ಷೆಯ ಸಹಿತ ಪ್ರಶ್ನೆ ಪತ್ರಿಕೆಯು ಕೇವಲ 10 ನೇ ತರಗತಿಗೆ ಮಾತ್ರ. ನೀವು ಕೇವಲ ನೀಲ ನಕ್ಷೆಗಾಗಿ ಈ ತಂತ್ರಾಂಶವನ್ನು ಬಳಸುವುದಾದರೆ ಯಾವ ತರಗತಿಗೆ ಬೇಕಾದರು ಬಳಸಿಕೊಳ್ಳಬಹುದು.(ಹಿಂದಿ ವಿಷಯಕ್ಕೆ ಮಾತ್ರ)
C7: ಮುಖ್ಯಪುಟ2 | D7: ಮುಖ್ಯ ಪುಟ 2 ನಲ್ಲಿ ಈ ಕೆಳಗಿನ ಸೂಚನೆಯಂತೆ ನೀಲ ನಕ್ಷೆಯನ್ನು ಸಿದ್ಧಪಡಿಸಿ. | T7: प्रश्‍न चुनना
B8: 1 | C8: B9 - B11 | E8: MAzÀÄ CAPÀzÀ 3 ¥Àæ±ÉßUÀ¼À£ÀÄß DAiÀÄÄÝPÉÆ½î. ( 1 CAPÀzÀ ¥Àæ±ÉßUÀ½UÉ AiÀiÁªÀ ¥ÁoÀ¢AzÀ ¥Àæ±ÉßUÀ¼À£ÀÄß PÉÆqÀ°aÑ¸ÀÄ«gÉÆ, D ¥ÁoÀzÀ ¸ÀASÉåAiÀÄ£ÀÄß `©9' ನಲ್ಲಿ ತುಂಬಿ "ಸಿ9" ನಲ್ಲಿ ಪ್ರಶ್ನೆಯ ಉದ್ದೇಶ, "ಡಿ9" ನಲ್ಲಿ ಪ್ರಶ್ನೆಯ ಸ್ತರ, "ಇ9" ನಲ್ಲಿ ಪ್ರಶ್ನೆಯ ಪ್ರಕಾರ, "ಎಫ್9" ನಲ್ಲಿ ವಿಷಯ ವಸ್ತು, ಹಾಗೂ "ಜಿ9" ನಲ್ಲಿ ಆಯ್ಕೆ ಪ್ರಶ್ನೆಯಾದರೆ "ಸಿ" ಎಂದು ಆಯ್ದುಕೊಳ್ಳಿ ಇಲ್ಲವಾದರೆ ಖಾಲಿ ಬಿಡಿ. EzÉÃ ¤AiÀÄªÀÄªÀ£ÀÄß J¯Áè ¥Àæ±ÉßUÀ¼À DAiÉÄÌUÀÆ C£ÀÄ¸Àj¹.) 3ನೇ ಪ್ರಶ್ನೆಯನ್ನು ಅಪಠಿತ ಗದ್ಯದಿಂದ ಆಯ್ದುಕೊಳ್ಳಿ. (ಒಂದು ಅಂಕದ ಪ್ರಶ್ನೆ ಎಸ್.ಎಸ್.ಎಲ್.ಸಿ ವಾಷಿÀðಕ ಪರೀಕ್ಷೆಯಲ್ಲಿ ಬರುವುದಿಲ್ಲವಾದ್ದರಿಂದ ಗದ್ಯದಿಂದಲೇ ಪ್ರಶ್ನೆಯನ್ನು ಆಯ್ದುಕೊಳ್ಳಿ.) | T8: G:X14 - G:X16
B9: 2 | C9: B17 - B20 | E9: ºÉÆA¢¹ §gÉAiÀÄÄªÀ 2 ¥Àæ±ÉßUÀ¼À£ÀÄß DAiÀÄÄÝPÉÆ½î. B19 ªÀÄvÀÄÛ B20 gÀ ªÀÄÄA¢£À G PÁ®A£À°è wæ¨sÀÄeÁPÁgÀzÀ ªÉÄÃ¯É ªÀiË¸ï QèPï ªÀiÁqÀÄªÀÅzÀgÀ ªÀÄÆ®PÀ C JAzÀÄ DAiÉÄÌ ªÀiÁrPÉÆ½î. »ÃUÉ ªÀiÁqÀÄªÀÅzÀjAzÀ ¤Ã® £ÀPÉëAiÀÄ°è CªÀÅUÀ¼À CAPÀUÀ¼À£ÀÄß vÉÆÃj¸ÀÄªÀÅ¢®è ºÁUÀÆ ºÉÆA¢¹ §gÉAiÀÄÄªÀ 2 ¥Àæ±ÉßUÀ¼À£ÀÄß ªÀiÁvÀæ £ÁªÀÅ DAiÀÄÄÝPÉÆAqÀAvÁUÀÄvÀÛzÉ. ¥Àæ±Éß ¥ÀwæPÉAiÀÄ ¥ÀÄlzÀ°è ºÉÆA¢¹ §gÉAiÀÄÄªÀ ¥Àæ±ÉßUÀ¼À£ÀÄß DAiÀÄÄÝPÉÆ¼ÀÄîªÁUÀ G ¤AzÀ O ªÀgÉUÉ `PÀ' ¥ÀnÖAiÀÄ ¥Àæ±ÉßUÀ¼À£ÀÄß ºÁUÀÆ P ¤AzÀ X ªÀgÉUÉ `RÀ' ¥ÀnÖAiÀÄ ¥Àæ±ÉßUÀ¼À£ÀÄß DAiÀÄÄÝPÉÆ¼Àî®Ä CªÀPÁ±À PÀ°à¸À¯ÁVzÉ. B19 ªÀÄvÀÄÛ B20 gÀ ªÀÄÄA¢£À PÉÃªÀ® `R' ¥ÀnÖAiÀÄ ¥Àæ±ÉßUÀ¼À£ÀÄß DAiÀÄÄÝPÉÆ½î. | T9: G:O22 - G:O23 - "ಕ" ಪಟ್ಟಿ P:X22 - P:X25 "ಖ" ಪಟ್ಟಿ
B10: 3 | C10: B27 - B29 | E10: 2 CAPÀUÀ¼À 3 ¥Àæ±ÉßUÀ¼À£ÀÄß DAiÀÄÄÝPÉÆ½î. ಪದ್ಯ ಭಾಗದಿಂದ ಭಾವಾಥð ಕೊಡುವುದಾದರೆ 3 ನೇ ಪ್ರಶ್ನೆಯನ್ನು ಆಯ್ದುಕೊಳ್ಳಿ. | T10: G:X32 - G:X34
B11: 4 | C11: B41 - | E11: 3 CAPÀದ 1 ¥Àæ±Éßಯ£ÀÄß DAiÀÄÄÝPÉÆ½î. | T11: G:X46
B12: 5 | C12: B50 - B51 | E12: ªÁåPÀgÀt¢AzÀ §ºÀÄDAiÉÄÌAiÀÄ 2 ¥Àæ±ÉßUÀ¼À£ÀÄß DAiÀÄÄÝPÉÆ½î. | T12: G:X55 - G:X56
B13: 6 | C13: B68 | E13: 4 CAPÀUÀ¼À ¥ÀvÀæ¯ÉÃR£ÀzÀ 1 ¥Àæ±Éßಯ£ÀÄß DAiÀÄÄÝPÉÆ½î. | T13: G:X73
B14: 7 | C14: B70 -B71 | E14: 4 ಅಂಕಗಳ 2 ನಿಬಂಧವನ್ನು ಆಯ್ದುಕೊಂಡು ಎರಡೂ ಪ್ರಶ್ನೆಗಳ ªÀÄÄA¢£À G PÁ®A£À°è C JAzÀÄ DAiÉÄÌ ªÀiÁrPÉÆ½î. | T14: G:X75- G:X76
B16: 90, 40 ಮತ್ತು 20 ಅಂಕಗಳಿಗೆ ಪ್ರಶ್ನೆ ಪತ್ರಿಕೆಗಳನ್ನು ಸಿದ್ಧಪಡಿಸುವಾಗ ಬೇರೆಡೆ ಕಾಪಿ ಮಾಡಿಕೊಂಡು ಸಿದ್ಧಪಡಿಸುವುದು. ಸೂಕ್ತ. ಏಕೆಂದರೆ ಬೇರೆ ಬೇರೆ ಅಂಕಗಳಿಗೆ ನೀಲ ನಕ್ಷೆ ತಯಾರಿಸುವಾಗ ಮೊದಲ ನೀಲ ನಕ್ಷೆಯನ್ನ ಕಳೆದುಕೊಳ್ಳುವಿರಿ. | E16: ¥Àæ±ÉßUÀ¼À DAiÉÄÌAiÀÄ¯ÁèUÀ° ºÁUÀÆ ¥Àæ±Éß ¥ÀwæPÉAiÀÄ¯ÉèÃ DUÀ° §zÀ¯ÁªÀuÉ ªÀiÁqÀ®Ä CªÀPÁ±À«®è. ¥Àæ±ÉßUÀ¼À DAiÉÄÌAiÀÄ°è K£ÁzÀgÀÄ ªÀåvÁå¸À PÀAqÀÄ§AzÀ°è CzÀPÉÌ ¤Ã® £ÀPÉëAiÀÄ¯ÉèÃ ªÁåvÁå¸ÀªÁVgÀÄvÀÛzÉ. ¤Ã® £ÀPÉëAiÀÄ°è£À ªÀåvÁå¸ÀªÀ£ÀÄß ¸Àj¥Àr¸ÀÄªÀ ªÀÄÆ®PÀ ¥Àæ±ÉßUÀ¼À DAiÉÄÌAiÀÄ°è£À ºÁUÀÆ ¥Àæ±Éß ¥ÀwæPÉAiÀÄ°è£À ªÀåvÁå¸ÀªÀ£ÀÄß ¸Àj¥Àr¹PÉÆ½î. (¤Ã® £ÀPÉëAiÀÄ°è ¥ÁoÀzÀ ¸ÀASÉå, UÀzÀå,¥ÀzÀå, ªÁåPÀgÀt ( §ºÀÄ«PÀ°àÃAiÀÄ), ºÉÆA¢¹ §gÉAiÀÄÄªÀÅzÀÄ, EvÁå¢UÀ¼À ¥ÁoÀ ¸ÀASÉå ºÁUÀÆ ¥Àæ±ÉßUÀ¼À C£ÀÄPÀæªÀÄUÀ¼À°è ªÀåvÁå¸À«gÀÄvÀÛzÉ.)
H18: Prepared By :
H19: NAGALINGAIAH. Govt.P.U.COLLEGE (H.S)Gurugunta, TQ: Lingasugur
H20: District : Raichur
H21: E Mail- nagalingaiah.h@gmail.com
H22: Mob: 9035172763, 7760399489

Sheet Question paper 20 marks
A1: ='Entry sheet-1-hin'!C2 -> सरकारी पदवि पूर्व कॉलेंज (प्रौ.शा.वि) गुरुगुंटा, ता : लिंगसुगूर
B2: प्रश्‍न पत्रिका - | C2: ='Entry sheet-1-hin'!C3 -> संकलनात्मक परीक्षा - १ २०१५-१६
A3: ='Entry sheet-1-hin'!C4 -> 9वीं | B3: ='Entry sheet-1-hin'!C5 -> हिंदी | D3: ='Entry sheet-1-hin'!A6 -> अंक | E3: ='Entry sheet-1-hin'!C6 -> 40
A4: खण्ड “ क ”
A5: [ गद्य, पद्य और पूरक वाचन ]
A6: I. निम्नलिखित प्रश्नों के उत्तर एक-एक वाक्य में लिखिए :- 3 x 1 = 3
A7: =IF(B7="","",1) -> 1 | B7: =IF('Entry sheet-3-hin'!G14="","",'Entry sheet-3-hin'!G14) -> विवेकानंद कब अमरिका गये ?
A8: =IF(B8="","",A7+1) -> 2 | B8: =IF('Entry sheet-3-hin'!G15="","",'Entry sheet-3-hin'!G15) -> बहन ने भाई के माथे पर क्या लगाया ?
A9: =IF(B9="","",A8+1) -> 3 | B9: =IF('Entry sheet-3-hin'!G16="","",'Entry sheet-3-hin'!G16) -> मौसी का दुपट्टा कैसे था ?
A10: II. 4. स्तम्भ ‘क’ के वाक्यांशों के साथ स्तम्भ ‘ख’ के सही वाक्यंशों को जोडकर लिखिए :- 2 X 1 = 2
B11: स्तम्भ ‘क’ | C11: स्तम्भ ‘ख’
A12: अ | B12: =IF('Entry sheet-3-hin'!G22="","",'Entry sheet-3-hin'!G22) -> कुमारी नोबल | C12: =IF('Entry sheet-3-hin'!P22="","",'Entry sheet-3-hin'!P22) -> असहयोग चल रहा था ।
A13: आ | B13: =IF('Entry sheet-3-hin'!G23="","",'Entry sheet-3-hin'!G23) -> हर हिस्सा दूसरे से | C13: =IF('Entry sheet-3-hin'!P23="","",'Entry sheet-3-hin'!P23) -> धर्म परायण नारी
C14: =IF('Entry sheet-3-hin'!P24="","",'Entry sheet-3-hin'!P24) -> सिस्टर निवेदिता
C15: =IF('Entry sheet-3-hin'!P25="","",'Entry sheet-3-hin'!P25) -> असहयोग कर रहा था ।
A16: III. निम्नलिखित प्रश्नों के उत्तर दो या तीन वाक्यों में लिखिए :- 3 x 2 = 6
A17: =IF(B17="","",A9+2) -> 5 | B17: =IF('Entry sheet-3-hin'!G32="","",'Entry sheet-3-hin'!G32) -> विवेकानंद ने भारत वासियों को क्या उपदेश दिये ?
A18: =IF(B18="","",A17+1) -> 6 | B18: =IF('Entry sheet-3-hin'!G33="","",'Entry sheet-3-hin'!G33) -> बहन ने भाई को कैसे विधा की ?
A19: 7 | B19: =IF('Entry sheet-3-hin'!G34="","",'Entry sheet-3-hin'!G34) -> बस के बारे में डाक्टर मित्र ने लेखक से क्या कहा ?
A20: IV. निम्नलिखित प्रश्नों के उत्तर तीन - चार वाक्यों में लिखिए :- 1 x 3 = 3
A21: =IF(B21="","",A19+1) -> 8 | B21: =IF('Entry sheet-3-hin'!G46="","",'Entry sheet-3-hin'!G46) -> किसने किससे कहा ? किस पाठ से लिया गाया है - यह मेरा बेटा, यह मेरी बेटी ।
A22: खण्ड “ ख ”
A23: [ व्याकरण ]
A24: V.निम्नलिखित प्रश्नो के लिए चार-चार विकल्प दिए गए हैं, सही उत्तर चुनकर लिखिए :- 2 x 1 = 2
A25: =IF(B25="","",A21+1) -> 9 | B25: =IF('Entry sheet-3-hin'!G55="","",'Entry sheet-3-hin'!G55) -> ‘बात’ का अन्यवचन रूप है - अ) बात आ) बातों इ) बातें ई) बाताएँ
A26: =IF(B26="","",A25+1) -> 10 | B26: =IF('Entry sheet-3-hin'!G56="","",'Entry sheet-3-hin'!G56) -> ‘ठहरना’ का द्वितीय प्रेरणार्थक क्रिया रूप है - अ) ठहरना आ) ठहराना इ) ठहर ई) ठहरवाना
A27: खण्ड “ ग ”
A28: [ रचना - ]
A29: VI.11. | B29: =IF('Entry sheet-3-hin'!G73="","",'Entry sheet-3-hin'!G73) -> अपनी पढ़ाई के बारे में बताते हुए अपने पिताजी को एक पत्र लिखिए । | E29: 4
B30: अथवा
B31: =IF('Entry sheet-3-hin'!G75="","",'Entry sheet-3-hin'!G75) -> इंटर्नेट क्रांति (अर्थ, लाभ, हानी, उपसंहार)
B32: =IF('Entry sheet-3-hin'!G76="","",'Entry sheet-3-hin'!G76) -> त्योहारों का महत्व
B33: ***************************************

Sheet Entry sheet-3-hin
AZ2: स्म | BA2: सरल | BB2: बवि | BC2: ग | BF2: C
AZ3: सम | BA3: सामान्य | BB3: वनि | BC3: प
AZ4: अ | BA4: कठिन | BB4: अलउ | BC4: व्या
AZ5: रस | BB5: लउ२ | BC5: र
BB6: लउ३ | BC6: पूवा
BB7: दीउ४
A8: उद्देश्‍यों के आधार पर कौन - सा प्रश्‍न किस उद्देश्‍य में आता है ? कुछ उदाहरण नीचे दिया गया है । इन प्रश्‍नों को आप तबदील कर सकते है । यह अनिवार्य नहीं है । मगर इससे उद्देश्‍यों के आधार पर प्रश्‍न चुनने के लिए आसान होगा ।
A9: ='Entry sheet-1-hin'!E10 -> स्मरण रखना | C9: पद्य, कौन,क्या,कब,कहाँ,किसमें,कौन सा,कितना,संज्ञा,सर्वनाम,लिंग,विशेषण,वचन,लेखनचिह्न आदि
A10: ='Entry sheet-1-hin'!E11 -> समझना | C10: क्यों, कैसे, तुलना करना,अंतर बताना,संदर्भ,संधि,समास,प्रेरणार्थक क्रिया,मुहावरे,समानार्थक,विलोम आदि.
A11: ='Entry sheet-1-hin'!E12 -> अभिव्यक्ति | C11: पत्र,निबंध,किसे श्रेष्ठ मानते है? स्पष्ठ करो,पठित गद्य,अनुवाद,विवरण देना, अभिप्राय व्यक्त करना, ( दीर्घोत्तर प्रश्‍न)
A12: ='Entry sheet-1-hin'!E13 -> रसग्रहण | C12: भावार्थ, कविता का आशय,कवि का आशय आदि | M12: प्रश्‍न पत्रिका के लिए प्रश्‍नों को नीचे चुन लीजिए | Z12: PART+C | AA12: DIFF+C | AB12: OBJ+C | AC12: NO. OF QUESTIONS IN DIFF. TYPES | AD12: OBJECTIVES, DIFFICULTY LEVEL | AE12: PART OF THE SUBJECT | AF12: CHAPTER WISE MARKS CAL. | AG12: CHOICE | AH12: CHAPTER+OBJECTIVES | AI12: CHAPTER+QUESTIONS | AJ12: CHAPTER+DIFFI | AK12: FINAL BLUE PRINT
A13: प्रश्‍न संख्या | B13: पाठ की संख्या | C13: पाठ की संख्या और प्रश्‍न का अभिकल्प | G13: c14 से F14 तक दिखनेवाले पाठों की संख्या और प्रश्‍नों के उद्देश्य, स्तर, प्रकार और विषय वस्तु के अधार पर नीचे प्रश्‍न चुन लीजिए
A14: ='Entry sheet-2-hin'!A9 -> 1 | B14: =IF('Entry sheet-2-hin'!B9="","",'Entry sheet-2-hin'!B9) -> 1 | C14: =IF('Entry sheet-2-hin'!C9="","",CONCATENATE(B14,'Entry sheet-2-hin'!C9)) -> 1स्म | D14: =IF('Entry sheet-2-hin'!D9="","",CONCATENATE(B14,'Entry sheet-2-hin'!D9)) -> 1सरल | E14: =IF('Entry sheet-2-hin'!E9="","",CONCATENATE(B14,'Entry sheet-2-hin'!E9)) -> 1अलउ | F14: =IF('Entry sheet-2-hin'!F9="","",CONCATENATE(B14,'Entry sheet-2-hin'!F9)) -> 1ग | G14: विवेकानंद कब अमरिका गये ? | Z14: =CONCATENATE(F14,L14) -> 1ग | AA14: =CONCATENATE(D14,L14) -> 1सरल | AB14: =CONCATENATE(C14,L14) -> 1स्म | AC14: =CONCATENATE(E14,L14) -> 1अलउ | AD14: =CONCATENATE(C14,D14,E14,L14) -> 1स्म1सरल1अलउ | AE14: =CONCATENATE(E14,F14,L14) -> 1अलउ1ग | AF14: =CONCATENATE(B14,E14,L14) -> 11अलउ | AG14: =CONCATENATE(E14,L14) -> 1अलउ | AH14: =CONCATENATE(B14,C14,L14) -> 11स्म | AI14: =CONCATENATE(B14,E14,L14) -> 11अलउ | AJ14: =CONCATENATE(B14,D14,L14) -> 11सरल | AK14: =CONCATENATE(B14,C14,E14,L14) -> 11स्म1अलउ
A15: =IF(B15="","",IF(L15="c","C",MAX(A14:A14)+1)) -> 2 | B15: =IF('Entry sheet-2-hin'!B10="","",'Entry sheet-2-hin'!B10) -> 2 | C15: =IF('Entry sheet-2-hin'!C10="","",CONCATENATE(B15,'Entry sheet-2-hin'!C10)) -> 2स्म | D15: =IF('Entry sheet-2-hin'!D10="","",CONCATENATE(B15,'Entry sheet-2-hin'!D10)) -> 2सरल | E15: =IF('Entry sheet-2-hin'!E10="","",CONCATENATE(B15,'Entry sheet-2-hin'!E10)) -> 2अलउ | F15: =IF('Entry sheet-2-hin'!F10="","",CONCATENATE(B15,'Entry sheet-2-hin'!F10)) -> 2ग | G15: बहन ने भाई के माथे पर क्या लगाया ? | Z15: =CONCATENATE(F15,L15) -> 2ग | AA15: =CONCATENATE(D15,L15) -> 2सरल | AB15: =CONCATENATE(C15,L15) -> 2स्म | AC15: =CONCATENATE(E15,L15) -> 2अलउ | AD15: =CONCATENATE(C15,D15,E15,L15) -> 2स्म2सरल2अलउ | AE15: =CONCATENATE(E15,F15,L15) -> 2अलउ2ग | AF15: =CONCATENATE(B15,E15,L15) -> 22अलउ | AG15: =CONCATENATE(E15,L15) -> 2अलउ | AH15: =CONCATENATE(B15,C15,L15) -> 22स्म | AI15: =CONCATENATE(B15,E15,L15) -> 22अलउ | AJ15: =CONCATENATE(B15,D15,L15) -> 22सरल | AK15: =CONCATENATE(B15,C15,E15,L15) -> 22स्म2अलउ
A16: =IF(B32="","",IF(L16="c","C",MAX($A$14:A15)+1)) -> 3 | B16: =IF('Entry sheet-2-hin'!B11="","",'Entry sheet-2-hin'!B11) -> 4 | C16: =IF('Entry sheet-2-hin'!C11="","",CONCATENATE(B16,'Entry sheet-2-hin'!C11)) -> 4सम | D16: =IF('Entry sheet-2-hin'!D11="","",CONCATENATE(B16,'Entry sheet-2-hin'!D11)) -> 4सरल | E16: =IF('Entry sheet-2-hin'!E11="","",CONCATENATE(B16,'Entry sheet-2-hin'!E11)) -> 4अलउ | F16: =IF('Entry sheet-2-hin'!F11="","",CONCATENATE(B16,'Entry sheet-2-hin'!F11)) -> 4ग | G16: मौसी का दुपट्टा कैसे था ? | Z16: 4ग | AA16: 4सरल | AB16: 4सम | AC16: 4अलउ | AD16: 4सम4सरल4अलउ | AE16: 4अलउ4ग | AF16: =CONCATENATE(B32,E16,L16) -> 14अलउ | AG16: 4अलउ | AH16: =CONCATENATE(B32,C16,L16) -> 14सम | AI16: =CONCATENATE(B32,E16,L16) -> 14अलउ | AJ16: =CONCATENATE(B32,D16,L16) -> 14सरल | AK16: =CONCATENATE(B32,C16,E16,L16) -> 14सम4अलउ
A17: =IF(B17="","",IF(L17="c","C",MAX($A$14:A16)+1)) -> 4 | B17: =IF('Entry sheet-2-hin'!B12="","",'Entry sheet-2-hin'!B12) -> 11 | C17: =IF('Entry sheet-2-hin'!C12="","",CONCATENATE(B17,'Entry sheet-2-hin'!C12)) -> 11सम | D17: =IF('Entry sheet-2-hin'!D12="","",CONCATENATE(B17,'Entry sheet-2-hin'!D12)) -> 11सामान्य | E17: =IF('Entry sheet-2-hin'!E12="","",CONCATENATE(B17,'Entry sheet-2-hin'!E12)) -> 11अलउ | F17: =IF('Entry sheet-2-hin'!F12="","",CONCATENATE(B17,'Entry sheet-2-hin'!F12)) -> 11प | G17: भारत माता का हृदय कैसा है ? | Z17: 11प | AA17: 11सामान्य | AB17: 11सम | AC17: 11अलउ | AD17: 11सम11सामान्य11अलउ | AE17: 11अलउ11प | AF17: 1111अलउ | AG17: 11अलउ | AH17: 1111सम | AI17: 1111अलउ | AJ17: 1111सामान्य | AK17: 1111सम11अलउ
A18: =IF(B18="","",IF(L18="c","C",MAX($A$14:A17)+1)) ->  | B18: =IF('Entry sheet-2-hin'!B13="","",'Entry sheet-2-hin'!B13) ->  | C18: =IF('Entry sheet-2-hin'!C13="","",CONCATENATE(B18,'Entry sheet-2-hin'!C13)) ->  | D18: =IF('Entry sheet-2-hin'!D13="","",CONCATENATE(B18,'Entry sheet-2-hin'!D13)) ->  | E18: =IF('Entry sheet-2-hin'!E13="","",CONCATENATE(B18,'Entry sheet-2-hin'!E13)) ->  | F18: =IF('Entry sheet-2-hin'!F13="","",CONCATENATE(B18,'Entry sheet-2-hin'!F13)) -> 
A19: =IF(B19="","",IF(L19="c","C",MAX($A$14:A18)+1)) ->  | B19: =IF('Entry sheet-2-hin'!B14="","",'Entry sheet-2-hin'!B14) ->  | C19: =IF('Entry sheet-2-hin'!C14="","",CONCATENATE(B19,'Entry sheet-2-hin'!C14)) ->  | D19: =IF('Entry sheet-2-hin'!D14="","",CONCATENATE(B19,'Entry sheet-2-hin'!D14)) ->  | E19: =IF('Entry sheet-2-hin'!E14="","",CONCATENATE(B19,'Entry sheet-2-hin'!E14)) ->  | F19: =IF('Entry sheet-2-hin'!F14="","",CONCATENATE(B19,'Entry sheet-2-hin'!F14)) -> 
A20: =IF(B20="","",IF(L20="c","C",MAX($A$14:A19)+1)) ->  | B20: =IF('Entry sheet-2-hin'!B15="","",'Entry sheet-2-hin'!B15) ->  | C20: =IF('Entry sheet-2-hin'!C15="","",CONCATENATE(B20,'Entry sheet-2-hin'!C15)) ->  | D20: =IF('Entry sheet-2-hin'!D15="","",CONCATENATE(B20,'Entry sheet-2-hin'!D15)) ->  | E20: =IF('Entry sheet-2-hin'!E15="","",CONCATENATE(B20,'Entry sheet-2-hin'!E15)) ->  | F20: =IF('Entry sheet-2-hin'!F15="","",CONCATENATE(B20,'Entry sheet-2-hin'!F15)) -> 
A21: =IF(B21="","",IF(L21="c","C",MAX($A$14:A20)+1)) ->  | B21: =IF('Entry sheet-2-hin'!B16="","",'Entry sheet-2-hin'!B16) ->  | C21: =IF('Entry sheet-2-hin'!C16="","",CONCATENATE(B21,'Entry sheet-2-hin'!C16)) ->  | D21: =IF('Entry sheet-2-hin'!D16="","",CONCATENATE(B21,'Entry sheet-2-hin'!D16)) ->  | E21: =IF('Entry sheet-2-hin'!E16="","",CONCATENATE(B21,'Entry sheet-2-hin'!E16)) ->  | F21: =IF('Entry sheet-2-hin'!F16="","",CONCATENATE(B21,'Entry sheet-2-hin'!F16)) -> 
A22: =IF(B22="","",IF(L22="c","C",MAX($A$14:A21)+1)) -> 5 | B22: =IF('Entry sheet-2-hin'!B17="","",'Entry sheet-2-hin'!B17) -> 1 | C22: =IF('Entry sheet-2-hin'!C17="","",CONCATENATE(B22,'Entry sheet-2-hin'!C17)) -> 1सम | D22: =IF('Entry sheet-2-hin'!D17="","",CONCATENATE(B22,'Entry sheet-2-hin'!D17)) -> 1सरल | E22: =IF('Entry sheet-2-hin'!E17="","",CONCATENATE(B22,'Entry sheet-2-hin'!E17)) -> 1वनि | F22: =IF('Entry sheet-2-hin'!F17="","",CONCATENATE(B22,'Entry sheet-2-hin'!F17)) -> 1ग | G22: कुमारी नोबल | P22: असहयोग चल रहा था । | Z22: 1ग | AA22: 1सरल | AB22: 1सम | AC22: 1वनि | AD22: 1सम1सरल1वनि | AE22: 1वनि1ग | AF22: 11वनि | AG22: 1वनि | AH22: 11सम | AI22: 11वनि | AJ22: 11सरल | AK22: 11सम1वनि
A23: =IF(B23="","",IF(L23="c","C",MAX($A$14:A22)+1)) -> 6 | B23: =IF('Entry sheet-2-hin'!B18="","",'Entry sheet-2-hin'!B18) -> 3 | C23: =IF('Entry sheet-2-hin'!C18="","",CONCATENATE(B23,'Entry sheet-2-hin'!C18)) -> 3सम | D23: =IF('Entry sheet-2-hin'!D18="","",CONCATENATE(B23,'Entry sheet-2-hin'!D18)) -> 3सरल | E23: =IF('Entry sheet-2-hin'!E18="","",CONCATENATE(B23,'Entry sheet-2-hin'!E18)) -> 3वनि | F23: =IF('Entry sheet-2-hin'!F18="","",CONCATENATE(B23,'Entry sheet-2-hin'!F18)) -> 3ग | G23: हर हिस्सा दूसरे से | P23: धर्म परायण नारी | Z23: 3ग | AA23: 3सरल | AB23: 3सम | AC23: 3वनि | AD23: 3सम3सरल3वनि | AE23: 3वनि3ग | AF23: 33वनि | AG23: 3वनि | AH23: 33सम | AI23: 33वनि | AJ23: 33सरल | AK23: 33सम3वनि
B24: =IF('Entry sheet-2-hin'!B19="","",'Entry sheet-2-hin'!B19) -> 1 | C24: =IF('Entry sheet-2-hin'!C19="","",CONCATENATE(B24,'Entry sheet-2-hin'!C19)) -> 1सम | D24: =IF('Entry sheet-2-hin'!D19="","",CONCATENATE(B24,'Entry sheet-2-hin'!D19)) -> 1सरल | E24: =IF('Entry sheet-2-hin'!E19="","",CONCATENATE(B24,'Entry sheet-2-hin'!E19)) -> 1वनि | F24: =IF('Entry sheet-2-hin'!F19="","",CONCATENATE(B24,'Entry sheet-2-hin'!F19)) -> 1ग | P24: सिस्टर निवेदिता
B25: =IF('Entry sheet-2-hin'!B20="","",'Entry sheet-2-hin'!B20) -> 3 | C25: =IF('Entry sheet-2-hin'!C20="","",CONCATENATE(B25,'Entry sheet-2-hin'!C20)) -> 3सम | D25: =IF('Entry sheet-2-hin'!D20="","",CONCATENATE(B25,'Entry sheet-2-hin'!D20)) -> 3सरल | E25: =IF('Entry sheet-2-hin'!E20="","",CONCATENATE(B25,'Entry sheet-2-hin'!E20)) -> 3वनि | F25: =IF('Entry sheet-2-hin'!F20="","",CONCATENATE(B25,'Entry sheet-2-hin'!F20)) -> 3ग | P25: असहयोग कर रहा था ।
A26: =IF(B26="","",IF(L26="c","C",MAX($A$14:A23)+1)) ->  | B26: =IF('Entry sheet-2-hin'!B21="","",'Entry sheet-2-hin'!B21) ->  | C26: =IF('Entry sheet-2-hin'!C21="","",CONCATENATE(B26,'Entry sheet-2-hin'!C21)) ->  | D26: =IF('Entry sheet-2-hin'!D21="","",CONCATENATE(B26,'Entry sheet-2-hin'!D21)) ->  | E26: =IF('Entry sheet-2-hin'!E21="","",CONCATENATE(B26,'Entry sheet-2-hin'!E21)) ->  | F26: =IF('Entry sheet-2-hin'!F21="","",CONCATENATE(B26,'Entry sheet-2-hin'!F21)) -> 
A27: =IF(B27="","",IF(L27="c","C",MAX($A$14:A26)+1)) ->  | B27: =IF('Entry sheet-2-hin'!B22="","",'Entry sheet-2-hin'!B22) ->  | C27: =IF('Entry sheet-2-hin'!C22="","",CONCATENATE(B27,'Entry sheet-2-hin'!C22)) ->  | D27: =IF('Entry sheet-2-hin'!D22="","",CONCATENATE(B27,'Entry sheet-2-hin'!D22)) ->  | E27: =IF('Entry sheet-2-hin'!E22="","",CONCATENATE(B27,'Entry sheet-2-hin'!E22)) ->  | F27: =IF('Entry sheet-2-hin'!F22="","",CONCATENATE(B27,'Entry sheet-2-hin'!F22)) -> 
A28: =IF(B28="","",IF(L28="c","C",MAX($A$14:A27)+1)) -> 7 | B28: =IF('Entry sheet-2-hin'!B23="","",'Entry sheet-2-hin'!B23) -> 3 | C28: =IF('Entry sheet-2-hin'!C23="","",CONCATENATE(B28,'Entry sheet-2-hin'!C23)) -> 3सम | D28: =IF('Entry sheet-2-hin'!D23="","",CONCATENATE(B28,'Entry sheet-2-hin'!D23)) -> 3सामान्य | E28: =IF('Entry sheet-2-hin'!E23="","",CONCATENATE(B28,'Entry sheet-2-hin'!E23)) -> 3वनि | F28: =IF('Entry sheet-2-hin'!F23="","",CONCATENATE(B28,'Entry sheet-2-hin'!F23)) -> 3ग | G28: बाहुबली : डॉ. हिरण्मय :: बस की यात्रा :------ | Z28: 3ग | AA28: 3सामान्य | AB28: 3सम | AC28: 3वनि | AD28: 3सम3सामान्य3वनि | AE28: 3वनि3ग | AF28: 33वनि | AG28: 3वनि | AH28: 33सम | AI28: 33वनि | AJ28: 33सामान्य | AK28: 33सम3वनि
A29: =IF(B29="","",IF(L29="c","C",MAX($A$14:A28)+1)) -> 8 | B29: =IF('Entry sheet-2-hin'!B24="","",'Entry sheet-2-hin'!B24) -> 4 | C29: =IF('Entry sheet-2-hin'!C24="","",CONCATENATE(B29,'Entry sheet-2-hin'!C24)) -> 4सम | D29: =IF('Entry sheet-2-hin'!D24="","",CONCATENATE(B29,'Entry sheet-2-hin'!D24)) -> 4सामान्य | E29: =IF('Entry sheet-2-hin'!E24="","",CONCATENATE(B29,'Entry sheet-2-hin'!E24)) -> 4वनि | F29: =IF('Entry sheet-2-hin'!F24="","",CONCATENATE(B29,'Entry sheet-2-hin'!F24)) -> 4ग | G29: योगराज अपने घर से : एक कटोरा दूध लाया :: गोपाल अपने घर से :-- | Z29: 4ग | AA29: 4सामान्य | AB29: 4सम | AC29: 4वनि | AD29: 4सम4सामान्य4वनि | AE29: 4वनि4ग | AF29: 44वनि | AG29: 4वनि | AH29: 44सम | AI29: 44वनि | AJ29: 44सामान्य | AK29: 44सम4वनि
A30: =IF(B30="","",IF(L30="c","C",MAX($A$14:A29)+1)) ->  | B30: =IF('Entry sheet-2-hin'!B25="","",'Entry sheet-2-hin'!B25) ->  | C30: =IF('Entry sheet-2-hin'!C25="","",CONCATENATE(B30,'Entry sheet-2-hin'!C25)) ->  | D30: =IF('Entry sheet-2-hin'!D25="","",CONCATENATE(B30,'Entry sheet-2-hin'!D25)) ->  | E30: =IF('Entry sheet-2-hin'!E25="","",CONCATENATE(B30,'Entry sheet-2-hin'!E25)) ->  | F30: =IF('Entry sheet-2-hin'!F25="","",CONCATENATE(B30,'Entry sheet-2-hin'!F25)) -> 
A31: =IF(B31="","",IF(L31="c","C",MAX($A$14:A30)+1)) ->  | B31: =IF('Entry sheet-2-hin'!B26="","",'Entry sheet-2-hin'!B26) ->  | C31: =IF('Entry sheet-2-hin'!C26="","",CONCATENATE(B31,'Entry sheet-2-hin'!C26)) ->  | D31: =IF('Entry sheet-2-hin'!D26="","",CONCATENATE(B31,'Entry sheet-2-hin'!D26)) ->  | E31: =IF('Entry sheet-2-hin'!E26="","",CONCATENATE(B31,'Entry sheet-2-hin'!E26)) ->  | F31: =IF('Entry sheet-2-hin'!F26="","",CONCATENATE(B31,'Entry sheet-2-hin'!F26)) -> 
A32: =IF(B32="","",IF(L32="c","C",MAX($A$14:A31)+1)) -> 9 | B32: =IF('Entry sheet-2-hin'!B27="","",'Entry sheet-2-hin'!B27) -> 1 | C32: =IF('Entry sheet-2-hin'!C27="","",CONCATENATE(B32,'Entry sheet-2-hin'!C27)) -> 1अ | D32: =IF('Entry sheet-2-hin'!D27="","",CONCATENATE(B32,'Entry sheet-2-hin'!D27)) -> 1सरल | E32: =IF('Entry sheet-2-hin'!E27="","",CONCATENATE(B32,'Entry sheet-2-hin'!E27)) -> 1लउ२ | F32: =IF('Entry sheet-2-hin'!F27="","",CONCATENATE(B32,'Entry sheet-2-hin'!F27)) -> 1ग | G32: विवेकानंद ने भारत वासियों को क्या उपदेश दिये ? | Z32: 1ग | AA32: 1सरल | AB32: 1अ | AC32: 1लउ२ | AD32: 1अ1सरल1लउ२ | AE32: 1लउ२1ग | AF32: 11लउ२ | AG32: 1लउ२ | AH32: 11अ | AI32: 11लउ२ | AJ32: 11सरल | AK32: 11अ1लउ२
A33: =IF(B33="","",IF(L33="c","C",MAX($A$14:A32)+1)) -> 10 | B33: =IF('Entry sheet-2-hin'!B28="","",'Entry sheet-2-hin'!B28) -> 2 | C33: =IF('Entry sheet-2-hin'!C28="","",CONCATENATE(B33,'Entry sheet-2-hin'!C28)) -> 2अ | D33: =IF('Entry sheet-2-hin'!D28="","",CONCATENATE(B33,'Entry sheet-2-hin'!D28)) -> 2सामान्य | E33: =IF('Entry sheet-2-hin'!E28="","",CONCATENATE(B33,'Entry sheet-2-hin'!E28)) -> 2लउ२ | F33: =IF('Entry sheet-2-hin'!F28="","",CONCATENATE(B33,'Entry sheet-2-hin'!F28)) -> 2ग | G33: बहन ने भाई को कैसे विधा की ? | Z33: 2ग | AA33: 2सामान्य | AB33: 2अ | AC33: 2लउ२ | AD33: 2अ2सामान्य2लउ२ | AE33: 2लउ२2ग | AF33: 22लउ२ | AG33: 2लउ२ | AH33: 22अ | AI33: 22लउ२ | AJ33: 22सामान्य | AK33: 22अ2लउ२
A34: =IF(B34="","",IF(L34="c","C",MAX($A$14:A33)+1)) -> 11 | B34: =IF('Entry sheet-2-hin'!B29="","",'Entry sheet-2-hin'!B29) -> 3 | C34: =IF('Entry sheet-2-hin'!C29="","",CONCATENATE(B34,'Entry sheet-2-hin'!C29)) -> 3अ | D34: =IF('Entry sheet-2-hin'!D29="","",CONCATENATE(B34,'Entry sheet-2-hin'!D29)) -> 3सामान्य | E34: =IF('Entry sheet-2-hin'!E29="","",CONCATENATE(B34,'Entry sheet-2-hin'!E29)) -> 3लउ२ | F34: =IF('Entry sheet-2-hin'!F29="","",CONCATENATE(B34,'Entry sheet-2-hin'!F29)) -> 3ग | G34: बस के बारे में डाक्टर मित्र ने लेखक से क्या कहा ? | Z34: 3ग | AA34: 3सामान्य | AB34: 3अ | AC34: 3लउ२ | AD34: 3अ3सामान्य3लउ२ | AE34: 3लउ२3ग | AF34: 33लउ२ | AG34: 3लउ२ | AH34: 33अ | AI34: 33लउ२ | AJ34: 33सामान्य | AK34: 33अ3लउ२
A35: =IF(B35="","",IF(L35="c","C",MAX($A$14:A34)+1)) -> 12 | B35: =IF('Entry sheet-2-hin'!B30="","",'Entry sheet-2-hin'!B30) -> 11 | C35: =IF('Entry sheet-2-hin'!C30="","",CONCATENATE(B35,'Entry sheet-2-hin'!C30)) -> 11अ | D35: =IF('Entry sheet-2-hin'!D30="","",CONCATENATE(B35,'Entry sheet-2-hin'!D30)) -> 11सामान्य | E35: =IF('Entry sheet-2-hin'!E30="","",CONCATENATE(B35,'Entry sheet-2-hin'!E30)) -> 11लउ२ | F35: =IF('Entry sheet-2-hin'!F30="","",CONCATENATE(B35,'Entry sheet-2-hin'!F30)) -> 11प | G35: हिमालय के बारे में कवि की भावना क्या है ? | Z35: 11प | AA35: 11सामान्य | AB35: 11अ | AC35: 11लउ२ | AD35: 11अ11सामान्य11लउ२ | AE35: 11लउ२11प | AF35: 1111लउ२ | AG35: 11लउ२ | AH35: 1111अ | AI35: 1111लउ२ | AJ35: 1111सामान्य | AK35: 1111अ11लउ२
A36: =IF(B36="","",IF(L36="c","C",MAX($A$14:A35)+1)) -> 13 | B36: =IF('Entry sheet-2-hin'!B31="","",'Entry sheet-2-hin'!B31) -> 17 | C36: =IF('Entry sheet-2-hin'!C31="","",CONCATENATE(B36,'Entry sheet-2-hin'!C31)) -> 17स्म | D36: =IF('Entry sheet-2-hin'!D31="","",CONCATENATE(B36,'Entry sheet-2-hin'!D31)) -> 17सामान्य | E36: =IF('Entry sheet-2-hin'!E31="","",CONCATENATE(B36,'Entry sheet-2-hin'!E31)) -> 17लउ२ | F36: =IF('Entry sheet-2-hin'!F31="","",CONCATENATE(B36,'Entry sheet-2-hin'!F31)) -> 17पूवा | G36: कजाकी के साथ लेखक के क्षन कैसे बीतते थे ? | Z36: 17पूवा | AA36: 17सामान्य | AB36: 17स्म | AC36: 17लउ२ | AD36: 17स्म17सामान्य17लउ२ | AE36: 17लउ२17पूवा | AF36: 1717लउ२ | AG36: 17लउ२ | AH36: 1717स्म | AI36: 1717लउ२ | AJ36: 1717सामान्य | AK36: 1717स्म17लउ२
A37: =IF(B37="","",IF(L37="c","C",MAX($A$14:A36)+1)) -> 14 | B37: =IF('Entry sheet-2-hin'!B32="","",'Entry sheet-2-hin'!B32) -> 17 | C37: =IF('Entry sheet-2-hin'!C32="","",CONCATENATE(B37,'Entry sheet-2-hin'!C32)) -> 17स्म | D37: =IF('Entry sheet-2-hin'!D32="","",CONCATENATE(B37,'Entry sheet-2-hin'!D32)) -> 17सामान्य | E37: =IF('Entry sheet-2-hin'!E32="","",CONCATENATE(B37,'Entry sheet-2-hin'!E32)) -> 17लउ२ | F37: =IF('Entry sheet-2-hin'!F32="","",CONCATENATE(B37,'Entry sheet-2-hin'!F32)) -> 17पूवा | G37: एक दिन कजाकी डाकखाने देर से पसूँचा । क्यों ? | Z37: 17पूवा | AA37: 17सामान्य | AB37: 17स्म | AC37: 17लउ२ | AD37: 17स्म17सामान्य17लउ२ | AE37: 17लउ२17पूवा | AF37: 1717लउ२ | AG37: 17लउ२ | AH37: 1717स्म | AI37: 1717लउ२ | AJ37: 1717सामान्य | AK37: 1717स्म17लउ२
A38: =IF(B38="","",IF(L38="c","C",MAX($A$14:A37)+1)) ->  | B38: =IF('Entry sheet-2-hin'!B33="","",'Entry sheet-2-hin'!B33) ->  | C38: =IF('Entry sheet-2-hin'!C33="","",CONCATENATE(B38,'Entry sheet-2-hin'!C33)) ->  | D38: =IF('Entry sheet-2-hin'!D33="","",CONCATENATE(B38,'Entry sheet-2-hin'!D33)) ->  | E38: =IF('Entry sheet-2-hin'!E33="","",CONCATENATE(B38,'Entry sheet-2-hin'!E33)) ->  | F38: =IF('Entry sheet-2-hin'!F33="","",CONCATENATE(B38,'Entry sheet-2-hin'!F33)) -> 
A39: =IF(B39="","",IF(L39="c","C",MAX($A$14:A38)+1)) ->  | B39: =IF('Entry sheet-2-hin'!B34="","",'Entry sheet-2-hin'!B34) ->  | C39: =IF('Entry sheet-2-hin'!C34="","",CONCATENATE(B39,'Entry sheet-2-hin'!C34)) ->  | D39: =IF('Entry sheet-2-hin'!D34="","",CONCATENATE(B39,'Entry sheet-2-hin'!D34)) ->  | E39: =IF('Entry sheet-2-hin'!E34="","",CONCATENATE(B39,'Entry sheet-2-hin'!E34)) ->  | F39: =IF('Entry sheet-2-hin'!F34="","",CONCATENATE(B39,'Entry sheet-2-hin'!F34)) -> 
A40: =IF(B40="","",IF(L40="c","C",MAX($A$14:A39)+1)) ->  | B40: =IF('Entry sheet-2-hin'!B35="","",'Entry sheet-2-hin'!B35) ->  | C40: =IF('Entry sheet-2-hin'!C35="","",CONCATENATE(B40,'Entry sheet-2-hin'!C35)) ->  | D40: =IF('Entry sheet-2-hin'!D35="","",CONCATENATE(B40,'Entry sheet-2-hin'!D35)) ->  | E40: =IF('Entry sheet-2-hin'!E35="","",CONCATENATE(B40,'Entry sheet-2-hin'!E35)) ->  | F40: =IF('Entry sheet-2-hin'!F35="","",CONCATENATE(B40,'Entry sheet-2-hin'!F35)) -> 
A41: =IF(B41="","",IF(L41="c","C",MAX($A$14:A40)+1)) ->  | B41: =IF('Entry sheet-2-hin'!B36="","",'Entry sheet-2-hin'!B36) ->  | C41: =IF('Entry sheet-2-hin'!C36="","",CONCATENATE(B41,'Entry sheet-2-hin'!C36)) ->  | D41: =IF('Entry sheet-2-hin'!D36="","",CONCATENATE(B41,'Entry sheet-2-hin'!D36)) ->  | E41: =IF('Entry sheet-2-hin'!E36="","",CONCATENATE(B41,'Entry sheet-2-hin'!E36)) ->  | F41: =IF('Entry sheet-2-hin'!F36="","",CONCATENATE(B41,'Entry sheet-2-hin'!F36)) -> 
A42: =IF(B42="","",IF(L42="c","C",MAX($A$14:A41)+1)) ->  | B42: =IF('Entry sheet-2-hin'!B37="","",'Entry sheet-2-hin'!B37) ->  | C42: =IF('Entry sheet-2-hin'!C37="","",CONCATENATE(B42,'Entry sheet-2-hin'!C37)) ->  | D42: =IF('Entry sheet-2-hin'!D37="","",CONCATENATE(B42,'Entry sheet-2-hin'!D37)) ->  | E42: =IF('Entry sheet-2-hin'!E37="","",CONCATENATE(B42,'Entry sheet-2-hin'!E37)) ->  | F42: =IF('Entry sheet-2-hin'!F37="","",CONCATENATE(B42,'Entry sheet-2-hin'!F37)) -> 
A43: =IF(B43="","",IF(L43="c","C",MAX($A$14:A42)+1)) ->  | B43: =IF('Entry sheet-2-hin'!B38="","",'Entry sheet-2-hin'!B38) ->  | C43: =IF('Entry sheet-2-hin'!C38="","",CONCATENATE(B43,'Entry sheet-2-hin'!C38)) ->  | D43: =IF('Entry sheet-2-hin'!D38="","",CONCATENATE(B43,'Entry sheet-2-hin'!D38)) ->  | E43: =IF('Entry sheet-2-hin'!E38="","",CONCATENATE(B43,'Entry sheet-2-hin'!E38)) ->  | F43: =IF('Entry sheet-2-hin'!F38="","",CONCATENATE(B43,'Entry sheet-2-hin'!F38)) -> 
A44: =IF(B44="","",IF(L44="c","C",MAX($A$14:A43)+1)) ->  | B44: =IF('Entry sheet-2-hin'!B39="","",'Entry sheet-2-hin'!B39) ->  | C44: =IF('Entry sheet-2-hin'!C39="","",CONCATENATE(B44,'Entry sheet-2-hin'!C39)) ->  | D44: =IF('Entry sheet-2-hin'!D39="","",CONCATENATE(B44,'Entry sheet-2-hin'!D39)) ->  | E44: =IF('Entry sheet-2-hin'!E39="","",CONCATENATE(B44,'Entry sheet-2-hin'!E39)) ->  | F44: =IF('Entry sheet-2-hin'!F39="","",CONCATENATE(B44,'Entry sheet-2-hin'!F39)) -> 
A45: =IF(B45="","",IF(L45="c","C",MAX($A$14:A44)+1)) ->  | B45: =IF('Entry sheet-2-hin'!B40="","",'Entry sheet-2-hin'!B40) ->  | C45: =IF('Entry sheet-2-hin'!C40="","",CONCATENATE(B45,'Entry sheet-2-hin'!C40)) ->  | D45: =IF('Entry sheet-2-hin'!D40="","",CONCATENATE(B45,'Entry sheet-2-hin'!D40)) ->  | E45: =IF('Entry sheet-2-hin'!E40="","",CONCATENATE(B45,'Entry sheet-2-hin'!E40)) ->  | F45: =IF('Entry sheet-2-hin'!F40="","",CONCATENATE(B45,'Entry sheet-2-hin'!F40)) -> 
A46: =IF(B46="","",IF(L46="c","C",MAX($A$14:A45)+1)) -> 15 | B46: =IF('Entry sheet-2-hin'!B41="","",'Entry sheet-2-hin'!B41) -> 4 | C46: =IF('Entry sheet-2-hin'!C41="","",CONCATENATE(B46,'Entry sheet-2-hin'!C41)) -> 4सम | D46: =IF('Entry sheet-2-hin'!D41="","",CONCATENATE(B46,'Entry sheet-2-hin'!D41)) -> 4सामान्य | E46: =IF('Entry sheet-2-hin'!E41="","",CONCATENATE(B46,'Entry sheet-2-hin'!E41)) -> 4लउ३ | F46: =IF('Entry sheet-2-hin'!F41="","",CONCATENATE(B46,'Entry sheet-2-hin'!F41)) -> 4ग | G46: किसने किससे कहा ? किस पाठ से लिया गाया है - यह मेरा बेटा, यह मेरी बेटी । | Z46: 4ग | AA46: 4सामान्य | AB46: 4सम | AC46: 4लउ३ | AD46: 4सम4सामान्य4लउ३ | AE46: 4लउ३4ग | AF46: 44लउ३ | AG46: 4लउ३ | AH46: 44सम | AI46: 44लउ३ | AJ46: 44सामान्य | AK46: 44सम4लउ३
A47: =IF(B47="","",IF(L47="c","C",MAX($A$14:A46)+1)) -> 16 | B47: =IF('Entry sheet-2-hin'!B42="","",'Entry sheet-2-hin'!B42) -> 13 | C47: =IF('Entry sheet-2-hin'!C42="","",CONCATENATE(B47,'Entry sheet-2-hin'!C42)) -> 13रस | D47: =IF('Entry sheet-2-hin'!D42="","",CONCATENATE(B47,'Entry sheet-2-hin'!D42)) -> 13कठिन | E47: =IF('Entry sheet-2-hin'!E42="","",CONCATENATE(B47,'Entry sheet-2-hin'!E42)) -> 13लउ३ | F47: =IF('Entry sheet-2-hin'!F42="","",CONCATENATE(B47,'Entry sheet-2-hin'!F42)) -> 13प | G47: निम्नलिखित कवितांश का भावार्थ भावार्थ लिखिए । फुलों - सा महकूँ मैं विहगों - सा चहकूँ मैं गुंजरित कर वन-उपवन कोयल - सा कुहुकूँ मैं मेरी अभीलाषा है । | Z47: 13प | AA47: 13कठिन | AB47: 13रस | AC47: 13लउ३ | AD47: 13रस13कठिन13लउ३ | AE47: 13लउ३13प | AF47: 1313लउ३ | AG47: 13लउ३ | AH47: 1313रस | AI47: 1313लउ३ | AJ47: 1313कठिन | AK47: 1313रस13लउ३
A48: =IF(B48="","",IF(L48="c","C",MAX($A$14:A47)+1)) ->  | B48: =IF('Entry sheet-2-hin'!B43="","",'Entry sheet-2-hin'!B43) ->  | C48: =IF('Entry sheet-2-hin'!C43="","",CONCATENATE(B48,'Entry sheet-2-hin'!C43)) ->  | D48: =IF('Entry sheet-2-hin'!D43="","",CONCATENATE(B48,'Entry sheet-2-hin'!D43)) ->  | E48: =IF('Entry sheet-2-hin'!E43="","",CONCATENATE(B48,'Entry sheet-2-hin'!E43)) ->  | F48: =IF('Entry sheet-2-hin'!F43="","",CONCATENATE(B48,'Entry sheet-2-hin'!F43)) -> 
A49: =IF(B49="","",IF(L49="c","C",MAX($A$14:A48)+1)) ->  | B49: =IF('Entry sheet-2-hin'!B44="","",'Entry sheet-2-hin'!B44) ->  | C49: =IF('Entry sheet-2-hin'!C44="","",CONCATENATE(B49,'Entry sheet-2-hin'!C44)) ->  | D49: =IF('Entry sheet-2-hin'!D44="","",CONCATENATE(B49,'Entry sheet-2-hin'!D44)) ->  | E49: =IF('Entry sheet-2-hin'!E44="","",CONCATENATE(B49,'Entry sheet-2-hin'!E44)) ->  | F49: =IF('Entry sheet-2-hin'!F44="","",CONCATENATE(B49,'Entry sheet-2-hin'!F44)) -> 
A50: =IF(B50="","",IF(L50="c","C",MAX($A$14:A49)+1)) ->  | B50: =IF('Entry sheet-2-hin'!B45="","",'Entry sheet-2-hin'!B45) ->  | C50: =IF('Entry sheet-2-hin'!C45="","",CONCATENATE(B50,'Entry sheet-2-hin'!C45)) ->  | D50: =IF('Entry sheet-2-hin'!D45="","",CONCATENATE(B50,'Entry sheet-2-hin'!D45)) ->  | E50: =IF('Entry sheet-2-hin'!E45="","",CONCATENATE(B50,'Entry sheet-2-hin'!E45)) ->  | F50: =IF('Entry sheet-2-hin'!F45="","",CONCATENATE(B50,'Entry sheet-2-hin'!F45)) -> 
A51: =IF(B51="","",IF(L51="c","C",MAX($A$14:A50)+1)) -> 17 | B51: =IF('Entry sheet-2-hin'!B46="","",'Entry sheet-2-hin'!B46) -> 1 | C51: =IF('Entry sheet-2-hin'!C46="","",CONCATENATE(B51,'Entry sheet-2-hin'!C46)) -> 1स्म | D51: =IF('Entry sheet-2-hin'!D46="","",CONCATENATE(B51,'Entry sheet-2-hin'!D46)) -> 1सामान्य | E51: =IF('Entry sheet-2-hin'!E46="","",CONCATENATE(B51,'Entry sheet-2-hin'!E46)) -> 1दीउ४ | F51: =IF('Entry sheet-2-hin'!F46="","",CONCATENATE(B51,'Entry sheet-2-hin'!F46)) -> 1प | G51: शिकागो नगर के सर्वधर्म सम्मेलन के बारे में लिखिए । | Z51: 1प | AA51: 1सामान्य | AB51: 1स्म | AC51: 1दीउ४ | AD51: 1स्म1सामान्य1दीउ४ | AE51: 1दीउ४1प | AF51: 11दीउ४ | AG51: 1दीउ४ | AH51: 11स्म | AI51: 11दीउ४ | AJ51: 11सामान्य | AK51: 11स्म1दीउ४
A52: =IF(B52="","",IF(L52="c","C",MAX($A$14:A51)+1)) -> 18 | B52: =IF('Entry sheet-2-hin'!B47="","",'Entry sheet-2-hin'!B47) -> 12 | C52: =IF('Entry sheet-2-hin'!C47="","",CONCATENATE(B52,'Entry sheet-2-hin'!C47)) -> 12सम | D52: =IF('Entry sheet-2-hin'!D47="","",CONCATENATE(B52,'Entry sheet-2-hin'!D47)) -> 12सामान्य | E52: =IF('Entry sheet-2-hin'!E47="","",CONCATENATE(B52,'Entry sheet-2-hin'!E47)) -> 12दीउ४ | F52: =IF('Entry sheet-2-hin'!F47="","",CONCATENATE(B52,'Entry sheet-2-hin'!F47)) -> 12ग | G52: इस पद्य भाग की पूर्ति कीजिए - पहले पतंग -------------------------------------- --------------------------------------------------- ----------------------------------------------------- ----------------------------------निभाना सीखा ॥ | Z52: 12ग | AA52: 12सामान्य | AB52: 12सम | AC52: 12दीउ४ | AD52: 12सम12सामान्य12दीउ४ | AE52: 12दीउ४12ग | AF52: 1212दीउ४ | AG52: 12दीउ४ | AH52: 1212सम | AI52: 1212दीउ४ | AJ52: 1212सामान्य | AK52: 1212सम12दीउ४
A53: =IF(B53="","",IF(L53="c","C",MAX($A$14:A52)+1)) ->  | B53: =IF('Entry sheet-2-hin'!B48="","",'Entry sheet-2-hin'!B48) ->  | C53: =IF('Entry sheet-2-hin'!C48="","",CONCATENATE(B53,'Entry sheet-2-hin'!C48)) ->  | D53: =IF('Entry sheet-2-hin'!D48="","",CONCATENATE(B53,'Entry sheet-2-hin'!D48)) ->  | E53: =IF('Entry sheet-2-hin'!E48="","",CONCATENATE(B53,'Entry sheet-2-hin'!E48)) ->  | F53: =IF('Entry sheet-2-hin'!F48="","",CONCATENATE(B53,'Entry sheet-2-hin'!F48)) -> 
A54: =IF(B54="","",IF(L54="c","C",MAX($A$14:A53)+1)) ->  | B54: =IF('Entry sheet-2-hin'!B49="","",'Entry sheet-2-hin'!B49) ->  | C54: =IF('Entry sheet-2-hin'!C49="","",CONCATENATE(B54,'Entry sheet-2-hin'!C49)) ->  | D54: =IF('Entry sheet-2-hin'!D49="","",CONCATENATE(B54,'Entry sheet-2-hin'!D49)) ->  | E54: =IF('Entry sheet-2-hin'!E49="","",CONCATENATE(B54,'Entry sheet-2-hin'!E49)) ->  | F54: =IF('Entry sheet-2-hin'!F49="","",CONCATENATE(B54,'Entry sheet-2-hin'!F49)) -> 
A55: =IF(B55="","",IF(L55="c","C",MAX($A$14:A54)+1)) -> 19 | B55: =IF('Entry sheet-2-hin'!B50="","",'Entry sheet-2-hin'!B50) -> 24 | C55: =IF('Entry sheet-2-hin'!C50="","",CONCATENATE(B55,'Entry sheet-2-hin'!C50)) -> 24सम | D55: =IF('Entry sheet-2-hin'!D50="","",CONCATENATE(B55,'Entry sheet-2-hin'!D50)) -> 24सामान्य | E55: =IF('Entry sheet-2-hin'!E50="","",CONCATENATE(B55,'Entry sheet-2-hin'!E50)) -> 24बवि | F55: =IF('Entry sheet-2-hin'!F50="","",CONCATENATE(B55,'Entry sheet-2-hin'!F50)) -> 24व्या | G55: ‘बात’ का अन्यवचन रूप है - अ) बात आ) बातों इ) बातें ई) बाताएँ | Z55: 24व्या | AA55: 24सामान्य | AB55: 24सम | AC55: 24बवि | AD55: 24सम24सामान्य24बवि | AE55: 24बवि24व्या | AF55: 2424बवि | AG55: 24बवि | AH55: 2424सम | AI55: 2424बवि | AJ55: 2424सामान्य | AK55: 2424सम24बवि
A56: =IF(B56="","",IF(L56="c","C",MAX($A$14:A55)+1)) -> 20 | B56: =IF('Entry sheet-2-hin'!B51="","",'Entry sheet-2-hin'!B51) -> 24 | C56: =IF('Entry sheet-2-hin'!C51="","",CONCATENATE(B56,'Entry sheet-2-hin'!C51)) -> 24सम | D56: =IF('Entry sheet-2-hin'!D51="","",CONCATENATE(B56,'Entry sheet-2-hin'!D51)) -> 24कठिन | E56: =IF('Entry sheet-2-hin'!E51="","",CONCATENATE(B56,'Entry sheet-2-hin'!E51)) -> 24बवि | F56: =IF('Entry sheet-2-hin'!F51="","",CONCATENATE(B56,'Entry sheet-2-hin'!F51)) -> 24व्या | G56: ‘ठहरना’ का द्वितीय प्रेरणार्थक क्रिया रूप है - अ) ठहरना आ) ठहराना इ) ठहर ई) ठहरवाना | Z56: 24व्या | AA56: 24कठिन | AB56: 24सम | AC56: 24बवि | AD56: 24सम24कठिन24बवि | AE56: 24बवि24व्या | AF56: 2424बवि | AG56: 24बवि | AH56: 2424सम | AI56: 2424बवि | AJ56: 2424कठिन | AK56: 2424सम24बवि
A57: =IF(B57="","",IF(L57="c","C",MAX($A$14:A56)+1)) -> 21 | B57: =IF('Entry sheet-2-hin'!B52="","",'Entry sheet-2-hin'!B52) -> 24 | C57: =IF('Entry sheet-2-hin'!C52="","",CONCATENATE(B57,'Entry sheet-2-hin'!C52)) -> 24सम | D57: =IF('Entry sheet-2-hin'!D52="","",CONCATENATE(B57,'Entry sheet-2-hin'!D52)) -> 24सामान्य | E57: =IF('Entry sheet-2-hin'!E52="","",CONCATENATE(B57,'Entry sheet-2-hin'!E52)) -> 24बवि | F57: =IF('Entry sheet-2-hin'!F52="","",CONCATENATE(B57,'Entry sheet-2-hin'!F52)) -> 24व्या | G57: राम ने दरवाजा खोला । इस वाक्य में प्रयुक्त कारक नाम है - अ) कर्म आ) कर्ता इ) करण ई) संबंध | Z57: 24व्या | AA57: 24सामान्य | AB57: 24सम | AC57: 24बवि | AD57: 24सम24सामान्य24बवि | AE57: 24बवि24व्या | AF57: 2424बवि | AG57: 24बवि | AH57: 2424सम | AI57: 2424बवि | AJ57: 2424सामान्य | AK57: 2424सम24बवि
A58: =IF(B58="","",IF(L58="c","C",MAX($A$14:A57)+1)) -> 22 | B58: =IF('Entry sheet-2-hin'!B53="","",'Entry sheet-2-hin'!B53) -> 24 | C58: =IF('Entry sheet-2-hin'!C53="","",CONCATENATE(B58,'Entry sheet-2-hin'!C53)) -> 24सम | D58: =IF('Entry sheet-2-hin'!D53="","",CONCATENATE(B58,'Entry sheet-2-hin'!D53)) -> 24सरल | E58: =IF('Entry sheet-2-hin'!E53="","",CONCATENATE(B58,'Entry sheet-2-hin'!E53)) -> 24बवि | F58: =IF('Entry sheet-2-hin'!F53="","",CONCATENATE(B58,'Entry sheet-2-hin'!F53)) -> 24व्या | G58: ‘धर्म’ का विलोम रूप है - अ) अधर्म आ) नधर्म इ) धर्महीन ई) पाप | Z58: 24व्या | AA58: 24सरल | AB58: 24सम | AC58: 24बवि | AD58: 24सम24सरल24बवि | AE58: 24बवि24व्या | AF58: 2424बवि | AG58: 24बवि | AH58: 2424सम | AI58: 2424बवि | AJ58: 2424सरल | AK58: 2424सम24बवि
A59: =IF(B59="","",IF(L59="c","C",MAX($A$14:A58)+1)) ->  | B59: =IF('Entry sheet-2-hin'!B54="","",'Entry sheet-2-hin'!B54) ->  | C59: =IF('Entry sheet-2-hin'!C54="","",CONCATENATE(B59,'Entry sheet-2-hin'!C54)) ->  | D59: =IF('Entry sheet-2-hin'!D54="","",CONCATENATE(B59,'Entry sheet-2-hin'!D54)) ->  | E59: =IF('Entry sheet-2-hin'!E54="","",CONCATENATE(B59,'Entry sheet-2-hin'!E54)) ->  | F59: =IF('Entry sheet-2-hin'!F54="","",CONCATENATE(B59,'Entry sheet-2-hin'!F54)) -> 
A60: =IF(B60="","",IF(L60="c","C",MAX($A$14:A59)+1)) ->  | B60: =IF('Entry sheet-2-hin'!B55="","",'Entry sheet-2-hin'!B55) ->  | C60: =IF('Entry sheet-2-hin'!C55="","",CONCATENATE(B60,'Entry sheet-2-hin'!C55)) ->  | D60: =IF('Entry sheet-2-hin'!D55="","",CONCATENATE(B60,'Entry sheet-2-hin'!D55)) ->  | E60: =IF('Entry sheet-2-hin'!E55="","",CONCATENATE(B60,'Entry sheet-2-hin'!E55)) ->  | F60: =IF('Entry sheet-2-hin'!F55="","",CONCATENATE(B60,'Entry sheet-2-hin'!F55)) -> 
A61: =IF(B61="","",IF(L61="c","C",MAX($A$14:A60)+1)) ->  | B61: =IF('Entry sheet-2-hin'!B56="","",'Entry sheet-2-hin'!B56) ->  | C61: =IF('Entry sheet-2-hin'!C56="","",CONCATENATE(B61,'Entry sheet-2-hin'!C56)) ->  | D61: =IF('Entry sheet-2-hin'!D56="","",CONCATENATE(B61,'Entry sheet-2-hin'!D56)) ->  | E61: =IF('Entry sheet-2-hin'!E56="","",CONCATENATE(B61,'Entry sheet-2-hin'!E56)) ->  | F61: =IF('Entry sheet-2-hin'!F56="","",CONCATENATE(B61,'Entry sheet-2-hin'!F56)) -> 
A62: =IF(B62="","",IF(L62="c","C",MAX($A$14:A61)+1)) ->  | B62: =IF('Entry sheet-2-hin'!B57="","",'Entry sheet-2-hin'!B57) ->  | C62: =IF('Entry sheet-2-hin'!C57="","",CONCATENATE(B62,'Entry sheet-2-hin'!C57)) ->  | D62: =IF('Entry sheet-2-hin'!D57="","",CONCATENATE(B62,'Entry sheet-2-hin'!D57)) ->  | E62: =IF('Entry sheet-2-hin'!E57="","",CONCATENATE(B62,'Entry sheet-2-hin'!E57)) ->  | F62: =IF('Entry sheet-2-hin'!F57="","",CONCATENATE(B62,'Entry sheet-2-hin'!F57)) -> 
A63: =IF(B63="","",IF(L63="c","C",MAX($A$14:A62)+1)) ->  | B63: =IF('Entry sheet-2-hin'!B58="","",'Entry sheet-2-hin'!B58) ->  | C63: =IF('Entry sheet-2-hin'!C58="","",CONCATENATE(B63,'Entry sheet-2-hin'!C58)) ->  | D63: =IF('Entry sheet-2-hin'!D58="","",CONCATENATE(B63,'Entry sheet-2-hin'!D58)) ->  | E63: =IF('Entry sheet-2-hin'!E58="","",CONCATENATE(B63,'Entry sheet-2-hin'!E58)) ->  | F63: =IF('Entry sheet-2-hin'!F58="","",CONCATENATE(B63,'Entry sheet-2-hin'!F58)) -> 
A64: =IF(B64="","",IF(L64="c","C",MAX($A$14:A63)+1)) -> 23 | B64: =IF('Entry sheet-2-hin'!B59="","",'Entry sheet-2-hin'!B59) -> 20 | C64: =IF('Entry sheet-2-hin'!C59="","",CONCATENATE(B64,'Entry sheet-2-hin'!C59)) -> 20सम | D64: =IF('Entry sheet-2-hin'!D59="","",CONCATENATE(B64,'Entry sheet-2-hin'!D59)) -> 20सरल | E64: =IF('Entry sheet-2-hin'!E59="","",CONCATENATE(B64,'Entry sheet-2-hin'!E59)) -> 20अलउ | F64: =IF('Entry sheet-2-hin'!F59="","",CONCATENATE(B64,'Entry sheet-2-hin'!F59)) -> 20र | G64: यह सही है कि इन दोनों कुछ ऐसा माहौल बना है कि ईमानदारी से मेहनत करके जीविका चलाने वाले निरीह और भोले-भोले श्रमजीवी पिस रहे हैं और झूठ तथा फरेब का रोजगार करने वाले फल फूल रहे हैं । ईमानदारी को मूर्खता का पर्याय समझा जाने लगा है, सच्चाई केवल भीरु और बेबस लोगों के हिस्से पड़ी है । ऐसे स्थिति में जीवन के मूल्यों के बारे में लोगों की आस्था ही हिलने लगी है । सदा मनुष्य-बुद्धि नई परिस्थितियों का सामने करने के लिए नए सामाजिक विधि निषेधों को बनाती है, उनके ठीक न साबित होने पर उन्हें बदलती हैं । | Z64: 20र | AA64: 20सरल | AB64: 20सम | AC64: 20अलउ | AD64: 20सम20सरल20अलउ | AE64: 20अलउ20र | AF64: 2020अलउ | AG64: 20अलउ | AH64: 2020सम | AI64: 2020अलउ | AJ64: 2020सरल | AK64: 2020सम20अलउ
A65: =IF(B65="","",IF(L65="c","C",MAX($A$14:A64)+1)) -> 24 | B65: =IF('Entry sheet-2-hin'!B60="","",'Entry sheet-2-hin'!B60) -> 20 | C65: =IF('Entry sheet-2-hin'!C60="","",CONCATENATE(B65,'Entry sheet-2-hin'!C60)) -> 20सम | D65: =IF('Entry sheet-2-hin'!D60="","",CONCATENATE(B65,'Entry sheet-2-hin'!D60)) -> 20सरल | E65: =IF('Entry sheet-2-hin'!E60="","",CONCATENATE(B65,'Entry sheet-2-hin'!E60)) -> 20अलउ | F65: =IF('Entry sheet-2-hin'!F60="","",CONCATENATE(B65,'Entry sheet-2-hin'!F60)) -> 20र | G65: 1. आजकल किनका बोल बाला है ? | Z65: 20र | AA65: 20सरल | AB65: 20सम | AC65: 20अलउ | AD65: 20सम20सरल20अलउ | AE65: 20अलउ20र | AF65: 2020अलउ | AG65: 20अलउ | AH65: 2020सम | AI65: 2020अलउ | AJ65: 2020सरल | AK65: 2020सम20अलउ
A66: =IF(B66="","",IF(L66="c","C",MAX($A$14:A65)+1)) -> 25 | B66: =IF('Entry sheet-2-hin'!B61="","",'Entry sheet-2-hin'!B61) -> 20 | C66: =IF('Entry sheet-2-hin'!C61="","",CONCATENATE(B66,'Entry sheet-2-hin'!C61)) -> 20सम | D66: =IF('Entry sheet-2-hin'!D61="","",CONCATENATE(B66,'Entry sheet-2-hin'!D61)) -> 20सरल | E66: =IF('Entry sheet-2-hin'!E61="","",CONCATENATE(B66,'Entry sheet-2-hin'!E61)) -> 20अलउ | F66: =IF('Entry sheet-2-hin'!F61="","",CONCATENATE(B66,'Entry sheet-2-hin'!F61)) -> 20र | G66: 2. सच्चाई किनके हिस्से का पर्याय मानी जाने लगी है ? | Z66: 20र | AA66: 20सरल | AB66: 20सम | AC66: 20अलउ | AD66: 20सम20सरल20अलउ | AE66: 20अलउ20र | AF66: 2020अलउ | AG66: 20अलउ | AH66: 2020सम | AI66: 2020अलउ | AJ66: 2020सरल | AK66: 2020सम20अलउ
A67: =IF(B67="","",IF(L67="c","C",MAX($A$14:A66)+1)) ->  | B67: =IF('Entry sheet-2-hin'!B62="","",'Entry sheet-2-hin'!B62) ->  | C67: =IF('Entry sheet-2-hin'!C62="","",CONCATENATE(B67,'Entry sheet-2-hin'!C62)) ->  | D67: =IF('Entry sheet-2-hin'!D62="","",CONCATENATE(B67,'Entry sheet-2-hin'!D62)) ->  | E67: =IF('Entry sheet-2-hin'!E62="","",CONCATENATE(B67,'Entry sheet-2-hin'!E62)) ->  | F67: =IF('Entry sheet-2-hin'!F62="","",CONCATENATE(B67,'Entry sheet-2-hin'!F62)) -> 
A68: =IF(B68="","",IF(L68="c","C",MAX($A$14:A67)+1)) ->  | B68: =IF('Entry sheet-2-hin'!B63="","",'Entry sheet-2-hin'!B63) ->  | C68: =IF('Entry sheet-2-hin'!C63="","",CONCATENATE(B68,'Entry sheet-2-hin'!C63)) ->  | D68: =IF('Entry sheet-2-hin'!D63="","",CONCATENATE(B68,'Entry sheet-2-hin'!D63)) ->  | E68: =IF('Entry sheet-2-hin'!E63="","",CONCATENATE(B68,'Entry sheet-2-hin'!E63)) ->  | F68: =IF('Entry sheet-2-hin'!F63="","",CONCATENATE(B68,'Entry sheet-2-hin'!F63)) -> 
A69: =IF(B69="","",IF(L69="c","C",MAX($A$14:A68)+1)) -> 26 | B69: =IF('Entry sheet-2-hin'!B64="","",'Entry sheet-2-hin'!B64) -> 21 | C69: =IF('Entry sheet-2-hin'!C64="","",CONCATENATE(B69,'Entry sheet-2-hin'!C64)) -> 21अ | D69: =IF('Entry sheet-2-hin'!D64="","",CONCATENATE(B69,'Entry sheet-2-hin'!D64)) -> 21सरल | E69: =IF('Entry sheet-2-hin'!E64="","",CONCATENATE(B69,'Entry sheet-2-hin'!E64)) -> 21अलउ | F69: =IF('Entry sheet-2-hin'!F64="","",CONCATENATE(B69,'Entry sheet-2-hin'!F64)) -> 21र | G69: उनके बचपन का नाम नरेंद्र देव था । | Z69: 21र | AA69: 21सरल | AB69: 21अ | AC69: 21अलउ | AD69: 21अ21सरल21अलउ | AE69: 21अलउ21र | AF69: 2121अलउ | AG69: 21अलउ | AH69: 2121अ | AI69: 2121अलउ | AJ69: 2121सरल | AK69: 2121अ21अलउ
A70: =IF(B70="","",IF(L70="c","C",MAX($A$14:A69)+1)) -> 27 | B70: =IF('Entry sheet-2-hin'!B65="","",'Entry sheet-2-hin'!B65) -> 21 | C70: =IF('Entry sheet-2-hin'!C65="","",CONCATENATE(B70,'Entry sheet-2-hin'!C65)) -> 21अ | D70: =IF('Entry sheet-2-hin'!D65="","",CONCATENATE(B70,'Entry sheet-2-hin'!D65)) -> 21सरल | E70: =IF('Entry sheet-2-hin'!E65="","",CONCATENATE(B70,'Entry sheet-2-hin'!E65)) -> 21अलउ | F70: =IF('Entry sheet-2-hin'!F65="","",CONCATENATE(B70,'Entry sheet-2-hin'!F65)) -> 21र | G70: शहर में क्यों आतंक छा गया था ? | Z70: 21र | AA70: 21सरल | AB70: 21अ | AC70: 21अलउ | AD70: 21अ21सरल21अलउ | AE70: 21अलउ21र | AF70: 2121अलउ | AG70: 21अलउ | AH70: 2121अ | AI70: 2121अलउ | AJ70: 2121सरल | AK70: 2121अ21अलउ
A71: =IF(B71="","",IF(L71="c","C",MAX($A$14:A70)+1)) ->  | B71: =IF('Entry sheet-2-hin'!B66="","",'Entry sheet-2-hin'!B66) ->  | C71: =IF('Entry sheet-2-hin'!C66="","",CONCATENATE(B71,'Entry sheet-2-hin'!C66)) ->  | D71: =IF('Entry sheet-2-hin'!D66="","",CONCATENATE(B71,'Entry sheet-2-hin'!D66)) ->  | E71: =IF('Entry sheet-2-hin'!E66="","",CONCATENATE(B71,'Entry sheet-2-hin'!E66)) ->  | F71: =IF('Entry sheet-2-hin'!F66="","",CONCATENATE(B71,'Entry sheet-2-hin'!F66)) -> 
A72: =IF(B72="","",IF(L72="c","C",MAX($A$14:A71)+1)) ->  | B72: =IF('Entry sheet-2-hin'!B67="","",'Entry sheet-2-hin'!B67) ->  | C72: =IF('Entry sheet-2-hin'!C67="","",CONCATENATE(B72,'Entry sheet-2-hin'!C67)) ->  | D72: =IF('Entry sheet-2-hin'!D67="","",CONCATENATE(B72,'Entry sheet-2-hin'!D67)) ->  | E72: =IF('Entry sheet-2-hin'!E67="","",CONCATENATE(B72,'Entry sheet-2-hin'!E67)) ->  | F72: =IF('Entry sheet-2-hin'!F67="","",CONCATENATE(B72,'Entry sheet-2-hin'!F67)) -> 
A73: =IF(B73="","",IF(L73="c","C",MAX($A$14:A72)+1)) -> 28 | B73: =IF('Entry sheet-2-hin'!B68="","",'Entry sheet-2-hin'!B68) -> 22 | C73: =IF('Entry sheet-2-hin'!C68="","",CONCATENATE(B73,'Entry sheet-2-hin'!C68)) -> 22अ | D73: =IF('Entry sheet-2-hin'!D68="","",CONCATENATE(B73,'Entry sheet-2-hin'!D68)) -> 22कठिन | E73: =IF('Entry sheet-2-hin'!E68="","",CONCATENATE(B73,'Entry sheet-2-hin'!E68)) -> 22दीउ४ | F73: =IF('Entry sheet-2-hin'!F68="","",CONCATENATE(B73,'Entry sheet-2-hin'!F68)) -> 22र | G73: अपनी पढ़ाई के बारे में बताते हुए अपने पिताजी को एक पत्र लिखिए । | Z73: 22र | AA73: 22कठिन | AB73: 22अ | AC73: 22दीउ४ | AD73: 22अ22कठिन22दीउ४ | AE73: 22दीउ४22र | AF73: 2222दीउ४ | AG73: 22दीउ४ | AH73: 2222अ | AI73: 2222दीउ४ | AJ73: 2222कठिन | AK73: 2222अ22दीउ४
A74: =IF(B74="","",IF(L74="c","C",MAX($A$14:A73)+1)) ->  | B74: =IF('Entry sheet-2-hin'!B69="","",'Entry sheet-2-hin'!B69) ->  | C74: =IF('Entry sheet-2-hin'!C69="","",CONCATENATE(B74,'Entry sheet-2-hin'!C69)) ->  | D74: =IF('Entry sheet-2-hin'!D69="","",CONCATENATE(B74,'Entry sheet-2-hin'!D69)) ->  | E74: =IF('Entry sheet-2-hin'!E69="","",CONCATENATE(B74,'Entry sheet-2-hin'!E69)) ->  | F74: =IF('Entry sheet-2-hin'!F69="","",CONCATENATE(B74,'Entry sheet-2-hin'!F69)) -> 
A75: =IF(B75="","",IF(L75="c","C",MAX($A$14:A74)+1)) -> 29 | B75: =IF('Entry sheet-2-hin'!B70="","",'Entry sheet-2-hin'!B70) -> 23 | C75: =IF('Entry sheet-2-hin'!C70="","",CONCATENATE(B75,'Entry sheet-2-hin'!C70)) -> 23अ | D75: =IF('Entry sheet-2-hin'!D70="","",CONCATENATE(B75,'Entry sheet-2-hin'!D70)) -> 23कठिन | E75: =IF('Entry sheet-2-hin'!E70="","",CONCATENATE(B75,'Entry sheet-2-hin'!E70)) -> 23दीउ४ | F75: =IF('Entry sheet-2-hin'!F70="","",CONCATENATE(B75,'Entry sheet-2-hin'!F70)) -> 23र | G75: इंटर्नेट क्रांति (अर्थ, लाभ, हानी, उपसंहार) | Z75: 23र | AA75: 23कठिन | AB75: 23अ | AC75: 23दीउ४ | AD75: 23अ23कठिन23दीउ४ | AE75: 23दीउ४23र | AF75: 2323दीउ४ | AG75: 23दीउ४ | AH75: 2323अ | AI75: 2323दीउ४ | AJ75: 2323कठिन | AK75: 2323अ23दीउ४
A76: =IF(B76="","",IF(L76="c","C",MAX($A$14:A75)+1)) -> 30 | B76: =IF('Entry sheet-2-hin'!B71="","",'Entry sheet-2-hin'!B71) -> 23 | C76: =IF('Entry sheet-2-hin'!C71="","",CONCATENATE(B76,'Entry sheet-2-hin'!C71)) -> 23अ | D76: =IF('Entry sheet-2-hin'!D71="","",CONCATENATE(B76,'Entry sheet-2-hin'!D71)) -> 23कठिन | E76: =IF('Entry sheet-2-hin'!E71="","",CONCATENATE(B76,'Entry sheet-2-hin'!E71)) -> 23दीउ४ | F76: =IF('Entry sheet-2-hin'!F71="","",CONCATENATE(B76,'Entry sheet-2-hin'!F71)) -> 23र | G76: त्योहारों का महत्व | Z76: 23र | AA76: 23कठिन | AB76: 23अ | AC76: 23दीउ४ | AD76: 23अ23कठिन23दीउ४ | AE76: 23दीउ४23र | AF76: 2323दीउ४ | AG76: 23दीउ४ | AH76: 2323अ | AI76: 2323दीउ४ | AJ76: 2323कठिन | AK76: 2323अ23दीउ४
A77: =IF(B77="","",IF(L77="c","C",MAX($A$14:A76)+1)) ->  | B77: =IF('Entry sheet-2-hin'!B72="","",'Entry sheet-2-hin'!B72) ->  | C77: =IF('Entry sheet-2-hin'!C72="","",CONCATENATE(B77,'Entry sheet-2-hin'!C72)) ->  | D77: =IF('Entry sheet-2-hin'!D72="","",CONCATENATE(B77,'Entry sheet-2-hin'!D72)) ->  | E77: =IF('Entry sheet-2-hin'!E72="","",CONCATENATE(B77,'Entry sheet-2-hin'!E72)) ->  | F77: =IF('Entry sheet-2-hin'!F72="","",CONCATENATE(B77,'Entry sheet-2-hin'!F72)) -> 

Sheet Question paper 90 marks
A1: ='Entry sheet-1-hin'!C2 -> सरकारी पदवि पूर्व कॉलेंज (प्रौ.शा.वि) गुरुगुंटा, ता : लिंगसुगूर
B2: प्रश्‍न पत्रिका - | C2: ='Entry sheet-1-hin'!C3 -> संकलनात्मक परीक्षा - १ २०१५-१६
A3: ='Entry sheet-1-hin'!C4 -> 9वीं | B3: ='Entry sheet-1-hin'!C5 -> हिंदी | E3: ='Entry sheet-1-hin'!A6 -> अंक | F3: ='Entry sheet-1-hin'!C6 -> 40
A4: खण्ड “ क ”
A5: [ गद्य, पद्य और पूरक वाचन ]
A6: I. निम्नलिखित प्रश्नों के उत्तर एक-एक वाक्य में लिखिए :- | F6: 8X1=8
A7: =IF(B7="","",1) -> 1 | B7: =IF('Entry sheet-3-hin'!G14="","",'Entry sheet-3-hin'!G14) -> विवेकानंद कब अमरिका गये ?
A8: =IF(B8="","",A7+1) -> 2 | B8: =IF('Entry sheet-3-hin'!G15="","",'Entry sheet-3-hin'!G15) -> बहन ने भाई के माथे पर क्या लगाया ?
A9: 3 | B9: =IF('Entry sheet-3-hin'!G16="","",'Entry sheet-3-hin'!G16) -> मौसी का दुपट्टा कैसे था ?
A10: 4 | B10: =IF('Entry sheet-3-hin'!G17="","",'Entry sheet-3-hin'!G17) -> भारत माता का हृदय कैसा है ?
B11: =IF('Entry sheet-3-hin'!G18="","",'Entry sheet-3-hin'!G18) -> 
B12: =IF('Entry sheet-3-hin'!G19="","",'Entry sheet-3-hin'!G19) -> 
B13: =IF('Entry sheet-3-hin'!G20="","",'Entry sheet-3-hin'!G20) -> 
B14: =IF('Entry sheet-3-hin'!G21="","",'Entry sheet-3-hin'!G21) -> 
A15: II. 9. स्तम्भ ‘क’ के वाक्यांशों के साथ स्तम्भ ‘ख’ के सही वाक्यंशों को जोडकर लिखिए :- | F15: 4X1=4
B16: स्तम्भ ‘क’ | C16: स्तम्भ ‘ख’
A17: अ | B17: =IF('Entry sheet-3-hin'!G22="","",'Entry sheet-3-hin'!G22) -> कुमारी नोबल | C17: =IF('Entry sheet-3-hin'!P22="","",'Entry sheet-3-hin'!P22) -> असहयोग चल रहा था ।
A18: आ | B18: =IF('Entry sheet-3-hin'!G23="","",'Entry sheet-3-hin'!G23) -> हर हिस्सा दूसरे से | C18: =IF('Entry sheet-3-hin'!P23="","",'Entry sheet-3-hin'!P23) -> धर्म परायण नारी
A19: इ | B19: =IF('Entry sheet-3-hin'!G24="","",'Entry sheet-3-hin'!G24) ->  | C19: =IF('Entry sheet-3-hin'!P24="","",'Entry sheet-3-hin'!P24) -> सिस्टर निवेदिता
A20: ई | B20: =IF('Entry sheet-3-hin'!G25="","",'Entry sheet-3-hin'!G25) ->  | C20: =IF('Entry sheet-3-hin'!P25="","",'Entry sheet-3-hin'!P25) -> असहयोग कर रहा था ।
C21: =IF('Entry sheet-3-hin'!P26="","",'Entry sheet-3-hin'!P26) -> 
C22: =IF('Entry sheet-3-hin'!P27="","",'Entry sheet-3-hin'!P27) -> 
A23: III. प्रथम दो पदों से सूचित संबंधों के अनुरूप तीसरे पद से संबंधित पद लिखिए :- | F23: 4X1=4
A24: =IF(B24="","",A14+2) ->  | B24: =IF('Entry sheet-3-hin'!G28="","",'Entry sheet-3-hin'!G28) -> बाहुबली : डॉ. हिरण्मय :: बस की यात्रा :------
A25: =IF(B25="","",A24+1) ->  | B25: =IF('Entry sheet-3-hin'!G29="","",'Entry sheet-3-hin'!G29) -> योगराज अपने घर से : एक कटोरा दूध लाया :: गोपाल अपने घर से :--
A26: =IF(B26="","",A25+1) ->  | B26: =IF('Entry sheet-3-hin'!G30="","",'Entry sheet-3-hin'!G30) -> 
B27: =IF('Entry sheet-3-hin'!G31="","",'Entry sheet-3-hin'!G31) -> 
A28: IV. निम्नलिखित प्रश्नों के उत्तर दो या तीन वाक्यों में लिखिए :- | F28: 11X2=22
A29: =IF(B29="","",A27+1) ->  | B29: =IF('Entry sheet-3-hin'!G32="","",'Entry sheet-3-hin'!G32) -> विवेकानंद ने भारत वासियों को क्या उपदेश दिये ?
A30: =IF(B30="","",A29+1) ->  | B30: =IF('Entry sheet-3-hin'!G33="","",'Entry sheet-3-hin'!G33) -> बहन ने भाई को कैसे विधा की ?
B31: =IF('Entry sheet-3-hin'!G34="","",'Entry sheet-3-hin'!G34) -> बस के बारे में डाक्टर मित्र ने लेखक से क्या कहा ?
B32: =IF('Entry sheet-3-hin'!G35="","",'Entry sheet-3-hin'!G35) -> हिमालय के बारे में कवि की भावना क्या है ?
B33: =IF('Entry sheet-3-hin'!G36="","",'Entry sheet-3-hin'!G36) -> कजाकी के साथ लेखक के क्षन कैसे बीतते थे ?
B34: =IF('Entry sheet-3-hin'!G37="","",'Entry sheet-3-hin'!G37) -> एक दिन कजाकी डाकखाने देर से पसूँचा । क्यों ?
B35: =IF('Entry sheet-3-hin'!G38="","",'Entry sheet-3-hin'!G38) -> 
B36: =IF('Entry sheet-3-hin'!G39="","",'Entry sheet-3-hin'!G39) -> 
B37: =IF('Entry sheet-3-hin'!G40="","",'Entry sheet-3-hin'!G40) -> 
B38: =IF('Entry sheet-3-hin'!G41="","",'Entry sheet-3-hin'!G41) -> 
B39: =IF('Entry sheet-3-hin'!G42="","",'Entry sheet-3-hin'!G42) -> 
B40: अथवा
B41: =IF('Entry sheet-3-hin'!G43="","",'Entry sheet-3-hin'!G43) -> 
A42: =IF(B42="","",A39+1) ->  | B42: =IF('Entry sheet-3-hin'!G44="","",'Entry sheet-3-hin'!G44) -> 
B43: अथवा
B44: =IF('Entry sheet-3-hin'!G45="","",'Entry sheet-3-hin'!G45) -> 
A45: V. निम्नलिखित प्रश्नों के उत्तर तीन - चार वाक्यों में लिखिए :- | F45: 5X3=15
A46: =IF(B46="","",A42+1) ->  | B46: =IF('Entry sheet-3-hin'!G46="","",'Entry sheet-3-hin'!G46) -> किसने किससे कहा ? किस पाठ से लिया गाया है - यह मेरा बेटा, यह मेरी बेटी ।
A47: =IF(B47="","",A46+1) ->  | B47: =IF('Entry sheet-3-hin'!G47="","",'Entry sheet-3-hin'!G47) -> निम्नलिखित कवितांश का भावार्थ भावार्थ लिखिए । फुलों - सा महकूँ मैं विहगों - सा चहकूँ मैं गुंजरित कर वन-उपवन कोयल - सा कुहुकूँ मैं मेरी अभीलाषा है ।
A48: =IF(B48="","",A47+1) ->  | B48: =IF('Entry sheet-3-hin'!G48="","",'Entry sheet-3-hin'!G48) -> 
A49: =IF(B49="","",A48+1) ->  | B49: =IF('Entry sheet-3-hin'!G49="","",'Entry sheet-3-hin'!G49) -> 
A50: =IF(B50="","",A49+1) ->  | B50: =IF('Entry sheet-3-hin'!G50="","",'Entry sheet-3-hin'!G50) -> 
A51: VI. निम्नलिखित प्रश्न का उत्तर चार - पाँच वाक्यों में लिखिए :- | F51: 2X4=8
A52: =IF(B52="","",A50+1) ->  | B52: =IF('Entry sheet-3-hin'!G51="","",'Entry sheet-3-hin'!G51) -> शिकागो नगर के सर्वधर्म सम्मेलन के बारे में लिखिए ।
B53: अथवा
B54: =IF('Entry sheet-3-hin'!G52="","",'Entry sheet-3-hin'!G52) -> इस पद्य भाग की पूर्ति कीजिए - पहले पतंग -------------------------------------- --------------------------------------------------- ----------------------------------------------------- ----------------------------------निभाना सीखा ॥
A55: =IF(B55="","",A52+1) ->  | B55: =IF('Entry sheet-3-hin'!G53="","",'Entry sheet-3-hin'!G53) ->  | C55: अथवा | D55: =IF('Entry sheet-3-hin'!G54="","",'Entry sheet-3-hin'!G54) -> 
A56: खण्ड “ ख ”
A57: [ व्याकरण ]
A58: VII. निम्नलिखित प्रश्नो के लिए चार-चार विकल्प दिए गए हैं, जिनमें एकमात्र सही उत्तर है । सही उत्तर चुनकर लिखिए :- | F58: 9X1=9
A59: =IF(B59="","",A55+1) ->  | B59: =IF('Entry sheet-3-hin'!G55="","",'Entry sheet-3-hin'!G55) -> ‘बात’ का अन्यवचन रूप है - अ) बात आ) बातों इ) बातें ई) बाताएँ
A60: =IF(B60="","",A59+1) ->  | B60: =IF('Entry sheet-3-hin'!G56="","",'Entry sheet-3-hin'!G56) -> ‘ठहरना’ का द्वितीय प्रेरणार्थक क्रिया रूप है - अ) ठहरना आ) ठहराना इ) ठहर ई) ठहरवाना
A61: =IF(B61="","",A60+1) ->  | B61: =IF('Entry sheet-3-hin'!G57="","",'Entry sheet-3-hin'!G57) -> राम ने दरवाजा खोला । इस वाक्य में प्रयुक्त कारक नाम है - अ) कर्म आ) कर्ता इ) करण ई) संबंध
A62: =IF(B62="","",A61+1) ->  | B62: =IF('Entry sheet-3-hin'!G58="","",'Entry sheet-3-hin'!G58) -> ‘धर्म’ का विलोम रूप है - अ) अधर्म आ) नधर्म इ) धर्महीन ई) पाप
B63: =IF('Entry sheet-3-hin'!G59="","",'Entry sheet-3-hin'!G59) -> 
B64: =IF('Entry sheet-3-hin'!G60="","",'Entry sheet-3-hin'!G60) -> 
B65: =IF('Entry sheet-3-hin'!G61="","",'Entry sheet-3-hin'!G61) -> 
B66: =IF('Entry sheet-3-hin'!G62="","",'Entry sheet-3-hin'!G62) -> 
B67: =IF('Entry sheet-3-hin'!G63="","",'Entry sheet-3-hin'!G63) -> 
A68: खण्ड “ ग ”
A69: [ रचना - अपठित गद्यांश, अनुवाद, पत्रलेखन और निबंध ]
A70: VIII. 42. गद्यांश पढकर निम्नलिखित प्रश्नों के उत्तर लिखिए :- | F70: 4X1=4
B71: =IF('Entry sheet-3-hin'!G64="","",'Entry sheet-3-hin'!G64) -> यह सही है कि इन दोनों कुछ ऐसा माहौल बना है कि ईमानदारी से मेहनत करके जीविका चलाने वाले निरीह और भोले-भोले श्रमजीवी पिस रहे हैं और झूठ तथा फरेब का रोजगार करने वाले फल फूल रहे हैं । ईमानदारी को मूर्खता का पर्याय समझा जाने लगा है, सच्चाई केवल भीरु और बेबस लोगों के हिस्से पड़ी है । ऐसे स्थिति में जीवन के मूल्यों के बारे में लोगों की आस्था ही हिलने लगी है । सदा मनुष्य-बुद्धि नई परिस्थितियों का सामने करने के लिए नए सामाजिक विधि निषेधों को बनाती है, उनके ठीक न साबित होने पर उन्हें बदलती हैं ।
B72: =IF('Entry sheet-3-hin'!G65="","",'Entry sheet-3-hin'!G65) -> 1. आजकल किनका बोल बाला है ?
B73: =IF('Entry sheet-3-hin'!G66="","",'Entry sheet-3-hin'!G66) -> 2. सच्चाई किनके हिस्से का पर्याय मानी जाने लगी है ?
B74: =IF('Entry sheet-3-hin'!G67="","",'Entry sheet-3-hin'!G67) -> 
B75: =IF('Entry sheet-3-hin'!G68="","",'Entry sheet-3-hin'!G68) -> 
A76: IX. निम्नलिखित वाक्यों का अनुवाद कन्नड या अंग्रेजी में कीजिए :- | F76: 4X1=4
A77: =IF(B77="","",A67+2) ->  | B77: =IF('Entry sheet-3-hin'!G69="","",'Entry sheet-3-hin'!G69) -> उनके बचपन का नाम नरेंद्र देव था ।
A78: =IF(B78="","",A77+1) ->  | B78: =IF('Entry sheet-3-hin'!G70="","",'Entry sheet-3-hin'!G70) -> शहर में क्यों आतंक छा गया था ?
A79: =IF(B79="","",A78+1) ->  | B79: =IF('Entry sheet-3-hin'!G71="","",'Entry sheet-3-hin'!G71) -> 
A80: =IF(B80="","",A79+1) ->  | B80: =IF('Entry sheet-3-hin'!G72="","",'Entry sheet-3-hin'!G72) -> 
A81: X.47. | B81: =IF('Entry sheet-3-hin'!G73="","",'Entry sheet-3-hin'!G73) -> अपनी पढ़ाई के बारे में बताते हुए अपने पिताजी को एक पत्र लिखिए । | F81: 4
B82: अथवा
B83: =IF('Entry sheet-3-hin'!G74="","",'Entry sheet-3-hin'!G74) -> 
A84: XI.48. | B84: किसी एक विषय पर निबंध लिखिए । | F84: 4
A85: =IF(B85="","",1) -> 1 | B85: =IF('Entry sheet-3-hin'!G75="","",'Entry sheet-3-hin'!G75) -> इंटर्नेट क्रांति (अर्थ, लाभ, हानी, उपसंहार)
A86: =IF(B86="","",A85+1) -> 2 | B86: =IF('Entry sheet-3-hin'!G76="","",'Entry sheet-3-hin'!G76) -> त्योहारों का महत्व
B87: =IF('Entry sheet-3-hin'!G77="","",'Entry sheet-3-hin'!G77) -> 
B88: ***************************************

Sheet instruction 90 marks
B2: 90 CAPÀUÀ¼À ಪ್ರಶ್ನೆ ಪತ್ರಿಕೆಯನ್ನು ತಯಾರಿಸಲು ನೀಲ ನಕ್ಷೆಯನ್ನು ಸಿದ್ಧಪಡಿಸುವುದು.
B3: * | C3: ¥Àæ±Éß ¥ÀwæPÉ ¹zÀÞ¥Àr¸À®Ä ¥ÁoÀUÀ¼À ¸ÀASÉå ªÀÄvÀÄÛ ¥Àæ±ÉßUÀ¼À C£ÀÄPÀæªÀÄ ¥ÀÆªÀð ¤zsÁðjvÀ. ¥ÁoÀUÀ½UÉ ¤UÀ¢üUÉÆ½¹gÀÄªÀ ¸ÀASÉåAiÀÄ£ÀÄß §¼À¹PÉÆAqÀÄ ¥Àæ±ÉßUÀ¼À£ÀÄß DAiÀÄÄÝPÉÆ¼Àî¨ÉÃPÀÄ. ¥ÀÆªÀð ¤zsÁðjvÀ ಪಾಠಗಳ ಸಂಖ್ಯೆಯನ್ನು ಮುಖ್ಯ ಪುಟ 1 ರಲ್ಲಿ ನಮೂಧಿಸಲಾಗಿದೆ.
B4: * | C4: B9 £À°è ¥ÀÆªÀð ¤zsÁðjvÀ ¥ÁoÀzÀ ¸ÀASÉåAiÀÄ£ÀÄß vÀÄA©PÉÆAqÀÄ C9 jAzÀ G9 gÀªÀgÉUÉ ¥Àæ±ÉßUÀ¼À ««zsÀ ¥ÀæPÁgÀUÀ¼À£ÀÄß DAiÉÄÌ ªÀiÁrPÉÆ½î. ¤ÃªÀÅ DAiÉÄÌ ªÀiÁrPÉÆAqÀ ¥ÁoÀzÀ ¸ÀASÉå ºÁUÀÆ ¥Àæ±ÉßUÀ¼À ««zsÀ ¥ÀæPÁgÀUÀ¼ÀÄ प्रश्‍न चुनना ಪುಟದಲ್ಲಿ PÁtÄªÀzÀjAzÀ ¥Àæ±ÉßUÀ¼À ««zsÀ ¥ÀæPÁgÀUÀ½UÉ C£ÀÄ¸ÁgÀªÁV ¥Àæ±ÉßAiÀÄ£ÀÄß DAiÀÄÄÝPÉÆ¼Àî®Ä ¸ÀºÁAiÀÄAiÀiÁUÀÄvÀÛzÉ. प्रश्‍न चुनना ಪುಟದಲ್ಲಿ "ಜಿ:ಎಕ್ಸ14" ನಲ್ಲಿ ಕೇವಲ ನಿಮಗೆ ಬೇಕಾದ ಪ್ರಶ್ನೆಗಳನ್ನು ಮಾತ್ರ ಆಯ್ದುಕೊಳ್ಳುವುದು..
B5: 90 CAPÀUÀ¼À ¤Ã® £ÀPÉëAiÀÄ°è ¥ÀÀæ±ÉßUÀ¼À£ÀÄß DAiÀÄÄÝPÉÆ¼ÀÄîªÀ C£ÀÄPÀæªÀÄtÂPÉ ( मुख्य पृष्ठ-2 £À°è B9 jAzÀ B72 gÀªÀgÉV£À PÁ®AUÀ¼À°è ¥ÁoÀzÀ ¸ÀASÉåAiÀÄ£ÀÄß £ÀªÀÄÆ¢ü¸ÀÄªÀÅzÀgÀ ªÀÄÆ®PÀ ) ನೀಲ ನಕ್ಷೆ ಸಿದ್ಧವಾದ ನಂತರ ಪ್ರಶ್ನ್ ಚುನನಾ ಪುಟದಲ್ಲಿ ನಿಮಗೆ ಬೇಕಾದ ಪ್ರಶ್ನೆಗಳನ್ನು ಆಯ್ದುಕೊಳ್ಳಿ. ನೀಲ ನಕ್ಷೆಯಲ್ಲಿ ಯಾವ ಪ್ರಶ್ನೆಗೆ ಯಾವ ಪಾಠದ ಸಂಖ್ಯೆಯನ್ನು ನೀಡಿರುತ್ತೀರೊ ಆ ಪಾಠದ ಪ್ರಶ್ನೆಗಳು ಪ್ರಶ್ನ್ ಚುನನಾ ಪುಟದಲ್ಲಿ ಆಯ್ದುಕೊಳ್ಳಬಹುದು.
B6: ನೀಲ ನಕ್ಷೆಯ ಸಹಿತ ಪ್ರಶ್ನೆ ಪತ್ರಿಕೆಯು ಕೇವಲ 9 ನೇ ತರಗತಿಗೆ ಮಾತ್ರ. ನೀವು ಕೇವಲ ನೀಲ ನಕ್ಷೆಗಾಗಿ ಈ ತಂತ್ರಾಂಶವನ್ನು ಬಳಸುವುದಾದರೆ ಯಾವ ತರಗತಿಗೆ ಬೇಕಾದರು ಬಳಸಿಕೊಳ್ಳಬಹುದು.(ಹಿಂದಿ ವಿಷಯಕ್ಕೆ ಮಾತ್ರ)
C7: ಮುಖ್ಯಪುಟ2 | D7: ಮುಖ್ಯ ಪುಟ 2 ನಲ್ಲಿ ಈ ಕೆಳಗಿನ ಸೂಚನೆಯಂತೆ ನೀಲ ನಕ್ಷೆಯನ್ನು ಸಿದ್ಧಪಡಿಸಿ. | T7: प्रश्‍न चुनना
B8: 1 | C8: B9 - B16 | E8: MAzÀÄ CAPÀzÀ 3 ¥Àæ±ÉßUÀ¼À£ÀÄß DAiÀÄÄÝPÉÆ½î. ( 1 CAPÀzÀ ¥Àæ±ÉßUÀ½UÉ AiÀiÁªÀ ¥ÁoÀ¢AzÀ ¥Àæ±ÉßUÀ¼À£ÀÄß PÉÆqÀ°aÑ¸ÀÄ«gÉÆ, D ¥ÁoÀzÀ ¸ÀASÉåAiÀÄ£ÀÄß `©9' ನಲ್ಲಿ ತುಂಬಿ "ಸಿ9" ನಲ್ಲಿ ಪ್ರಶ್ನೆಯ ಉದ್ದೇಶ, "ಡಿ9" ನಲ್ಲಿ ಪ್ರಶ್ನೆಯ ಸ್ತರ, "ಇ9" ನಲ್ಲಿ ಪ್ರಶ್ನೆಯ ಪ್ರಕಾರ, "ಎಫ್9" ನಲ್ಲಿ ವಿಷಯ ವಸ್ತು, ಹಾಗೂ "ಜಿ9" ನಲ್ಲಿ ಆಯ್ಕೆ ಪ್ರಶ್ನೆಯಾದರೆ "ಸಿ" ಎಂದು ಆಯ್ದುಕೊಳ್ಳಿ ಇಲ್ಲವಾದರೆ ಖಾಲಿ ಬಿಡಿ. EzÉÃ ¤AiÀÄªÀÄªÀ£ÀÄß J¯Áè ¥Àæ±ÉßUÀ¼À DAiÉÄÌUÀÆ C£ÀÄ¸Àj¹.) | T8: G:X14 - G:X21
B9: 2 | C9: B17 - B22 | E9: ºÉÆA¢¹ §gÉAiÀÄÄªÀ 4 ¥Àæ±ÉßUÀ¼ÀÄ. B21 ªÀÄvÀÄÛ B22 gÀ ªÀÄÄA¢£À G PÁ®A£À°è wæ¨sÀÄeÁPÁgÀzÀ ªÉÄÃ¯É ªÀiË¸ï QèPï ªÀiÁqÀÄªÀÅzÀgÀ ªÀÄÆ®PÀ C JAzÀÄ DAiÉÄÌ ªÀiÁrPÉÆ½î. »ÃUÉ ªÀiÁqÀÄªÀÅzÀjAzÀ ¤Ã® £ÀPÉëAiÀÄ°è CªÀÅUÀ¼À CAPÀUÀ¼À£ÀÄß vÉÆÃj¸ÀÄªÀÅ¢®è ºÁUÀÆ ºÉÆA¢¹ §gÉAiÀÄÄªÀ 4 ¥Àæ±ÉßUÀ¼À£ÀÄß ªÀiÁvÀæ £ÁªÀÅ DAiÀÄÄÝPÉÆAqÀAvÁUÀÄvÀÛzÉ. ¥Àæ±Éß ¥ÀwæPÉAiÀÄ ¥ÀÄlzÀ°è ºÉÆA¢¹ §gÉAiÀÄÄªÀ ¥Àæ±ÉßUÀ¼À£ÀÄß DAiÀÄÄÝPÉÆ¼ÀÄîªÁUÀ G ¤AzÀ O ªÀgÉUÉ `PÀ' ¥ÀnÖAiÀÄ ¥Àæ±ÉßUÀ¼À£ÀÄß ºÁUÀÆ P ¤AzÀ X ªÀgÉUÉ `RÀ' ¥ÀnÖAiÀÄ ¥Àæ±ÉßUÀ¼À£ÀÄß DAiÀÄÄÝPÉÆ¼Àî®Ä CªÀPÁ±À PÀ°à¸À¯ÁVzÉ. B21 ªÀÄvÀÄÛ B22 gÀ ªÀÄÄA¢£À PÉÃªÀ® `R' ¥ÀnÖAiÀÄ ¥Àæ±ÉßUÀ¼À£ÀÄß DAiÀÄÄÝPÉÆ¼Àî®Ä CªÀPÁ±À PÀ°à¹zÉ, `PÀ' ¥ÀlÖAiÀÄ ¥Àæ±ÉßUÀ½UÉ CªÀPÁ±À PÀ°à¹gÀÄªÀÅ¢®è. | T9: G:O22 - G:O25 - "ಕ" ಪಟ್ಟಿ P:X22 - P:X27 "ಖ" ಪಟ್ಟಿ
B10: 3 | C10: B23 - B26 | E10: C£ÀÄgÀÆ¥ÀvÁ 4 ¥Àæ±ÉßUÀ¼À£ÀÄß DAiÀÄÄÝPÉÆ½î. | T10: G:X28 - G:X31
B11: 4 | C11: B27 - B40 | E11: 2 CAPÀUÀ¼À 12 ¥Àæ±ÉßUÀ¼À£ÀÄß DAiÀÄÄÝPÉÆ½î. 11 ªÀÄvÀÄÛ 12 £ÉÃ ¥Àæ±ÉßUÀ¼À£ÀÄß ¥ÀÆgÀPÀ ªÁZÀ£À¢AzÀ DAiÀÄÄÝPÉÆ½î. 11 £ÉÃ ¥Àæ±ÉßUÉ JgÀqÀÄ ¥Àæ±ÉßUÀ¼À£ÀÄß DAiÀÄÄÝPÉÆAqÀÄ, DAiÀÄÄÝPÉÆAqÀ JgÀqÀgÀ°è MAzÀ£ÀÄß `DAiÉÄÌ' ¥Àæ±Éß ªÀiÁrPÉÆ½î. CAzÀgÉ, AiÀiÁªÀ ¥Àæ±ÉßAiÀÄ£ÀÄß `DAiÉÄÌ' ¥Àæ±ÉßAiÀÄ£ÁßV¸À®Ä EaÒ¸ÀÄ«gÉÆ D ¥Àæ±ÉßAiÀÄ G PÁ®A£À°è C JAzÀÄ DAiÀÄÄÝPÉÆ½î. EzÉÃ PÀæªÀÄªÀ£ÀÄß 12 £ÉÃ ¥Àæ±ÉßAiÀÄ DAiÉÄÌUÀÄ C£ÀÄ¸Àj¹. | T11: G:X32- G:X45
B12: 5 | C12: B41 - B45 | E12: 3 CAPÀUÀ¼À 5 ¥Àæ±ÉßUÀ¼À£ÀÄß DAiÀÄÄÝPÉÆ½î. EzÀgÀ°è ¤ÃªÀÅ ¥ÀzÀåzÀ ¨sÁªÁxÀðªÀ£ÀÄß PÉÆqÀ°aÒ¹zÀ°è 5£ÉÃ ¥Àæ±ÉßAiÀÄ£ÀÄß ¨sÁªÁxÀðPÉÌ DAiÀÄÄÝPÉÆ½î. | T12: G:X46 - G:X50
B13: 6 | C13: B46 - B49 | E13: 4 CAPÀUÀ¼À 2 ¥Àæ±ÉßUÀ¼À£ÀÄß DAiÀÄÄÝPÉÆ½î. EzÀgÀ°è ªÉÆzÀ®£ÉAiÀÄ JgÀqÀÄ ¥Àæ±ÉßUÀ¼À£ÀÄß UÀzÀå¢AzÀ DAiÀÄÄÝPÉÆAqÀÄ AiÀiÁªÀÅzÁzÀgÀÄ MAzÀgÀ ªÀÄÄA¢£À G PÁ®A£À°è C JAzÀÄ DAiÀÄÄÝPÉÆ½î. £ÀAvÀgÀzÀ JgÀqÀÄ ¥Àæ±ÉßUÀ¼À£ÀÄß ¥ÀzÀå¢AzÀ DAiÀÄÄÝPÉÆAqÀÄ ( ¨ÉÃPÁzÀ ¥ÀzÀåzÀ ¥ÁoÀ ¸ÀASÉåAiÀÄ£ÀÄß ¤UÀ¢üvÀ PÁ®A£À°è £ÀªÀÄÆ¢ü¸ÀÄªÀÅzÀgÀ ªÀÄÆ®PÀ ) AiÀiÁªÀÅzÁzÀgÀÄ MAzÀgÀ ªÀÄÄA¢£À G PÁ®A£À°è C JAzÀÄ DAiÀÄÄÝPÉÆ½î. | T13: G:X51 - G:X54
B14: 7 | C14: B450 - B58 | E14: ªÁåPÀgÀt¢AzÀ §ºÀÄDAiÉÄÌAiÀÄ 9 ¥Àæ±ÉßUÀ¼À£ÀÄß DAiÀÄÄÝPÉÆ½î. | T14: G:X55 - G:X63
B15: 8 | C15: B59 - B63 | E15: C¥ÀpvÀ UÀzÀåªÀ£ÀÄß DAiÀÄÄÝPÉÆ½î. ( ಅತ್ಯಂತ ಲಘು ಉತ್ತರದಲ್ಲಿ ಆಯ್ದುಕೊಳ್ಳಿ) B59 ನಲ್ಲಿ ಅಪಠಿತ ಗದ್ಯವನ್ನು ಆಯ್ದುಕೊಳ್ಳಿ, B60 ಯಿಂದ B63 ವರೆಗೆ ಅಪಠಿತ ಗದ್ಯದ ಪ್ರಶ್ನೆಗಳನ್ನು ಆಯ್ದುಕೊಳ್ಳಿ. | T15: G:X64 - G:X68
B16: 9 | C16: B64 - B67 | E16: 1 CAPÀzÀ £Á®ÄÌ C£ÀÄªÁzÀzÀ ¥Àæ±ÉßUÀ¼À£ÀÄß DAiÀÄÄÝPÉÆ½î. ( ಅತ್ಯಂತ ಲಘು ಉತ್ತರದಲ್ಲಿ ಆಯ್ದುಕೊಳ್ಳಿ) | T16: G:X69- G:X72
B17: 10 | C17: B68 - B69 | E17: 5 CAPÀUÀ¼À ¥ÀvÀæ¯ÉÃR£ÀzÀ 2 ¥Àæ±ÉßUÀ¼À£ÀÄß DAiÀÄÄÝPÉÆ½î. EzÀgÀ°è AiÀiÁªÀÅzÁzÀgÀÄ MAzÀgÀ ªÀÄÄA¢£À G PÁ®A£À°è C JAzÀÄ DAiÀÄÄÝPÉÆ½î. | T17: G:X73 - G:X74
B18: 11 | C18: B70 - B72 | E18: 5 CAPÀUÀ¼À ¤§AzsÀ gÀZÀ£ÉAiÀÄ 3 ¥Àæ±ÉßUÀ¼À£ÀÄß DAiÀÄÄÝPÉÆAqÀÄ CªÀÅUÀ¼À°è AiÀiÁªÀÅzÁzÀgÀÄ JgÀqÀgÀ ªÀÄÄA¢£À G PÁ®A£À°è C JAzÀÄ DAiÀÄÄÝPÉÆ½î. | T18: G:X75 - G:X77
B20: 90, 40 ಮತ್ತು 20 ಅಂಕಗಳಿಗೆ ಪ್ರಶ್ನೆ ಪತ್ರಿಕೆಗಳನ್ನು ಸಿದ್ಧಪಡಿಸುವಾಗ ಬೇರೆಡೆ ಕಾಪಿ ಮಾಡಿಕೊಂಡು ಸಿದ್ಧಪಡಿಸುವುದು. ಸೂಕ್ತ. ಏಕೆಂದರೆ ಬೇರೆ ಬೇರೆ ಅಂಕಗಳಿಗೆ ನೀಲ ನಕ್ಷೆ ತಯಾರಿಸುವಾಗ ಮೊದಲ ನೀಲ ನಕ್ಷೆಯನ್ನ ಕಳೆದುಕೊಳ್ಳುವಿರಿ. | E20: ¥Àæ±ÉßUÀ¼À DAiÉÄÌAiÀÄ¯ÁèUÀ° ºÁUÀÆ ¥Àæ±Éß ¥ÀwæPÉAiÀÄ¯ÉèÃ DUÀ° §zÀ¯ÁªÀuÉ ªÀiÁqÀ®Ä CªÀPÁ±À«®è. ¥Àæ±ÉßUÀ¼À DAiÉÄÌAiÀÄ°è K£ÁzÀgÀÄ ªÀåvÁå¸À PÀAqÀÄ§AzÀ°è CzÀPÉÌ ¤Ã® £ÀPÉëAiÀÄ¯ÉèÃ ªÁåvÁå¸ÀªÁVgÀÄvÀÛzÉ. ¤Ã® £ÀPÉëAiÀÄ°è£À ªÀåvÁå¸ÀªÀ£ÀÄß ¸Àj¥Àr¸ÀÄªÀ ªÀÄÆ®PÀ ¥Àæ±ÉßUÀ¼À DAiÉÄÌAiÀÄ°è£À ºÁUÀÆ ¥Àæ±Éß ¥ÀwæPÉAiÀÄ°è£À ªÀåvÁå¸ÀªÀ£ÀÄß ¸Àj¥Àr¹PÉÆ½î. (¤Ã® £ÀPÉëAiÀÄ°è ¥ÁoÀzÀ ¸ÀASÉå, UÀzÀå,¥ÀzÀå, ªÁåPÀgÀt ( §ºÀÄ«PÀ°àÃAiÀÄ), ºÉÆA¢¹ §gÉAiÀÄÄªÀÅzÀÄ, EvÁå¢UÀ¼À ¥ÁoÀ ¸ÀASÉå ºÁUÀÆ ¥Àæ±ÉßUÀ¼À C£ÀÄPÀæªÀÄUÀ¼À°è ªÀåvÁå¸À«gÀÄvÀÛzÉ.)
H22: Prepared By :
H23: NAGALINGAIAH. Govt.P.U.COLLEGE (H.S)Gurugunta, TQ: Lingasugur
H24: District : Raichur
H25: E Mail- nagalingaiah.h@gmail.com
H26: Mob: 9035172763, 7760399489

Sheet instructions
M86: Prepared By :
M87: NAGALINGAIAH. Govt.P.U.COLLEGE (H.S)Gurugunta, TQ: Lingasugur
M88: District : Raichur
M89: E Mail- nagalingaiah.h@gmail.com
M90: Mob: 9035172763, 7760399489

Sheet LINKS
M27: Prepared By
M28: NAGALINGAIAH. Govt.P.U.COLLEGE (H.S)Gurugunta, TQ: Lingasugur
M29: District : Raichur
M30: E Mail- nagalingaiah.h@gmail.com
M31: Mob: 9035172763, 7760399489

Sheet Model Blueprint
C1: Model Blueprint for 40 Marks | H1: Model Blueprint for 90 Marks | N1: Model Blueprint for 20 Marks
C2: 40 Marks | H2: 90 Marks
C4: उद्देश्यों के आधार पर
C5: उद्देश्य | D5: अंक | E5: प्रतिशत | H5: उद्देश्य | I5: अंक | J5: प्रतिशत | N5: उद्देश्य | O5: अंक | P5: प्रतिशत
C6: स्मरण रखना | D6: 8 | E6: =D6*100/40 -> 20 | H6: स्मरण रखना | I6: 18 | J6: =I6*100/90 -> 20 | N6: स्मरण रखना | O6: 4 | P6: =O6*100/20 -> 20
C7: समझना | D7: 15 | E7: =D7*100/40 -> 37.5 | H7: समझना | I7: 36 | J7: =I7*100/90 -> 40 | N7: समझना | O7: 7 | P7: =O7*100/20 -> 35
C8: अभिव्यक्ति | D8: 14 | E8: 35 | H8: अभिव्यक्ति | I8: 33 | J8: =I8*100/90 -> 36.66666667 | N8: अभिव्यक्ति | O8: 7 | P8: 35
C9: रसग्रहण | D9: 3 | E9: 7.5 | H9: रसग्रहण | I9: 3 | J9: =I9*100/90 -> 3.333333333 | N9: रसग्रहण | O9: 2 | P9: 10
C10: कुल | D10: =SUM(D6:D9) -> 40 | E10: =SUM(E6:E9) -> 100 | H10: कुल | I10: =SUM(I6:I9) -> 90 | J10: =SUM(J6:J9) -> 100 | N10: कुल | O10: =SUM(O6:O9) -> 20 | P10: =SUM(P6:P9) -> 100
C11: 40 Marks | H11: 90 Marks | N11: 20 Marks
C12: विषय वस्तु
D13: अंक | E13: प्रतिशत | I13: अंक | J13: प्रतिशत | O13: अंक | P13: प्रतिशत
C14: गद्य | D14: 16 | E14: =D14*100/40 -> 40 | H14: गद्य | I14: 36 | J14: =I14*100/90 -> 40 | N14: गद्य | O14: 8 | P14: =O14*100/20 -> 40
C15: पद्य | D15: 10 | E15: 25 | H15: पद्य | I15: 23 | J15: =I15*100/90 -> 25.55555556 | N15: पद्य | O15: 5 | P15: =O15*100/20 -> 25
C16: व्याकरण | D16: 4 | E16: 10 | H16: व्याकरण | I16: 9 | J16: 10 | N16: व्याकरण | O16: 2 | P16: 10
C17: रचना | D17: 8 | E17: 20 | H17: रचना | I17: 18 | J17: 20 | N17: रचना | O17: 4 | P17: 20
C18: पूरक वाचन | D18: 2 | E18: 5 | H18: पूरक वाचन | I18: 4 | J18: 4.444444444 | N18: पूरक वाचन | O18: 1 | P18: 5
C19: कुल | D19: =SUM(D14:D18) -> 40 | E19: =SUM(E14:E18) -> 100 | H19: कुल | I19: =SUM(I14:I18) -> 90 | J19: =SUM(J14:J18) -> 100 | N19: कुल | O19: =SUM(O14:O18) -> 20 | P19: =SUM(P14:P18) -> 100
C20: 40 Marks | H20: 90 Marks | N20: 20 Marks
B21: प्रश्‍नों के प्रकार
D22: प्रश्‍नों | E22: अंक | F22: प्रतिशत | J22: प्रश्‍नों | K22: अंक | L22: प्रतिशत | P22: प्रश्‍नों | Q22: अंक | R22: प्रतिशत
B23: वस्तुनिष्ठ | C23: बहुविकल्पीय | D23: 4 | E23: =D23*1 -> 4 | F23: =E23*100/40 -> 10 | H23: वस्तुनिष्ठ | I23: बहुविकल्पीय | J23: 9 | K23: =J23*1 -> 9 | L23: =K23*100/90 -> 10 | N23: वस्तुनिष्ठ | O23: बहुविकल्पीय | P23: 2 | Q23: =P23*1 -> 2 | R23: =Q23*100/20 -> 10
C24: अनुरूपता | D24: 2 | E24: =D24*1 -> 2 | F24: =E24*100/40 -> 5 | I24: अनुरूपता | J24: 4 | K24: =J24*1 -> 4 | L24: =K24*100/90 -> 4.444444444 | O24: अनुरूपता | P24: 1 | Q24: =P24*1 -> 1 | R24: =Q24*100/20 -> 5
C25: जोड़कर | D25: 2 | E25: 2 | F25: 5 | I25: जोड़कर | J25: 4 | K25: 4 | L25: 4.444444444 | O25: जोड़कर | P25: 1 | Q25: 1 | R25: 5
B26: अति लघूत्तर | D26: 8 | E26: 8 | F26: 20 | H26: अति लघूत्तर | J26: 16 | K26: 16 | L26: 17.77777778 | N26: अति लघूत्तर | P26: 3 | Q26: 3 | R26: 15
B27: लघूत्तर | C27: दो अंकवाले | D27: 5 | E27: =D27*2 -> 10 | F27: 25 | H27: लघूत्तर | I27: दो अंकवाले | J27: 12 | K27: =J27*2 -> 24 | L27: 26.66666667 | N27: लघूत्तर | O27: दो अंकवाले | P27: 3 | Q27: =P27*2 -> 6 | R27: 30
C28: तीन अंकवाले | D28: 2 | E28: =D28*3 -> 6 | F28: 15 | I28: तीन अंकवाले | J28: 5 | K28: =J28*3 -> 15 | L28: 16.66666667 | O28: तीन अंकवाले | P28: 1 | Q28: =P28*3 -> 3 | R28: 15
B29: दीर्घोत्तर | D29: 2 | E29: =D29*4 -> 8 | F29: 20 | H29: दीर्घोत्तर | I29: 4 अंकवाले | J29: 2 | K29: =J29*4 -> 8 | L29: 8.888888889 | N29: दीर्घोत्तर | O29: 4 अंकवाले | P29: 1 | Q29: =P29*4 -> 4 | R29: 20
E30: =D30*5 -> 0 | F30: =E30*100/90 -> 0 | I30: 5 अंकवाले | J30: 2 | K30: =J30*5 -> 10 | L30: 11.11111111 | O30: 5 अंकवाले | Q30: =P30*5 -> 0 | R30: 0
B31: कुल | D31: =SUM(D23:D30) -> 25 | E31: =SUM(E23:E30) -> 40 | F31: =SUM(F23:F29) -> 100 | H31: कुल | J31: =SUM(J23:J30) -> 54 | K31: =SUM(K23:K30) -> 90 | L31: =SUM(L23:L29) -> 88.88888889 | N31: कुल | P31: =SUM(P23:P30) -> 12 | Q31: =SUM(Q23:Q30) -> 20 | R31: =SUM(R23:R29) -> 100
C32: 40 Marks | H32: 90 Marks | N32: 20 Marks
C33: प्रश्‍नों के स्तर के आधार पर
D34: अंक | E34: प्रतिशत | I34: अंक | J34: प्रतिशत | O34: अंक | P34: प्रतिशत
C35: सरल | D35: 12 | E35: =D35*100/40 -> 30 | H35: सरल | I35: 27 | J35: =I35*100/90 -> 30 | N35: सरल | O35: 6 | P35: =O35*100/20 -> 30
C36: सामान्य | D36: 20 | E36: =D36*100/40 -> 50 | H36: सामान्य | I36: 45 | J36: =I36*100/90 -> 50 | N36: सामान्य | O36: 10 | P36: =O36*100/20 -> 50
C37: कठिन | D37: 8 | E37: 20 | H37: कठिन | I37: 18 | J37: 20 | N37: कठिन | O37: 4 | P37: 20
C38: कुल | D38: =SUM(D35:D37) -> 40 | E38: =SUM(E35:E37) -> 100 | H38: कुल | I38: =SUM(I35:I37) -> 90 | J38: =SUM(J35:J37) -> 100 | N38: कुल | O38: =SUM(O35:O37) -> 20 | P38: =SUM(P35:P37) -> 100

Sheet Entry sheet-1-hin
A1: F PÉ¼ÀV£À ªÀiÁ»wUÀ¼À£ÀÄß vÀ¥ÀàzÉÃ §wðªÀiÁr.
A2: पाठशाला का नाम | C2: सरकारी पदवि पूर्व कॉलेंज (प्रौ.शा.वि) गुरुगुंटा, ता : लिंगसुगूर
A3: परीक्षा का नाम और साल | C3: संकलनात्मक परीक्षा - १ २०१५-१६
A4: कक्षा | C4: 9वीं
A5: विषय | C5: हिंदी
A6: अंक | C6: 40
A7: शिक्षक का नाम | C7: नागलिंगय्या
A9: क्र.सं | B9: पाठ का नाम | C9: निर्धारित अंक | E9: उद्देश्य | F9: अंक | G9: प्रतिशत | H9: प्रश्‍न-प्रकार | J9: प्रश्‍नों की संख्या | K9: अंक | L9: स्तर | M9: अंक | N9: प्रतिशत
A10: =IF(B10="","",1) -> 1 | B10: स्वामी विवेकानंद | C10: 4 | E10: स्मरण रखना | F10: 8 | G10: =F10*100/$C$6 -> 20 | H10: बहुविकल्पीय | I10: बहुविकल्पीय (व्याकरण ) | J10: 4 | K10: =J10 -> 4 | L10: सरल | M10: 12 | N10: =M10*100/$C$6 -> 30
A11: =IF(B11="","",A10+1) -> 2 | B11: गुलाब सिंह | C11: 3 | E11: समझना | F11: 15 | G11: =F11*100/$C$6 -> 37.5 | L11: सामान्य | M11: 20 | N11: =M11*100/$C$6 -> 50
A12: 3 | B12: बस की यात्रा | C12: 4 | E12: अभिव्यक्ति | F12: 14 | G12: 35 | H12: वस्तुनिष्ठ | I12: अनुरूपता | J12: 2 | K12: =J12 -> 2 | L12: कठिन | M12: 8 | N12: 20
A13: 4 | B13: मौसी | C13: 5 | E13: रसग्रहण | F13: 3 | G13: 7.5 | I13: जोड़कर लिखना | J13: 2 | K13: =J13 -> 2
A14: 5 | B14: मेरा बचपन | H14: अति लघूत्तर | J14: 8 | K14: =J14 -> 8
A15: 6 | B15: भीम और राक्षस | H15: लघूत्तर | I15: २ अंकवाले | J15: 5 | K15: =J15*2 -> 10
A16: 7 | B16: बाहुबली | I16: ३ अंकवाले | J16: 2 | K16: =J16*3 -> 6
A17: 8 | B17: हामिद खाँ | H17: दीर्घोत्तर | I17: ४ अंकवाले | J17: 2 | K17: =J17*4 -> 8
A18: 9 | B18: खेलो- कूदो-स्वस्थ रहो | I18: ५ अंकवाले | J18: 0 | K18: =J18*5 -> 0
A19: 10 | B19: हिमालय की बेटियाँ | E19: विषय वस्तु | F19: प्रतिशत | G19: अंक | H19: चुननेवाला प्रश्‍न
A20: 11 | B20: जय-जय भारत माता | C20: 3 | E20: गद्य | F20: =G20*100/$C$6 -> 40 | G20: 16 | H20: अंक | I20: प्रश्‍नों की संख्या
A21: 12 | B21: शिक्षा | C21: 4 | E21: पद्य | F21: =G21*100/$C$6 -> 25 | G21: 10 | H21: वस्तुनिष्ठ | I21: 2
A22: 13 | B22: मेरी अभिलाषा है | C22: 3 | E22: व्याकरण | F22: 10 | G22: 4 | H22: 2 अंक | I22: 1
A23: 14 | B23: विनती | E23: रचना | F23: 20 | G23: 8 | H23: 3अंक
A24: 15 | B24: कोई नहीं पराया | E24: पूरक वाचन | F24: 5 | G24: 2 | H24: 4 अंक | I24: 2
A25: 16 | B25: कबीर के दोहे | H25: 5 अंक
A26: 17 | B26: कजाकी | C26: 2 | G26: पूर्व निर्धारित पाठों की संख्या और नाम ( नील नक्षा के साथ प्रश्‍न पत्रिका के लिए(१०वीं) )
A27: 18 | B27: वीर मालव जी | G27: क्र.सं | H27: पाठ का नाम
A28: 19 | B28: वृक्ष हमारे जीवन-साथी | G28: =IF(H28="","",1) -> 1 | H28: स्वामी विवेकानंद
A29: 20 | B29: अपठित गद्यांश | C29: 2 | G29: =IF(H29="","",G28+1) -> 2 | H29: गुलाब सिंह | I29: गुलाब सिंह | J29: गुलाब सिंह
A30: 21 | B30: अनुवाद | C30: 2 | G30: 3 | H30: बस की यात्रा | I30: बस की यात्रा | J30: बस की यात्रा
A31: 22 | B31: पत्र लेखन | C31: 4 | G31: 4 | H31: मौसी | I31: मौसी | J31: मौसी
A32: 23 | B32: निबंध रचना | G32: 5 | H32: मेरा बचपन | I32: मेरा बचपन | J32: मेरा बचपन
A33: 24 | B33: व्याकरण | C33: 4 | G33: 6 | H33: भीम और राक्षस | I33: भीम और राक्षस | J33: भीम और राक्षस
A34: =IF(B34="","",A33+1) ->  | G34: 7 | H34: बाहुबली | I34: बाहुबली | J34: बाहुबली
G35: 8 | H35: हामिद खाँ | I35: हामिद खाँ | J35: हामिद खाँ
G36: 9 | H36: खेलो- कूदो-स्वस्थ रहो | I36: खेलो- कूदो-स्वस्थ रहो | J36: खेलो- कूदो-स्वस्थ रहो
G37: 10 | H37: हिमालय की बेटियाँ | I37: हिमालय की बेटियाँ | J37: हिमालय की बेटियाँ
G38: 11 | H38: जय-जय भारत माता | I38: जय-जय भारत माता | J38: जय-जय भारत माता
G39: 12 | H39: शिक्षा | I39: शिक्षा | J39: शिक्षा
G40: 13 | H40: मेरी अभिलाषा है | I40: मेरी अभिलाषा है | J40: मेरी अभिलाषा है
G41: 14 | H41: विनती | I41: विनती | J41: विनती
G42: 15 | H42: कोई नहीं पराया | I42: कोई नहीं पराया | J42: कोई नहीं पराया
G43: 16 | H43: कबीर के दोहे | I43: कबीर के दोहे | J43: कबीर के दोहे
G44: 17 | H44: कजाकी | I44: कजाकी | J44: कजाकी
G45: 18 | H45: वीर मालव जी | I45: वीर मालव जी | J45: वीर मालव जी
G46: 19 | H46: वृक्ष हमारे जीवन-साथी | I46: वृक्ष हमारे जीवन-साथी | J46: वृक्ष हमारे जीवन-साथी
G47: 20 | H47: अपठित गद्यांश | I47: अपठित गद्यांश | J47: अपठित गद्यांश
G48: 21 | H48: अनुवाद | I48: अनुवाद | J48: अनुवाद
G49: 22 | H49: पत्र लेखन | I49: पत्र लेखन | J49: पत्र लेखन
G50: 23 | H50: निबंध रचना | I50: निबंध रचना | J50: निबंध रचना
G51: 24 | H51: व्याकरण | I51: व्याकरण | J51: व्याकरण
A60: =IF(B60="","",A59+1) -> 
A69: =IF(B69="","",A68+1) -> 
A70: =IF(B70="","",A69+1) -> 
A79: कुल | C79: =SUM(C10:C78) -> 40

Sheet uddista
A1: =IF('Entry sheet-1-hin'!C2="","",'Entry sheet-1-hin'!C2) -> सरकारी पदवि पूर्व कॉलेंज (प्रौ.शा.वि) गुरुगुंटा, ता : लिंगसुगूर
A2: =IF('Entry sheet-1-hin'!C3="","",'Entry sheet-1-hin'!C3) -> संकलनात्मक परीक्षा - १ २०१५-१६
A3: ='Entry sheet-1-hin'!A4:B4 -> कक्षा | B3: =IF('Entry sheet-1-hin'!C4="","",'Entry sheet-1-hin'!C4) -> 9वीं | H3: ='Entry sheet-1-hin'!A5&IF('Entry sheet-1-hin'!C5="","",'Entry sheet-1-hin'!C5) -> विषयहिंदी
A4: उद्देश्यों के आधार पर
A5: ='Entry sheet-1-hin'!A9 -> क्र.सं | B5: ='Entry sheet-1-hin'!E9 -> उद्देश्य | D5: ='Entry sheet-1-hin'!G9 -> प्रतिशत | E5: % | F5: ='Entry sheet-1-hin'!G19 -> अंक | H5: प्रश्‍न
A6: 1 | B6: ='Entry sheet-1-hin'!E10 -> स्मरण रखना | C6: स्म | D6: =IF(F6="","",F6/'Entry sheet-1-hin'!$C$6*100) -> 10 | F6: =('Entry sheet-2-hin'!C4*'Entry sheet-1-hin'!$C$6)/100 -> 4 | H6: =COUNTIF('Entry sheet-2-hin'!$AF$9:$AF$77,"स्म") -> 3
A7: 2 | B7: ='Entry sheet-1-hin'!E11 -> समझना | C7: सम | D7: =IF(F7="","",F7/'Entry sheet-1-hin'!$C$6*100) -> 47.5 | F7: =('Entry sheet-2-hin'!E4*('Entry sheet-1-hin'!$C$6)/100) -> 19 | H7: =COUNTIF('Entry sheet-2-hin'!$AF$9:$AF$77,"सम") -> 14
A8: 3 | B8: ='Entry sheet-1-hin'!E12 -> अभिव्यक्ति | C8: अ | D8: =IF(F8="","",F8/'Entry sheet-1-hin'!$C$6*100) -> 35 | F8: =('Entry sheet-2-hin'!G4*'Entry sheet-1-hin'!$C$6)/100 -> 14 | H8: =COUNTIF('Entry sheet-2-hin'!$AF$9:$AF$77,"अ") -> 7
A9: 4 | B9: ='Entry sheet-1-hin'!E13 -> रसग्रहण | C9: रस | D9: =IF(F9="","",F9/'Entry sheet-1-hin'!$C$6*100) -> 7.5 | F9: =('Entry sheet-2-hin'!J4*'Entry sheet-1-hin'!$C$6)/100 -> 3 | H9: =COUNTIF('Entry sheet-2-hin'!$AF$9:$AF$77,"रस") -> 1
A10: कुल | D10: =IF(D6:D9="","",SUM(D6:D9)) -> 100 | F10: =IF(F6:F9="","",SUM(F6:F9)) -> 40 | H10: =IF(H6:H9="","",SUM(H6:H9)) -> 25
G21: हस्ताक्षर
G22: =IF('Entry sheet-1-hin'!C7="","","("&'Entry sheet-1-hin'!C7&")") -> (नागलिंगय्या)

Sheet QUESTION WISE
A1: =IF('Entry sheet-1-hin'!C2="","",'Entry sheet-1-hin'!C2) -> सरकारी पदवि पूर्व कॉलेंज (प्रौ.शा.वि) गुरुगुंटा, ता : लिंगसुगूर
A2: =IF('Entry sheet-1-hin'!C3="","",'Entry sheet-1-hin'!C3) -> संकलनात्मक परीक्षा - १ २०१५-१६
A3: कक्षा | B3: =IF('Entry sheet-1-hin'!C4="","",'Entry sheet-1-hin'!C4) -> 9वीं | H3: ='Entry sheet-1-hin'!A5&IF('Entry sheet-1-hin'!C5="","",'Entry sheet-1-hin'!C5) -> विषयहिंदी
A4: प्रश्‍नों के प्रकार के आधार पर प्रतिशत और अंक
A5: =uddista!A5 -> क्र.सं | B5: ='Entry sheet-1-hin'!H9 -> प्रश्‍न-प्रकार | D5: प्रतिशत | F5: अंक | H5: प्रश्‍न
A6: 1 | B6: बहुविकल्पीय (व्याकरण और अपठित गद्य | C6: MC | D6: =IF(F6="","",F6/'Entry sheet-1-hin'!$C$6*100) -> 10 | F6: =IF(H6="","",H6*1) -> 4 | H6: =IF('Entry sheet-2-hin'!$C$7="","",'Entry sheet-2-hin'!$C$7) -> 4
A7: 2 | B7: अनुरूपता और जोड़कर लिखना | C7: OT | D7: =IF(F7="","",F7/'Entry sheet-1-hin'!$C$6*100) -> 10 | F7: =IF(H7="","",H7*1) -> 4 | H7: =IF('Entry sheet-2-hin'!$E$7="","",'Entry sheet-2-hin'!$E$7) -> 4
A8: 3 | B8: अति लघूत्तर | C8: SA | D8: =IF(F8="","",F8/'Entry sheet-1-hin'!$C$6*100) -> 20 | F8: 8 | H8: =IF('Entry sheet-2-hin'!$G$7="","",'Entry sheet-2-hin'!$G$7) -> 8
A9: 4 | B9: लघूत्तर ( 2अंकवाले) | C9: SA1 | D9: =IF(F9="","",F9/'Entry sheet-1-hin'!$C$6*100) -> 25 | F9: =IF(H9="","",H9*2) -> 10 | H9: =IF('Entry sheet-2-hin'!$J$7="","",'Entry sheet-2-hin'!$J$7) -> 5
A10: 5 | B10: लघूत्तर ( 3अंकवाले) | C10: SA2 | D10: =IF(F10="","",F10/'Entry sheet-1-hin'!$C$6*100) -> 15 | F10: =IF(H10="","",H10*3) -> 6 | H10: =IF('Entry sheet-2-hin'!$L$7="","",'Entry sheet-2-hin'!$L$7) -> 2
A11: 6 | B11: दीर्घोत्तर (4अंकवाले) | C11: LA1 | D11: =IF(F11="","",F11/'Entry sheet-1-hin'!$C$6*100) -> 20 | F11: =IF(H11="","",H11*4) -> 8 | H11: =IF('Entry sheet-2-hin'!$N$7="","",'Entry sheet-2-hin'!$N$7) -> 2
A12: 7 | B12: दीर्घोत्तर (5अंकवाले) | C12: LA2 | D12: =IF(F12="","",F12/'Entry sheet-1-hin'!$C$6*100) -> 0 | F12: =IF(H12="","",H12*5) -> 0 | H12: =IF('Entry sheet-2-hin'!$P$7="","",'Entry sheet-2-hin'!$P$7) -> 0
A13: MlÄÖ | D13: =IF(D6:D12="","",SUM(D6:D12)) -> 100 | F13: =IF(F6:F12="","",SUM(F6:F12)) -> 40 | H13: =IF(H6:H12="","",SUM(H6:H12)) -> 25
G25: हस्ताक्षर
G26: =IF('Entry sheet-1-hin'!C7="","","("&'Entry sheet-1-hin'!C7&")") -> (नागलिंगय्या)

Sheet difficulty wise
A1: =IF('Entry sheet-1-hin'!C2="","",'Entry sheet-1-hin'!C2) -> सरकारी पदवि पूर्व कॉलेंज (प्रौ.शा.वि) गुरुगुंटा, ता : लिंगसुगूर
A2: =IF('Entry sheet-1-hin'!C3="","",'Entry sheet-1-hin'!C3) -> संकलनात्मक परीक्षा - १ २०१५-१६
A3: कक्षा | B3: =IF('Entry sheet-1-hin'!C4="","",'Entry sheet-1-hin'!C4) -> 9वीं | H3: ='Entry sheet-1-hin'!A5&IF('Entry sheet-1-hin'!C5="","",'Entry sheet-1-hin'!C5) -> विषयहिंदी
A4: स्तर के आधार पर
A5: क्र.सं | B5: स्तर | D5: प्रतिशत | F5: अंक | H5: प्रश्‍न
A6: 1 | B6: सरल | C6: E | D6: =IF(F6="","",F6/'Entry sheet-1-hin'!$C$6*100) -> 30 | F6: =IF('Entry sheet-2-hin'!M4="","",('Entry sheet-2-hin'!M4*'Entry sheet-1-hin'!$C$6)/100) -> 12 | H6: =IF(F6="","",COUNTIF('Entry sheet-2-hin'!$AE$9:$AE$77,"सरल")) -> 11
A7: 2 | B7: सामान्य | C7: M | D7: =IF(F7="","",F7/'Entry sheet-1-hin'!$C$6*100) -> 50 | F7: =IF('Entry sheet-2-hin'!Q4="","",('Entry sheet-2-hin'!Q4*'Entry sheet-1-hin'!$C$6)/100) -> 20 | H7: =IF(F7="","",COUNTIF('Entry sheet-2-hin'!$AE$9:$AE$77,"सामान्य")) -> 11
A8: 3 | B8: कठिन | C8: D | D8: =IF(F8="","",F8/'Entry sheet-1-hin'!$C$6*100) -> 20 | F8: =IF('Entry sheet-2-hin'!U4="","",('Entry sheet-2-hin'!U4*'Entry sheet-1-hin'!$C$6)/100) -> 8 | H8: =IF(F8="","",COUNTIF('Entry sheet-2-hin'!$AE$9:$AE$77,"कठिन")) -> 3
A9: कुल | D9: =IF(D6:D8="","",SUM(D6:D8)) -> 100 | F9: =IF(F6:F8="","",SUM(F6:F8)) -> 40 | H9: =IF(H6:H8="","",SUM(H6:H8)) -> 25
F21: हस्ताक्षर
F22: =IF('Entry sheet-1-hin'!C7="","","("&'Entry sheet-1-hin'!C7&")") -> (नागलिंगय्या)

Sheet chapterwise
A1: =IF('Entry sheet-1-hin'!C2="","",'Entry sheet-1-hin'!C2) -> सरकारी पदवि पूर्व कॉलेंज (प्रौ.शा.वि) गुरुगुंटा, ता : लिंगसुगूर
A2: =IF('Entry sheet-1-hin'!C3="","",'Entry sheet-1-hin'!C3) -> संकलनात्मक परीक्षा - १ २०१५-१६
A3: ='Entry sheet-1-hin'!A4:B4 -> कक्षा | B3: =IF('Entry sheet-1-hin'!C4="","",'Entry sheet-1-hin'!C4) -> 9वीं | Q3: ='Entry sheet-1-hin'!A5&IF('Entry sheet-1-hin'!C5="","",'Entry sheet-1-hin'!C5) -> विषयहिंदी
A4: पाठों पर अंक बँटवार
A5: क्र.सं | B5: पाठ का नाम | C5: उद्देश्यों के आधार पर प्रश्‍नों की संख्या | G5: प्रकार पर प्रश्‍नों की संख्या | N5: स्तर के आधार पर प्रश्‍नों की संख्या | Q5: प्रश्‍नों की संख्या | R5: कुल अंक | S5: प्रतिशत
C6: स्म | D6: सम | E6: अ | F6: रस | G6: बवि | H6: वनि(जोड़कर,अनुरूपता) | I6: अलउ | J6: लउ२ | K6: लउ३ | L6: दीउ4 | M6: दीउ5 | N6: सरल | O6: सामान्य | P6: कठिन | Q6: SA3 | R6: SA4 | S6: LA3
A7: =IF('Entry sheet-1-hin'!A10="","",'Entry sheet-1-hin'!A10) -> 1 | B7: =IF('Entry sheet-1-hin'!B10="","",'Entry sheet-1-hin'!B10) -> स्वामी विवेकानंद | C7: =IF(B7="","",COUNTIF('Entry sheet-2-hin'!$AL$9:$AL$77,"1स्म")) -> 1 | D7: =IF(B7="","",COUNTIF('Entry sheet-2-hin'!$AL$9:$AL$77,"1सम")) -> 1 | E7: =IF(B7="","",COUNTIF('Entry sheet-2-hin'!$AL$9:$AL$77,"1अ")) -> 1 | F7: =IF(B7="","",COUNTIF('Entry sheet-2-hin'!$AL$9:$AL$77,"1रस")) -> 0 | G7: =IF(B7="","",COUNTIF('Entry sheet-2-hin'!$AM$9:$AM$77,"1बवि")) -> 0 | H7: =IF(B7="","",COUNTIF('Entry sheet-2-hin'!$AM$9:$AM$77,"1वनि")) -> 1 | I7: =IF(B7="","",COUNTIF('Entry sheet-2-hin'!$AM$9:$AM$77,"1अलउ")) -> 1 | J7: =IF(B7="","",COUNTIF('Entry sheet-2-hin'!$AM$9:$AM$77,"1लउ२")) -> 1 | K7: =IF(B7="","",COUNTIF('Entry sheet-2-hin'!$AM$9:$AM$77,"1लउ३")) -> 0 | L7: =IF(B7="","",COUNTIF('Entry sheet-2-hin'!$AM$9:$AM$77,"1दीउ४")) -> 0 | M7: =IF(B7="","",COUNTIF('Entry sheet-2-hin'!$AM$9:$AM$77,"1दीउ५")) -> 0 | N7: =IF(B7="","",COUNTIF('Entry sheet-2-hin'!$AN$9:$AN$77,"1सरल")) -> 3 | O7: =IF(B7="","",COUNTIF('Entry sheet-2-hin'!$AN$9:$AN$77,"1सामान्य")) -> 0 | P7: =IF(B7="","",COUNTIF('Entry sheet-2-hin'!$AN$9:$AN$77,"1कठिन")) -> 0 | Q7: =IF(B7="","",SUM(G7:M7)) -> 3 | R7: =IF(B7="","",G7*1+H7*1+I7*1+J7*2+K7*3+L7*4+M7*5) -> 4 | S7: =IF(B7="","",R7/'Entry sheet-1-hin'!$C$6*100) -> 10
A8: =IF('Entry sheet-1-hin'!A11="","",'Entry sheet-1-hin'!A11) -> 2 | B8: =IF('Entry sheet-1-hin'!B11="","",'Entry sheet-1-hin'!B11) -> गुलाब सिंह | C8: =IF(B8="","",COUNTIF('Entry sheet-2-hin'!$AL$9:$AL$77,"2स्म")) -> 1 | D8: =IF(B8="","",COUNTIF('Entry sheet-2-hin'!$AL$9:$AL$77,"2सम")) -> 0 | E8: =IF(B8="","",COUNTIF('Entry sheet-2-hin'!$AL$9:$AL$77,"2अ")) -> 1 | F8: =IF(B8="","",COUNTIF('Entry sheet-2-hin'!$AL$9:$AL$77,"2रस")) -> 0 | G8: =IF(B8="","",COUNTIF('Entry sheet-2-hin'!$AM$9:$AM$77,"2बवि")) -> 0 | H8: =IF(B8="","",COUNTIF('Entry sheet-2-hin'!$AM$9:$AM$77,"2वनि")) -> 0 | I8: =IF(B8="","",COUNTIF('Entry sheet-2-hin'!$AM$9:$AM$77,"2अलउ")) -> 1 | J8: =IF(B8="","",COUNTIF('Entry sheet-2-hin'!$AM$9:$AM$77,"2लउ२")) -> 1 | K8: =IF(B8="","",COUNTIF('Entry sheet-2-hin'!$AM$9:$AM$77,"2लउ३")) -> 0 | L8: =IF(B8="","",COUNTIF('Entry sheet-2-hin'!$AM$9:$AM$77,"2दीउ४")) -> 0 | M8: =IF(B8="","",COUNTIF('Entry sheet-2-hin'!$AM$9:$AM$77,"2दीउ५")) -> 0 | N8: =IF(B8="","",COUNTIF('Entry sheet-2-hin'!$AN$9:$AN$77,"2सरल")) -> 1 | O8: =IF(B8="","",COUNTIF('Entry sheet-2-hin'!$AN$9:$AN$77,"2सामान्य")) -> 1 | P8: =IF(B8="","",COUNTIF('Entry sheet-2-hin'!$AN$9:$AN$77,"2कठिन")) -> 0 | Q8: =IF(B8="","",SUM(G8:M8)) -> 2 | R8: =IF(B8="","",G8*1+H8*1+I8*1+J8*2+K8*3+L8*4+M8*5) -> 3 | S8: =IF(B8="","",R8/'Entry sheet-1-hin'!$C$6*100) -> 7.5
A9: =IF('Entry sheet-1-hin'!A12="","",'Entry sheet-1-hin'!A12) -> 3 | B9: =IF('Entry sheet-1-hin'!B12="","",'Entry sheet-1-hin'!B12) -> बस की यात्रा | C9: =IF(B9="","",COUNTIF('Entry sheet-2-hin'!$AL$9:$AL$77,"3स्म")) -> 0 | D9: =IF(B9="","",COUNTIF('Entry sheet-2-hin'!$AL$9:$AL$77,"3सम")) -> 2 | E9: =IF(B9="","",COUNTIF('Entry sheet-2-hin'!$AL$9:$AL$77,"3अ")) -> 1 | F9: =IF(B9="","",COUNTIF('Entry sheet-2-hin'!$AL$9:$AL$77,"3रस")) -> 0 | G9: =IF(B9="","",COUNTIF('Entry sheet-2-hin'!$AM$9:$AM$77,"3बवि")) -> 0 | H9: =IF(B9="","",COUNTIF('Entry sheet-2-hin'!$AM$9:$AM$77,"3वनि")) -> 2 | I9: =IF(B9="","",COUNTIF('Entry sheet-2-hin'!$AM$9:$AM$77,"3अलउ")) -> 0 | J9: =IF(B9="","",COUNTIF('Entry sheet-2-hin'!$AM$9:$AM$77,"3लउ२")) -> 1 | K9: =IF(B9="","",COUNTIF('Entry sheet-2-hin'!$AM$9:$AM$77,"3लउ३")) -> 0 | L9: =IF(B9="","",COUNTIF('Entry sheet-2-hin'!$AM$9:$AM$77,"3दीउ४")) -> 0 | M9: =IF(B9="","",COUNTIF('Entry sheet-2-hin'!$AM$9:$AM$77,"3दीउ५")) -> 0 | N9: =IF(B9="","",COUNTIF('Entry sheet-2-hin'!$AN$9:$AN$77,"3सरल")) -> 1 | O9: =IF(B9="","",COUNTIF('Entry sheet-2-hin'!$AN$9:$AN$77,"3सामान्य")) -> 2 | P9: =IF(B9="","",COUNTIF('Entry sheet-2-hin'!$AN$9:$AN$77,"3कठिन")) -> 0 | Q9: 3 | R9: 4 | S9: =IF(B9="","",R9/'Entry sheet-1-hin'!$C$6*100) -> 10
A10: =IF('Entry sheet-1-hin'!A13="","",'Entry sheet-1-hin'!A13) -> 4 | B10: =IF('Entry sheet-1-hin'!B13="","",'Entry sheet-1-hin'!B13) -> मौसी | C10: =IF(B10="","",COUNTIF('Entry sheet-2-hin'!$AL$9:$AL$77,"4स्म")) -> 0 | D10: =IF(B10="","",COUNTIF('Entry sheet-2-hin'!$AL$9:$AL$77,"4सम")) -> 3 | E10: =IF(B10="","",COUNTIF('Entry sheet-2-hin'!$AL$9:$AL$77,"4अ")) -> 0 | F10: =IF(B10="","",COUNTIF('Entry sheet-2-hin'!$AL$9:$AL$77,"4रस")) -> 0 | G10: =IF(B10="","",COUNTIF('Entry sheet-2-hin'!$AM$9:$AM$77,"4बवि")) -> 0 | H10: =IF(B10="","",COUNTIF('Entry sheet-2-hin'!$AM$9:$AM$77,"4वनि")) -> 1 | I10: =IF(B10="","",COUNTIF('Entry sheet-2-hin'!$AM$9:$AM$77,"4अलउ")) -> 1 | J10: =IF(B10="","",COUNTIF('Entry sheet-2-hin'!$AM$9:$AM$77,"4लउ२")) -> 0 | K10: =IF(B10="","",COUNTIF('Entry sheet-2-hin'!$AM$9:$AM$77,"4लउ३")) -> 1 | L10: =IF(B10="","",COUNTIF('Entry sheet-2-hin'!$AM$9:$AM$77,"4दीउ४")) -> 0 | M10: =IF(B10="","",COUNTIF('Entry sheet-2-hin'!$AM$9:$AM$77,"4दीउ५")) -> 0 | N10: =IF(B10="","",COUNTIF('Entry sheet-2-hin'!$AN$9:$AN$77,"4सरल")) -> 1 | O10: =IF(B10="","",COUNTIF('Entry sheet-2-hin'!$AN$9:$AN$77,"4सामान्य")) -> 2 | P10: =IF(B10="","",COUNTIF('Entry sheet-2-hin'!$AN$9:$AN$77,"4कठिन")) -> 0 | Q10: 3 | R10: 5 | S10: =IF(B10="","",R10/'Entry sheet-1-hin'!$C$6*100) -> 12.5
A11: =IF('Entry sheet-1-hin'!A14="","",'Entry sheet-1-hin'!A14) -> 5 | B11: =IF('Entry sheet-1-hin'!B14="","",'Entry sheet-1-hin'!B14) -> मेरा बचपन | C11: =IF(B11="","",COUNTIF('Entry sheet-2-hin'!$AL$9:$AL$77,"5स्म")) -> 0 | D11: =IF(B11="","",COUNTIF('Entry sheet-2-hin'!$AL$9:$AL$77,"5सम")) -> 0 | E11: =IF(B11="","",COUNTIF('Entry sheet-2-hin'!$AL$9:$AL$77,"5अ")) -> 0 | F11: =IF(B11="","",COUNTIF('Entry sheet-2-hin'!$AL$9:$AL$77,"5रस")) -> 0 | G11: =IF(B11="","",COUNTIF('Entry sheet-2-hin'!$AM$9:$AM$77,"5बवि")) -> 0 | H11: =IF(B11="","",COUNTIF('Entry sheet-2-hin'!$AM$9:$AM$77,"5वनि")) -> 0 | I11: =IF(B11="","",COUNTIF('Entry sheet-2-hin'!$AM$9:$AM$77,"5अलउ")) -> 0 | J11: =IF(B11="","",COUNTIF('Entry sheet-2-hin'!$AM$9:$AM$77,"5लउ२")) -> 0 | K11: =IF(B11="","",COUNTIF('Entry sheet-2-hin'!$AM$9:$AM$77,"5लउ३")) -> 0 | L11: =IF(B11="","",COUNTIF('Entry sheet-2-hin'!$AM$9:$AM$77,"5दीउ४")) -> 0 | M11: =IF(B11="","",COUNTIF('Entry sheet-2-hin'!$AM$9:$AM$77,"5दीउ५")) -> 0 | N11: =IF(B11="","",COUNTIF('Entry sheet-2-hin'!$AN$9:$AN$77,"5सरल")) -> 0 | O11: =IF(B11="","",COUNTIF('Entry sheet-2-hin'!$AN$9:$AN$77,"5सामान्य")) -> 0 | P11: =IF(B11="","",COUNTIF('Entry sheet-2-hin'!$AN$9:$AN$77,"5कठिन")) -> 0 | Q11: 0 | R11: 0 | S11: =IF(B11="","",R11/'Entry sheet-1-hin'!$C$6*100) -> 0
A12: =IF('Entry sheet-1-hin'!A15="","",'Entry sheet-1-hin'!A15) -> 6 | B12: =IF('Entry sheet-1-hin'!B15="","",'Entry sheet-1-hin'!B15) -> भीम और राक्षस | C12: =IF(B12="","",COUNTIF('Entry sheet-2-hin'!$AL$9:$AL$77,"6स्म")) -> 0 | D12: =IF(B12="","",COUNTIF('Entry sheet-2-hin'!$AL$9:$AL$77,"6सम")) -> 0 | E12: =IF(B12="","",COUNTIF('Entry sheet-2-hin'!$AL$9:$AL$77,"6अ")) -> 0 | F12: =IF(B12="","",COUNTIF('Entry sheet-2-hin'!$AL$9:$AL$77,"6रस")) -> 0 | G12: =IF(B12="","",COUNTIF('Entry sheet-2-hin'!$AM$9:$AM$77,"6बवि")) -> 0 | H12: =IF(B12="","",COUNTIF('Entry sheet-2-hin'!$AM$9:$AM$77,"6वनि")) -> 0 | I12: =IF(B12="","",COUNTIF('Entry sheet-2-hin'!$AM$9:$AM$77,"6अलउ")) -> 0 | J12: =IF(B12="","",COUNTIF('Entry sheet-2-hin'!$AM$9:$AM$77,"6लउ२")) -> 0 | K12: =IF(B12="","",COUNTIF('Entry sheet-2-hin'!$AM$9:$AM$77,"6लउ३")) -> 0 | L12: =IF(B12="","",COUNTIF('Entry sheet-2-hin'!$AM$9:$AM$77,"6दीउ४")) -> 0 | M12: =IF(B12="","",COUNTIF('Entry sheet-2-hin'!$AM$9:$AM$77,"6दीउ५")) -> 0 | N12: =IF(B12="","",COUNTIF('Entry sheet-2-hin'!$AN$9:$AN$77,"6सरल")) -> 0 | O12: =IF(B12="","",COUNTIF('Entry sheet-2-hin'!$AN$9:$AN$77,"6सामान्य")) -> 0 | P12: =IF(B12="","",COUNTIF('Entry sheet-2-hin'!$AN$9:$AN$77,"6कठिन")) -> 0 | Q12: 0 | R12: 0 | S12: =IF(B12="","",R12/'Entry sheet-1-hin'!$C$6*100) -> 0
A13: =IF('Entry sheet-1-hin'!A16="","",'Entry sheet-1-hin'!A16) -> 7 | B13: =IF('Entry sheet-1-hin'!B16="","",'Entry sheet-1-hin'!B16) -> बाहुबली | C13: =IF(B13="","",COUNTIF('Entry sheet-2-hin'!$AL$9:$AL$77,"7स्म")) -> 0 | D13: =IF(B13="","",COUNTIF('Entry sheet-2-hin'!$AL$9:$AL$77,"7सम")) -> 0 | E13: =IF(B13="","",COUNTIF('Entry sheet-2-hin'!$AL$9:$AL$77,"7अ")) -> 0 | F13: =IF(B13="","",COUNTIF('Entry sheet-2-hin'!$AL$9:$AL$77,"7रस")) -> 0 | G13: =IF(B13="","",COUNTIF('Entry sheet-2-hin'!$AM$9:$AM$77,"7बवि")) -> 0 | H13: =IF(B13="","",COUNTIF('Entry sheet-2-hin'!$AM$9:$AM$77,"7वनि")) -> 0 | I13: =IF(B13="","",COUNTIF('Entry sheet-2-hin'!$AM$9:$AM$77,"7अलउ")) -> 0 | J13: =IF(B13="","",COUNTIF('Entry sheet-2-hin'!$AM$9:$AM$77,"7लउ२")) -> 0 | K13: =IF(B13="","",COUNTIF('Entry sheet-2-hin'!$AM$9:$AM$77,"7लउ३")) -> 0 | L13: =IF(B13="","",COUNTIF('Entry sheet-2-hin'!$AM$9:$AM$77,"7दीउ४")) -> 0 | M13: =IF(B13="","",COUNTIF('Entry sheet-2-hin'!$AM$9:$AM$77,"7दीउ५")) -> 0 | N13: =IF(B13="","",COUNTIF('Entry sheet-2-hin'!$AN$9:$AN$77,"7सरल")) -> 0 | O13: =IF(B13="","",COUNTIF('Entry sheet-2-hin'!$AN$9:$AN$77,"7सामान्य")) -> 0 | P13: =IF(B13="","",COUNTIF('Entry sheet-2-hin'!$AN$9:$AN$77,"7कठिन")) -> 0 | Q13: 0 | R13: 0 | S13: =IF(B13="","",R13/'Entry sheet-1-hin'!$C$6*100) -> 0
A14: =IF('Entry sheet-1-hin'!A17="","",'Entry sheet-1-hin'!A17) -> 8 | B14: =IF('Entry sheet-1-hin'!B17="","",'Entry sheet-1-hin'!B17) -> हामिद खाँ | C14: =IF(B14="","",COUNTIF('Entry sheet-2-hin'!$AL$9:$AL$77,"8स्म")) -> 0 | D14: =IF(B14="","",COUNTIF('Entry sheet-2-hin'!$AL$9:$AL$77,"8सम")) -> 0 | E14: =IF(B14="","",COUNTIF('Entry sheet-2-hin'!$AL$9:$AL$77,"8अ")) -> 0 | F14: =IF(B14="","",COUNTIF('Entry sheet-2-hin'!$AL$9:$AL$77,"8रस")) -> 0 | G14: =IF(B14="","",COUNTIF('Entry sheet-2-hin'!$AM$9:$AM$77,"8बवि")) -> 0 | H14: =IF(B14="","",COUNTIF('Entry sheet-2-hin'!$AM$9:$AM$77,"8वनि")) -> 0 | I14: =IF(B14="","",COUNTIF('Entry sheet-2-hin'!$AM$9:$AM$77,"8अलउ")) -> 0 | J14: =IF(B14="","",COUNTIF('Entry sheet-2-hin'!$AM$9:$AM$77,"8लउ२")) -> 0 | K14: =IF(B14="","",COUNTIF('Entry sheet-2-hin'!$AM$9:$AM$77,"8लउ३")) -> 0 | L14: =IF(B14="","",COUNTIF('Entry sheet-2-hin'!$AM$9:$AM$77,"8दीउ४")) -> 0 | M14: =IF(B14="","",COUNTIF('Entry sheet-2-hin'!$AM$9:$AM$77,"8दीउ५")) -> 0 | N14: =IF(B14="","",COUNTIF('Entry sheet-2-hin'!$AN$9:$AN$77,"8सरल")) -> 0 | O14: =IF(B14="","",COUNTIF('Entry sheet-2-hin'!$AN$9:$AN$77,"8सामान्य")) -> 0 | P14: =IF(B14="","",COUNTIF('Entry sheet-2-hin'!$AN$9:$AN$77,"8कठिन")) -> 0 | Q14: 0 | R14: 0 | S14: =IF(B14="","",R14/'Entry sheet-1-hin'!$C$6*100) -> 0
A15: =IF('Entry sheet-1-hin'!A18="","",'Entry sheet-1-hin'!A18) -> 9 | B15: =IF('Entry sheet-1-hin'!B18="","",'Entry sheet-1-hin'!B18) -> खेलो- कूदो-स्वस्थ रहो | C15: =IF(B15="","",COUNTIF('Entry sheet-2-hin'!$AL$9:$AL$77,"9स्म")) -> 0 | D15: =IF(B15="","",COUNTIF('Entry sheet-2-hin'!$AL$9:$AL$77,"9सम")) -> 0 | E15: =IF(B15="","",COUNTIF('Entry sheet-2-hin'!$AL$9:$AL$77,"9अ")) -> 0 | F15: =IF(B15="","",COUNTIF('Entry sheet-2-hin'!$AL$9:$AL$77,"9रस")) -> 0 | G15: =IF(B15="","",COUNTIF('Entry sheet-2-hin'!$AM$9:$AM$77,"9बवि")) -> 0 | H15: =IF(B15="","",COUNTIF('Entry sheet-2-hin'!$AM$9:$AM$77,"9वनि")) -> 0 | I15: =IF(B15="","",COUNTIF('Entry sheet-2-hin'!$AM$9:$AM$77,"9अलउ")) -> 0 | J15: =IF(B15="","",COUNTIF('Entry sheet-2-hin'!$AM$9:$AM$77,"9लउ२")) -> 0 | K15: =IF(B15="","",COUNTIF('Entry sheet-2-hin'!$AM$9:$AM$77,"9लउ३")) -> 0 | L15: =IF(B15="","",COUNTIF('Entry sheet-2-hin'!$AM$9:$AM$77,"9दीउ४")) -> 0 | M15: =IF(B15="","",COUNTIF('Entry sheet-2-hin'!$AM$9:$AM$77,"9दीउ५")) -> 0 | N15: =IF(B15="","",COUNTIF('Entry sheet-2-hin'!$AN$9:$AN$77,"9सरल")) -> 0 | O15: =IF(B15="","",COUNTIF('Entry sheet-2-hin'!$AN$9:$AN$77,"9सामान्य")) -> 0 | P15: =IF(B15="","",COUNTIF('Entry sheet-2-hin'!$AN$9:$AN$77,"9कठिन")) -> 0 | Q15: 0 | R15: 0 | S15: =IF(B15="","",R15/'Entry sheet-1-hin'!$C$6*100) -> 0
A16: =IF('Entry sheet-1-hin'!A19="","",'Entry sheet-1-hin'!A19) -> 10 | B16: =IF('Entry sheet-1-hin'!B19="","",'Entry sheet-1-hin'!B19) -> हिमालय की बेटियाँ | C16: =IF(B16="","",COUNTIF('Entry sheet-2-hin'!$AL$9:$AL$77,"10स्म")) -> 0 | D16: =IF(B16="","",COUNTIF('Entry sheet-2-hin'!$AL$9:$AL$77,"10सम")) -> 0 | E16: =IF(B16="","",COUNTIF('Entry sheet-2-hin'!$AL$9:$AL$77,"10अ")) -> 0 | F16: =IF(B16="","",COUNTIF('Entry sheet-2-hin'!$AL$9:$AL$77,"10रस")) -> 0 | G16: =IF(B16="","",COUNTIF('Entry sheet-2-hin'!$AM$9:$AM$77,"10बवि")) -> 0 | H16: =IF(B16="","",COUNTIF('Entry sheet-2-hin'!$AM$9:$AM$77,"10वनि")) -> 0 | I16: =IF(B16="","",COUNTIF('Entry sheet-2-hin'!$AM$9:$AM$77,"10अलउ")) -> 0 | J16: =IF(B16="","",COUNTIF('Entry sheet-2-hin'!$AM$9:$AM$77,"10लउ२")) -> 0 | K16: =IF(B16="","",COUNTIF('Entry sheet-2-hin'!$AM$9:$AM$77,"10लउ३")) -> 0 | L16: =IF(B16="","",COUNTIF('Entry sheet-2-hin'!$AM$9:$AM$77,"10दीउ४")) -> 0 | M16: =IF(B16="","",COUNTIF('Entry sheet-2-hin'!$AM$9:$AM$77,"10दीउ५")) -> 0 | N16: =IF(B16="","",COUNTIF('Entry sheet-2-hin'!$AN$9:$AN$77,"10सरल")) -> 0 | O16: =IF(B16="","",COUNTIF('Entry sheet-2-hin'!$AN$9:$AN$77,"10सामान्य")) -> 0 | P16: =IF(B16="","",COUNTIF('Entry sheet-2-hin'!$AN$9:$AN$77,"10कठिन")) -> 0 | Q16: 0 | R16: 0 | S16: =IF(B16="","",R16/'Entry sheet-1-hin'!$C$6*100) -> 0
A17: =IF('Entry sheet-1-hin'!A20="","",'Entry sheet-1-hin'!A20) -> 11 | B17: =IF('Entry sheet-1-hin'!B20="","",'Entry sheet-1-hin'!B20) -> जय-जय भारत माता | C17: =IF(B17="","",COUNTIF('Entry sheet-2-hin'!$AL$9:$AL$77,"11स्म")) -> 0 | D17: =IF(B17="","",COUNTIF('Entry sheet-2-hin'!$AL$9:$AL$77,"11सम")) -> 1 | E17: =IF(B17="","",COUNTIF('Entry sheet-2-hin'!$AL$9:$AL$77,"11अ")) -> 1 | F17: =IF(B17="","",COUNTIF('Entry sheet-2-hin'!$AL$9:$AL$77,"11रस")) -> 0 | G17: =IF(B17="","",COUNTIF('Entry sheet-2-hin'!$AM$9:$AM$77,"11बवि")) -> 0 | H17: =IF(B17="","",COUNTIF('Entry sheet-2-hin'!$AM$9:$AM$77,"11वनि")) -> 0 | I17: =IF(B17="","",COUNTIF('Entry sheet-2-hin'!$AM$9:$AM$77,"11अलउ")) -> 1 | J17: =IF(B17="","",COUNTIF('Entry sheet-2-hin'!$AM$9:$AM$77,"11लउ२")) -> 1 | K17: =IF(B17="","",COUNTIF('Entry sheet-2-hin'!$AM$9:$AM$77,"11लउ३")) -> 0 | L17: =IF(B17="","",COUNTIF('Entry sheet-2-hin'!$AM$9:$AM$77,"11दीउ४")) -> 0 | M17: =IF(B17="","",COUNTIF('Entry sheet-2-hin'!$AM$9:$AM$77,"11दीउ५")) -> 0 | N17: =IF(B17="","",COUNTIF('Entry sheet-2-hin'!$AN$9:$AN$77,"11सरल")) -> 0 | O17: =IF(B17="","",COUNTIF('Entry sheet-2-hin'!$AN$9:$AN$77,"11सामान्य")) -> 2 | P17: =IF(B17="","",COUNTIF('Entry sheet-2-hin'!$AN$9:$AN$77,"11कठिन")) -> 0 | Q17: 2 | R17: 3 | S17: =IF(B17="","",R17/'Entry sheet-1-hin'!$C$6*100) -> 7.5
A18: =IF('Entry sheet-1-hin'!A21="","",'Entry sheet-1-hin'!A21) -> 12 | B18: =IF('Entry sheet-1-hin'!B21="","",'Entry sheet-1-hin'!B21) -> शिक्षा | C18: =IF(B18="","",COUNTIF('Entry sheet-2-hin'!$AL$9:$AL$77,"12स्म")) -> 0 | D18: =IF(B18="","",COUNTIF('Entry sheet-2-hin'!$AL$9:$AL$77,"12सम")) -> 1 | E18: =IF(B18="","",COUNTIF('Entry sheet-2-hin'!$AL$9:$AL$77,"12अ")) -> 0 | F18: =IF(B18="","",COUNTIF('Entry sheet-2-hin'!$AL$9:$AL$77,"12रस")) -> 0 | G18: =IF(B18="","",COUNTIF('Entry sheet-2-hin'!$AM$9:$AM$77,"12बवि")) -> 0 | H18: =IF(B18="","",COUNTIF('Entry sheet-2-hin'!$AM$9:$AM$77,"12वनि")) -> 0 | I18: =IF(B18="","",COUNTIF('Entry sheet-2-hin'!$AM$9:$AM$77,"12अलउ")) -> 0 | J18: =IF(B18="","",COUNTIF('Entry sheet-2-hin'!$AM$9:$AM$77,"12लउ२")) -> 0 | K18: =IF(B18="","",COUNTIF('Entry sheet-2-hin'!$AM$9:$AM$77,"12लउ३")) -> 0 | L18: =IF(B18="","",COUNTIF('Entry sheet-2-hin'!$AM$9:$AM$77,"12दीउ४")) -> 1 | M18: =IF(B18="","",COUNTIF('Entry sheet-2-hin'!$AM$9:$AM$77,"12दीउ५")) -> 0 | N18: =IF(B18="","",COUNTIF('Entry sheet-2-hin'!$AN$9:$AN$77,"12सरल")) -> 0 | O18: =IF(B18="","",COUNTIF('Entry sheet-2-hin'!$AN$9:$AN$77,"12सामान्य")) -> 1 | P18: =IF(B18="","",COUNTIF('Entry sheet-2-hin'!$AN$9:$AN$77,"12कठिन")) -> 0 | Q18: 1 | R18: 4 | S18: =IF(B18="","",R18/'Entry sheet-1-hin'!$C$6*100) -> 10
A19: =IF('Entry sheet-1-hin'!A22="","",'Entry sheet-1-hin'!A22) -> 13 | B19: =IF('Entry sheet-1-hin'!B22="","",'Entry sheet-1-hin'!B22) -> मेरी अभिलाषा है | C19: =IF(B19="","",COUNTIF('Entry sheet-2-hin'!$AL$9:$AL$77,"13स्म")) -> 0 | D19: =IF(B19="","",COUNTIF('Entry sheet-2-hin'!$AL$9:$AL$77,"13सम")) -> 0 | E19: =IF(B19="","",COUNTIF('Entry sheet-2-hin'!$AL$9:$AL$77,"13अ")) -> 0 | F19: =IF(B19="","",COUNTIF('Entry sheet-2-hin'!$AL$9:$AL$77,"13रस")) -> 1 | G19: =IF(B19="","",COUNTIF('Entry sheet-2-hin'!$AM$9:$AM$77,"13बवि")) -> 0 | H19: =IF(B19="","",COUNTIF('Entry sheet-2-hin'!$AM$9:$AM$77,"13वनि")) -> 0 | I19: =IF(B19="","",COUNTIF('Entry sheet-2-hin'!$AM$9:$AM$77,"13अलउ")) -> 0 | J19: =IF(B19="","",COUNTIF('Entry sheet-2-hin'!$AM$9:$AM$77,"13लउ२")) -> 0 | K19: =IF(B19="","",COUNTIF('Entry sheet-2-hin'!$AM$9:$AM$77,"13लउ३")) -> 1 | L19: =IF(B19="","",COUNTIF('Entry sheet-2-hin'!$AM$9:$AM$77,"13दीउ४")) -> 0 | M19: =IF(B19="","",COUNTIF('Entry sheet-2-hin'!$AM$9:$AM$77,"13दीउ५")) -> 0 | N19: =IF(B19="","",COUNTIF('Entry sheet-2-hin'!$AN$9:$AN$77,"13सरल")) -> 0 | O19: =IF(B19="","",COUNTIF('Entry sheet-2-hin'!$AN$9:$AN$77,"13सामान्य")) -> 0 | P19: =IF(B19="","",COUNTIF('Entry sheet-2-hin'!$AN$9:$AN$77,"13कठिन")) -> 1 | Q19: 1 | R19: 3 | S19: =IF(B19="","",R19/'Entry sheet-1-hin'!$C$6*100) -> 7.5
A20: =IF('Entry sheet-1-hin'!A23="","",'Entry sheet-1-hin'!A23) -> 14 | B20: =IF('Entry sheet-1-hin'!B23="","",'Entry sheet-1-hin'!B23) -> विनती | C20: =IF(B20="","",COUNTIF('Entry sheet-2-hin'!$AL$9:$AL$77,"14स्म")) -> 0 | D20: =IF(B20="","",COUNTIF('Entry sheet-2-hin'!$AL$9:$AL$77,"14सम")) -> 0 | E20: =IF(B20="","",COUNTIF('Entry sheet-2-hin'!$AL$9:$AL$77,"14अ")) -> 0 | F20: =IF(B20="","",COUNTIF('Entry sheet-2-hin'!$AL$9:$AL$77,"14रस")) -> 0 | G20: =IF(B20="","",COUNTIF('Entry sheet-2-hin'!$AM$9:$AM$77,"14बवि")) -> 0 | H20: =IF(B20="","",COUNTIF('Entry sheet-2-hin'!$AM$9:$AM$77,"14वनि")) -> 0 | I20: =IF(B20="","",COUNTIF('Entry sheet-2-hin'!$AM$9:$AM$77,"14अलउ")) -> 0 | J20: =IF(B20="","",COUNTIF('Entry sheet-2-hin'!$AM$9:$AM$77,"14लउ२")) -> 0 | K20: =IF(B20="","",COUNTIF('Entry sheet-2-hin'!$AM$9:$AM$77,"14लउ३")) -> 0 | L20: =IF(B20="","",COUNTIF('Entry sheet-2-hin'!$AM$9:$AM$77,"14दीउ४")) -> 0 | M20: =IF(B20="","",COUNTIF('Entry sheet-2-hin'!$AM$9:$AM$77,"14दीउ५")) -> 0 | N20: =IF(B20="","",COUNTIF('Entry sheet-2-hin'!$AN$9:$AN$77,"14सरल")) -> 0 | O20: =IF(B20="","",COUNTIF('Entry sheet-2-hin'!$AN$9:$AN$77,"14सामान्य")) -> 0 | P20: =IF(B20="","",COUNTIF('Entry sheet-2-hin'!$AN$9:$AN$77,"14कठिन")) -> 0 | Q20: 0 | R20: 0 | S20: =IF(B20="","",R20/'Entry sheet-1-hin'!$C$6*100) -> 0
A21: =IF('Entry sheet-1-hin'!A24="","",'Entry sheet-1-hin'!A24) -> 15 | B21: =IF('Entry sheet-1-hin'!B24="","",'Entry sheet-1-hin'!B24) -> कोई नहीं पराया | C21: =IF(B21="","",COUNTIF('Entry sheet-2-hin'!$AL$9:$AL$77,"15स्म")) -> 0 | D21: =IF(B21="","",COUNTIF('Entry sheet-2-hin'!$AL$9:$AL$77,"15सम")) -> 0 | E21: =IF(B21="","",COUNTIF('Entry sheet-2-hin'!$AL$9:$AL$77,"15अ")) -> 0 | F21: =IF(B21="","",COUNTIF('Entry sheet-2-hin'!$AL$9:$AL$77,"15रस")) -> 0 | G21: =IF(B21="","",COUNTIF('Entry sheet-2-hin'!$AM$9:$AM$77,"15बवि")) -> 0 | H21: =IF(B21="","",COUNTIF('Entry sheet-2-hin'!$AM$9:$AM$77,"15वनि")) -> 0 | I21: =IF(B21="","",COUNTIF('Entry sheet-2-hin'!$AM$9:$AM$77,"15अलउ")) -> 0 | J21: =IF(B21="","",COUNTIF('Entry sheet-2-hin'!$AM$9:$AM$77,"15लउ२")) -> 0 | K21: =IF(B21="","",COUNTIF('Entry sheet-2-hin'!$AM$9:$AM$77,"15लउ३")) -> 0 | L21: =IF(B21="","",COUNTIF('Entry sheet-2-hin'!$AM$9:$AM$77,"15दीउ४")) -> 0 | M21: =IF(B21="","",COUNTIF('Entry sheet-2-hin'!$AM$9:$AM$77,"15दीउ५")) -> 0 | N21: =IF(B21="","",COUNTIF('Entry sheet-2-hin'!$AN$9:$AN$77,"15सरल")) -> 0 | O21: =IF(B21="","",COUNTIF('Entry sheet-2-hin'!$AN$9:$AN$77,"15सामान्य")) -> 0 | P21: =IF(B21="","",COUNTIF('Entry sheet-2-hin'!$AN$9:$AN$77,"15कठिन")) -> 0 | Q21: 0 | R21: 0 | S21: =IF(B21="","",R21/'Entry sheet-1-hin'!$C$6*100) -> 0
A22: =IF('Entry sheet-1-hin'!A25="","",'Entry sheet-1-hin'!A25) -> 16 | B22: =IF('Entry sheet-1-hin'!B25="","",'Entry sheet-1-hin'!B25) -> कबीर के दोहे | C22: =IF(B22="","",COUNTIF('Entry sheet-2-hin'!$AL$9:$AL$77,"16स्म")) -> 0 | D22: =IF(B22="","",COUNTIF('Entry sheet-2-hin'!$AL$9:$AL$77,"16सम")) -> 0 | E22: =IF(B22="","",COUNTIF('Entry sheet-2-hin'!$AL$9:$AL$77,"16अ")) -> 0 | F22: =IF(B22="","",COUNTIF('Entry sheet-2-hin'!$AL$9:$AL$77,"16रस")) -> 0 | G22: =IF(B22="","",COUNTIF('Entry sheet-2-hin'!$AM$9:$AM$77,"16बवि")) -> 0 | H22: =IF(B22="","",COUNTIF('Entry sheet-2-hin'!$AM$9:$AM$77,"16वनि")) -> 0 | I22: =IF(B22="","",COUNTIF('Entry sheet-2-hin'!$AM$9:$AM$77,"16अलउ")) -> 0 | J22: =IF(B22="","",COUNTIF('Entry sheet-2-hin'!$AM$9:$AM$77,"16लउ२")) -> 0 | K22: =IF(B22="","",COUNTIF('Entry sheet-2-hin'!$AM$9:$AM$77,"16लउ३")) -> 0 | L22: =IF(B22="","",COUNTIF('Entry sheet-2-hin'!$AM$9:$AM$77,"16दीउ४")) -> 0 | M22: =IF(B22="","",COUNTIF('Entry sheet-2-hin'!$AM$9:$AM$77,"16दीउ५")) -> 0 | N22: =IF(B22="","",COUNTIF('Entry sheet-2-hin'!$AN$9:$AN$77,"16सरल")) -> 0 | O22: =IF(B22="","",COUNTIF('Entry sheet-2-hin'!$AN$9:$AN$77,"16सामान्य")) -> 0 | P22: =IF(B22="","",COUNTIF('Entry sheet-2-hin'!$AN$9:$AN$77,"16कठिन")) -> 0 | Q22: 0 | R22: 0 | S22: =IF(B22="","",R22/'Entry sheet-1-hin'!$C$6*100) -> 0
A23: =IF('Entry sheet-1-hin'!A26="","",'Entry sheet-1-hin'!A26) -> 17 | B23: =IF('Entry sheet-1-hin'!B26="","",'Entry sheet-1-hin'!B26) -> कजाकी | C23: =IF(B23="","",COUNTIF('Entry sheet-2-hin'!$AL$9:$AL$77,"17स्म")) -> 1 | D23: =IF(B23="","",COUNTIF('Entry sheet-2-hin'!$AL$9:$AL$77,"17सम")) -> 0 | E23: =IF(B23="","",COUNTIF('Entry sheet-2-hin'!$AL$9:$AL$77,"17अ")) -> 0 | F23: =IF(B23="","",COUNTIF('Entry sheet-2-hin'!$AL$9:$AL$77,"17रस")) -> 0 | G23: =IF(B23="","",COUNTIF('Entry sheet-2-hin'!$AM$9:$AM$77,"17बवि")) -> 0 | H23: =IF(B23="","",COUNTIF('Entry sheet-2-hin'!$AM$9:$AM$77,"17वनि")) -> 0 | I23: =IF(B23="","",COUNTIF('Entry sheet-2-hin'!$AM$9:$AM$77,"17अलउ")) -> 0 | J23: =IF(B23="","",COUNTIF('Entry sheet-2-hin'!$AM$9:$AM$77,"17लउ२")) -> 1 | K23: =IF(B23="","",COUNTIF('Entry sheet-2-hin'!$AM$9:$AM$77,"17लउ३")) -> 0 | L23: =IF(B23="","",COUNTIF('Entry sheet-2-hin'!$AM$9:$AM$77,"17दीउ४")) -> 0 | M23: =IF(B23="","",COUNTIF('Entry sheet-2-hin'!$AM$9:$AM$77,"17दीउ५")) -> 0 | N23: =IF(B23="","",COUNTIF('Entry sheet-2-hin'!$AN$9:$AN$77,"17सरल")) -> 0 | O23: =IF(B23="","",COUNTIF('Entry sheet-2-hin'!$AN$9:$AN$77,"17सामान्य")) -> 1 | P23: =IF(B23="","",COUNTIF('Entry sheet-2-hin'!$AN$9:$AN$77,"17कठिन")) -> 0 | Q23: 1 | R23: 2 | S23: =IF(B23="","",R23/'Entry sheet-1-hin'!$C$6*100) -> 5
A24: =IF('Entry sheet-1-hin'!A27="","",'Entry sheet-1-hin'!A27) -> 18 | B24: =IF('Entry sheet-1-hin'!B27="","",'Entry sheet-1-hin'!B27) -> वीर मालव जी | C24: =IF(B24="","",COUNTIF('Entry sheet-2-hin'!$AL$9:$AL$77,"18स्म")) -> 0 | D24: =IF(B24="","",COUNTIF('Entry sheet-2-hin'!$AL$9:$AL$77,"18सम")) -> 0 | E24: =IF(B24="","",COUNTIF('Entry sheet-2-hin'!$AL$9:$AL$77,"18अ")) -> 0 | F24: =IF(B24="","",COUNTIF('Entry sheet-2-hin'!$AL$9:$AL$77,"18रस")) -> 0 | G24: =IF(B24="","",COUNTIF('Entry sheet-2-hin'!$AM$9:$AM$77,"18बवि")) -> 0 | H24: =IF(B24="","",COUNTIF('Entry sheet-2-hin'!$AM$9:$AM$77,"18वनि")) -> 0 | I24: =IF(B24="","",COUNTIF('Entry sheet-2-hin'!$AM$9:$AM$77,"18अलउ")) -> 0 | J24: =IF(B24="","",COUNTIF('Entry sheet-2-hin'!$AM$9:$AM$77,"18लउ२")) -> 0 | K24: =IF(B24="","",COUNTIF('Entry sheet-2-hin'!$AM$9:$AM$77,"18लउ३")) -> 0 | L24: =IF(B24="","",COUNTIF('Entry sheet-2-hin'!$AM$9:$AM$77,"18दीउ४")) -> 0 | M24: =IF(B24="","",COUNTIF('Entry sheet-2-hin'!$AM$9:$AM$77,"18दीउ५")) -> 0 | N24: =IF(B24="","",COUNTIF('Entry sheet-2-hin'!$AN$9:$AN$77,"18सरल")) -> 0 | O24: =IF(B24="","",COUNTIF('Entry sheet-2-hin'!$AN$9:$AN$77,"18सामान्य")) -> 0 | P24: =IF(B24="","",COUNTIF('Entry sheet-2-hin'!$AN$9:$AN$77,"18कठिन")) -> 0 | Q24: 0 | R24: 0 | S24: =IF(B24="","",R24/'Entry sheet-1-hin'!$C$6*100) -> 0
A25: =IF('Entry sheet-1-hin'!A28="","",'Entry sheet-1-hin'!A28) -> 19 | B25: =IF('Entry sheet-1-hin'!B28="","",'Entry sheet-1-hin'!B28) -> वृक्ष हमारे जीवन-साथी | C25: =IF(B25="","",COUNTIF('Entry sheet-2-hin'!$AL$9:$AL$77,"19स्म")) -> 0 | D25: =IF(B25="","",COUNTIF('Entry sheet-2-hin'!$AL$9:$AL$77,"19सम")) -> 0 | E25: =IF(B25="","",COUNTIF('Entry sheet-2-hin'!$AL$9:$AL$77,"19अ")) -> 0 | F25: =IF(B25="","",COUNTIF('Entry sheet-2-hin'!$AL$9:$AL$77,"19रस")) -> 0 | G25: =IF(B25="","",COUNTIF('Entry sheet-2-hin'!$AM$9:$AM$77,"19बवि")) -> 0 | H25: =IF(B25="","",COUNTIF('Entry sheet-2-hin'!$AM$9:$AM$77,"19वनि")) -> 0 | I25: =IF(B25="","",COUNTIF('Entry sheet-2-hin'!$AM$9:$AM$77,"19अलउ")) -> 0 | J25: =IF(B25="","",COUNTIF('Entry sheet-2-hin'!$AM$9:$AM$77,"19लउ२")) -> 0 | K25: =IF(B25="","",COUNTIF('Entry sheet-2-hin'!$AM$9:$AM$77,"19लउ३")) -> 0 | L25: =IF(B25="","",COUNTIF('Entry sheet-2-hin'!$AM$9:$AM$77,"19दीउ४")) -> 0 | M25: =IF(B25="","",COUNTIF('Entry sheet-2-hin'!$AM$9:$AM$77,"19दीउ५")) -> 0 | N25: =IF(B25="","",COUNTIF('Entry sheet-2-hin'!$AN$9:$AN$77,"19सरल")) -> 0 | O25: =IF(B25="","",COUNTIF('Entry sheet-2-hin'!$AN$9:$AN$77,"19सामान्य")) -> 0 | P25: =IF(B25="","",COUNTIF('Entry sheet-2-hin'!$AN$9:$AN$77,"19कठिन")) -> 0 | Q25: 0 | R25: 0 | S25: =IF(B25="","",R25/'Entry sheet-1-hin'!$C$6*100) -> 0
A26: =IF('Entry sheet-1-hin'!A29="","",'Entry sheet-1-hin'!A29) -> 20 | B26: =IF('Entry sheet-1-hin'!B29="","",'Entry sheet-1-hin'!B29) -> अपठित गद्यांश | C26: =IF(B26="","",COUNTIF('Entry sheet-2-hin'!$AL$9:$AL$77,"20स्म")) -> 0 | D26: =IF(B26="","",COUNTIF('Entry sheet-2-hin'!$AL$9:$AL$77,"20सम")) -> 2 | E26: =IF(B26="","",COUNTIF('Entry sheet-2-hin'!$AL$9:$AL$77,"20अ")) -> 0 | F26: =IF(B26="","",COUNTIF('Entry sheet-2-hin'!$AL$9:$AL$77,"20रस")) -> 0 | G26: =IF(B26="","",COUNTIF('Entry sheet-2-hin'!$AM$9:$AM$77,"20बवि")) -> 0 | H26: =IF(B26="","",COUNTIF('Entry sheet-2-hin'!$AM$9:$AM$77,"20वनि")) -> 0 | I26: =IF(B26="","",COUNTIF('Entry sheet-2-hin'!$AM$9:$AM$77,"20अलउ")) -> 2 | J26: =IF(B26="","",COUNTIF('Entry sheet-2-hin'!$AM$9:$AM$77,"20लउ२")) -> 0 | K26: =IF(B26="","",COUNTIF('Entry sheet-2-hin'!$AM$9:$AM$77,"20लउ३")) -> 0 | L26: =IF(B26="","",COUNTIF('Entry sheet-2-hin'!$AM$9:$AM$77,"20दीउ४")) -> 0 | M26: =IF(B26="","",COUNTIF('Entry sheet-2-hin'!$AM$9:$AM$77,"20दीउ५")) -> 0 | N26: =IF(B26="","",COUNTIF('Entry sheet-2-hin'!$AN$9:$AN$77,"20सरल")) -> 2 | O26: =IF(B26="","",COUNTIF('Entry sheet-2-hin'!$AN$9:$AN$77,"20सामान्य")) -> 0 | P26: =IF(B26="","",COUNTIF('Entry sheet-2-hin'!$AN$9:$AN$77,"20कठिन")) -> 0 | Q26: 2 | R26: 2 | S26: =IF(B26="","",R26/'Entry sheet-1-hin'!$C$6*100) -> 5
A27: =IF('Entry sheet-1-hin'!A30="","",'Entry sheet-1-hin'!A30) -> 21 | B27: =IF('Entry sheet-1-hin'!B30="","",'Entry sheet-1-hin'!B30) -> अनुवाद | C27: =IF(B27="","",COUNTIF('Entry sheet-2-hin'!$AL$9:$AL$77,"21स्म")) -> 0 | D27: =IF(B27="","",COUNTIF('Entry sheet-2-hin'!$AL$9:$AL$77,"21सम")) -> 0 | E27: =IF(B27="","",COUNTIF('Entry sheet-2-hin'!$AL$9:$AL$77,"21अ")) -> 2 | F27: =IF(B27="","",COUNTIF('Entry sheet-2-hin'!$AL$9:$AL$77,"21रस")) -> 0 | G27: =IF(B27="","",COUNTIF('Entry sheet-2-hin'!$AM$9:$AM$77,"21बवि")) -> 0 | H27: =IF(B27="","",COUNTIF('Entry sheet-2-hin'!$AM$9:$AM$77,"21वनि")) -> 0 | I27: =IF(B27="","",COUNTIF('Entry sheet-2-hin'!$AM$9:$AM$77,"21अलउ")) -> 2 | J27: =IF(B27="","",COUNTIF('Entry sheet-2-hin'!$AM$9:$AM$77,"21लउ२")) -> 0 | K27: =IF(B27="","",COUNTIF('Entry sheet-2-hin'!$AM$9:$AM$77,"21लउ३")) -> 0 | L27: =IF(B27="","",COUNTIF('Entry sheet-2-hin'!$AM$9:$AM$77,"21दीउ४")) -> 0 | M27: =IF(B27="","",COUNTIF('Entry sheet-2-hin'!$AM$9:$AM$77,"21दीउ५")) -> 0 | N27: =IF(B27="","",COUNTIF('Entry sheet-2-hin'!$AN$9:$AN$77,"21सरल")) -> 2 | O27: =IF(B27="","",COUNTIF('Entry sheet-2-hin'!$AN$9:$AN$77,"21सामान्य")) -> 0 | P27: =IF(B27="","",COUNTIF('Entry sheet-2-hin'!$AN$9:$AN$77,"21कठिन")) -> 0 | Q27: 2 | R27: 2 | S27: =IF(B27="","",R27/'Entry sheet-1-hin'!$C$6*100) -> 5
A28: =IF('Entry sheet-1-hin'!A31="","",'Entry sheet-1-hin'!A31) -> 22 | B28: =IF('Entry sheet-1-hin'!B31="","",'Entry sheet-1-hin'!B31) -> पत्र लेखन | C28: =IF(B28="","",COUNTIF('Entry sheet-2-hin'!$AL$9:$AL$77,"22स्म")) -> 0 | D28: =IF(B28="","",COUNTIF('Entry sheet-2-hin'!$AL$9:$AL$77,"22सम")) -> 0 | E28: =IF(B28="","",COUNTIF('Entry sheet-2-hin'!$AL$9:$AL$77,"22अ")) -> 1 | F28: =IF(B28="","",COUNTIF('Entry sheet-2-hin'!$AL$9:$AL$77,"22रस")) -> 0 | G28: =IF(B28="","",COUNTIF('Entry sheet-2-hin'!$AM$9:$AM$77,"22बवि")) -> 0 | H28: =IF(B28="","",COUNTIF('Entry sheet-2-hin'!$AM$9:$AM$77,"22वनि")) -> 0 | I28: =IF(B28="","",COUNTIF('Entry sheet-2-hin'!$AM$9:$AM$77,"22अलउ")) -> 0 | J28: =IF(B28="","",COUNTIF('Entry sheet-2-hin'!$AM$9:$AM$77,"22लउ२")) -> 0 | K28: =IF(B28="","",COUNTIF('Entry sheet-2-hin'!$AM$9:$AM$77,"22लउ३")) -> 0 | L28: =IF(B28="","",COUNTIF('Entry sheet-2-hin'!$AM$9:$AM$77,"22दीउ४")) -> 1 | M28: =IF(B28="","",COUNTIF('Entry sheet-2-hin'!$AM$9:$AM$77,"22दीउ५")) -> 0 | N28: =IF(B28="","",COUNTIF('Entry sheet-2-hin'!$AN$9:$AN$77,"22सरल")) -> 0 | O28: =IF(B28="","",COUNTIF('Entry sheet-2-hin'!$AN$9:$AN$77,"22सामान्य")) -> 0 | P28: =IF(B28="","",COUNTIF('Entry sheet-2-hin'!$AN$9:$AN$77,"22कठिन")) -> 1 | Q28: 1 | R28: 4 | S28: =IF(B28="","",R28/'Entry sheet-1-hin'!$C$6*100) -> 10
A29: =IF('Entry sheet-1-hin'!A32="","",'Entry sheet-1-hin'!A32) -> 23 | B29: =IF('Entry sheet-1-hin'!B32="","",'Entry sheet-1-hin'!B32) -> निबंध रचना | C29: =IF(B29="","",COUNTIF('Entry sheet-2-hin'!$AL$9:$AL$77,"23स्म")) -> 0 | D29: =IF(B29="","",COUNTIF('Entry sheet-2-hin'!$AL$9:$AL$77,"23सम")) -> 0 | E29: =IF(B29="","",COUNTIF('Entry sheet-2-hin'!$AL$9:$AL$77,"23अ")) -> 0 | F29: =IF(B29="","",COUNTIF('Entry sheet-2-hin'!$AL$9:$AL$77,"23रस")) -> 0 | G29: =IF(B29="","",COUNTIF('Entry sheet-2-hin'!$AM$9:$AM$77,"23बवि")) -> 0 | H29: =IF(B29="","",COUNTIF('Entry sheet-2-hin'!$AM$9:$AM$77,"23वनि")) -> 0 | I29: =IF(B29="","",COUNTIF('Entry sheet-2-hin'!$AM$9:$AM$77,"23अलउ")) -> 0 | J29: =IF(B29="","",COUNTIF('Entry sheet-2-hin'!$AM$9:$AM$77,"23लउ२")) -> 0 | K29: =IF(B29="","",COUNTIF('Entry sheet-2-hin'!$AM$9:$AM$77,"23लउ३")) -> 0 | L29: =IF(B29="","",COUNTIF('Entry sheet-2-hin'!$AM$9:$AM$77,"23दीउ४")) -> 0 | M29: =IF(B29="","",COUNTIF('Entry sheet-2-hin'!$AM$9:$AM$77,"23दीउ५")) -> 0 | N29: =IF(B29="","",COUNTIF('Entry sheet-2-hin'!$AN$9:$AN$77,"23सरल")) -> 0 | O29: =IF(B29="","",COUNTIF('Entry sheet-2-hin'!$AN$9:$AN$77,"23सामान्य")) -> 0 | P29: =IF(B29="","",COUNTIF('Entry sheet-2-hin'!$AN$9:$AN$77,"23कठिन")) -> 0 | Q29: 0 | R29: 0 | S29: =IF(B29="","",R29/'Entry sheet-1-hin'!$C$6*100) -> 0
A30: =IF('Entry sheet-1-hin'!A33="","",'Entry sheet-1-hin'!A33) -> 24 | B30: =IF('Entry sheet-1-hin'!B33="","",'Entry sheet-1-hin'!B33) -> व्याकरण | C30: =IF(B30="","",COUNTIF('Entry sheet-2-hin'!$AL$9:$AL$77,"24स्म")) -> 0 | D30: =IF(B30="","",COUNTIF('Entry sheet-2-hin'!$AL$9:$AL$77,"24सम")) -> 4 | E30: =IF(B30="","",COUNTIF('Entry sheet-2-hin'!$AL$9:$AL$77,"24अ")) -> 0 | F30: =IF(B30="","",COUNTIF('Entry sheet-2-hin'!$AL$9:$AL$77,"24रस")) -> 0 | G30: =IF(B30="","",COUNTIF('Entry sheet-2-hin'!$AM$9:$AM$77,"24बवि")) -> 4 | H30: =IF(B30="","",COUNTIF('Entry sheet-2-hin'!$AM$9:$AM$77,"24वनि")) -> 0 | I30: =IF(B30="","",COUNTIF('Entry sheet-2-hin'!$AM$9:$AM$77,"24अलउ")) -> 0 | J30: =IF(B30="","",COUNTIF('Entry sheet-2-hin'!$AM$9:$AM$77,"24लउ२")) -> 0 | K30: =IF(B30="","",COUNTIF('Entry sheet-2-hin'!$AM$9:$AM$77,"24लउ३")) -> 0 | L30: =IF(B30="","",COUNTIF('Entry sheet-2-hin'!$AM$9:$AM$77,"24दीउ४")) -> 0 | M30: =IF(B30="","",COUNTIF('Entry sheet-2-hin'!$AM$9:$AM$77,"24दीउ५")) -> 0 | N30: =IF(B30="","",COUNTIF('Entry sheet-2-hin'!$AN$9:$AN$77,"24सरल")) -> 1 | O30: =IF(B30="","",COUNTIF('Entry sheet-2-hin'!$AN$9:$AN$77,"24सामान्य")) -> 2 | P30: =IF(B30="","",COUNTIF('Entry sheet-2-hin'!$AN$9:$AN$77,"24कठिन")) -> 1 | Q30: 4 | R30: 4 | S30: =IF(B30="","",R30/'Entry sheet-1-hin'!$C$6*100) -> 10
A31: =IF('Entry sheet-1-hin'!A34="","",'Entry sheet-1-hin'!A34) ->  | B31: =IF('Entry sheet-1-hin'!B34="","",'Entry sheet-1-hin'!B34) ->  | C31: =IF(B31="","",COUNTIF('Entry sheet-2-hin'!$AL$9:$AL$77,"25स्म")) ->  | D31: =IF(B31="","",COUNTIF('Entry sheet-2-hin'!$AL$9:$AL$77,"25सम")) ->  | E31: =IF(B31="","",COUNTIF('Entry sheet-2-hin'!$AL$9:$AL$77,"25अ")) ->  | F31: =IF(B31="","",COUNTIF('Entry sheet-2-hin'!$AL$9:$AL$77,"25रस")) ->  | G31: =IF(B31="","",COUNTIF('Entry sheet-2-hin'!$AM$9:$AM$77,"25बवि")) ->  | H31: =IF(B31="","",COUNTIF('Entry sheet-2-hin'!$AM$9:$AM$77,"25वनि")) ->  | I31: =IF(B31="","",COUNTIF('Entry sheet-2-hin'!$AM$9:$AM$77,"25अलउ")) ->  | J31: =IF(B31="","",COUNTIF('Entry sheet-2-hin'!$AM$9:$AM$77,"25लउ२")) ->  | K31: =IF(B31="","",COUNTIF('Entry sheet-2-hin'!$AM$9:$AM$77,"25लउ३")) ->  | L31: =IF(B31="","",COUNTIF('Entry sheet-2-hin'!$AM$9:$AM$77,"25दीउ४")) ->  | M31: =IF(B31="","",COUNTIF('Entry sheet-2-hin'!$AM$9:$AM$77,"25दीउ५")) ->  | N31: =IF(B31="","",COUNTIF('Entry sheet-2-hin'!$AN$9:$AN$77,"25सरल")) ->  | O31: =IF(B31="","",COUNTIF('Entry sheet-2-hin'!$AN$9:$AN$77,"25सामान्य")) ->  | P31: =IF(B31="","",COUNTIF('Entry sheet-2-hin'!$AN$9:$AN$77,"25कठिन")) ->  | S31: =IF(B31="","",R31/'Entry sheet-1-hin'!$C$6*100) -> 
A32: =IF('Entry sheet-1-hin'!A35="","",'Entry sheet-1-hin'!A35) ->  | B32: =IF('Entry sheet-1-hin'!B35="","",'Entry sheet-1-hin'!B35) ->  | C32: =IF(B32="","",COUNTIF('Entry sheet-2-hin'!$AL$9:$AL$77,"26स्म")) ->  | D32: =IF(B32="","",COUNTIF('Entry sheet-2-hin'!$AL$9:$AL$77,"26सम")) ->  | E32: =IF(B32="","",COUNTIF('Entry sheet-2-hin'!$AL$9:$AL$77,"26अ")) ->  | F32: =IF(B32="","",COUNTIF('Entry sheet-2-hin'!$AL$9:$AL$77,"26रस")) ->  | G32: =IF(B32="","",COUNTIF('Entry sheet-2-hin'!$AM$9:$AM$77,"26बवि")) ->  | H32: =IF(B32="","",COUNTIF('Entry sheet-2-hin'!$AM$9:$AM$77,"26वनि")) ->  | I32: =IF(B32="","",COUNTIF('Entry sheet-2-hin'!$AM$9:$AM$77,"26अलउ")) ->  | J32: =IF(B32="","",COUNTIF('Entry sheet-2-hin'!$AM$9:$AM$77,"26लउ२")) ->  | K32: =IF(B32="","",COUNTIF('Entry sheet-2-hin'!$AM$9:$AM$77,"26लउ३")) ->  | L32: =IF(B32="","",COUNTIF('Entry sheet-2-hin'!$AM$9:$AM$77,"26दीउ४")) ->  | M32: =IF(B32="","",COUNTIF('Entry sheet-2-hin'!$AM$9:$AM$77,"26दीउ५")) ->  | N32: =IF(B32="","",COUNTIF('Entry sheet-2-hin'!$AN$9:$AN$77,"26सरल")) ->  | O32: =IF(B32="","",COUNTIF('Entry sheet-2-hin'!$AN$9:$AN$77,"26सामान्य")) ->  | P32: =IF(B32="","",COUNTIF('Entry sheet-2-hin'!$AN$9:$AN$77,"26कठिन")) ->  | S32: =IF(B32="","",R32/'Entry sheet-1-hin'!$C$6*100) -> 
A33: =IF('Entry sheet-1-hin'!A36="","",'Entry sheet-1-hin'!A36) ->  | B33: =IF('Entry sheet-1-hin'!B36="","",'Entry sheet-1-hin'!B36) ->  | C33: =IF(B33="","",COUNTIF('Entry sheet-2-hin'!$AL$9:$AL$77,"27स्म")) ->  | D33: =IF(B33="","",COUNTIF('Entry sheet-2-hin'!$AL$9:$AL$77,"27सम")) ->  | E33: =IF(B33="","",COUNTIF('Entry sheet-2-hin'!$AL$9:$AL$77,"27अ")) ->  | F33: =IF(B33="","",COUNTIF('Entry sheet-2-hin'!$AL$9:$AL$77,"27रस")) ->  | G33: =IF(B33="","",COUNTIF('Entry sheet-2-hin'!$AM$9:$AM$77,"27बवि")) ->  | H33: =IF(B33="","",COUNTIF('Entry sheet-2-hin'!$AM$9:$AM$77,"27वनि")) ->  | I33: =IF(B33="","",COUNTIF('Entry sheet-2-hin'!$AM$9:$AM$77,"27अलउ")) ->  | J33: =IF(B33="","",COUNTIF('Entry sheet-2-hin'!$AM$9:$AM$77,"27लउ२")) ->  | K33: =IF(B33="","",COUNTIF('Entry sheet-2-hin'!$AM$9:$AM$77,"27लउ३")) ->  | L33: =IF(B33="","",COUNTIF('Entry sheet-2-hin'!$AM$9:$AM$77,"27दीउ४")) ->  | M33: =IF(B33="","",COUNTIF('Entry sheet-2-hin'!$AM$9:$AM$77,"27दीउ५")) ->  | N33: =IF(B33="","",COUNTIF('Entry sheet-2-hin'!$AN$9:$AN$77,"27सरल")) ->  | O33: =IF(B33="","",COUNTIF('Entry sheet-2-hin'!$AN$9:$AN$77,"27सामान्य")) ->  | P33: =IF(B33="","",COUNTIF('Entry sheet-2-hin'!$AN$9:$AN$77,"27कठिन")) ->  | S33: =IF(B33="","",R33/'Entry sheet-1-hin'!$C$6*100) -> 
A34: =IF('Entry sheet-1-hin'!A37="","",'Entry sheet-1-hin'!A37) ->  | B34: =IF('Entry sheet-1-hin'!B37="","",'Entry sheet-1-hin'!B37) ->  | C34: =IF(B34="","",COUNTIF('Entry sheet-2-hin'!$AL$9:$AL$77,"28स्म")) ->  | D34: =IF(B34="","",COUNTIF('Entry sheet-2-hin'!$AL$9:$AL$77,"28सम")) ->  | E34: =IF(B34="","",COUNTIF('Entry sheet-2-hin'!$AL$9:$AL$77,"28अ")) ->  | F34: =IF(B34="","",COUNTIF('Entry sheet-2-hin'!$AL$9:$AL$77,"28रस")) ->  | G34: =IF(B34="","",COUNTIF('Entry sheet-2-hin'!$AM$9:$AM$77,"28बवि")) ->  | H34: =IF(B34="","",COUNTIF('Entry sheet-2-hin'!$AM$9:$AM$77,"28वनि")) ->  | I34: =IF(B34="","",COUNTIF('Entry sheet-2-hin'!$AM$9:$AM$77,"28अलउ")) ->  | J34: =IF(B34="","",COUNTIF('Entry sheet-2-hin'!$AM$9:$AM$77,"28लउ२")) ->  | K34: =IF(B34="","",COUNTIF('Entry sheet-2-hin'!$AM$9:$AM$77,"28लउ३")) ->  | L34: =IF(B34="","",COUNTIF('Entry sheet-2-hin'!$AM$9:$AM$77,"28दीउ४")) ->  | M34: =IF(B34="","",COUNTIF('Entry sheet-2-hin'!$AM$9:$AM$77,"28दीउ५")) ->  | N34: =IF(B34="","",COUNTIF('Entry sheet-2-hin'!$AN$9:$AN$77,"28सरल")) ->  | O34: =IF(B34="","",COUNTIF('Entry sheet-2-hin'!$AN$9:$AN$77,"28सामान्य")) ->  | P34: =IF(B34="","",COUNTIF('Entry sheet-2-hin'!$AN$9:$AN$77,"28कठिन")) ->  | S34: =IF(B34="","",R34/'Entry sheet-1-hin'!$C$6*100) -> 
A35: =IF('Entry sheet-1-hin'!A38="","",'Entry sheet-1-hin'!A38) ->  | B35: =IF('Entry sheet-1-hin'!B38="","",'Entry sheet-1-hin'!B38) ->  | C35: =IF(B35="","",COUNTIF('Entry sheet-2-hin'!$AL$9:$AL$77,"29स्म")) ->  | D35: =IF(B35="","",COUNTIF('Entry sheet-2-hin'!$AL$9:$AL$77,"29सम")) ->  | E35: =IF(B35="","",COUNTIF('Entry sheet-2-hin'!$AL$9:$AL$77,"29अ")) ->  | F35: =IF(B35="","",COUNTIF('Entry sheet-2-hin'!$AL$9:$AL$77,"29रस")) ->  | G35: =IF(B35="","",COUNTIF('Entry sheet-2-hin'!$AM$9:$AM$77,"29बवि")) ->  | H35: =IF(B35="","",COUNTIF('Entry sheet-2-hin'!$AM$9:$AM$77,"29वनि")) ->  | I35: =IF(B35="","",COUNTIF('Entry sheet-2-hin'!$AM$9:$AM$77,"29अलउ")) ->  | J35: =IF(B35="","",COUNTIF('Entry sheet-2-hin'!$AM$9:$AM$77,"29लउ२")) ->  | K35: =IF(B35="","",COUNTIF('Entry sheet-2-hin'!$AM$9:$AM$77,"29लउ३")) ->  | L35: =IF(B35="","",COUNTIF('Entry sheet-2-hin'!$AM$9:$AM$77,"29दीउ४")) ->  | M35: =IF(B35="","",COUNTIF('Entry sheet-2-hin'!$AM$9:$AM$77,"29दीउ५")) ->  | N35: =IF(B35="","",COUNTIF('Entry sheet-2-hin'!$AN$9:$AN$77,"29सरल")) ->  | O35: =IF(B35="","",COUNTIF('Entry sheet-2-hin'!$AN$9:$AN$77,"29सामान्य")) ->  | P35: =IF(B35="","",COUNTIF('Entry sheet-2-hin'!$AN$9:$AN$77,"29कठिन")) ->  | S35: =IF(B35="","",R35/'Entry sheet-1-hin'!$C$6*100) -> 
A36: =IF('Entry sheet-1-hin'!A39="","",'Entry sheet-1-hin'!A39) ->  | B36: =IF('Entry sheet-1-hin'!B39="","",'Entry sheet-1-hin'!B39) ->  | C36: =IF(B36="","",COUNTIF('Entry sheet-2-hin'!$AL$9:$AL$77,"30स्म")) ->  | D36: =IF(B36="","",COUNTIF('Entry sheet-2-hin'!$AL$9:$AL$77,"30सम")) ->  | E36: =IF(B36="","",COUNTIF('Entry sheet-2-hin'!$AL$9:$AL$77,"30अ")) ->  | F36: =IF(B36="","",COUNTIF('Entry sheet-2-hin'!$AL$9:$AL$77,"30रस")) ->  | G36: =IF(B36="","",COUNTIF('Entry sheet-2-hin'!$AM$9:$AM$77,"30बवि")) ->  | H36: =IF(B36="","",COUNTIF('Entry sheet-2-hin'!$AM$9:$AM$77,"30वनि")) ->  | I36: =IF(B36="","",COUNTIF('Entry sheet-2-hin'!$AM$9:$AM$77,"30अलउ")) ->  | J36: =IF(B36="","",COUNTIF('Entry sheet-2-hin'!$AM$9:$AM$77,"30लउ२")) ->  | K36: =IF(B36="","",COUNTIF('Entry sheet-2-hin'!$AM$9:$AM$77,"30लउ३")) ->  | L36: =IF(B36="","",COUNTIF('Entry sheet-2-hin'!$AM$9:$AM$77,"30दीउ४")) ->  | M36: =IF(B36="","",COUNTIF('Entry sheet-2-hin'!$AM$9:$AM$77,"30दीउ५")) ->  | N36: =IF(B36="","",COUNTIF('Entry sheet-2-hin'!$AN$9:$AN$77,"30सरल")) ->  | O36: =IF(B36="","",COUNTIF('Entry sheet-2-hin'!$AN$9:$AN$77,"30सामान्य")) ->  | P36: =IF(B36="","",COUNTIF('Entry sheet-2-hin'!$AN$9:$AN$77,"30कठिन")) ->  | S36: =IF(B36="","",R36/'Entry sheet-1-hin'!$C$6*100) -> 
A37: =IF('Entry sheet-1-hin'!A40="","",'Entry sheet-1-hin'!A40) ->  | B37: =IF('Entry sheet-1-hin'!B40="","",'Entry sheet-1-hin'!B40) ->  | C37: =IF(B37="","",COUNTIF('Entry sheet-2-hin'!$AL$9:$AL$68,"31K")) ->  | D37: =IF(B37="","",COUNTIF('Entry sheet-2-hin'!$AL$9:$AL$68,"31U")) ->  | E37: =IF(B37="","",COUNTIF('Entry sheet-2-hin'!$AL$9:$AL$68,"31A")) ->  | F37: =IF(B37="","",COUNTIF('Entry sheet-2-hin'!$AL$9:$AL$68,"31S")) ->  | G37: =IF(B37="","",COUNTIF('Entry sheet-2-hin'!$AM$9:$AM$68,"31MC")) ->  | H37: =IF(B37="","",COUNTIF('Entry sheet-2-hin'!$AM$9:$AM$68,"31OT")) ->  | I37: =IF(B37="","",COUNTIF('Entry sheet-2-hin'!$AM$9:$AM$68,"31SA1")) ->  | J37: =IF(B37="","",COUNTIF('Entry sheet-2-hin'!$AM$9:$AM$68,"31SA2")) ->  | K37: =IF(B37="","",COUNTIF('Entry sheet-2-hin'!$AM$9:$AM$68,"31LA1")) ->  | L37: =IF(B37="","",COUNTIF('Entry sheet-2-hin'!$AM$9:$AM$68,"31LA2")) ->  | M37: =IF(B37="","",COUNTIF('Entry sheet-2-hin'!$AM$9:$AM$77,"22दीउ5")) ->  | N37: =IF(B37="","",COUNTIF('Entry sheet-2-hin'!$AN$9:$AN$68,"31E")) ->  | O37: =IF(B37="","",COUNTIF('Entry sheet-2-hin'!$AN$9:$AN$68,"31M")) ->  | P37: =IF(B37="","",COUNTIF('Entry sheet-2-hin'!$AN$9:$AN$68,"31D")) ->  | S37: =IF(B37="","",R37/'Entry sheet-1-hin'!$C$6*100) -> 
A38: =IF('Entry sheet-1-hin'!A41="","",'Entry sheet-1-hin'!A41) ->  | B38: =IF('Entry sheet-1-hin'!B41="","",'Entry sheet-1-hin'!B41) ->  | C38: =IF(B38="","",COUNTIF('Entry sheet-2-hin'!$AL$9:$AL$68,"32K")) ->  | D38: =IF(B38="","",COUNTIF('Entry sheet-2-hin'!$AL$9:$AL$68,"32U")) ->  | E38: =IF(B38="","",COUNTIF('Entry sheet-2-hin'!$AL$9:$AL$68,"32A")) ->  | F38: =IF(B38="","",COUNTIF('Entry sheet-2-hin'!$AL$9:$AL$68,"32S")) ->  | G38: =IF(B38="","",COUNTIF('Entry sheet-2-hin'!$AM$9:$AM$68,"32MC")) ->  | H38: =IF(B38="","",COUNTIF('Entry sheet-2-hin'!$AM$9:$AM$68,"32OT")) ->  | I38: =IF(B38="","",COUNTIF('Entry sheet-2-hin'!$AM$9:$AM$68,"32SA1")) ->  | J38: =IF(B38="","",COUNTIF('Entry sheet-2-hin'!$AM$9:$AM$68,"32SA2")) ->  | K38: =IF(B38="","",COUNTIF('Entry sheet-2-hin'!$AM$9:$AM$68,"32LA1")) ->  | L38: =IF(B38="","",COUNTIF('Entry sheet-2-hin'!$AM$9:$AM$68,"32LA2")) ->  | M38: =IF(B38="","",COUNTIF('Entry sheet-2-hin'!$AM$9:$AM$77,"22दीउ5")) ->  | N38: =IF(B38="","",COUNTIF('Entry sheet-2-hin'!$AN$9:$AN$68,"32E")) ->  | O38: =IF(B38="","",COUNTIF('Entry sheet-2-hin'!$AN$9:$AN$68,"32M")) ->  | P38: =IF(B38="","",COUNTIF('Entry sheet-2-hin'!$AN$9:$AN$68,"32D")) ->  | S38: =IF(B38="","",R38/'Entry sheet-1-hin'!$C$6*100) -> 
A39: =IF('Entry sheet-1-hin'!A42="","",'Entry sheet-1-hin'!A42) ->  | B39: =IF('Entry sheet-1-hin'!B42="","",'Entry sheet-1-hin'!B42) ->  | C39: =IF(B39="","",COUNTIF('Entry sheet-2-hin'!$AL$9:$AL$68,"33K")) ->  | D39: =IF(B39="","",COUNTIF('Entry sheet-2-hin'!$AL$9:$AL$68,"33U")) ->  | E39: =IF(B39="","",COUNTIF('Entry sheet-2-hin'!$AL$9:$AL$68,"33A")) ->  | F39: =IF(B39="","",COUNTIF('Entry sheet-2-hin'!$AL$9:$AL$68,"33S")) ->  | G39: =IF(B39="","",COUNTIF('Entry sheet-2-hin'!$AM$9:$AM$68,"33MC")) ->  | H39: =IF(B39="","",COUNTIF('Entry sheet-2-hin'!$AM$9:$AM$68,"33OT")) ->  | I39: =IF(B39="","",COUNTIF('Entry sheet-2-hin'!$AM$9:$AM$68,"33SA1")) ->  | J39: =IF(B39="","",COUNTIF('Entry sheet-2-hin'!$AM$9:$AM$68,"33SA2")) ->  | K39: =IF(B39="","",COUNTIF('Entry sheet-2-hin'!$AM$9:$AM$68,"33LA1")) ->  | L39: =IF(B39="","",COUNTIF('Entry sheet-2-hin'!$AM$9:$AM$68,"33LA2")) ->  | M39: =IF(B39="","",COUNTIF('Entry sheet-2-hin'!$AM$9:$AM$77,"22दीउ5")) ->  | N39: =IF(B39="","",COUNTIF('Entry sheet-2-hin'!$AN$9:$AN$68,"33E")) ->  | O39: =IF(B39="","",COUNTIF('Entry sheet-2-hin'!$AN$9:$AN$68,"33M")) ->  | P39: =IF(B39="","",COUNTIF('Entry sheet-2-hin'!$AN$9:$AN$68,"33D")) ->  | S39: =IF(B39="","",R39/'Entry sheet-1-hin'!$C$6*100) -> 
A40: =IF('Entry sheet-1-hin'!A43="","",'Entry sheet-1-hin'!A43) ->  | B40: =IF('Entry sheet-1-hin'!B43="","",'Entry sheet-1-hin'!B43) ->  | C40: =IF(B40="","",COUNTIF('Entry sheet-2-hin'!$AL$9:$AL$68,"34K")) ->  | D40: =IF(B40="","",COUNTIF('Entry sheet-2-hin'!$AL$9:$AL$68,"34U")) ->  | E40: =IF(B40="","",COUNTIF('Entry sheet-2-hin'!$AL$9:$AL$68,"34A")) ->  | F40: =IF(B40="","",COUNTIF('Entry sheet-2-hin'!$AL$9:$AL$68,"34S")) ->  | G40: =IF(B40="","",COUNTIF('Entry sheet-2-hin'!$AM$9:$AM$68,"34MC")) ->  | H40: =IF(B40="","",COUNTIF('Entry sheet-2-hin'!$AM$9:$AM$68,"34OT")) ->  | I40: =IF(B40="","",COUNTIF('Entry sheet-2-hin'!$AM$9:$AM$68,"34SA1")) ->  | J40: =IF(B40="","",COUNTIF('Entry sheet-2-hin'!$AM$9:$AM$68,"34SA2")) ->  | K40: =IF(B40="","",COUNTIF('Entry sheet-2-hin'!$AM$9:$AM$68,"34LA1")) ->  | L40: =IF(B40="","",COUNTIF('Entry sheet-2-hin'!$AM$9:$AM$68,"34LA2")) ->  | M40: =IF(B40="","",COUNTIF('Entry sheet-2-hin'!$AM$9:$AM$77,"22दीउ5")) ->  | N40: =IF(B40="","",COUNTIF('Entry sheet-2-hin'!$AN$9:$AN$68,"34E")) ->  | O40: =IF(B40="","",COUNTIF('Entry sheet-2-hin'!$AN$9:$AN$68,"34M")) ->  | P40: =IF(B40="","",COUNTIF('Entry sheet-2-hin'!$AN$9:$AN$68,"34D")) ->  | S40: =IF(B40="","",R40/'Entry sheet-1-hin'!$C$6*100) -> 
A41: =IF('Entry sheet-1-hin'!A44="","",'Entry sheet-1-hin'!A44) ->  | B41: =IF('Entry sheet-1-hin'!B44="","",'Entry sheet-1-hin'!B44) ->  | C41: =IF(B41="","",COUNTIF('Entry sheet-2-hin'!$AL$9:$AL$68,"35K")) ->  | D41: =IF(B41="","",COUNTIF('Entry sheet-2-hin'!$AL$9:$AL$68,"35U")) ->  | E41: =IF(B41="","",COUNTIF('Entry sheet-2-hin'!$AL$9:$AL$68,"35A")) ->  | F41: =IF(B41="","",COUNTIF('Entry sheet-2-hin'!$AL$9:$AL$68,"35S")) ->  | G41: =IF(B41="","",COUNTIF('Entry sheet-2-hin'!$AM$9:$AM$68,"35MC")) ->  | H41: =IF(B41="","",COUNTIF('Entry sheet-2-hin'!$AM$9:$AM$68,"35OT")) ->  | I41: =IF(B41="","",COUNTIF('Entry sheet-2-hin'!$AM$9:$AM$68,"35SA1")) ->  | J41: =IF(B41="","",COUNTIF('Entry sheet-2-hin'!$AM$9:$AM$68,"35SA2")) ->  | K41: =IF(B41="","",COUNTIF('Entry sheet-2-hin'!$AM$9:$AM$68,"35LA1")) ->  | L41: =IF(B41="","",COUNTIF('Entry sheet-2-hin'!$AM$9:$AM$68,"35LA2")) ->  | M41: =IF(B41="","",COUNTIF('Entry sheet-2-hin'!$AM$9:$AM$77,"22दीउ5")) ->  | N41: =IF(B41="","",COUNTIF('Entry sheet-2-hin'!$AN$9:$AN$68,"35E")) ->  | O41: =IF(B41="","",COUNTIF('Entry sheet-2-hin'!$AN$9:$AN$68,"35M")) ->  | P41: =IF(B41="","",COUNTIF('Entry sheet-2-hin'!$AN$9:$AN$68,"35D")) ->  | S41: =IF(B41="","",R41/'Entry sheet-1-hin'!$C$6*100) -> 
A42: =IF('Entry sheet-1-hin'!A45="","",'Entry sheet-1-hin'!A45) ->  | B42: =IF('Entry sheet-1-hin'!B45="","",'Entry sheet-1-hin'!B45) ->  | C42: =IF(B42="","",COUNTIF('Entry sheet-2-hin'!$AL$9:$AL$68,"36K")) ->  | D42: =IF(B42="","",COUNTIF('Entry sheet-2-hin'!$AL$9:$AL$68,"36U")) ->  | E42: =IF(B42="","",COUNTIF('Entry sheet-2-hin'!$AL$9:$AL$68,"36A")) ->  | F42: =IF(B42="","",COUNTIF('Entry sheet-2-hin'!$AL$9:$AL$68,"36S")) ->  | G42: =IF(B42="","",COUNTIF('Entry sheet-2-hin'!$AM$9:$AM$68,"36MC")) ->  | H42: =IF(B42="","",COUNTIF('Entry sheet-2-hin'!$AM$9:$AM$68,"36OT")) ->  | I42: =IF(B42="","",COUNTIF('Entry sheet-2-hin'!$AM$9:$AM$68,"36SA1")) ->  | J42: =IF(B42="","",COUNTIF('Entry sheet-2-hin'!$AM$9:$AM$68,"36SA2")) ->  | K42: =IF(B42="","",COUNTIF('Entry sheet-2-hin'!$AM$9:$AM$68,"36LA1")) ->  | L42: =IF(B42="","",COUNTIF('Entry sheet-2-hin'!$AM$9:$AM$68,"36LA2")) ->  | M42: =IF(B42="","",COUNTIF('Entry sheet-2-hin'!$AM$9:$AM$77,"22दीउ5")) ->  | N42: =IF(B42="","",COUNTIF('Entry sheet-2-hin'!$AN$9:$AN$68,"36E")) ->  | O42: =IF(B42="","",COUNTIF('Entry sheet-2-hin'!$AN$9:$AN$68,"36M")) ->  | P42: =IF(B42="","",COUNTIF('Entry sheet-2-hin'!$AN$9:$AN$68,"36D")) ->  | S42: =IF(B42="","",R42/'Entry sheet-1-hin'!$C$6*100) -> 
A43: =IF('Entry sheet-1-hin'!A46="","",'Entry sheet-1-hin'!A46) ->  | B43: =IF('Entry sheet-1-hin'!B46="","",'Entry sheet-1-hin'!B46) ->  | C43: =IF(B43="","",COUNTIF('Entry sheet-2-hin'!$AL$9:$AL$68,"37K")) ->  | D43: =IF(B43="","",COUNTIF('Entry sheet-2-hin'!$AL$9:$AL$68,"37U")) ->  | E43: =IF(B43="","",COUNTIF('Entry sheet-2-hin'!$AL$9:$AL$68,"37A")) ->  | F43: =IF(B43="","",COUNTIF('Entry sheet-2-hin'!$AL$9:$AL$68,"37S")) ->  | G43: =IF(B43="","",COUNTIF('Entry sheet-2-hin'!$AM$9:$AM$68,"37MC")) ->  | H43: =IF(B43="","",COUNTIF('Entry sheet-2-hin'!$AM$9:$AM$68,"37OT")) ->  | I43: =IF(B43="","",COUNTIF('Entry sheet-2-hin'!$AM$9:$AM$68,"37SA1")) ->  | J43: =IF(B43="","",COUNTIF('Entry sheet-2-hin'!$AM$9:$AM$68,"37SA2")) ->  | K43: =IF(B43="","",COUNTIF('Entry sheet-2-hin'!$AM$9:$AM$68,"37LA1")) ->  | L43: =IF(B43="","",COUNTIF('Entry sheet-2-hin'!$AM$9:$AM$68,"37LA2")) ->  | M43: =IF(B43="","",COUNTIF('Entry sheet-2-hin'!$AM$9:$AM$77,"22दीउ5")) ->  | N43: =IF(B43="","",COUNTIF('Entry sheet-2-hin'!$AN$9:$AN$68,"37E")) ->  | O43: =IF(B43="","",COUNTIF('Entry sheet-2-hin'!$AN$9:$AN$68,"37M")) ->  | P43: =IF(B43="","",COUNTIF('Entry sheet-2-hin'!$AN$9:$AN$68,"37D")) ->  | S43: =IF(B43="","",R43/'Entry sheet-1-hin'!$C$6*100) -> 
A44: =IF('Entry sheet-1-hin'!A47="","",'Entry sheet-1-hin'!A47) ->  | B44: =IF('Entry sheet-1-hin'!B47="","",'Entry sheet-1-hin'!B47) ->  | C44: =IF(B44="","",COUNTIF('Entry sheet-2-hin'!$AL$9:$AL$68,"38K")) ->  | D44: =IF(B44="","",COUNTIF('Entry sheet-2-hin'!$AL$9:$AL$68,"38U")) ->  | E44: =IF(B44="","",COUNTIF('Entry sheet-2-hin'!$AL$9:$AL$68,"38A")) ->  | F44: =IF(B44="","",COUNTIF('Entry sheet-2-hin'!$AL$9:$AL$68,"38S")) ->  | G44: =IF(B44="","",COUNTIF('Entry sheet-2-hin'!$AM$9:$AM$68,"38MC")) ->  | H44: =IF(B44="","",COUNTIF('Entry sheet-2-hin'!$AM$9:$AM$68,"38OT")) ->  | I44: =IF(B44="","",COUNTIF('Entry sheet-2-hin'!$AM$9:$AM$68,"38SA1")) ->  | J44: =IF(B44="","",COUNTIF('Entry sheet-2-hin'!$AM$9:$AM$68,"38SA2")) ->  | K44: =IF(B44="","",COUNTIF('Entry sheet-2-hin'!$AM$9:$AM$68,"38LA1")) ->  | L44: =IF(B44="","",COUNTIF('Entry sheet-2-hin'!$AM$9:$AM$68,"38LA2")) ->  | M44: =IF(B44="","",COUNTIF('Entry sheet-2-hin'!$AM$9:$AM$77,"22दीउ5")) ->  | N44: =IF(B44="","",COUNTIF('Entry sheet-2-hin'!$AN$9:$AN$68,"38E")) ->  | O44: =IF(B44="","",COUNTIF('Entry sheet-2-hin'!$AN$9:$AN$68,"38M")) ->  | P44: =IF(B44="","",COUNTIF('Entry sheet-2-hin'!$AN$9:$AN$68,"38D")) ->  | S44: =IF(B44="","",R44/'Entry sheet-1-hin'!$C$6*100) -> 
A45: =IF('Entry sheet-1-hin'!A48="","",'Entry sheet-1-hin'!A48) ->  | B45: =IF('Entry sheet-1-hin'!B48="","",'Entry sheet-1-hin'!B48) ->  | C45: =IF(B45="","",COUNTIF('Entry sheet-2-hin'!$AL$9:$AL$68,"39K")) ->  | D45: =IF(B45="","",COUNTIF('Entry sheet-2-hin'!$AL$9:$AL$68,"39U")) ->  | E45: =IF(B45="","",COUNTIF('Entry sheet-2-hin'!$AL$9:$AL$68,"39A")) ->  | F45: =IF(B45="","",COUNTIF('Entry sheet-2-hin'!$AL$9:$AL$68,"39S")) ->  | G45: =IF(B45="","",COUNTIF('Entry sheet-2-hin'!$AM$9:$AM$68,"39MC")) ->  | H45: =IF(B45="","",COUNTIF('Entry sheet-2-hin'!$AM$9:$AM$68,"39OT")) ->  | I45: =IF(B45="","",COUNTIF('Entry sheet-2-hin'!$AM$9:$AM$68,"39SA1")) ->  | J45: =IF(B45="","",COUNTIF('Entry sheet-2-hin'!$AM$9:$AM$68,"39SA2")) ->  | K45: =IF(B45="","",COUNTIF('Entry sheet-2-hin'!$AM$9:$AM$68,"39LA1")) ->  | L45: =IF(B45="","",COUNTIF('Entry sheet-2-hin'!$AM$9:$AM$68,"39LA2")) ->  | M45: =IF(B45="","",COUNTIF('Entry sheet-2-hin'!$AM$9:$AM$77,"22दीउ5")) ->  | N45: =IF(B45="","",COUNTIF('Entry sheet-2-hin'!$AN$9:$AN$68,"39E")) ->  | O45: =IF(B45="","",COUNTIF('Entry sheet-2-hin'!$AN$9:$AN$68,"39M")) ->  | P45: =IF(B45="","",COUNTIF('Entry sheet-2-hin'!$AN$9:$AN$68,"39D")) ->  | S45: =IF(B45="","",R45/'Entry sheet-1-hin'!$C$6*100) -> 
A46: =IF('Entry sheet-1-hin'!A49="","",'Entry sheet-1-hin'!A49) ->  | B46: =IF('Entry sheet-1-hin'!B49="","",'Entry sheet-1-hin'!B49) ->  | C46: =IF(B46="","",COUNTIF('Entry sheet-2-hin'!$AL$9:$AL$68,"40K")) ->  | D46: =IF(B46="","",COUNTIF('Entry sheet-2-hin'!$AL$9:$AL$68,"40U")) ->  | E46: =IF(B46="","",COUNTIF('Entry sheet-2-hin'!$AL$9:$AL$68,"40A")) ->  | F46: =IF(B46="","",COUNTIF('Entry sheet-2-hin'!$AL$9:$AL$68,"40S")) ->  | G46: =IF(B46="","",COUNTIF('Entry sheet-2-hin'!$AM$9:$AM$68,"40MC")) ->  | H46: =IF(B46="","",COUNTIF('Entry sheet-2-hin'!$AM$9:$AM$68,"40OT")) ->  | I46: =IF(B46="","",COUNTIF('Entry sheet-2-hin'!$AM$9:$AM$68,"40SA1")) ->  | J46: =IF(B46="","",COUNTIF('Entry sheet-2-hin'!$AM$9:$AM$68,"40SA2")) ->  | K46: =IF(B46="","",COUNTIF('Entry sheet-2-hin'!$AM$9:$AM$68,"40LA1")) ->  | L46: =IF(B46="","",COUNTIF('Entry sheet-2-hin'!$AM$9:$AM$68,"40LA2")) ->  | M46: =IF(B46="","",COUNTIF('Entry sheet-2-hin'!$AM$9:$AM$77,"22दीउ5")) ->  | N46: =IF(B46="","",COUNTIF('Entry sheet-2-hin'!$AN$9:$AN$68,"40E")) ->  | O46: =IF(B46="","",COUNTIF('Entry sheet-2-hin'!$AN$9:$AN$68,"40M")) ->  | P46: =IF(B46="","",COUNTIF('Entry sheet-2-hin'!$AN$9:$AN$68,"40D")) ->  | S46: =IF(B46="","",R46/'Entry sheet-1-hin'!$C$6*100) -> 
A47: =IF('Entry sheet-1-hin'!A50="","",'Entry sheet-1-hin'!A50) ->  | B47: =IF('Entry sheet-1-hin'!B50="","",'Entry sheet-1-hin'!B50) ->  | C47: =IF(B47="","",COUNTIF('Entry sheet-2-hin'!$AL$9:$AL$68,"41K")) ->  | D47: =IF(B47="","",COUNTIF('Entry sheet-2-hin'!$AL$9:$AL$68,"41U")) ->  | E47: =IF(B47="","",COUNTIF('Entry sheet-2-hin'!$AL$9:$AL$68,"41A")) ->  | F47: =IF(B47="","",COUNTIF('Entry sheet-2-hin'!$AL$9:$AL$68,"41S")) ->  | G47: =IF(B47="","",COUNTIF('Entry sheet-2-hin'!$AM$9:$AM$68,"41MC")) ->  | H47: =IF(B47="","",COUNTIF('Entry sheet-2-hin'!$AM$9:$AM$68,"41OT")) ->  | I47: =IF(B47="","",COUNTIF('Entry sheet-2-hin'!$AM$9:$AM$68,"41SA1")) ->  | J47: =IF(B47="","",COUNTIF('Entry sheet-2-hin'!$AM$9:$AM$68,"41SA2")) ->  | K47: =IF(B47="","",COUNTIF('Entry sheet-2-hin'!$AM$9:$AM$68,"41LA1")) ->  | L47: =IF(B47="","",COUNTIF('Entry sheet-2-hin'!$AM$9:$AM$68,"41LA2")) ->  | M47: =IF(B47="","",COUNTIF('Entry sheet-2-hin'!$AM$9:$AM$77,"22दीउ5")) ->  | N47: =IF(B47="","",COUNTIF('Entry sheet-2-hin'!$AN$9:$AN$68,"41E")) ->  | O47: =IF(B47="","",COUNTIF('Entry sheet-2-hin'!$AN$9:$AN$68,"41M")) ->  | P47: =IF(B47="","",COUNTIF('Entry sheet-2-hin'!$AN$9:$AN$68,"41D")) ->  | S47: =IF(B47="","",R47/'Entry sheet-1-hin'!$C$6*100) -> 
A48: =IF('Entry sheet-1-hin'!A51="","",'Entry sheet-1-hin'!A51) ->  | B48: =IF('Entry sheet-1-hin'!B51="","",'Entry sheet-1-hin'!B51) ->  | C48: =IF(B48="","",COUNTIF('Entry sheet-2-hin'!$AL$9:$AL$68,"42K")) ->  | D48: =IF(B48="","",COUNTIF('Entry sheet-2-hin'!$AL$9:$AL$68,"42U")) ->  | E48: =IF(B48="","",COUNTIF('Entry sheet-2-hin'!$AL$9:$AL$68,"42A")) ->  | F48: =IF(B48="","",COUNTIF('Entry sheet-2-hin'!$AL$9:$AL$68,"42S")) ->  | G48: =IF(B48="","",COUNTIF('Entry sheet-2-hin'!$AM$9:$AM$68,"42MC")) ->  | H48: =IF(B48="","",COUNTIF('Entry sheet-2-hin'!$AM$9:$AM$68,"42OT")) ->  | I48: =IF(B48="","",COUNTIF('Entry sheet-2-hin'!$AM$9:$AM$68,"42SA1")) ->  | J48: =IF(B48="","",COUNTIF('Entry sheet-2-hin'!$AM$9:$AM$68,"42SA2")) ->  | K48: =IF(B48="","",COUNTIF('Entry sheet-2-hin'!$AM$9:$AM$68,"42LA1")) ->  | L48: =IF(B48="","",COUNTIF('Entry sheet-2-hin'!$AM$9:$AM$68,"42LA2")) ->  | M48: =IF(B48="","",COUNTIF('Entry sheet-2-hin'!$AM$9:$AM$77,"22दीउ5")) ->  | N48: =IF(B48="","",COUNTIF('Entry sheet-2-hin'!$AN$9:$AN$68,"42E")) ->  | O48: =IF(B48="","",COUNTIF('Entry sheet-2-hin'!$AN$9:$AN$68,"42M")) ->  | P48: =IF(B48="","",COUNTIF('Entry sheet-2-hin'!$AN$9:$AN$68,"42D")) ->  | S48: =IF(B48="","",R48/'Entry sheet-1-hin'!$C$6*100) -> 
A49: =IF('Entry sheet-1-hin'!A52="","",'Entry sheet-1-hin'!A52) ->  | B49: =IF('Entry sheet-1-hin'!B52="","",'Entry sheet-1-hin'!B52) ->  | C49: =IF(B49="","",COUNTIF('Entry sheet-2-hin'!$AL$9:$AL$68,"43K")) ->  | D49: =IF(B49="","",COUNTIF('Entry sheet-2-hin'!$AL$9:$AL$68,"43U")) ->  | E49: =IF(B49="","",COUNTIF('Entry sheet-2-hin'!$AL$9:$AL$68,"43A")) ->  | F49: =IF(B49="","",COUNTIF('Entry sheet-2-hin'!$AL$9:$AL$68,"43S")) ->  | G49: =IF(B49="","",COUNTIF('Entry sheet-2-hin'!$AM$9:$AM$68,"43MC")) ->  | H49: =IF(B49="","",COUNTIF('Entry sheet-2-hin'!$AM$9:$AM$68,"43OT")) ->  | I49: =IF(B49="","",COUNTIF('Entry sheet-2-hin'!$AM$9:$AM$68,"43SA1")) ->  | J49: =IF(B49="","",COUNTIF('Entry sheet-2-hin'!$AM$9:$AM$68,"43SA2")) ->  | K49: =IF(B49="","",COUNTIF('Entry sheet-2-hin'!$AM$9:$AM$68,"43LA1")) ->  | L49: =IF(B49="","",COUNTIF('Entry sheet-2-hin'!$AM$9:$AM$68,"43LA2")) ->  | M49: =IF(B49="","",COUNTIF('Entry sheet-2-hin'!$AM$9:$AM$77,"22दीउ5")) ->  | N49: =IF(B49="","",COUNTIF('Entry sheet-2-hin'!$AN$9:$AN$68,"43E")) ->  | O49: =IF(B49="","",COUNTIF('Entry sheet-2-hin'!$AN$9:$AN$68,"43M")) ->  | P49: =IF(B49="","",COUNTIF('Entry sheet-2-hin'!$AN$9:$AN$68,"43D")) ->  | S49: =IF(B49="","",R49/'Entry sheet-1-hin'!$C$6*100) -> 
A50: =IF('Entry sheet-1-hin'!A53="","",'Entry sheet-1-hin'!A53) ->  | B50: =IF('Entry sheet-1-hin'!B53="","",'Entry sheet-1-hin'!B53) ->  | C50: =IF(B50="","",COUNTIF('Entry sheet-2-hin'!$AL$9:$AL$68,"44K")) ->  | D50: =IF(B50="","",COUNTIF('Entry sheet-2-hin'!$AL$9:$AL$68,"44U")) ->  | E50: =IF(B50="","",COUNTIF('Entry sheet-2-hin'!$AL$9:$AL$68,"44A")) ->  | F50: =IF(B50="","",COUNTIF('Entry sheet-2-hin'!$AL$9:$AL$68,"44S")) ->  | G50: =IF(B50="","",COUNTIF('Entry sheet-2-hin'!$AM$9:$AM$68,"44MC")) ->  | H50: =IF(B50="","",COUNTIF('Entry sheet-2-hin'!$AM$9:$AM$68,"44OT")) ->  | I50: =IF(B50="","",COUNTIF('Entry sheet-2-hin'!$AM$9:$AM$68,"44SA1")) ->  | J50: =IF(B50="","",COUNTIF('Entry sheet-2-hin'!$AM$9:$AM$68,"44SA2")) ->  | K50: =IF(B50="","",COUNTIF('Entry sheet-2-hin'!$AM$9:$AM$68,"44LA1")) ->  | L50: =IF(B50="","",COUNTIF('Entry sheet-2-hin'!$AM$9:$AM$68,"44LA2")) ->  | M50: =IF(B50="","",COUNTIF('Entry sheet-2-hin'!$AM$9:$AM$77,"22दीउ5")) ->  | N50: =IF(B50="","",COUNTIF('Entry sheet-2-hin'!$AN$9:$AN$68,"44E")) ->  | O50: =IF(B50="","",COUNTIF('Entry sheet-2-hin'!$AN$9:$AN$68,"44M")) ->  | P50: =IF(B50="","",COUNTIF('Entry sheet-2-hin'!$AN$9:$AN$68,"44D")) ->  | S50: =IF(B50="","",R50/'Entry sheet-1-hin'!$C$6*100) -> 
A51: =IF('Entry sheet-1-hin'!A54="","",'Entry sheet-1-hin'!A54) ->  | B51: =IF('Entry sheet-1-hin'!B54="","",'Entry sheet-1-hin'!B54) ->  | C51: =IF(B51="","",COUNTIF('Entry sheet-2-hin'!$AL$9:$AL$68,"45K")) ->  | D51: =IF(B51="","",COUNTIF('Entry sheet-2-hin'!$AL$9:$AL$68,"45U")) ->  | E51: =IF(B51="","",COUNTIF('Entry sheet-2-hin'!$AL$9:$AL$68,"45A")) ->  | F51: =IF(B51="","",COUNTIF('Entry sheet-2-hin'!$AL$9:$AL$68,"45S")) ->  | G51: =IF(B51="","",COUNTIF('Entry sheet-2-hin'!$AM$9:$AM$68,"45MC")) ->  | H51: =IF(B51="","",COUNTIF('Entry sheet-2-hin'!$AM$9:$AM$68,"45OT")) ->  | I51: =IF(B51="","",COUNTIF('Entry sheet-2-hin'!$AM$9:$AM$68,"45SA1")) ->  | J51: =IF(B51="","",COUNTIF('Entry sheet-2-hin'!$AM$9:$AM$68,"45SA2")) ->  | K51: =IF(B51="","",COUNTIF('Entry sheet-2-hin'!$AM$9:$AM$68,"45LA1")) ->  | L51: =IF(B51="","",COUNTIF('Entry sheet-2-hin'!$AM$9:$AM$68,"45LA2")) ->  | M51: =IF(B51="","",COUNTIF('Entry sheet-2-hin'!$AM$9:$AM$77,"22दीउ5")) ->  | N51: =IF(B51="","",COUNTIF('Entry sheet-2-hin'!$AN$9:$AN$68,"45E")) ->  | O51: =IF(B51="","",COUNTIF('Entry sheet-2-hin'!$AN$9:$AN$68,"45M")) ->  | P51: =IF(B51="","",COUNTIF('Entry sheet-2-hin'!$AN$9:$AN$68,"45D")) ->  | S51: =IF(B51="","",R51/'Entry sheet-1-hin'!$C$6*100) -> 
A52: =IF('Entry sheet-1-hin'!A55="","",'Entry sheet-1-hin'!A55) ->  | B52: =IF('Entry sheet-1-hin'!B55="","",'Entry sheet-1-hin'!B55) ->  | C52: =IF(B52="","",COUNTIF('Entry sheet-2-hin'!$AL$9:$AL$68,"46K")) ->  | D52: =IF(B52="","",COUNTIF('Entry sheet-2-hin'!$AL$9:$AL$68,"46U")) ->  | E52: =IF(B52="","",COUNTIF('Entry sheet-2-hin'!$AL$9:$AL$68,"46A")) ->  | F52: =IF(B52="","",COUNTIF('Entry sheet-2-hin'!$AL$9:$AL$68,"46S")) ->  | G52: =IF(B52="","",COUNTIF('Entry sheet-2-hin'!$AM$9:$AM$68,"46MC")) ->  | H52: =IF(B52="","",COUNTIF('Entry sheet-2-hin'!$AM$9:$AM$68,"46OT")) ->  | I52: =IF(B52="","",COUNTIF('Entry sheet-2-hin'!$AM$9:$AM$68,"46SA1")) ->  | J52: =IF(B52="","",COUNTIF('Entry sheet-2-hin'!$AM$9:$AM$68,"46SA2")) ->  | K52: =IF(B52="","",COUNTIF('Entry sheet-2-hin'!$AM$9:$AM$68,"46LA1")) ->  | L52: =IF(B52="","",COUNTIF('Entry sheet-2-hin'!$AM$9:$AM$68,"46LA2")) ->  | M52: =IF(B52="","",COUNTIF('Entry sheet-2-hin'!$AM$9:$AM$77,"22दीउ5")) ->  | N52: =IF(B52="","",COUNTIF('Entry sheet-2-hin'!$AN$9:$AN$68,"46E")) ->  | O52: =IF(B52="","",COUNTIF('Entry sheet-2-hin'!$AN$9:$AN$68,"46M")) ->  | P52: =IF(B52="","",COUNTIF('Entry sheet-2-hin'!$AN$9:$AN$68,"46D")) ->  | S52: =IF(B52="","",R52/'Entry sheet-1-hin'!$C$6*100) -> 
A53: =IF('Entry sheet-1-hin'!A56="","",'Entry sheet-1-hin'!A56) ->  | B53: =IF('Entry sheet-1-hin'!B56="","",'Entry sheet-1-hin'!B56) ->  | C53: =IF(B53="","",COUNTIF('Entry sheet-2-hin'!$AL$9:$AL$68,"47K")) ->  | D53: =IF(B53="","",COUNTIF('Entry sheet-2-hin'!$AL$9:$AL$68,"47U")) ->  | E53: =IF(B53="","",COUNTIF('Entry sheet-2-hin'!$AL$9:$AL$68,"47A")) ->  | F53: =IF(B53="","",COUNTIF('Entry sheet-2-hin'!$AL$9:$AL$68,"47S")) ->  | G53: =IF(B53="","",COUNTIF('Entry sheet-2-hin'!$AM$9:$AM$68,"47MC")) ->  | H53: =IF(B53="","",COUNTIF('Entry sheet-2-hin'!$AM$9:$AM$68,"47OT")) ->  | I53: =IF(B53="","",COUNTIF('Entry sheet-2-hin'!$AM$9:$AM$68,"47SA1")) ->  | J53: =IF(B53="","",COUNTIF('Entry sheet-2-hin'!$AM$9:$AM$68,"47SA2")) ->  | K53: =IF(B53="","",COUNTIF('Entry sheet-2-hin'!$AM$9:$AM$68,"47LA1")) ->  | L53: =IF(B53="","",COUNTIF('Entry sheet-2-hin'!$AM$9:$AM$68,"47LA2")) ->  | M53: =IF(B53="","",COUNTIF('Entry sheet-2-hin'!$AM$9:$AM$77,"22दीउ5")) ->  | N53: =IF(B53="","",COUNTIF('Entry sheet-2-hin'!$AN$9:$AN$68,"47E")) ->  | O53: =IF(B53="","",COUNTIF('Entry sheet-2-hin'!$AN$9:$AN$68,"47M")) ->  | P53: =IF(B53="","",COUNTIF('Entry sheet-2-hin'!$AN$9:$AN$68,"47D")) ->  | S53: =IF(B53="","",R53/'Entry sheet-1-hin'!$C$6*100) -> 
A54: =IF('Entry sheet-1-hin'!A57="","",'Entry sheet-1-hin'!A57) ->  | B54: =IF('Entry sheet-1-hin'!B57="","",'Entry sheet-1-hin'!B57) ->  | C54: =IF(B54="","",COUNTIF('Entry sheet-2-hin'!$AL$9:$AL$68,"48K")) ->  | D54: =IF(B54="","",COUNTIF('Entry sheet-2-hin'!$AL$9:$AL$68,"48U")) ->  | E54: =IF(B54="","",COUNTIF('Entry sheet-2-hin'!$AL$9:$AL$68,"48A")) ->  | F54: =IF(B54="","",COUNTIF('Entry sheet-2-hin'!$AL$9:$AL$68,"48S")) ->  | G54: =IF(B54="","",COUNTIF('Entry sheet-2-hin'!$AM$9:$AM$68,"48MC")) ->  | H54: =IF(B54="","",COUNTIF('Entry sheet-2-hin'!$AM$9:$AM$68,"48OT")) ->  | I54: =IF(B54="","",COUNTIF('Entry sheet-2-hin'!$AM$9:$AM$68,"48SA1")) ->  | J54: =IF(B54="","",COUNTIF('Entry sheet-2-hin'!$AM$9:$AM$68,"48SA2")) ->  | K54: =IF(B54="","",COUNTIF('Entry sheet-2-hin'!$AM$9:$AM$68,"48LA1")) ->  | L54: =IF(B54="","",COUNTIF('Entry sheet-2-hin'!$AM$9:$AM$68,"48LA2")) ->  | M54: =IF(B54="","",COUNTIF('Entry sheet-2-hin'!$AM$9:$AM$77,"22दीउ5")) ->  | N54: =IF(B54="","",COUNTIF('Entry sheet-2-hin'!$AN$9:$AN$68,"48E")) ->  | O54: =IF(B54="","",COUNTIF('Entry sheet-2-hin'!$AN$9:$AN$68,"48M")) ->  | P54: =IF(B54="","",COUNTIF('Entry sheet-2-hin'!$AN$9:$AN$68,"48D")) ->  | S54: =IF(B54="","",R54/'Entry sheet-1-hin'!$C$6*100) -> 
A55: =IF('Entry sheet-1-hin'!A58="","",'Entry sheet-1-hin'!A58) ->  | B55: =IF('Entry sheet-1-hin'!B58="","",'Entry sheet-1-hin'!B58) ->  | C55: =IF(B55="","",COUNTIF('Entry sheet-2-hin'!$AL$9:$AL$68,"49K")) ->  | D55: =IF(B55="","",COUNTIF('Entry sheet-2-hin'!$AL$9:$AL$68,"49U")) ->  | E55: =IF(B55="","",COUNTIF('Entry sheet-2-hin'!$AL$9:$AL$68,"49A")) ->  | F55: =IF(B55="","",COUNTIF('Entry sheet-2-hin'!$AL$9:$AL$68,"49S")) ->  | G55: =IF(B55="","",COUNTIF('Entry sheet-2-hin'!$AM$9:$AM$68,"49MC")) ->  | H55: =IF(B55="","",COUNTIF('Entry sheet-2-hin'!$AM$9:$AM$68,"49OT")) ->  | I55: =IF(B55="","",COUNTIF('Entry sheet-2-hin'!$AM$9:$AM$68,"49SA1")) ->  | J55: =IF(B55="","",COUNTIF('Entry sheet-2-hin'!$AM$9:$AM$68,"49SA2")) ->  | K55: =IF(B55="","",COUNTIF('Entry sheet-2-hin'!$AM$9:$AM$68,"49LA1")) ->  | L55: =IF(B55="","",COUNTIF('Entry sheet-2-hin'!$AM$9:$AM$68,"49LA2")) ->  | M55: =IF(B55="","",COUNTIF('Entry sheet-2-hin'!$AM$9:$AM$77,"22दीउ5")) ->  | N55: =IF(B55="","",COUNTIF('Entry sheet-2-hin'!$AN$9:$AN$68,"49E")) ->  | O55: =IF(B55="","",COUNTIF('Entry sheet-2-hin'!$AN$9:$AN$68,"49M")) ->  | P55: =IF(B55="","",COUNTIF('Entry sheet-2-hin'!$AN$9:$AN$68,"49D")) ->  | S55: =IF(B55="","",R55/'Entry sheet-1-hin'!$C$6*100) -> 
A56: =IF('Entry sheet-1-hin'!A59="","",'Entry sheet-1-hin'!A59) ->  | B56: =IF('Entry sheet-1-hin'!B59="","",'Entry sheet-1-hin'!B59) ->  | C56: =IF(B56="","",COUNTIF('Entry sheet-2-hin'!$AL$9:$AL$68,"50K")) ->  | D56: =IF(B56="","",COUNTIF('Entry sheet-2-hin'!$AL$9:$AL$68,"50U")) ->  | E56: =IF(B56="","",COUNTIF('Entry sheet-2-hin'!$AL$9:$AL$68,"50A")) ->  | F56: =IF(B56="","",COUNTIF('Entry sheet-2-hin'!$AL$9:$AL$68,"50S")) ->  | G56: =IF(B56="","",COUNTIF('Entry sheet-2-hin'!$AM$9:$AM$68,"50MC")) ->  | H56: =IF(B56="","",COUNTIF('Entry sheet-2-hin'!$AM$9:$AM$68,"50OT")) ->  | I56: =IF(B56="","",COUNTIF('Entry sheet-2-hin'!$AM$9:$AM$68,"50SA1")) ->  | J56: =IF(B56="","",COUNTIF('Entry sheet-2-hin'!$AM$9:$AM$68,"50SA2")) ->  | K56: =IF(B56="","",COUNTIF('Entry sheet-2-hin'!$AM$9:$AM$68,"50LA1")) ->  | L56: =IF(B56="","",COUNTIF('Entry sheet-2-hin'!$AM$9:$AM$68,"50LA2")) ->  | M56: =IF(B56="","",COUNTIF('Entry sheet-2-hin'!$AM$9:$AM$77,"22दीउ5")) ->  | N56: =IF(B56="","",COUNTIF('Entry sheet-2-hin'!$AN$9:$AN$68,"50E")) ->  | O56: =IF(B56="","",COUNTIF('Entry sheet-2-hin'!$AN$9:$AN$68,"50M")) ->  | P56: =IF(B56="","",COUNTIF('Entry sheet-2-hin'!$AN$9:$AN$68,"50D")) ->  | S56: =IF(B56="","",R56/'Entry sheet-1-hin'!$C$6*100) -> 
A57: MlÄÖ | C57: =SUM(C7:C56) -> 3 | D57: =SUM(D7:D56) -> 14 | E57: 7 | F57: 1 | G57: 4 | H57: 4 | I57: 8 | J57: 5 | K57: 2 | L57: 2 | M57: 0 | N57: 11 | O57: 11 | P57: 3 | Q57: 25 | R57: 40 | S57: =IF(R57="","",R57/'Entry sheet-1-hin'!$C$6*100) -> 100
O59: हस्ताक्षर
L60: =IF('Entry sheet-1-hin'!C7="","","("&'Entry sheet-1-hin'!C7&")") -> (नागलिंगय्या)
A72: पाठों पर प्रतिशत अंक बँटवार

Sheet PARTWISE
A1: =IF('Entry sheet-1-hin'!C2="","",'Entry sheet-1-hin'!C2) -> सरकारी पदवि पूर्व कॉलेंज (प्रौ.शा.वि) गुरुगुंटा, ता : लिंगसुगूर
A2: =IF('Entry sheet-1-hin'!C3="","",'Entry sheet-1-hin'!C3) -> संकलनात्मक परीक्षा - १ २०१५-१६
A3: =uddista!A3 -> कक्षा | B3: =IF('Entry sheet-1-hin'!C4="","",'Entry sheet-1-hin'!C4) -> 9वीं | H3: ='Entry sheet-1-hin'!A5&IF('Entry sheet-1-hin'!C5="","",'Entry sheet-1-hin'!C5) -> विषयहिंदी
A4: विषय वस्तु के आधार पर
A5: =uddista!A5 -> क्र.सं | B5: ='Entry sheet-1-hin'!E19 -> विषय वस्तु | D5: ='Entry sheet-1-hin'!G9 -> प्रतिशत | F5: =uddista!F5 -> अंक | H5: =uddista!H5 -> प्रश्‍न
A6: 1 | B6: ='Entry sheet-1-hin'!E20 -> गद्य | C6: ग | D6: =IF(F6="","",F6/'Entry sheet-1-hin'!$C$6*100) -> 50 | F6: =IF('Entry sheet-2-hin'!Q7="","",'Entry sheet-2-hin'!Q7) -> 20 | H6: =IF(F6="","",COUNTIF('Entry sheet-2-hin'!$AD$9:$AD$77,"ग")) -> 12
A7: 2 | B7: ='Entry sheet-1-hin'!E21 -> पद्य | C7: प | D7: =IF(F7="","",F7/'Entry sheet-1-hin'!$C$6*100) -> 15 | F7: =IF('Entry sheet-2-hin'!R7="","",'Entry sheet-2-hin'!R7) -> 6 | H7: =IF(F7="","",COUNTIF('Entry sheet-2-hin'!$AD$9:$AD$77,"प")) -> 3
A8: 3 | B8: ='Entry sheet-1-hin'!E22 -> व्याकरण | C8: व्या | D8: =IF(F8="","",F8/'Entry sheet-1-hin'!$C$6*100) -> 10 | F8: =IF('Entry sheet-2-hin'!S7="","",'Entry sheet-2-hin'!S7) -> 4 | H8: =IF(F8="","",COUNTIF('Entry sheet-2-hin'!$AD$9:$AD$77,"व्या")) -> 4
A9: 4 | B9: ='Entry sheet-1-hin'!E23 -> रचना | C9: र | D9: =IF(F9="","",F9/'Entry sheet-1-hin'!$C$6*100) -> 20 | F9: =IF('Entry sheet-2-hin'!T7="","",'Entry sheet-2-hin'!T7) -> 8 | H9: =IF(F9="","",COUNTIF('Entry sheet-2-hin'!$AD$9:$AD$77,"र")) -> 5
A10: 5 | B10: ='Entry sheet-1-hin'!E24 -> पूरक वाचन | C10: पूवा | D10: =IF(F10="","",F10/'Entry sheet-1-hin'!$C$6*100) -> 5 | F10: =IF('Entry sheet-2-hin'!U7="","",'Entry sheet-2-hin'!U7) -> 2 | H10: =IF(F10="","",COUNTIF('Entry sheet-2-hin'!$AD$9:$AD$77,"पूवा")) -> 1
A11: =uddista!A10 -> कुल | D11: =IF(SUM(D6:D10)="","",SUM(D6:D10)) -> 100 | F11: =IF(SUM(F6:F10)="","",SUM(F6:F10)) -> 40 | H11: =IF(SUM(H6:H10)="","",SUM(H6:H10)) -> 25
B22: nagalingaiah.h@gmail.com Mo :9035172763
F23: हस्ताक्षर
F24: =IF('Entry sheet-1-hin'!C7="","","("&'Entry sheet-1-hin'!C7&")") -> (नागलिंगय्या)

Sheet blue print
A1: ='Entry sheet-1-hin'!C2 -> सरकारी पदवि पूर्व कॉलेंज (प्रौ.शा.वि) गुरुगुंटा, ता : लिंगसुगूर
A2: ='Entry sheet-1-hin'!C3 -> संकलनात्मक परीक्षा - १ २०१५-१६
A3: ='Entry sheet-1-hin'!A4:B4 -> कक्षा | C3: ='Entry sheet-1-hin'!C4:P4 -> 9वीं | BO3: ='Entry sheet-1-hin'!A5&'Entry sheet-1-hin'!C5 -> विषयहिंदी
A4: नील नक्षा
A5: क्र.सं | B5: पाठ का नाम | C5: स्मरण | Q5: समझना | AE5: अभिव्यक्ति | AS5: रसग्रहण | BG5: कुल | BU5: कुल प्रश्‍नों की संख्या | BV5: कुल अंक
C6: ब.वि | E6: व.नि (जो,अ) | G6: अ.ल.उ | I6: ल.उ-2 | K6: ल.उ-3 | M6: दी.उ4 | O6: दी.उ5 | Q6: ब.वि | S6: व.नि (जो,अ) | U6: अ.ल.उ | W6: ल.उ-2 | Y6: ल.उ-3 | AA6: दी.उ4 | AC6: दी.उ5 | AE6: ब.वि | AG6: व.नि (जो,अ) | AI6: अ.ल.उ | AK6: ल.उ-2 | AM6: ल.उ-3 | AO6: दी.उ4 | AQ6: दी.उ5 | AS6: ब.वि | AU6: व.नि (जो,अ) | AW6: अ.ल.उ | AY6: ल.उ-2 | BA6: ल.उ-3 | BC6: दी.उ4 | BE6: दी.उ5 | BG6: ब.वि | BI6: व.नि (जोडकर,अनुरूपता) | BK6: अ.ल.उ | BM6: ल.उ-२ | BO6: ल.उ-३ | BQ6: दी.उ-4 | BS6: दी.उ-5
C8: प्र | D8: अ | E8: प्र | F8: अ | G8: प्र | H8: अ | I8: प्र | J8: अ | K8: प्र | L8: अ | M8: प्र | N8: अ | O8: प्र | P8: अ | Q8: प्र | R8: अ | S8: प्र | T8: अ | U8: प्र | V8: अ | W8: प्र | X8: अ | Y8: प्र | Z8: अ | AA8: प्र | AB8: अ | AC8: प्र | AD8: अ | AE8: प्र | AF8: अ | AG8: प्र | AH8: अ | AI8: प्र | AJ8: अ | AK8: प्र | AL8: अ | AM8: प्र | AN8: अ | AO8: प्र | AP8: अ | AQ8: प्र | AR8: अ | AS8: प्र | AT8: अ | AU8: प्र | AV8: अ | AW8: प्र | AX8: अ | AY8: प्र | AZ8: अ | BA8: प्र | BB8: अ | BC8: प्र | BD8: अ | BE8: प्र | BF8: अ | BG8: प्र | BH8: अ | BI8: प्र | BJ8: अ | BK8: प्र | BL8: अ | BM8: प्र | BN8: अ | BO8: प्र | BP8: अ | BQ8: प्र | BR8: अ | BS8: प्र | BT8: अ
A9: =IF('Entry sheet-1-hin'!A10="","",'Entry sheet-1-hin'!A10) -> 1 | B9: =IF('Entry sheet-1-hin'!B10="","",'Entry sheet-1-hin'!B10) -> स्वामी विवेकानंद | C9: =IF(B9="","",IF(AND(COUNTIF('Entry sheet-2-hin'!$AO$9:$AO$77,"1स्मबवि")=0),"",COUNTIF('Entry sheet-2-hin'!$AO$9:$AO$77,"1स्मबवि"))) ->  | D9: =IF(C9="","",C9) ->  | E9: =IF(B9="","",IF(AND(COUNTIF('Entry sheet-2-hin'!$AO$9:$AO$77,"1स्मवनि")=0),"",COUNTIF('Entry sheet-2-hin'!$AO$9:$AO$77,"1स्मवनि"))) ->  | F9: =IF(E9="","",E9) ->  | G9: =IF(B9="","",IF(AND(COUNTIF('Entry sheet-2-hin'!$AO$9:$AO$77,"1स्मअलउ")=0),"",COUNTIF('Entry sheet-2-hin'!$AO$9:$AO$77,"1स्मअलउ"))) -> 1 | H9: =IF(G9="","",G9) -> 1 | I9: =IF(B9="","",IF(AND(COUNTIF('Entry sheet-2-hin'!$AO$9:$AO$77,"1स्मलउ२")=0),"",COUNTIF('Entry sheet-2-hin'!$AO$9:$AO$77,"1स्मलउ२"))) ->  | J9: =IF(I9="","",I9*2) ->  | K9: =IF(B9="","",IF(AND(COUNTIF('Entry sheet-2-hin'!$AO$9:$AO$77,"1स्मलउ३")=0),"",COUNTIF('Entry sheet-2-hin'!$AO$9:$AO$77,"1स्मलउ३"))) ->  | L9: =IF(K9="","",K9*3) ->  | M9: =IF(B9="","",IF(AND(COUNTIF('Entry sheet-2-hin'!$AO$9:$AO$77,"1स्मदीउ४")=0),"",COUNTIF('Entry sheet-2-hin'!$AO$9:$AO$77,"1स्मदीउ४"))) ->  | N9: =IF(M9="","",M9*4) ->  | O9: =IF(B9="","",IF(AND(COUNTIF('Entry sheet-2-hin'!$AO$9:$AO$77,"1स्मदीउ5")=0),"",COUNTIF('Entry sheet-2-hin'!$AO$9:$AO$77,"1स्मदीउ5"))) ->  | P9: =IF(O9="","",O9*5) ->  | Q9: =IF(B9="","",IF(AND(COUNTIF('Entry sheet-2-hin'!$AO$9:$AO$77,"1समबवि")=0),"",COUNTIF('Entry sheet-2-hin'!$AO$9:$AO$77,"1समबवि"))) ->  | R9: =IF(Q9="","",Q9) ->  | S9: =IF(B9="","",IF(AND(COUNTIF('Entry sheet-2-hin'!$AO$9:$AO$77,"1समवनि")=0),"",COUNTIF('Entry sheet-2-hin'!$AO$9:$AO$77,"1समवनि"))) -> 1 | T9: =IF(S9="","",S9) -> 1 | U9: =IF(B9="","",IF(AND(COUNTIF('Entry sheet-2-hin'!$AO$9:$AO$77,"1समअलउ")=0),"",COUNTIF('Entry sheet-2-hin'!$AO$9:$AO$77,"1समअलउ"))) ->  | V9: =IF(U9="","",U9) ->  | W9: =IF(B9="","",IF(AND(COUNTIF('Entry sheet-2-hin'!$AO$9:$AO$77,"1समलउ२")=0),"",COUNTIF('Entry sheet-2-hin'!$AO$9:$AO$77,"1समलउ२"))) ->  | X9: =IF(W9="","",W9*2) ->  | Y9: =IF(B9="","",IF(AND(COUNTIF('Entry sheet-2-hin'!$AO$9:$AO$77,"1समलउ३")=0),"",COUNTIF('Entry sheet-2-hin'!$AO$9:$AO$77,"1समलउ३"))) ->  | Z9: =IF(Y9="","",Y9*3) ->  | AA9: =IF(B9="","",IF(AND(COUNTIF('Entry sheet-2-hin'!$AO$9:$AO$77,"1समदीउ४")=0),"",COUNTIF('Entry sheet-2-hin'!$AO$9:$AO$77,"1समदीउ४"))) ->  | AB9: =IF(AA9="","",AA9*4) ->  | AC9: =IF(B9="","",IF(AND(COUNTIF('Entry sheet-2-hin'!$AO$9:$AO$77,"1समदीउ5")=0),"",COUNTIF('Entry sheet-2-hin'!$AO$9:$AO$77,"1समदीउ5"))) ->  | AD9: =IF(AC9="","",AC9*5) ->  | AE9: =IF(B9="","",IF(AND(COUNTIF('Entry sheet-2-hin'!$AO$9:$AO$77,"1अबवि")=0),"",COUNTIF('Entry sheet-2-hin'!$AO$9:$AO$77,"1अबवि"))) ->  | AF9: =IF(AE9="","",AE9) ->  | AG9: =IF(B9="","",IF(AND(COUNTIF('Entry sheet-2-hin'!$AO$9:$AO$77,"1अवनि")=0),"",COUNTIF('Entry sheet-2-hin'!$AO$9:$AO$77,"1अवनि"))) ->  | AH9: =IF(AG9="","",AG9) ->  | AI9: =IF(B9="","",IF(AND(COUNTIF('Entry sheet-2-hin'!$AO$9:$AO$77,"1अअलउ")=0),"",COUNTIF('Entry sheet-2-hin'!$AO$9:$AO$77,"1अअलउ"))) ->  | AJ9: =IF(AI9="","",AI9) ->  | AK9: =IF(B9="","",IF(AND(COUNTIF('Entry sheet-2-hin'!$AO$9:$AO$77,"1अलउ२")=0),"",COUNTIF('Entry sheet-2-hin'!$AO$9:$AO$77,"1अलउ२"))) -> 1 | AL9: =IF(AK9="","",AK9*2) -> 2 | AM9: =IF(B9="","",IF(AND(COUNTIF('Entry sheet-2-hin'!$AO$9:$AO$77,"1अलउ३")=0),"",COUNTIF('Entry sheet-2-hin'!$AO$9:$AO$77,"1अलउ३"))) ->  | AN9: =IF(AM9="","",AM9*3) ->  | AO9: =IF(B9="","",IF(AND(COUNTIF('Entry sheet-2-hin'!$AO$9:$AO$77,"1अदीउ४")=0),"",COUNTIF('Entry sheet-2-hin'!$AO$9:$AO$77,"1अदीउ४"))) ->  | AP9: =IF(AO9="","",AO9*4) ->  | AQ9: =IF(B9="","",IF(AND(COUNTIF('Entry sheet-2-hin'!$AO$9:$AO$77,"1अदीउ५")=0),"",COUNTIF('Entry sheet-2-hin'!$AO$9:$AO$77,"1अदीउ५"))) ->  | AR9: =IF(AQ9="","",AQ9*5) ->  | AS9: =IF(B9="","",IF(AND(COUNTIF('Entry sheet-2-hin'!$AO$9:$AO$77,"1रसबवि")=0),"",COUNTIF('Entry sheet-2-hin'!$AO$9:$AO$77,"1रसबवि"))) ->  | AT9: =IF(AS9="","",AS9) ->  | AU9: =IF(B9="","",IF(AND(COUNTIF('Entry sheet-2-hin'!$AO$9:$AO$77,"1रसवनि")=0),"",COUNTIF('Entry sheet-2-hin'!$AO$9:$AO$77,"1रसवनि"))) ->  | AV9: =IF(AU9="","",AU9) ->  | AW9: =IF(B9="","",IF(AND(COUNTIF('Entry sheet-2-hin'!$AO$9:$AO$77,"1रसअलउ")=0),"",COUNTIF('Entry sheet-2-hin'!$AO$9:$AO$77,"1रसअलउ"))) ->  | AX9: =IF(AW9="","",AW9) ->  | AY9: =IF(B9="","",IF(AND(COUNTIF('Entry sheet-2-hin'!$AO$9:$AO$77,"1रसलउ२")=0),"",COUNTIF('Entry sheet-2-hin'!$AO$9:$AO$77,"1रसलउ२"))) ->  | AZ9: =IF(AY9="","",AY9*2) ->  | BA9: =IF(B9="","",IF(AND(COUNTIF('Entry sheet-2-hin'!$AO$9:$AO$77,"1रसलउ३")=0),"",COUNTIF('Entry sheet-2-hin'!$AO$9:$AO$77,"1रसलउ३"))) ->  | BB9: =IF(BA9="","",BA9*3) ->  | BC9: =IF(B9="","",IF(AND(COUNTIF('Entry sheet-2-hin'!$AO$9:$AO$77,"1रसदीउ४")=0),"",COUNTIF('Entry sheet-2-hin'!$AO$9:$AO$77,"1रसदीउ४"))) ->  | BD9: =IF(BC9="","",BC9*4) ->  | BE9: =IF(B9="","",IF(AND(COUNTIF('Entry sheet-2-hin'!$AO$9:$AO$77,"1रसदीउ5")=0),"",COUNTIF('Entry sheet-2-hin'!$AO$9:$AO$77,"1रसदीउ5"))) ->  | BF9: =IF(BE9="","",BE9*5) ->  | BG9: =IF(B9="","",SUM(D9,R9,AF9,AT9)) -> 0 | BH9: =IF(BG9="","",SUM(D9,R9,AF9,AT9)) -> 0 | BI9: =IF(B9="","",SUM(F9,T9,AH9,AV9)) -> 1 | BJ9: =IF(BI9="","",SUM(F9,T9,AH9,AV9)) -> 1 | BK9: =IF(B9="","",SUM(H9,V9,AJ9,AX9)) -> 1 | BL9: =IF(BK9="","",SUM(H9,V9,AJ9,AX9)) -> 1 | BM9: =IF(B9="","",SUM(J9,X9,AL9,AZ9)/2) -> 1 | BN9: =IF(BM9="","",SUM(J9,X9,AL9,AZ9)) -> 2 | BO9: =IF(B9="","",SUM(L9,Z9,AN9,BB9)/3) -> 0 | BP9: =IF(BO9="","",SUM(L9,Z9,AN9,BB9)) -> 0 | BQ9: =IF(B9="","",SUM(N9,AB9,AP9,BD9)/4) -> 0 | BR9: =IF(BQ9="","",SUM(N9,AB9,AP9,BD9)) -> 0 | BS9: =IF(B9="","",SUM(P9,AD9,AR9,BF9)/5) -> 0 | BT9: =IF(BS9="","",SUM(P9,AD9,AR9,BF9)) -> 0 | BU9: =IF(B9="","",SUM(BG9,BI9,BK9,BM9,BO9,BQ9,BS9)) -> 3 | BV9: =IF(B9="","",SUM(BH9,BJ9,BL9,BN9,BP9,BR9,BT9)) -> 4
A10: =IF('Entry sheet-1-hin'!A11="","",'Entry sheet-1-hin'!A11) -> 2 | B10: =IF('Entry sheet-1-hin'!B11="","",'Entry sheet-1-hin'!B11) -> गुलाब सिंह | C10: =IF(B10="","",IF(AND(COUNTIF('Entry sheet-2-hin'!$AO$9:$AO$77,"2स्मबवि")=0),"",COUNTIF('Entry sheet-2-hin'!$AO$9:$AO$77,"2स्मबवि"))) ->  | D10: =IF(C10="","",C10) ->  | E10: =IF(B10="","",IF(AND(COUNTIF('Entry sheet-2-hin'!$AO$9:$AO$77,"2स्मवनि")=0),"",COUNTIF('Entry sheet-2-hin'!$AO$9:$AO$77,"2स्मवनि"))) ->  | F10: =IF(E10="","",E10) ->  | G10: =IF(B10="","",IF(AND(COUNTIF('Entry sheet-2-hin'!$AO$9:$AO$77,"2स्मअलउ")=0),"",COUNTIF('Entry sheet-2-hin'!$AO$9:$AO$77,"2स्मअलउ"))) -> 1 | H10: =IF(G10="","",G10) -> 1 | I10: =IF(B10="","",IF(AND(COUNTIF('Entry sheet-2-hin'!$AO$9:$AO$77,"2स्मलउ२")=0),"",COUNTIF('Entry sheet-2-hin'!$AO$9:$AO$77,"2स्मलउ२"))) ->  | J10: =IF(I10="","",I10*2) ->  | K10: =IF(B10="","",IF(AND(COUNTIF('Entry sheet-2-hin'!$AO$9:$AO$77,"2स्मलउ३")=0),"",COUNTIF('Entry sheet-2-hin'!$AO$9:$AO$77,"2स्मलउ३"))) ->  | L10: =IF(K10="","",K10*3) ->  | M10: =IF(B10="","",IF(AND(COUNTIF('Entry sheet-2-hin'!$AO$9:$AO$77,"2स्मदीउ४")=0),"",COUNTIF('Entry sheet-2-hin'!$AO$9:$AO$77,"2स्मदीउ४"))) ->  | N10: =IF(M10="","",M10*4) ->  | O10: =IF(B10="","",IF(AND(COUNTIF('Entry sheet-2-hin'!$AO$9:$AO$77,"2स्मदीउ5")=0),"",COUNTIF('Entry sheet-2-hin'!$AO$9:$AO$77,"2स्मदीउ5"))) ->  | P10: =IF(O10="","",O10*5) ->  | Q10: =IF(B10="","",IF(AND(COUNTIF('Entry sheet-2-hin'!$AO$9:$AO$77,"2समबवि")=0),"",COUNTIF('Entry sheet-2-hin'!$AO$9:$AO$77,"2समबवि"))) ->  | R10: =IF(Q10="","",Q10) ->  | S10: =IF(B10="","",IF(AND(COUNTIF('Entry sheet-2-hin'!$AO$9:$AO$77,"2समवनि")=0),"",COUNTIF('Entry sheet-2-hin'!$AO$9:$AO$77,"2समवनि"))) ->  | T10: =IF(S10="","",S10) ->  | U10: =IF(B10="","",IF(AND(COUNTIF('Entry sheet-2-hin'!$AO$9:$AO$77,"2समअलउ")=0),"",COUNTIF('Entry sheet-2-hin'!$AO$9:$AO$77,"2समअलउ"))) ->  | V10: =IF(U10="","",U10) ->  | W10: =IF(B10="","",IF(AND(COUNTIF('Entry sheet-2-hin'!$AO$9:$AO$77,"2समलउ२")=0),"",COUNTIF('Entry sheet-2-hin'!$AO$9:$AO$77,"2समलउ२"))) ->  | X10: =IF(W10="","",W10*2) ->  | Y10: =IF(B10="","",IF(AND(COUNTIF('Entry sheet-2-hin'!$AO$9:$AO$77,"2समलउ३")=0),"",COUNTIF('Entry sheet-2-hin'!$AO$9:$AO$77,"2समलउ३"))) ->  | Z10: =IF(Y10="","",Y10*3) ->  | AA10: =IF(B10="","",IF(AND(COUNTIF('Entry sheet-2-hin'!$AO$9:$AO$77,"2समदीउ४")=0),"",COUNTIF('Entry sheet-2-hin'!$AO$9:$AO$77,"2समदीउ४"))) ->  | AB10: =IF(AA10="","",AA10*4) ->  | AC10: =IF(B10="","",IF(AND(COUNTIF('Entry sheet-2-hin'!$AO$9:$AO$77,"2समदीउ5")=0),"",COUNTIF('Entry sheet-2-hin'!$AO$9:$AO$77,"2समदीउ5"))) ->  | AD10: =IF(AC10="","",AC10*5) ->  | AE10: =IF(B10="","",IF(AND(COUNTIF('Entry sheet-2-hin'!$AO$9:$AO$77,"2अबवि")=0),"",COUNTIF('Entry sheet-2-hin'!$AO$9:$AO$77,"2अबवि"))) ->  | AF10: =IF(AE10="","",AE10) ->  | AG10: =IF(B10="","",IF(AND(COUNTIF('Entry sheet-2-hin'!$AO$9:$AO$77,"2अवनि")=0),"",COUNTIF('Entry sheet-2-hin'!$AO$9:$AO$77,"2अवनि"))) ->  | AH10: =IF(AG10="","",AG10) ->  | AI10: =IF(B10="","",IF(AND(COUNTIF('Entry sheet-2-hin'!$AO$9:$AO$77,"2अअलउ")=0),"",COUNTIF('Entry sheet-2-hin'!$AO$9:$AO$77,"2अअलउ"))) ->  | AJ10: =IF(AI10="","",AI10) ->  | AK10: =IF(B10="","",IF(AND(COUNTIF('Entry sheet-2-hin'!$AO$9:$AO$77,"2अलउ२")=0),"",COUNTIF('Entry sheet-2-hin'!$AO$9:$AO$77,"2अलउ२"))) -> 1 | AL10: =IF(AK10="","",AK10*2) -> 2 | AM10: =IF(B10="","",IF(AND(COUNTIF('Entry sheet-2-hin'!$AO$9:$AO$77,"2अलउ३")=0),"",COUNTIF('Entry sheet-2-hin'!$AO$9:$AO$77,"2अलउ३"))) ->  | AN10: =IF(AM10="","",AM10*3) ->  | AO10: =IF(B10="","",IF(AND(COUNTIF('Entry sheet-2-hin'!$AO$9:$AO$77,"2अदीउ४")=0),"",COUNTIF('Entry sheet-2-hin'!$AO$9:$AO$77,"2अदीउ४"))) ->  | AP10: =IF(AO10="","",AO10*4) ->  | AQ10: =IF(B10="","",IF(AND(COUNTIF('Entry sheet-2-hin'!$AO$9:$AO$77,"2अदीउ५")=0),"",COUNTIF('Entry sheet-2-hin'!$AO$9:$AO$77,"2अदीउ५"))) ->  | AR10: =IF(AQ10="","",AQ10*5) ->  | AS10: =IF(B10="","",IF(AND(COUNTIF('Entry sheet-2-hin'!$AO$9:$AO$77,"2रसबवि")=0),"",COUNTIF('Entry sheet-2-hin'!$AO$9:$AO$77,"2रसबवि"))) ->  | AT10: =IF(AS10="","",AS10) ->  | AU10: =IF(B10="","",IF(AND(COUNTIF('Entry sheet-2-hin'!$AO$9:$AO$77,"2रसवनि")=0),"",COUNTIF('Entry sheet-2-hin'!$AO$9:$AO$77,"2रसवनि"))) ->  | AV10: =IF(AU10="","",AU10) ->  | AW10: =IF(B10="","",IF(AND(COUNTIF('Entry sheet-2-hin'!$AO$9:$AO$77,"2रसअलउ")=0),"",COUNTIF('Entry sheet-2-hin'!$AO$9:$AO$77,"2रसअलउ"))) ->  | AX10: =IF(AW10="","",AW10) ->  | AY10: =IF(B10="","",IF(AND(COUNTIF('Entry sheet-2-hin'!$AO$9:$AO$77,"2रसलउ२")=0),"",COUNTIF('Entry sheet-2-hin'!$AO$9:$AO$77,"2रसलउ२"))) ->  | AZ10: =IF(AY10="","",AY10*2) ->  | BA10: =IF(B10="","",IF(AND(COUNTIF('Entry sheet-2-hin'!$AO$9:$AO$77,"2रसलउ३")=0),"",COUNTIF('Entry sheet-2-hin'!$AO$9:$AO$77,"2रसलउ३"))) ->  | BB10: =IF(BA10="","",BA10*3) ->  | BC10: =IF(B10="","",IF(AND(COUNTIF('Entry sheet-2-hin'!$AO$9:$AO$77,"2रसदीउ४")=0),"",COUNTIF('Entry sheet-2-hin'!$AO$9:$AO$77,"2रसदीउ४"))) ->  | BD10: =IF(BC10="","",BC10*4) ->  | BE10: =IF(B10="","",IF(AND(COUNTIF('Entry sheet-2-hin'!$AO$9:$AO$77,"2रसदीउ5")=0),"",COUNTIF('Entry sheet-2-hin'!$AO$9:$AO$77,"2रसदीउ5"))) ->  | BF10: =IF(BE10="","",BE10*5) ->  | BG10: =IF(B10="","",SUM(D10,R10,AF10,AT10)) -> 0 | BH10: =IF(BG10="","",SUM(D10,R10,AF10,AT10)) -> 0 | BI10: =IF(B10="","",SUM(F10,T10,AH10,AV10)) -> 0 | BJ10: =IF(BI10="","",SUM(F10,T10,AH10,AV10)) -> 0 | BK10: =IF(B10="","",SUM(H10,V10,AJ10,AX10)) -> 1 | BL10: =IF(BK10="","",SUM(H10,V10,AJ10,AX10)) -> 1 | BM10: =IF(B10="","",SUM(J10,X10,AL10,AZ10)/2) -> 1 | BN10: =IF(BM10="","",SUM(J10,X10,AL10,AZ10)) -> 2 | BO10: =IF(B10="","",SUM(L10,Z10,AN10,BB10)/3) -> 0 | BP10: =IF(BO10="","",SUM(L10,Z10,AN10,BB10)) -> 0 | BQ10: =IF(B10="","",SUM(N10,AB10,AP10,BD10)/4) -> 0 | BR10: =IF(BQ10="","",SUM(N10,AB10,AP10,BD10)) -> 0 | BS10: =IF(B10="","",SUM(P10,AD10,AR10,BF10)/5) -> 0 | BT10: =IF(BS10="","",SUM(P10,AD10,AR10,BF10)) -> 0 | BU10: =IF(B10="","",SUM(BG10,BI10,BK10,BM10,BO10,BQ10,BS10)) -> 2 | BV10: =IF(B10="","",SUM(BH10,BJ10,BL10,BN10,BP10,BR10,BT10)) -> 3
A11: =IF('Entry sheet-1-hin'!A12="","",'Entry sheet-1-hin'!A12) -> 3 | B11: =IF('Entry sheet-1-hin'!B12="","",'Entry sheet-1-hin'!B12) -> बस की यात्रा | C11: =IF(B11="","",IF(AND(COUNTIF('Entry sheet-2-hin'!$AO$9:$AO$77,"3स्मबवि")=0),"",COUNTIF('Entry sheet-2-hin'!$AO$9:$AO$77,"3स्मबवि"))) ->  | E11: =IF(B11="","",IF(AND(COUNTIF('Entry sheet-2-hin'!$AO$9:$AO$77,"3स्मवनि")=0),"",COUNTIF('Entry sheet-2-hin'!$AO$9:$AO$77,"3स्मवनि"))) ->  | G11: =IF(B11="","",IF(AND(COUNTIF('Entry sheet-2-hin'!$AO$9:$AO$77,"3स्मअलउ")=0),"",COUNTIF('Entry sheet-2-hin'!$AO$9:$AO$77,"3स्मअलउ"))) ->  | I11: =IF(B11="","",IF(AND(COUNTIF('Entry sheet-2-hin'!$AO$9:$AO$77,"3स्मलउ२")=0),"",COUNTIF('Entry sheet-2-hin'!$AO$9:$AO$77,"3स्मलउ२"))) ->  | K11: =IF(B11="","",IF(AND(COUNTIF('Entry sheet-2-hin'!$AO$9:$AO$77,"3स्मलउ३")=0),"",COUNTIF('Entry sheet-2-hin'!$AO$9:$AO$77,"3स्मलउ३"))) ->  | M11: =IF(B11="","",IF(AND(COUNTIF('Entry sheet-2-hin'!$AO$9:$AO$77,"3स्मदीउ४")=0),"",COUNTIF('Entry sheet-2-hin'!$AO$9:$AO$77,"3स्मदीउ४"))) ->  | O11: =IF(B11="","",IF(AND(COUNTIF('Entry sheet-2-hin'!$AO$9:$AO$77,"3स्मदीउ5")=0),"",COUNTIF('Entry sheet-2-hin'!$AO$9:$AO$77,"3स्मदीउ5"))) ->  | Q11: =IF(B11="","",IF(AND(COUNTIF('Entry sheet-2-hin'!$AO$9:$AO$77,"3समबवि")=0),"",COUNTIF('Entry sheet-2-hin'!$AO$9:$AO$77,"3समबवि"))) ->  | S11: =IF(B11="","",IF(AND(COUNTIF('Entry sheet-2-hin'!$AO$9:$AO$77,"3समवनि")=0),"",COUNTIF('Entry sheet-2-hin'!$AO$9:$AO$77,"3समवनि"))) -> 2 | T11: 2 | U11: =IF(B11="","",IF(AND(COUNTIF('Entry sheet-2-hin'!$AO$9:$AO$77,"3समअलउ")=0),"",COUNTIF('Entry sheet-2-hin'!$AO$9:$AO$77,"3समअलउ"))) ->  | W11: =IF(B11="","",IF(AND(COUNTIF('Entry sheet-2-hin'!$AO$9:$AO$77,"3समलउ२")=0),"",COUNTIF('Entry sheet-2-hin'!$AO$9:$AO$77,"3समलउ२"))) ->  | Y11: =IF(B11="","",IF(AND(COUNTIF('Entry sheet-2-hin'!$AO$9:$AO$77,"3समलउ३")=0),"",COUNTIF('Entry sheet-2-hin'!$AO$9:$AO$77,"3समलउ३"))) ->  | AA11: =IF(B11="","",IF(AND(COUNTIF('Entry sheet-2-hin'!$AO$9:$AO$77,"3समदीउ४")=0),"",COUNTIF('Entry sheet-2-hin'!$AO$9:$AO$77,"3समदीउ४"))) ->  | AC11: =IF(B11="","",IF(AND(COUNTIF('Entry sheet-2-hin'!$AO$9:$AO$77,"3समदीउ5")=0),"",COUNTIF('Entry sheet-2-hin'!$AO$9:$AO$77,"3समदीउ5"))) ->  | AE11: =IF(B11="","",IF(AND(COUNTIF('Entry sheet-2-hin'!$AO$9:$AO$77,"3अबवि")=0),"",COUNTIF('Entry sheet-2-hin'!$AO$9:$AO$77,"3अबवि"))) ->  | AG11: =IF(B11="","",IF(AND(COUNTIF('Entry sheet-2-hin'!$AO$9:$AO$77,"3अवनि")=0),"",COUNTIF('Entry sheet-2-hin'!$AO$9:$AO$77,"3अवनि"))) ->  | AI11: =IF(B11="","",IF(AND(COUNTIF('Entry sheet-2-hin'!$AO$9:$AO$77,"3अअलउ")=0),"",COUNTIF('Entry sheet-2-hin'!$AO$9:$AO$77,"3अअलउ"))) ->  | AK11: =IF(B11="","",IF(AND(COUNTIF('Entry sheet-2-hin'!$AO$9:$AO$77,"3अलउ२")=0),"",COUNTIF('Entry sheet-2-hin'!$AO$9:$AO$77,"3अलउ२"))) -> 1 | AL11: 2 | AM11: =IF(B11="","",IF(AND(COUNTIF('Entry sheet-2-hin'!$AO$9:$AO$77,"3अलउ३")=0),"",COUNTIF('Entry sheet-2-hin'!$AO$9:$AO$77,"3अलउ३"))) ->  | AO11: =IF(B11="","",IF(AND(COUNTIF('Entry sheet-2-hin'!$AO$9:$AO$77,"3अदीउ४")=0),"",COUNTIF('Entry sheet-2-hin'!$AO$9:$AO$77,"3अदीउ४"))) ->  | AQ11: =IF(B11="","",IF(AND(COUNTIF('Entry sheet-2-hin'!$AO$9:$AO$77,"3अदीउ५")=0),"",COUNTIF('Entry sheet-2-hin'!$AO$9:$AO$77,"3अदीउ५"))) ->  | AS11: =IF(B11="","",IF(AND(COUNTIF('Entry sheet-2-hin'!$AO$9:$AO$77,"3रसबवि")=0),"",COUNTIF('Entry sheet-2-hin'!$AO$9:$AO$77,"3रसबवि"))) ->  | AU11: =IF(B11="","",IF(AND(COUNTIF('Entry sheet-2-hin'!$AO$9:$AO$77,"3रसवनि")=0),"",COUNTIF('Entry sheet-2-hin'!$AO$9:$AO$77,"3रसवनि"))) ->  | AW11: =IF(B11="","",IF(AND(COUNTIF('Entry sheet-2-hin'!$AO$9:$AO$77,"3रसअलउ")=0),"",COUNTIF('Entry sheet-2-hin'!$AO$9:$AO$77,"3रसअलउ"))) ->  | AY11: =IF(B11="","",IF(AND(COUNTIF('Entry sheet-2-hin'!$AO$9:$AO$77,"3रसलउ२")=0),"",COUNTIF('Entry sheet-2-hin'!$AO$9:$AO$77,"3रसलउ२"))) ->  | BA11: =IF(B11="","",IF(AND(COUNTIF('Entry sheet-2-hin'!$AO$9:$AO$77,"3रसलउ३")=0),"",COUNTIF('Entry sheet-2-hin'!$AO$9:$AO$77,"3रसलउ३"))) ->  | BC11: =IF(B11="","",IF(AND(COUNTIF('Entry sheet-2-hin'!$AO$9:$AO$77,"3रसदीउ४")=0),"",COUNTIF('Entry sheet-2-hin'!$AO$9:$AO$77,"3रसदीउ४"))) ->  | BE11: =IF(B11="","",IF(AND(COUNTIF('Entry sheet-2-hin'!$AO$9:$AO$77,"3रसदीउ5")=0),"",COUNTIF('Entry sheet-2-hin'!$AO$9:$AO$77,"3रसदीउ5"))) ->  | BG11: 0 | BH11: 0 | BI11: 2 | BJ11: 2 | BK11: 0 | BL11: 0 | BM11: 1 | BN11: 2 | BO11: 0 | BP11: 0 | BQ11: 0 | BR11: 0 | BS11: 0 | BT11: 0 | BU11: 3 | BV11: 4
A12: =IF('Entry sheet-1-hin'!A13="","",'Entry sheet-1-hin'!A13) -> 4 | B12: =IF('Entry sheet-1-hin'!B13="","",'Entry sheet-1-hin'!B13) -> मौसी | C12: =IF(B12="","",IF(AND(COUNTIF('Entry sheet-2-hin'!$AO$9:$AO$77,"4स्मबवि")=0),"",COUNTIF('Entry sheet-2-hin'!$AO$9:$AO$77,"4स्मबवि"))) ->  | E12: =IF(B12="","",IF(AND(COUNTIF('Entry sheet-2-hin'!$AO$9:$AO$77,"4स्मवनि")=0),"",COUNTIF('Entry sheet-2-hin'!$AO$9:$AO$77,"4स्मवनि"))) ->  | G12: =IF(B12="","",IF(AND(COUNTIF('Entry sheet-2-hin'!$AO$9:$AO$77,"4स्मअलउ")=0),"",COUNTIF('Entry sheet-2-hin'!$AO$9:$AO$77,"4स्मअलउ"))) ->  | I12: =IF(B12="","",IF(AND(COUNTIF('Entry sheet-2-hin'!$AO$9:$AO$77,"4स्मलउ२")=0),"",COUNTIF('Entry sheet-2-hin'!$AO$9:$AO$77,"4स्मलउ२"))) ->  | K12: =IF(B12="","",IF(AND(COUNTIF('Entry sheet-2-hin'!$AO$9:$AO$77,"4स्मलउ३")=0),"",COUNTIF('Entry sheet-2-hin'!$AO$9:$AO$77,"4स्मलउ३"))) ->  | M12: =IF(B12="","",IF(AND(COUNTIF('Entry sheet-2-hin'!$AO$9:$AO$77,"4स्मदीउ४")=0),"",COUNTIF('Entry sheet-2-hin'!$AO$9:$AO$77,"4स्मदीउ४"))) ->  | O12: =IF(B12="","",IF(AND(COUNTIF('Entry sheet-2-hin'!$AO$9:$AO$77,"4स्मदीउ5")=0),"",COUNTIF('Entry sheet-2-hin'!$AO$9:$AO$77,"4स्मदीउ5"))) ->  | Q12: =IF(B12="","",IF(AND(COUNTIF('Entry sheet-2-hin'!$AO$9:$AO$77,"4समबवि")=0),"",COUNTIF('Entry sheet-2-hin'!$AO$9:$AO$77,"4समबवि"))) ->  | S12: =IF(B12="","",IF(AND(COUNTIF('Entry sheet-2-hin'!$AO$9:$AO$77,"4समवनि")=0),"",COUNTIF('Entry sheet-2-hin'!$AO$9:$AO$77,"4समवनि"))) -> 1 | T12: 1 | U12: =IF(B12="","",IF(AND(COUNTIF('Entry sheet-2-hin'!$AO$9:$AO$77,"4समअलउ")=0),"",COUNTIF('Entry sheet-2-hin'!$AO$9:$AO$77,"4समअलउ"))) -> 1 | V12: 1 | W12: =IF(B12="","",IF(AND(COUNTIF('Entry sheet-2-hin'!$AO$9:$AO$77,"4समलउ२")=0),"",COUNTIF('Entry sheet-2-hin'!$AO$9:$AO$77,"4समलउ२"))) ->  | Y12: =IF(B12="","",IF(AND(COUNTIF('Entry sheet-2-hin'!$AO$9:$AO$77,"4समलउ३")=0),"",COUNTIF('Entry sheet-2-hin'!$AO$9:$AO$77,"4समलउ३"))) -> 1 | Z12: 3 | AA12: =IF(B12="","",IF(AND(COUNTIF('Entry sheet-2-hin'!$AO$9:$AO$77,"4समदीउ४")=0),"",COUNTIF('Entry sheet-2-hin'!$AO$9:$AO$77,"4समदीउ४"))) ->  | AC12: =IF(B12="","",IF(AND(COUNTIF('Entry sheet-2-hin'!$AO$9:$AO$77,"4समदीउ5")=0),"",COUNTIF('Entry sheet-2-hin'!$AO$9:$AO$77,"4समदीउ5"))) ->  | AE12: =IF(B12="","",IF(AND(COUNTIF('Entry sheet-2-hin'!$AO$9:$AO$77,"4अबवि")=0),"",COUNTIF('Entry sheet-2-hin'!$AO$9:$AO$77,"4अबवि"))) ->  | AG12: =IF(B12="","",IF(AND(COUNTIF('Entry sheet-2-hin'!$AO$9:$AO$77,"4अवनि")=0),"",COUNTIF('Entry sheet-2-hin'!$AO$9:$AO$77,"4अवनि"))) ->  | AI12: =IF(B12="","",IF(AND(COUNTIF('Entry sheet-2-hin'!$AO$9:$AO$77,"4अअलउ")=0),"",COUNTIF('Entry sheet-2-hin'!$AO$9:$AO$77,"4अअलउ"))) ->  | AK12: =IF(B12="","",IF(AND(COUNTIF('Entry sheet-2-hin'!$AO$9:$AO$77,"4अलउ२")=0),"",COUNTIF('Entry sheet-2-hin'!$AO$9:$AO$77,"4अलउ२"))) ->  | AM12: =IF(B12="","",IF(AND(COUNTIF('Entry sheet-2-hin'!$AO$9:$AO$77,"4अलउ३")=0),"",COUNTIF('Entry sheet-2-hin'!$AO$9:$AO$77,"4अलउ३"))) ->  | AO12: =IF(B12="","",IF(AND(COUNTIF('Entry sheet-2-hin'!$AO$9:$AO$77,"4अदीउ४")=0),"",COUNTIF('Entry sheet-2-hin'!$AO$9:$AO$77,"4अदीउ४"))) ->  | AQ12: =IF(B12="","",IF(AND(COUNTIF('Entry sheet-2-hin'!$AO$9:$AO$77,"4अदीउ५")=0),"",COUNTIF('Entry sheet-2-hin'!$AO$9:$AO$77,"4अदीउ५"))) ->  | AS12: =IF(B12="","",IF(AND(COUNTIF('Entry sheet-2-hin'!$AO$9:$AO$77,"4रसबवि")=0),"",COUNTIF('Entry sheet-2-hin'!$AO$9:$AO$77,"4रसबवि"))) ->  | AU12: =IF(B12="","",IF(AND(COUNTIF('Entry sheet-2-hin'!$AO$9:$AO$77,"4रसवनि")=0),"",COUNTIF('Entry sheet-2-hin'!$AO$9:$AO$77,"4रसवनि"))) ->  | AW12: =IF(B12="","",IF(AND(COUNTIF('Entry sheet-2-hin'!$AO$9:$AO$77,"4रसअलउ")=0),"",COUNTIF('Entry sheet-2-hin'!$AO$9:$AO$77,"4रसअलउ"))) ->  | AY12: =IF(B12="","",IF(AND(COUNTIF('Entry sheet-2-hin'!$AO$9:$AO$77,"4रसलउ२")=0),"",COUNTIF('Entry sheet-2-hin'!$AO$9:$AO$77,"4रसलउ२"))) ->  | BA12: =IF(B12="","",IF(AND(COUNTIF('Entry sheet-2-hin'!$AO$9:$AO$77,"4रसलउ३")=0),"",COUNTIF('Entry sheet-2-hin'!$AO$9:$AO$77,"4रसलउ३"))) ->  | BC12: =IF(B12="","",IF(AND(COUNTIF('Entry sheet-2-hin'!$AO$9:$AO$77,"4रसदीउ४")=0),"",COUNTIF('Entry sheet-2-hin'!$AO$9:$AO$77,"4रसदीउ४"))) ->  | BE12: =IF(B12="","",IF(AND(COUNTIF('Entry sheet-2-hin'!$AO$9:$AO$77,"4रसदीउ5")=0),"",COUNTIF('Entry sheet-2-hin'!$AO$9:$AO$77,"4रसदीउ5"))) ->  | BG12: 0 | BH12: 0 | BI12: 1 | BJ12: 1 | BK12: 1 | BL12: 1 | BM12: 0 | BN12: 0 | BO12: 1 | BP12: 3 | BQ12: 0 | BR12: 0 | BS12: 0 | BT12: 0 | BU12: 3 | BV12: 5
A13: =IF('Entry sheet-1-hin'!A14="","",'Entry sheet-1-hin'!A14) -> 5 | B13: =IF('Entry sheet-1-hin'!B14="","",'Entry sheet-1-hin'!B14) -> मेरा बचपन | C13: =IF(B13="","",IF(AND(COUNTIF('Entry sheet-2-hin'!$AO$9:$AO$77,"5स्मबवि")=0),"",COUNTIF('Entry sheet-2-hin'!$AO$9:$AO$77,"5स्मबवि"))) ->  | E13: =IF(B13="","",IF(AND(COUNTIF('Entry sheet-2-hin'!$AO$9:$AO$77,"5स्मवनि")=0),"",COUNTIF('Entry sheet-2-hin'!$AO$9:$AO$77,"5स्मवनि"))) ->  | G13: =IF(B13="","",IF(AND(COUNTIF('Entry sheet-2-hin'!$AO$9:$AO$77,"5स्मअलउ")=0),"",COUNTIF('Entry sheet-2-hin'!$AO$9:$AO$77,"5स्मअलउ"))) ->  | I13: =IF(B13="","",IF(AND(COUNTIF('Entry sheet-2-hin'!$AO$9:$AO$77,"5स्मलउ२")=0),"",COUNTIF('Entry sheet-2-hin'!$AO$9:$AO$77,"5स्मलउ२"))) ->  | K13: =IF(B13="","",IF(AND(COUNTIF('Entry sheet-2-hin'!$AO$9:$AO$77,"5स्मलउ३")=0),"",COUNTIF('Entry sheet-2-hin'!$AO$9:$AO$77,"5स्मलउ३"))) ->  | M13: =IF(B13="","",IF(AND(COUNTIF('Entry sheet-2-hin'!$AO$9:$AO$77,"5स्मदीउ४")=0),"",COUNTIF('Entry sheet-2-hin'!$AO$9:$AO$77,"5स्मदीउ४"))) ->  | O13: =IF(B13="","",IF(AND(COUNTIF('Entry sheet-2-hin'!$AO$9:$AO$77,"5स्मदीउ5")=0),"",COUNTIF('Entry sheet-2-hin'!$AO$9:$AO$77,"5स्मदीउ5"))) ->  | Q13: =IF(B13="","",IF(AND(COUNTIF('Entry sheet-2-hin'!$AO$9:$AO$77,"5समबवि")=0),"",COUNTIF('Entry sheet-2-hin'!$AO$9:$AO$77,"5समबवि"))) ->  | S13: =IF(B13="","",IF(AND(COUNTIF('Entry sheet-2-hin'!$AO$9:$AO$77,"5समवनि")=0),"",COUNTIF('Entry sheet-2-hin'!$AO$9:$AO$77,"5समवनि"))) ->  | U13: =IF(B13="","",IF(AND(COUNTIF('Entry sheet-2-hin'!$AO$9:$AO$77,"5समअलउ")=0),"",COUNTIF('Entry sheet-2-hin'!$AO$9:$AO$77,"5समअलउ"))) ->  | W13: =IF(B13="","",IF(AND(COUNTIF('Entry sheet-2-hin'!$AO$9:$AO$77,"5समलउ२")=0),"",COUNTIF('Entry sheet-2-hin'!$AO$9:$AO$77,"5समलउ२"))) ->  | Y13: =IF(B13="","",IF(AND(COUNTIF('Entry sheet-2-hin'!$AO$9:$AO$77,"5समलउ३")=0),"",COUNTIF('Entry sheet-2-hin'!$AO$9:$AO$77,"5समलउ३"))) ->  | AA13: =IF(B13="","",IF(AND(COUNTIF('Entry sheet-2-hin'!$AO$9:$AO$77,"5समदीउ४")=0),"",COUNTIF('Entry sheet-2-hin'!$AO$9:$AO$77,"5समदीउ४"))) ->  | AC13: =IF(B13="","",IF(AND(COUNTIF('Entry sheet-2-hin'!$AO$9:$AO$77,"5समदीउ5")=0),"",COUNTIF('Entry sheet-2-hin'!$AO$9:$AO$77,"5समदीउ5"))) ->  | AE13: =IF(B13="","",IF(AND(COUNTIF('Entry sheet-2-hin'!$AO$9:$AO$77,"5अबवि")=0),"",COUNTIF('Entry sheet-2-hin'!$AO$9:$AO$77,"5अबवि"))) ->  | AG13: =IF(B13="","",IF(AND(COUNTIF('Entry sheet-2-hin'!$AO$9:$AO$77,"5अवनि")=0),"",COUNTIF('Entry sheet-2-hin'!$AO$9:$AO$77,"5अवनि"))) ->  | AI13: =IF(B13="","",IF(AND(COUNTIF('Entry sheet-2-hin'!$AO$9:$AO$77,"5अअलउ")=0),"",COUNTIF('Entry sheet-2-hin'!$AO$9:$AO$77,"5अअलउ"))) ->  | AK13: =IF(B13="","",IF(AND(COUNTIF('Entry sheet-2-hin'!$AO$9:$AO$77,"5अलउ२")=0),"",COUNTIF('Entry sheet-2-hin'!$AO$9:$AO$77,"5अलउ२"))) ->  | AM13: =IF(B13="","",IF(AND(COUNTIF('Entry sheet-2-hin'!$AO$9:$AO$77,"5अलउ३")=0),"",COUNTIF('Entry sheet-2-hin'!$AO$9:$AO$77,"5अलउ३"))) ->  | AO13: =IF(B13="","",IF(AND(COUNTIF('Entry sheet-2-hin'!$AO$9:$AO$77,"5अदीउ४")=0),"",COUNTIF('Entry sheet-2-hin'!$AO$9:$AO$77,"5अदीउ४"))) ->  | AQ13: =IF(B13="","",IF(AND(COUNTIF('Entry sheet-2-hin'!$AO$9:$AO$77,"5अदीउ५")=0),"",COUNTIF('Entry sheet-2-hin'!$AO$9:$AO$77,"5अदीउ५"))) ->  | AS13: =IF(B13="","",IF(AND(COUNTIF('Entry sheet-2-hin'!$AO$9:$AO$77,"5रसबवि")=0),"",COUNTIF('Entry sheet-2-hin'!$AO$9:$AO$77,"5रसबवि"))) ->  | AU13: =IF(B13="","",IF(AND(COUNTIF('Entry sheet-2-hin'!$AO$9:$AO$77,"5रसवनि")=0),"",COUNTIF('Entry sheet-2-hin'!$AO$9:$AO$77,"5रसवनि"))) ->  | AW13: =IF(B13="","",IF(AND(COUNTIF('Entry sheet-2-hin'!$AO$9:$AO$77,"5रसअलउ")=0),"",COUNTIF('Entry sheet-2-hin'!$AO$9:$AO$77,"5रसअलउ"))) ->  | AY13: =IF(B13="","",IF(AND(COUNTIF('Entry sheet-2-hin'!$AO$9:$AO$77,"5रसलउ२")=0),"",COUNTIF('Entry sheet-2-hin'!$AO$9:$AO$77,"5रसलउ२"))) ->  | BA13: =IF(B13="","",IF(AND(COUNTIF('Entry sheet-2-hin'!$AO$9:$AO$77,"5रसलउ३")=0),"",COUNTIF('Entry sheet-2-hin'!$AO$9:$AO$77,"5रसलउ३"))) ->  | BC13: =IF(B13="","",IF(AND(COUNTIF('Entry sheet-2-hin'!$AO$9:$AO$77,"5रसदीउ४")=0),"",COUNTIF('Entry sheet-2-hin'!$AO$9:$AO$77,"5रसदीउ४"))) ->  | BE13: =IF(B13="","",IF(AND(COUNTIF('Entry sheet-2-hin'!$AO$9:$AO$77,"5रसदीउ5")=0),"",COUNTIF('Entry sheet-2-hin'!$AO$9:$AO$77,"5रसदीउ5"))) ->  | BG13: 0 | BH13: 0 | BI13: 0 | BJ13: 0 | BK13: 0 | BL13: 0 | BM13: 0 | BN13: 0 | BO13: 0 | BP13: 0 | BQ13: 0 | BR13: 0 | BS13: 0 | BT13: 0 | BU13: 0 | BV13: 0
A14: =IF('Entry sheet-1-hin'!A15="","",'Entry sheet-1-hin'!A15) -> 6 | B14: =IF('Entry sheet-1-hin'!B15="","",'Entry sheet-1-hin'!B15) -> भीम और राक्षस | C14: =IF(B14="","",IF(AND(COUNTIF('Entry sheet-2-hin'!$AO$9:$AO$77,"6स्मबवि")=0),"",COUNTIF('Entry sheet-2-hin'!$AO$9:$AO$77,"6स्मबवि"))) ->  | E14: =IF(B14="","",IF(AND(COUNTIF('Entry sheet-2-hin'!$AO$9:$AO$77,"6स्मवनि")=0),"",COUNTIF('Entry sheet-2-hin'!$AO$9:$AO$77,"6स्मवनि"))) ->  | G14: =IF(B14="","",IF(AND(COUNTIF('Entry sheet-2-hin'!$AO$9:$AO$77,"6स्मअलउ")=0),"",COUNTIF('Entry sheet-2-hin'!$AO$9:$AO$77,"6स्मअलउ"))) ->  | I14: =IF(B14="","",IF(AND(COUNTIF('Entry sheet-2-hin'!$AO$9:$AO$77,"6स्मलउ२")=0),"",COUNTIF('Entry sheet-2-hin'!$AO$9:$AO$77,"6स्मलउ२"))) ->  | K14: =IF(B14="","",IF(AND(COUNTIF('Entry sheet-2-hin'!$AO$9:$AO$77,"6स्मलउ३")=0),"",COUNTIF('Entry sheet-2-hin'!$AO$9:$AO$77,"6स्मलउ३"))) ->  | M14: =IF(B14="","",IF(AND(COUNTIF('Entry sheet-2-hin'!$AO$9:$AO$77,"6स्मदीउ४")=0),"",COUNTIF('Entry sheet-2-hin'!$AO$9:$AO$77,"6स्मदीउ४"))) ->  | O14: =IF(B14="","",IF(AND(COUNTIF('Entry sheet-2-hin'!$AO$9:$AO$77,"6स्मदीउ5")=0),"",COUNTIF('Entry sheet-2-hin'!$AO$9:$AO$77,"6स्मदीउ5"))) ->  | Q14: =IF(B14="","",IF(AND(COUNTIF('Entry sheet-2-hin'!$AO$9:$AO$77,"6समबवि")=0),"",COUNTIF('Entry sheet-2-hin'!$AO$9:$AO$77,"6समबवि"))) ->  | S14: =IF(B14="","",IF(AND(COUNTIF('Entry sheet-2-hin'!$AO$9:$AO$77,"6समवनि")=0),"",COUNTIF('Entry sheet-2-hin'!$AO$9:$AO$77,"6समवनि"))) ->  | U14: =IF(B14="","",IF(AND(COUNTIF('Entry sheet-2-hin'!$AO$9:$AO$77,"6समअलउ")=0),"",COUNTIF('Entry sheet-2-hin'!$AO$9:$AO$77,"6समअलउ"))) ->  | W14: =IF(B14="","",IF(AND(COUNTIF('Entry sheet-2-hin'!$AO$9:$AO$77,"6समलउ२")=0),"",COUNTIF('Entry sheet-2-hin'!$AO$9:$AO$77,"6समलउ२"))) ->  | Y14: =IF(B14="","",IF(AND(COUNTIF('Entry sheet-2-hin'!$AO$9:$AO$77,"6समलउ३")=0),"",COUNTIF('Entry sheet-2-hin'!$AO$9:$AO$77,"6समलउ३"))) ->  | AA14: =IF(B14="","",IF(AND(COUNTIF('Entry sheet-2-hin'!$AO$9:$AO$77,"6समदीउ४")=0),"",COUNTIF('Entry sheet-2-hin'!$AO$9:$AO$77,"6समदीउ४"))) ->  | AC14: =IF(B14="","",IF(AND(COUNTIF('Entry sheet-2-hin'!$AO$9:$AO$77,"6समदीउ5")=0),"",COUNTIF('Entry sheet-2-hin'!$AO$9:$AO$77,"6समदीउ5"))) ->  | AE14: =IF(B14="","",IF(AND(COUNTIF('Entry sheet-2-hin'!$AO$9:$AO$77,"6अबवि")=0),"",COUNTIF('Entry sheet-2-hin'!$AO$9:$AO$77,"6अबवि"))) ->  | AG14: =IF(B14="","",IF(AND(COUNTIF('Entry sheet-2-hin'!$AO$9:$AO$77,"6अवनि")=0),"",COUNTIF('Entry sheet-2-hin'!$AO$9:$AO$77,"6अवनि"))) ->  | AI14: =IF(B14="","",IF(AND(COUNTIF('Entry sheet-2-hin'!$AO$9:$AO$77,"6अअलउ")=0),"",COUNTIF('Entry sheet-2-hin'!$AO$9:$AO$77,"6अअलउ"))) ->  | AK14: =IF(B14="","",IF(AND(COUNTIF('Entry sheet-2-hin'!$AO$9:$AO$77,"6अलउ२")=0),"",COUNTIF('Entry sheet-2-hin'!$AO$9:$AO$77,"6अलउ२"))) ->  | AM14: =IF(B14="","",IF(AND(COUNTIF('Entry sheet-2-hin'!$AO$9:$AO$77,"6अलउ३")=0),"",COUNTIF('Entry sheet-2-hin'!$AO$9:$AO$77,"6अलउ३"))) ->  | AO14: =IF(B14="","",IF(AND(COUNTIF('Entry sheet-2-hin'!$AO$9:$AO$77,"6अदीउ४")=0),"",COUNTIF('Entry sheet-2-hin'!$AO$9:$AO$77,"6अदीउ४"))) ->  | AQ14: =IF(B14="","",IF(AND(COUNTIF('Entry sheet-2-hin'!$AO$9:$AO$77,"6अदीउ५")=0),"",COUNTIF('Entry sheet-2-hin'!$AO$9:$AO$77,"6अदीउ५"))) ->  | AS14: =IF(B14="","",IF(AND(COUNTIF('Entry sheet-2-hin'!$AO$9:$AO$77,"6रसबवि")=0),"",COUNTIF('Entry sheet-2-hin'!$AO$9:$AO$77,"6रसबवि"))) ->  | AU14: =IF(B14="","",IF(AND(COUNTIF('Entry sheet-2-hin'!$AO$9:$AO$77,"6रसवनि")=0),"",COUNTIF('Entry sheet-2-hin'!$AO$9:$AO$77,"6रसवनि"))) ->  | AW14: =IF(B14="","",IF(AND(COUNTIF('Entry sheet-2-hin'!$AO$9:$AO$77,"6रसअलउ")=0),"",COUNTIF('Entry sheet-2-hin'!$AO$9:$AO$77,"6रसअलउ"))) ->  | AY14: =IF(B14="","",IF(AND(COUNTIF('Entry sheet-2-hin'!$AO$9:$AO$77,"6रसलउ२")=0),"",COUNTIF('Entry sheet-2-hin'!$AO$9:$AO$77,"6रसलउ२"))) ->  | BA14: =IF(B14="","",IF(AND(COUNTIF('Entry sheet-2-hin'!$AO$9:$AO$77,"6रसलउ३")=0),"",COUNTIF('Entry sheet-2-hin'!$AO$9:$AO$77,"6रसलउ३"))) ->  | BC14: =IF(B14="","",IF(AND(COUNTIF('Entry sheet-2-hin'!$AO$9:$AO$77,"6रसदीउ४")=0),"",COUNTIF('Entry sheet-2-hin'!$AO$9:$AO$77,"6रसदीउ४"))) ->  | BE14: =IF(B14="","",IF(AND(COUNTIF('Entry sheet-2-hin'!$AO$9:$AO$77,"6रसदीउ5")=0),"",COUNTIF('Entry sheet-2-hin'!$AO$9:$AO$77,"6रसदीउ5"))) ->  | BG14: 0 | BH14: 0 | BI14: 0 | BJ14: 0 | BK14: 0 | BL14: 0 | BM14: 0 | BN14: 0 | BO14: 0 | BP14: 0 | BQ14: 0 | BR14: 0 | BS14: 0 | BT14: 0 | BU14: 0 | BV14: 0
A15: =IF('Entry sheet-1-hin'!A16="","",'Entry sheet-1-hin'!A16) -> 7 | B15: =IF('Entry sheet-1-hin'!B16="","",'Entry sheet-1-hin'!B16) -> बाहुबली | C15: =IF(B15="","",IF(AND(COUNTIF('Entry sheet-2-hin'!$AO$9:$AO$77,"7स्मबवि")=0),"",COUNTIF('Entry sheet-2-hin'!$AO$9:$AO$77,"7स्मबवि"))) ->  | E15: =IF(B15="","",IF(AND(COUNTIF('Entry sheet-2-hin'!$AO$9:$AO$77,"7स्मवनि")=0),"",COUNTIF('Entry sheet-2-hin'!$AO$9:$AO$77,"7स्मवनि"))) ->  | G15: =IF(B15="","",IF(AND(COUNTIF('Entry sheet-2-hin'!$AO$9:$AO$77,"7स्मअलउ")=0),"",COUNTIF('Entry sheet-2-hin'!$AO$9:$AO$77,"7स्मअलउ"))) ->  | I15: =IF(B15="","",IF(AND(COUNTIF('Entry sheet-2-hin'!$AO$9:$AO$77,"7स्मलउ२")=0),"",COUNTIF('Entry sheet-2-hin'!$AO$9:$AO$77,"7स्मलउ२"))) ->  | K15: =IF(B15="","",IF(AND(COUNTIF('Entry sheet-2-hin'!$AO$9:$AO$77,"7स्मलउ३")=0),"",COUNTIF('Entry sheet-2-hin'!$AO$9:$AO$77,"7स्मलउ३"))) ->  | M15: =IF(B15="","",IF(AND(COUNTIF('Entry sheet-2-hin'!$AO$9:$AO$77,"7स्मदीउ४")=0),"",COUNTIF('Entry sheet-2-hin'!$AO$9:$AO$77,"7स्मदीउ४"))) ->  | O15: =IF(B15="","",IF(AND(COUNTIF('Entry sheet-2-hin'!$AO$9:$AO$77,"7स्मदीउ5")=0),"",COUNTIF('Entry sheet-2-hin'!$AO$9:$AO$77,"7स्मदीउ5"))) ->  | Q15: =IF(B15="","",IF(AND(COUNTIF('Entry sheet-2-hin'!$AO$9:$AO$77,"7समबवि")=0),"",COUNTIF('Entry sheet-2-hin'!$AO$9:$AO$77,"7समबवि"))) ->  | S15: =IF(B15="","",IF(AND(COUNTIF('Entry sheet-2-hin'!$AO$9:$AO$77,"7समवनि")=0),"",COUNTIF('Entry sheet-2-hin'!$AO$9:$AO$77,"7समवनि"))) ->  | U15: =IF(B15="","",IF(AND(COUNTIF('Entry sheet-2-hin'!$AO$9:$AO$77,"7समअलउ")=0),"",COUNTIF('Entry sheet-2-hin'!$AO$9:$AO$77,"7समअलउ"))) ->  | W15: =IF(B15="","",IF(AND(COUNTIF('Entry sheet-2-hin'!$AO$9:$AO$77,"7समलउ२")=0),"",COUNTIF('Entry sheet-2-hin'!$AO$9:$AO$77,"7समलउ२"))) ->  | Y15: =IF(B15="","",IF(AND(COUNTIF('Entry sheet-2-hin'!$AO$9:$AO$77,"7समलउ३")=0),"",COUNTIF('Entry sheet-2-hin'!$AO$9:$AO$77,"7समलउ३"))) ->  | AA15: =IF(B15="","",IF(AND(COUNTIF('Entry sheet-2-hin'!$AO$9:$AO$77,"7समदीउ४")=0),"",COUNTIF('Entry sheet-2-hin'!$AO$9:$AO$77,"7समदीउ४"))) ->  | AC15: =IF(B15="","",IF(AND(COUNTIF('Entry sheet-2-hin'!$AO$9:$AO$77,"7समदीउ5")=0),"",COUNTIF('Entry sheet-2-hin'!$AO$9:$AO$77,"7समदीउ5"))) ->  | AE15: =IF(B15="","",IF(AND(COUNTIF('Entry sheet-2-hin'!$AO$9:$AO$77,"7अबवि")=0),"",COUNTIF('Entry sheet-2-hin'!$AO$9:$AO$77,"7अबवि"))) ->  | AG15: =IF(B15="","",IF(AND(COUNTIF('Entry sheet-2-hin'!$AO$9:$AO$77,"7अवनि")=0),"",COUNTIF('Entry sheet-2-hin'!$AO$9:$AO$77,"7अवनि"))) ->  | AI15: =IF(B15="","",IF(AND(COUNTIF('Entry sheet-2-hin'!$AO$9:$AO$77,"7अअलउ")=0),"",COUNTIF('Entry sheet-2-hin'!$AO$9:$AO$77,"7अअलउ"))) ->  | AK15: =IF(B15="","",IF(AND(COUNTIF('Entry sheet-2-hin'!$AO$9:$AO$77,"7अलउ२")=0),"",COUNTIF('Entry sheet-2-hin'!$AO$9:$AO$77,"7अलउ२"))) ->  | AM15: =IF(B15="","",IF(AND(COUNTIF('Entry sheet-2-hin'!$AO$9:$AO$77,"7अलउ३")=0),"",COUNTIF('Entry sheet-2-hin'!$AO$9:$AO$77,"7अलउ३"))) ->  | AO15: =IF(B15="","",IF(AND(COUNTIF('Entry sheet-2-hin'!$AO$9:$AO$77,"7अदीउ४")=0),"",COUNTIF('Entry sheet-2-hin'!$AO$9:$AO$77,"7अदीउ४"))) ->  | AQ15: =IF(B15="","",IF(AND(COUNTIF('Entry sheet-2-hin'!$AO$9:$AO$77,"7अदीउ५")=0),"",COUNTIF('Entry sheet-2-hin'!$AO$9:$AO$77,"7अदीउ५"))) ->  | AS15: =IF(B15="","",IF(AND(COUNTIF('Entry sheet-2-hin'!$AO$9:$AO$77,"7रसबवि")=0),"",COUNTIF('Entry sheet-2-hin'!$AO$9:$AO$77,"7रसबवि"))) ->  | AU15: =IF(B15="","",IF(AND(COUNTIF('Entry sheet-2-hin'!$AO$9:$AO$77,"7रसवनि")=0),"",COUNTIF('Entry sheet-2-hin'!$AO$9:$AO$77,"7रसवनि"))) ->  | AW15: =IF(B15="","",IF(AND(COUNTIF('Entry sheet-2-hin'!$AO$9:$AO$77,"7रसअलउ")=0),"",COUNTIF('Entry sheet-2-hin'!$AO$9:$AO$77,"7रसअलउ"))) ->  | AY15: =IF(B15="","",IF(AND(COUNTIF('Entry sheet-2-hin'!$AO$9:$AO$77,"7रसलउ२")=0),"",COUNTIF('Entry sheet-2-hin'!$AO$9:$AO$77,"7रसलउ२"))) ->  | BA15: =IF(B15="","",IF(AND(COUNTIF('Entry sheet-2-hin'!$AO$9:$AO$77,"7रसलउ३")=0),"",COUNTIF('Entry sheet-2-hin'!$AO$9:$AO$77,"7रसलउ३"))) ->  | BC15: =IF(B15="","",IF(AND(COUNTIF('Entry sheet-2-hin'!$AO$9:$AO$77,"7रसदीउ४")=0),"",COUNTIF('Entry sheet-2-hin'!$AO$9:$AO$77,"7रसदीउ४"))) ->  | BE15: =IF(B15="","",IF(AND(COUNTIF('Entry sheet-2-hin'!$AO$9:$AO$77,"7रसदीउ5")=0),"",COUNTIF('Entry sheet-2-hin'!$AO$9:$AO$77,"7रसदीउ5"))) ->  | BG15: 0 | BH15: 0 | BI15: 0 | BJ15: 0 | BK15: 0 | BL15: 0 | BM15: 0 | BN15: 0 | BO15: 0 | BP15: 0 | BQ15: 0 | BR15: 0 | BS15: 0 | BT15: 0 | BU15: 0 | BV15: 0
A16: =IF('Entry sheet-1-hin'!A17="","",'Entry sheet-1-hin'!A17) -> 8 | B16: =IF('Entry sheet-1-hin'!B17="","",'Entry sheet-1-hin'!B17) -> हामिद खाँ | C16: =IF(B16="","",IF(AND(COUNTIF('Entry sheet-2-hin'!$AO$9:$AO$77,"8स्मबवि")=0),"",COUNTIF('Entry sheet-2-hin'!$AO$9:$AO$77,"8स्मबवि"))) ->  | E16: =IF(B16="","",IF(AND(COUNTIF('Entry sheet-2-hin'!$AO$9:$AO$77,"8स्मवनि")=0),"",COUNTIF('Entry sheet-2-hin'!$AO$9:$AO$77,"8स्मवनि"))) ->  | G16: =IF(B16="","",IF(AND(COUNTIF('Entry sheet-2-hin'!$AO$9:$AO$77,"8स्मअलउ")=0),"",COUNTIF('Entry sheet-2-hin'!$AO$9:$AO$77,"8स्मअलउ"))) ->  | I16: =IF(B16="","",IF(AND(COUNTIF('Entry sheet-2-hin'!$AO$9:$AO$77,"8स्मलउ२")=0),"",COUNTIF('Entry sheet-2-hin'!$AO$9:$AO$77,"8स्मलउ२"))) ->  | K16: =IF(B16="","",IF(AND(COUNTIF('Entry sheet-2-hin'!$AO$9:$AO$77,"8स्मलउ३")=0),"",COUNTIF('Entry sheet-2-hin'!$AO$9:$AO$77,"8स्मलउ३"))) ->  | M16: =IF(B16="","",IF(AND(COUNTIF('Entry sheet-2-hin'!$AO$9:$AO$77,"8स्मदीउ४")=0),"",COUNTIF('Entry sheet-2-hin'!$AO$9:$AO$77,"8स्मदीउ४"))) ->  | O16: =IF(B16="","",IF(AND(COUNTIF('Entry sheet-2-hin'!$AO$9:$AO$77,"8स्मदीउ5")=0),"",COUNTIF('Entry sheet-2-hin'!$AO$9:$AO$77,"8स्मदीउ5"))) ->  | Q16: =IF(B16="","",IF(AND(COUNTIF('Entry sheet-2-hin'!$AO$9:$AO$77,"8समबवि")=0),"",COUNTIF('Entry sheet-2-hin'!$AO$9:$AO$77,"8समबवि"))) ->  | S16: =IF(B16="","",IF(AND(COUNTIF('Entry sheet-2-hin'!$AO$9:$AO$77,"8समवनि")=0),"",COUNTIF('Entry sheet-2-hin'!$AO$9:$AO$77,"8समवनि"))) ->  | U16: =IF(B16="","",IF(AND(COUNTIF('Entry sheet-2-hin'!$AO$9:$AO$77,"8समअलउ")=0),"",COUNTIF('Entry sheet-2-hin'!$AO$9:$AO$77,"8समअलउ"))) ->  | W16: =IF(B16="","",IF(AND(COUNTIF('Entry sheet-2-hin'!$AO$9:$AO$77,"8समलउ२")=0),"",COUNTIF('Entry sheet-2-hin'!$AO$9:$AO$77,"8समलउ२"))) ->  | Y16: =IF(B16="","",IF(AND(COUNTIF('Entry sheet-2-hin'!$AO$9:$AO$77,"8समलउ३")=0),"",COUNTIF('Entry sheet-2-hin'!$AO$9:$AO$77,"8समलउ३"))) ->  | AA16: =IF(B16="","",IF(AND(COUNTIF('Entry sheet-2-hin'!$AO$9:$AO$77,"8समदीउ४")=0),"",COUNTIF('Entry sheet-2-hin'!$AO$9:$AO$77,"8समदीउ४"))) ->  | AC16: =IF(B16="","",IF(AND(COUNTIF('Entry sheet-2-hin'!$AO$9:$AO$77,"8समदीउ5")=0),"",COUNTIF('Entry sheet-2-hin'!$AO$9:$AO$77,"8समदीउ5"))) ->  | AE16: =IF(B16="","",IF(AND(COUNTIF('Entry sheet-2-hin'!$AO$9:$AO$77,"8अबवि")=0),"",COUNTIF('Entry sheet-2-hin'!$AO$9:$AO$77,"8अबवि"))) ->  | AG16: =IF(B16="","",IF(AND(COUNTIF('Entry sheet-2-hin'!$AO$9:$AO$77,"8अवनि")=0),"",COUNTIF('Entry sheet-2-hin'!$AO$9:$AO$77,"8अवनि"))) ->  | AI16: =IF(B16="","",IF(AND(COUNTIF('Entry sheet-2-hin'!$AO$9:$AO$77,"8अअलउ")=0),"",COUNTIF('Entry sheet-2-hin'!$AO$9:$AO$77,"8अअलउ"))) ->  | AK16: =IF(B16="","",IF(AND(COUNTIF('Entry sheet-2-hin'!$AO$9:$AO$77,"8अलउ२")=0),"",COUNTIF('Entry sheet-2-hin'!$AO$9:$AO$77,"8अलउ२"))) ->  | AM16: =IF(B16="","",IF(AND(COUNTIF('Entry sheet-2-hin'!$AO$9:$AO$77,"8अलउ३")=0),"",COUNTIF('Entry sheet-2-hin'!$AO$9:$AO$77,"8अलउ३"))) ->  | AO16: =IF(B16="","",IF(AND(COUNTIF('Entry sheet-2-hin'!$AO$9:$AO$77,"8अदीउ४")=0),"",COUNTIF('Entry sheet-2-hin'!$AO$9:$AO$77,"8अदीउ४"))) ->  | AQ16: =IF(B16="","",IF(AND(COUNTIF('Entry sheet-2-hin'!$AO$9:$AO$77,"8अदीउ५")=0),"",COUNTIF('Entry sheet-2-hin'!$AO$9:$AO$77,"8अदीउ५"))) ->  | AS16: =IF(B16="","",IF(AND(COUNTIF('Entry sheet-2-hin'!$AO$9:$AO$77,"8रसबवि")=0),"",COUNTIF('Entry sheet-2-hin'!$AO$9:$AO$77,"8रसबवि"))) ->  | AU16: =IF(B16="","",IF(AND(COUNTIF('Entry sheet-2-hin'!$AO$9:$AO$77,"8रसवनि")=0),"",COUNTIF('Entry sheet-2-hin'!$AO$9:$AO$77,"8रसवनि"))) ->  | AW16: =IF(B16="","",IF(AND(COUNTIF('Entry sheet-2-hin'!$AO$9:$AO$77,"8रसअलउ")=0),"",COUNTIF('Entry sheet-2-hin'!$AO$9:$AO$77,"8रसअलउ"))) ->  | AY16: =IF(B16="","",IF(AND(COUNTIF('Entry sheet-2-hin'!$AO$9:$AO$77,"8रसलउ२")=0),"",COUNTIF('Entry sheet-2-hin'!$AO$9:$AO$77,"8रसलउ२"))) ->  | BA16: =IF(B16="","",IF(AND(COUNTIF('Entry sheet-2-hin'!$AO$9:$AO$77,"8रसलउ३")=0),"",COUNTIF('Entry sheet-2-hin'!$AO$9:$AO$77,"8रसलउ३"))) ->  | BC16: =IF(B16="","",IF(AND(COUNTIF('Entry sheet-2-hin'!$AO$9:$AO$77,"8रसदीउ४")=0),"",COUNTIF('Entry sheet-2-hin'!$AO$9:$AO$77,"8रसदीउ४"))) ->  | BE16: =IF(B16="","",IF(AND(COUNTIF('Entry sheet-2-hin'!$AO$9:$AO$77,"8रसदीउ5")=0),"",COUNTIF('Entry sheet-2-hin'!$AO$9:$AO$77,"8रसदीउ5"))) ->  | BG16: 0 | BH16: 0 | BI16: 0 | BJ16: 0 | BK16: 0 | BL16: 0 | BM16: 0 | BN16: 0 | BO16: 0 | BP16: 0 | BQ16: 0 | BR16: 0 | BS16: 0 | BT16: 0 | BU16: 0 | BV16: 0
A17: =IF('Entry sheet-1-hin'!A18="","",'Entry sheet-1-hin'!A18) -> 9 | B17: =IF('Entry sheet-1-hin'!B18="","",'Entry sheet-1-hin'!B18) -> खेलो- कूदो-स्वस्थ रहो | C17: =IF(B17="","",IF(AND(COUNTIF('Entry sheet-2-hin'!$AO$9:$AO$77,"9स्मबवि")=0),"",COUNTIF('Entry sheet-2-hin'!$AO$9:$AO$77,"9स्मबवि"))) ->  | E17: =IF(B17="","",IF(AND(COUNTIF('Entry sheet-2-hin'!$AO$9:$AO$77,"9स्मवनि")=0),"",COUNTIF('Entry sheet-2-hin'!$AO$9:$AO$77,"9स्मवनि"))) ->  | G17: =IF(B17="","",IF(AND(COUNTIF('Entry sheet-2-hin'!$AO$9:$AO$77,"9स्मअलउ")=0),"",COUNTIF('Entry sheet-2-hin'!$AO$9:$AO$77,"9स्मअलउ"))) ->  | I17: =IF(B17="","",IF(AND(COUNTIF('Entry sheet-2-hin'!$AO$9:$AO$77,"9स्मलउ२")=0),"",COUNTIF('Entry sheet-2-hin'!$AO$9:$AO$77,"9स्मलउ२"))) ->  | K17: =IF(B17="","",IF(AND(COUNTIF('Entry sheet-2-hin'!$AO$9:$AO$77,"9स्मलउ३")=0),"",COUNTIF('Entry sheet-2-hin'!$AO$9:$AO$77,"9स्मलउ३"))) ->  | M17: =IF(B17="","",IF(AND(COUNTIF('Entry sheet-2-hin'!$AO$9:$AO$77,"9स्मदीउ४")=0),"",COUNTIF('Entry sheet-2-hin'!$AO$9:$AO$77,"9स्मदीउ४"))) ->  | O17: =IF(B17="","",IF(AND(COUNTIF('Entry sheet-2-hin'!$AO$9:$AO$77,"9स्मदीउ5")=0),"",COUNTIF('Entry sheet-2-hin'!$AO$9:$AO$77,"9स्मदीउ5"))) ->  | Q17: =IF(B17="","",IF(AND(COUNTIF('Entry sheet-2-hin'!$AO$9:$AO$77,"9समबवि")=0),"",COUNTIF('Entry sheet-2-hin'!$AO$9:$AO$77,"9समबवि"))) ->  | S17: =IF(B17="","",IF(AND(COUNTIF('Entry sheet-2-hin'!$AO$9:$AO$77,"9समवनि")=0),"",COUNTIF('Entry sheet-2-hin'!$AO$9:$AO$77,"9समवनि"))) ->  | U17: =IF(B17="","",IF(AND(COUNTIF('Entry sheet-2-hin'!$AO$9:$AO$77,"9समअलउ")=0),"",COUNTIF('Entry sheet-2-hin'!$AO$9:$AO$77,"9समअलउ"))) ->  | W17: =IF(B17="","",IF(AND(COUNTIF('Entry sheet-2-hin'!$AO$9:$AO$77,"9समलउ२")=0),"",COUNTIF('Entry sheet-2-hin'!$AO$9:$AO$77,"9समलउ२"))) ->  | Y17: =IF(B17="","",IF(AND(COUNTIF('Entry sheet-2-hin'!$AO$9:$AO$77,"9समलउ३")=0),"",COUNTIF('Entry sheet-2-hin'!$AO$9:$AO$77,"9समलउ३"))) ->  | AA17: =IF(B17="","",IF(AND(COUNTIF('Entry sheet-2-hin'!$AO$9:$AO$77,"9समदीउ४")=0),"",COUNTIF('Entry sheet-2-hin'!$AO$9:$AO$77,"9समदीउ४"))) ->  | AC17: =IF(B17="","",IF(AND(COUNTIF('Entry sheet-2-hin'!$AO$9:$AO$77,"9समदीउ5")=0),"",COUNTIF('Entry sheet-2-hin'!$AO$9:$AO$77,"9समदीउ5"))) ->  | AE17: =IF(B17="","",IF(AND(COUNTIF('Entry sheet-2-hin'!$AO$9:$AO$77,"9अबवि")=0),"",COUNTIF('Entry sheet-2-hin'!$AO$9:$AO$77,"9अबवि"))) ->  | AG17: =IF(B17="","",IF(AND(COUNTIF('Entry sheet-2-hin'!$AO$9:$AO$77,"9अवनि")=0),"",COUNTIF('Entry sheet-2-hin'!$AO$9:$AO$77,"9अवनि"))) ->  | AI17: =IF(B17="","",IF(AND(COUNTIF('Entry sheet-2-hin'!$AO$9:$AO$77,"9अअलउ")=0),"",COUNTIF('Entry sheet-2-hin'!$AO$9:$AO$77,"9अअलउ"))) ->  | AK17: =IF(B17="","",IF(AND(COUNTIF('Entry sheet-2-hin'!$AO$9:$AO$77,"9अलउ२")=0),"",COUNTIF('Entry sheet-2-hin'!$AO$9:$AO$77,"9अलउ२"))) ->  | AM17: =IF(B17="","",IF(AND(COUNTIF('Entry sheet-2-hin'!$AO$9:$AO$77,"9अलउ३")=0),"",COUNTIF('Entry sheet-2-hin'!$AO$9:$AO$77,"9अलउ३"))) ->  | AO17: =IF(B17="","",IF(AND(COUNTIF('Entry sheet-2-hin'!$AO$9:$AO$77,"9अदीउ४")=0),"",COUNTIF('Entry sheet-2-hin'!$AO$9:$AO$77,"9अदीउ४"))) ->  | AQ17: =IF(B17="","",IF(AND(COUNTIF('Entry sheet-2-hin'!$AO$9:$AO$77,"9अदीउ५")=0),"",COUNTIF('Entry sheet-2-hin'!$AO$9:$AO$77,"9अदीउ५"))) ->  | AS17: =IF(B17="","",IF(AND(COUNTIF('Entry sheet-2-hin'!$AO$9:$AO$77,"9रसबवि")=0),"",COUNTIF('Entry sheet-2-hin'!$AO$9:$AO$77,"9रसबवि"))) ->  | AU17: =IF(B17="","",IF(AND(COUNTIF('Entry sheet-2-hin'!$AO$9:$AO$77,"9रसवनि")=0),"",COUNTIF('Entry sheet-2-hin'!$AO$9:$AO$77,"9रसवनि"))) ->  | AW17: =IF(B17="","",IF(AND(COUNTIF('Entry sheet-2-hin'!$AO$9:$AO$77,"9रसअलउ")=0),"",COUNTIF('Entry sheet-2-hin'!$AO$9:$AO$77,"9रसअलउ"))) ->  | AY17: =IF(B17="","",IF(AND(COUNTIF('Entry sheet-2-hin'!$AO$9:$AO$77,"9रसलउ२")=0),"",COUNTIF('Entry sheet-2-hin'!$AO$9:$AO$77,"9रसलउ२"))) ->  | BA17: =IF(B17="","",IF(AND(COUNTIF('Entry sheet-2-hin'!$AO$9:$AO$77,"9रसलउ३")=0),"",COUNTIF('Entry sheet-2-hin'!$AO$9:$AO$77,"9रसलउ३"))) ->  | BC17: =IF(B17="","",IF(AND(COUNTIF('Entry sheet-2-hin'!$AO$9:$AO$77,"9रसदीउ४")=0),"",COUNTIF('Entry sheet-2-hin'!$AO$9:$AO$77,"9रसदीउ४"))) ->  | BE17: =IF(B17="","",IF(AND(COUNTIF('Entry sheet-2-hin'!$AO$9:$AO$77,"9रसदीउ5")=0),"",COUNTIF('Entry sheet-2-hin'!$AO$9:$AO$77,"9रसदीउ5"))) ->  | BG17: 0 | BH17: 0 | BI17: 0 | BJ17: 0 | BK17: 0 | BL17: 0 | BM17: 0 | BN17: 0 | BO17: 0 | BP17: 0 | BQ17: 0 | BR17: 0 | BS17: 0 | BT17: 0 | BU17: 0 | BV17: 0
